Workbook

Sheet Input_Details (hidden)
H1: Harper Road | I1: 3585-LON | J1: LB of Southwark | AA1: CUSTOM GRAPH DATA | AW1: DASHBOARD DATA
B2: Current Selected Direction | H2: General Report Details
B3: =OFFSET(B5,B4,0) -> Combined | G3: =OFFSET(G4,$O$4,0) -> 1 | H3: Harper Road (South of Falmouth Road) | I3: 51.49617, -0.09302 | J3: 1 | K3: =OFFSET(K4,$O$4,0) -> Southbound | L3: Northbound | M3: =OFFSET(M4,$O$4,0) -> 2017-04-20 | N3: =OFFSET(N4,$O$4,0) -> 20 | O3: 1. Harper Road (South of Falmouth Road) - 51.49617, -0.09302 | Q3: =OFFSET(Q4,$O$4,0) -> 2017-04-24 | R3: 2017-04-25 | S3: 2017-04-26 | T3: 2017-04-20 | U3: 2017-04-21 | V3: 2017-04-22 | W3: 2017-04-23 | X3: Site 1: No incidents | Y3: 7-Day Average | AL3: TRUE | AM3: TRUE | AN3: TRUE | AO3: TRUE | AP3: TRUE | AQ3: TRUE | AR3: TRUE | AS3: TRUE | AT3: TRUE | AW3: =K3 -> Southbound | BC3: =L3 -> Northbound | BI3: Combined | BO3: DROPDOWN MENU SELECTION
B4: 3 | H4: Road | I4: Lat/Long ONLY | J4: Site No. | K4: Dir 1 | L4: Dir 2 | M4: Start Date | N4: Speed (mph) | O4: 1 | P4: Start Day | Q4: Mon | R4: Tue | S4: Wed | T4: Thu | U4: Fri | V4: Sat | W4: Sun | X4: Incidents | AB4: Mon | AC4: Tue | AD4: Wed | AE4: Thu | AF4: Fri | AG4: Sat | AH4: Sun | AI4: 5 Day Ave | AJ4: 7 Day Ave | AL4: Mon | AM4: Tue | AN4: Wed | AO4: Thu | AP4: Fri | AQ4: Sat | AR4: Sun | AS4: 5 Day Ave | AT4: 7 Day Ave | AW4: M'Cycle & P'Cycle | AX4: Cars | AY4: LGV & PSV 2Axle | AZ4: OGV1 & PSV 3Axle | BA4: OGV2 | BB4: Total | BC4: =AW4 -> M'Cycle & P'Cycle | BD4: Cars | BE4: LGV & PSV 2Axle | BF4: OGV1 & PSV 3Axle | BG4: OGV2 | BH4: Total | BI4: M'Cycle & P'Cycle | BJ4: Cars | BK4: LGV/PSV 2Axle | BL4: OGV1/PSV 3Axle | BM4: OGV2 | BN4: Total | BO4: =BI4 -> M'Cycle & P'Cycle | BP4: =BJ4 -> Cars | BQ4: LGV/PSV 2Axle | BR4: OGV1/PSV 3Axle | BS4: OGV2 | BT4: Total
B5: Direction Options | G5: 1 | H5: Harper Road (South of Falmouth Road) | I5: 51.49617, -0.09302 | J5: 1 | K5: Southbound | L5: =IF(K5="Northbound","Southbound",IF(K5="Eastbound","Westbound",IF(K5="Southbound","Northbound",IF(K5="Westbound","Eastbound")))) -> Northbound | M5: 2017-04-20 | N5: 20 | O5: =IF(ISBLANK(H5),0,J5&". "&H5&" - "&I5) -> 1. Harper Road (South of Falmouth Road) - 51.49617, -0.09302 | P5: =IF(M5="", "", TEXT(M5,"dddd")) -> Thursday | Q5: 2017-04-24 | R5: 2017-04-25 | S5: 2017-04-26 | T5: 2017-04-20 | U5: 2017-04-21 | V5: 2017-04-22 | W5: 2017-04-23 | X5: Site 1: No incidents | AA5: 0 | AB5: =OFFSET('Raw Data'!EJ4,$B$38,$B$37) -> 30 | AC5: =OFFSET('Raw Data'!EK4,$B$38,$B$37) -> 28 | AD5: =OFFSET('Raw Data'!EL4,$B$38,$B$37) -> 34 | AE5: =OFFSET('Raw Data'!EM4,$B$38,$B$37) -> 42 | AF5: =OFFSET('Raw Data'!EN4,$B$38,$B$37) -> 41 | AG5: =OFFSET('Raw Data'!EO4,$B$38,$B$37) -> 42 | AH5: =OFFSET('Raw Data'!EP4,$B$38,$B$37) -> 57 | AI5: =SUM(AB5:AF5)/5 -> 35 | AJ5: =SUM(AB5:AH5)/7 -> 39.14285714 | AK5: 00:00 | AL5: =IF(AL$3=TRUE,AB5,"") -> 30 | AM5: =IF(AM$3=TRUE,AC5,"") -> 28 | AN5: 34 | AO5: 42 | AP5: 41 | AQ5: 42 | AR5: 57 | AS5: =IF(AS$3=TRUE,AI5,"") -> 35 | AT5: =IF(AT$3=TRUE,AJ5,"") -> 39.14285714 | BO5: PC & MC | BP5: PC & MC | BQ5: PC & MC | BR5: PC & MC | BS5: PC & MC | BT5: PC & MC
B6: =+K3 -> Southbound | G6: 2 | H6: Harper Road (South of Borough High street) | I6: 51.49882, -0.09646 | J6: 2 | K6: Southbound | L6: Northbound | M6: 2017-04-20 | N6: 20 | O6: =IF(ISBLANK(H6),0,J6&". "&H6&" - "&I6) -> 2. Harper Road (South of Borough High street) - 51.49882, -0.09646 | P6: =IF(M6="", "", TEXT(M6,"dddd")) -> Thursday | Q6: 2017-04-24 | R6: 2017-04-25 | S6: 2017-04-26 | T6: 2017-04-20 | U6: 2017-04-21 | V6: 2017-04-22 | W6: 2017-04-23 | X6: Site 2: No incidents | AA6: 15 | AB6: =OFFSET('Raw Data'!EJ5,$B$38,$B$37) -> 24 | AC6: =OFFSET('Raw Data'!EK5,$B$38,$B$37) -> 26 | AD6: =OFFSET('Raw Data'!EL5,$B$38,$B$37) -> 36 | AE6: =OFFSET('Raw Data'!EM5,$B$38,$B$37) -> 32 | AF6: =OFFSET('Raw Data'!EN5,$B$38,$B$37) -> 23 | AG6: =OFFSET('Raw Data'!EO5,$B$38,$B$37) -> 45 | AH6: =OFFSET('Raw Data'!EP5,$B$38,$B$37) -> 35 | AI6: =SUM(AB6:AF6)/5 -> 28.2 | AJ6: 31.57142857 | AK6: =AK5+"00:15" -> 00:15:00 | AL6: =IF(AL$3=TRUE,AB6,"") -> 24 | AM6: =IF(AM$3=TRUE,AC6,"") -> 26 | AN6: =IF(AN$3=TRUE,AD6,"") -> 36 | AO6: =IF(AO$3=TRUE,AE6,"") -> 32 | AP6: =IF(AP$3=TRUE,AF6,"") -> 23 | AQ6: =IF(AQ$3=TRUE,AG6,"") -> 45 | AR6: =IF(AR$3=TRUE,AH6,"") -> 35 | AS6: =IF(AS$3=TRUE,AI6,"") -> 28.2 | AT6: =IF(AT$3=TRUE,AJ6,"") -> 31.57142857 | AV6: Volume | AW6: =SUM(OFFSET('Raw Data'!DR4, Input_Details!$B$12, 0):OFFSET('Raw Data'!DR675, Input_Details!$B$12, 0)) -> 3330 | AX6: =SUM(OFFSET('Raw Data'!DS4, Input_Details!$B$12, 0):OFFSET('Raw Data'!DS675, Input_Details!$B$12, 0)) -> 22222 | AY6: =SUM(OFFSET('Raw Data'!DT4, Input_Details!$B$12, 0):OFFSET('Raw Data'!DT675, Input_Details!$B$12, 0)) -> 2846 | AZ6: =SUM(OFFSET('Raw Data'!DU4, Input_Details!$B$12, 0):OFFSET('Raw Data'!DU675, Input_Details!$B$12, 0)) -> 743 | BA6: =SUM(OFFSET('Raw Data'!DV4, Input_Details!$B$12, 0):OFFSET('Raw Data'!DV675, Input_Details!$B$12, 0)) -> 396 | BB6: =SUM(OFFSET('Raw Data'!DW4, Input_Details!$B$12, 0):OFFSET('Raw Data'!DW675, Input_Details!$B$12, 0)) -> 29537 | BC6: =SUM(OFFSET('Raw Data'!DX4, Input_Details!$B$12, 0):OFFSET('Raw Data'!DX675, Input_Details!$B$12, 0)) -> 1361 | BD6: =SUM(OFFSET('Raw Data'!DY4, Input_Details!$B$12, 0):OFFSET('Raw Data'!DY675, Input_Details!$B$12, 0)) -> 3568 | BE6: =SUM(OFFSET('Raw Data'!DZ4, Input_Details!$B$12, 0):OFFSET('Raw Data'!DZ675, Input_Details!$B$12, 0)) -> 90 | BF6: =SUM(OFFSET('Raw Data'!EA4, Input_Details!$B$12, 0):OFFSET('Raw Data'!EA675, Input_Details!$B$12, 0)) -> 190 | BG6: =SUM(OFFSET('Raw Data'!EB4, Input_Details!$B$12, 0):OFFSET('Raw Data'!EB675, Input_Details!$B$12, 0)) -> 50 | BH6: =SUM(OFFSET('Raw Data'!EC4, Input_Details!$B$12, 0):OFFSET('Raw Data'!EC675, Input_Details!$B$12, 0)) -> 5259 | BI6: =SUM(AW6,BC6) -> 4691 | BJ6: 25790 | BK6: 2936 | BL6: 933 | BM6: 446 | BN6: 34796 | BO6: =IF(Input_Details!$B$4=1, Input_Details!AW6, IF(Input_Details!$B$4=2, Input_Details!BC6, Input_Details!BI6)) -> 4691 | BP6: =IF(Input_Details!$B$4=1, Input_Details!AX6, IF(Input_Details!$B$4=2, Input_Details!BD6, Input_Details!BJ6)) -> 25790 | BQ6: =IF(Input_Details!$B$4=1, Input_Details!AY6, IF(Input_Details!$B$4=2, Input_Details!BE6, Input_Details!BK6)) -> 2936 | BR6: =IF(Input_Details!$B$4=1, Input_Details!AZ6, IF(Input_Details!$B$4=2, Input_Details!BF6, Input_Details!BL6)) -> 933 | BS6: =IF(Input_Details!$B$4=1, Input_Details!BA6, IF(Input_Details!$B$4=2, Input_Details!BG6, Input_Details!BM6)) -> 446 | BT6: =SUM(BO6:BS6) -> 34796
B7: =+L3 -> Northbound | G7: 3 | O7: 0 | AA7: 30 | AB7: =OFFSET('Raw Data'!EJ6,$B$38,$B$37) -> 22 | AC7: =OFFSET('Raw Data'!EK6,$B$38,$B$37) -> 17 | AD7: =OFFSET('Raw Data'!EL6,$B$38,$B$37) -> 38 | AE7: =OFFSET('Raw Data'!EM6,$B$38,$B$37) -> 20 | AF7: =OFFSET('Raw Data'!EN6,$B$38,$B$37) -> 31 | AG7: =OFFSET('Raw Data'!EO6,$B$38,$B$37) -> 41 | AH7: =OFFSET('Raw Data'!EP6,$B$38,$B$37) -> 49 | AI7: 25.6 | AJ7: 31.14285714 | AK7: =AK6+"00:15" -> 00:30:00 | AL7: 22 | AM7: 17 | AN7: 38 | AO7: 20 | AP7: 31 | AQ7: 41 | AR7: 49 | AS7: 25.6 | AT7: 31.14285714 | AV7: (%) | AW7: =AW6/$BB$6 -> 0.1127399533 | AX7: =AX6/$BB$6 -> 0.752344517 | AY7: 0.09635372584 | AZ7: 0.02515489048 | BA7: 0.01340691336 | BC7: =BC6/$BH$6 -> 0.2587944476 | BD7: =BD6/$BH$6 -> 0.6784559802 | BE7: 0.01711351968 | BF7: 0.03612854155 | BG7: 0.009507510934 | BI7: =BI6/$BN$6 -> 0.1348143465 | BJ7: =BJ6/$BN$6 -> 0.7411771468 | BK7: 0.08437751466 | BL7: 0.02681342683 | BM7: 0.01281756524 | BO7: =IF(Input_Details!$B$4=1, Input_Details!AW7, IF(Input_Details!$B$4=2, Input_Details!BC7, Input_Details!BI7)) -> 0.1348143465 | BP7: =IF(Input_Details!$B$4=1, Input_Details!AX7, IF(Input_Details!$B$4=2, Input_Details!BD7, Input_Details!BJ7)) -> 0.7411771468 | BQ7: =IF(Input_Details!$B$4=1, Input_Details!AY7, IF(Input_Details!$B$4=2, Input_Details!BE7, Input_Details!BK7)) -> 0.08437751466 | BR7: =IF(Input_Details!$B$4=1, Input_Details!AZ7, IF(Input_Details!$B$4=2, Input_Details!BF7, Input_Details!BL7)) -> 0.02681342683 | BS7: =IF(Input_Details!$B$4=1, Input_Details!BA7, IF(Input_Details!$B$4=2, Input_Details!BG7, Input_Details!BM7)) -> 0.01281756524
B8: =IF(OR(B6="-", B7="-"), "-", "Combined") -> Combined | G8: 4 | O8: 0 | AA8: 45 | AB8: =OFFSET('Raw Data'!EJ7,$B$38,$B$37) -> 19 | AC8: =OFFSET('Raw Data'!EK7,$B$38,$B$37) -> 24 | AD8: =OFFSET('Raw Data'!EL7,$B$38,$B$37) -> 23 | AE8: =OFFSET('Raw Data'!EM7,$B$38,$B$37) -> 28 | AF8: =OFFSET('Raw Data'!EN7,$B$38,$B$37) -> 35 | AG8: =OFFSET('Raw Data'!EO7,$B$38,$B$37) -> 44 | AH8: =OFFSET('Raw Data'!EP7,$B$38,$B$37) -> 49 | AI8: 25.8 | AJ8: 31.71428571 | AK8: 00:45:00 | AL8: 19 | AM8: 24 | AN8: 23 | AO8: 28 | AP8: 35 | AQ8: 44 | AR8: 49 | AS8: 25.8 | AT8: 31.71428571
G9: 5 | O9: 0 | AA9: 100 | AB9: =OFFSET('Raw Data'!EJ8,$B$38,$B$37) -> 17 | AC9: =OFFSET('Raw Data'!EK8,$B$38,$B$37) -> 14 | AD9: =OFFSET('Raw Data'!EL8,$B$38,$B$37) -> 21 | AE9: =OFFSET('Raw Data'!EM8,$B$38,$B$37) -> 20 | AF9: =OFFSET('Raw Data'!EN8,$B$38,$B$37) -> 25 | AG9: =OFFSET('Raw Data'!EO8,$B$38,$B$37) -> 27 | AH9: =OFFSET('Raw Data'!EP8,$B$38,$B$37) -> 35 | AI9: 19.4 | AJ9: 22.71428571 | AK9: 01:00:00 | AL9: 17 | AM9: 14 | AN9: 21 | AO9: 20 | AP9: 25 | AQ9: 27 | AR9: 35 | AS9: 19.4 | AT9: 22.71428571 | AW9: =K3 -> Southbound | BD9: =L3 -> Northbound | BK9: COMBINED | BR9: DROPDOWN MENU SELECTION
B10: Current Data Row Reference (vol) | C10: Vol Sum Dir (Avg) | G10: 6 | O10: 0 | AA10: 115 | AB10: =OFFSET('Raw Data'!EJ9,$B$38,$B$37) -> 10 | AC10: =OFFSET('Raw Data'!EK9,$B$38,$B$37) -> 16 | AD10: =OFFSET('Raw Data'!EL9,$B$38,$B$37) -> 28 | AE10: =OFFSET('Raw Data'!EM9,$B$38,$B$37) -> 18 | AF10: =OFFSET('Raw Data'!EN9,$B$38,$B$37) -> 15 | AG10: =OFFSET('Raw Data'!EO9,$B$38,$B$37) -> 31 | AH10: =OFFSET('Raw Data'!EP9,$B$38,$B$37) -> 39 | AI10: 17.4 | AJ10: 22.42857143 | AK10: 01:15:00 | AL10: 10 | AM10: 16 | AN10: 28 | AO10: 18 | AP10: 15 | AQ10: 31 | AR10: 39 | AS10: 17.4 | AT10: 22.42857143 | AW10: Mon | AX10: Tue | AY10: Wed | AZ10: Thu | BA10: Fri | BB10: Sat | BC10: Sun | BD10: Mon | BE10: Tue | BF10: Wed | BG10: Thu | BH10: Fri | BI10: Sat | BJ10: Sun | BK10: Mon | BL10: Tue | BM10: Wed | BN10: Thu | BO10: Fri | BP10: Sat | BQ10: Sun | BR10: Mon | BS10: Tue | BT10: Wed | BU10: Thu | BV10: Fri | BW10: Sat | BX10: Sun
B11: =SUM(B4-1)*7 -> 14 | C11: =SUM(B4-1)*6 -> 12 | G11: 7 | O11: 0 | AA11: 130 | AB11: =OFFSET('Raw Data'!EJ10,$B$38,$B$37) -> 17 | AC11: =OFFSET('Raw Data'!EK10,$B$38,$B$37) -> 18 | AD11: =OFFSET('Raw Data'!EL10,$B$38,$B$37) -> 19 | AE11: =OFFSET('Raw Data'!EM10,$B$38,$B$37) -> 17 | AF11: =OFFSET('Raw Data'!EN10,$B$38,$B$37) -> 23 | AG11: =OFFSET('Raw Data'!EO10,$B$38,$B$37) -> 26 | AH11: =OFFSET('Raw Data'!EP10,$B$38,$B$37) -> 30 | AI11: 18.8 | AJ11: 21.42857143 | AK11: 01:30:00 | AL11: 17 | AM11: 18 | AN11: 19 | AO11: 17 | AP11: 23 | AQ11: 26 | AR11: 30 | AS11: 18.8 | AT11: 21.42857143 | AV11: Avg speed | AW11: =AVERAGE(OFFSET('Raw Data'!$AN$4, $B$12, 0):OFFSET('Raw Data'!$AN$99,$B$12, 0)) -> 19.53020833 | AX11: =AVERAGE(OFFSET('Raw Data'!$AN$100, $B$12, 0):OFFSET('Raw Data'!$AN$195,$B$12, 0)) -> 19.65833333 | AY11: =AVERAGE(OFFSET('Raw Data'!$AN$196, $B$12, 0):OFFSET('Raw Data'!$AN$291,$B$12, 0)) -> 20.04375 | AZ11: =AVERAGE(OFFSET('Raw Data'!$AN$292, $B$12, 0):OFFSET('Raw Data'!$AN$387,$B$12, 0)) -> 19.34166667 | BA11: =AVERAGE(OFFSET('Raw Data'!$AN$388, $B$12, 0):OFFSET('Raw Data'!$AN$483,$B$12, 0)) -> 19.14791667 | BB11: =AVERAGE(OFFSET('Raw Data'!$AN$484, $B$12, 0):OFFSET('Raw Data'!$AN$579,$B$12, 0)) -> 18.41458333 | BC11: =AVERAGE(OFFSET('Raw Data'!$AN$580, $B$12, 0):OFFSET('Raw Data'!$AN$675,$B$12, 0)) -> 17.99375 | BD11: =AVERAGE(OFFSET('Raw Data'!$CA$4, $B$12, 0):OFFSET('Raw Data'!$CA$99,$B$12, 0)) -> 16.96947368 | BE11: =AVERAGE(OFFSET('Raw Data'!$CA$100, $B$12, 0):OFFSET('Raw Data'!$CA$195,$B$12, 0)) -> 16.49052632 | BF11: =AVERAGE(OFFSET('Raw Data'!$CA$196, $B$12, 0):OFFSET('Raw Data'!$CA$291,$B$12, 0)) -> 16.83052632 | BG11: =AVERAGE(OFFSET('Raw Data'!$CA$292, $B$12, 0):OFFSET('Raw Data'!$CA$387,$B$12, 0)) -> 17.07362637 | BH11: =AVERAGE(OFFSET('Raw Data'!$CA$388, $B$12, 0):OFFSET('Raw Data'!$CA$483,$B$12, 0)) -> 16.66043956 | BI11: =AVERAGE(OFFSET('Raw Data'!$CA$484, $B$12, 0):OFFSET('Raw Data'!$CA$579,$B$12, 0)) -> 16.25053763 | BJ11: =AVERAGE(OFFSET('Raw Data'!$CA$580, $B$12, 0):OFFSET('Raw Data'!$CA$675,$B$12, 0)) -> 15.95208333 | BK11: =AVERAGE(OFFSET('Raw Data'!$DN$4, $B$12, 0):OFFSET('Raw Data'!$DN$99,$B$12, 0)) -> 19.14027297 | BL11: =AVERAGE(OFFSET('Raw Data'!$DN$100, $B$12, 0):OFFSET('Raw Data'!$DN$195,$B$12, 0)) -> 18.9953154 | BM11: =AVERAGE(OFFSET('Raw Data'!$DN$196, $B$12, 0):OFFSET('Raw Data'!$DN$291,$B$12, 0)) -> 19.30688313 | BN11: =AVERAGE(OFFSET('Raw Data'!$DN$292, $B$12, 0):OFFSET('Raw Data'!$DN$387,$B$12, 0)) -> 19.0452367 | BO11: =AVERAGE(OFFSET('Raw Data'!$DN$388, $B$12, 0):OFFSET('Raw Data'!$DN$483,$B$12, 0)) -> 18.81932356 | BP11: =AVERAGE(OFFSET('Raw Data'!$DN$484, $B$12, 0):OFFSET('Raw Data'!$DN$579,$B$12, 0)) -> 18.11492675 | BQ11: =AVERAGE(OFFSET('Raw Data'!$DN$580, $B$12, 0):OFFSET('Raw Data'!$DN$675,$B$12, 0)) -> 17.65696633 | BR11: =IF(Input_Details!$B$4=1, Input_Details!AW11, IF(Input_Details!$B$4=2, Input_Details!BD11, Input_Details!BK11)) -> 19.14027297 | BS11: =IF(Input_Details!$B$4=1, Input_Details!AX11, IF(Input_Details!$B$4=2, Input_Details!BE11, Input_Details!BL11)) -> 18.9953154 | BT11: =IF(Input_Details!$B$4=1, Input_Details!AY11, IF(Input_Details!$B$4=2, Input_Details!BF11, Input_Details!BM11)) -> 19.30688313 | BU11: =IF(Input_Details!$B$4=1, Input_Details!AZ11, IF(Input_Details!$B$4=2, Input_Details!BG11, Input_Details!BN11)) -> 19.0452367 | BV11: =IF(Input_Details!$B$4=1, Input_Details!BA11, IF(Input_Details!$B$4=2, Input_Details!BH11, Input_Details!BO11)) -> 18.81932356 | BW11: =IF(Input_Details!$B$4=1, Input_Details!BB11, IF(Input_Details!$B$4=2, Input_Details!BI11, Input_Details!BP11)) -> 18.11492675 | BX11: =IF(Input_Details!$B$4=1, Input_Details!BC11, IF(Input_Details!$B$4=2, Input_Details!BJ11, Input_Details!BQ11)) -> 17.65696633
B12: =SUM($G$3-1)*864 -> 0 | C12: =SUM($G$3-1)*864 -> 0 | G12: 8 | O12: 0 | AA12: 145 | AB12: =OFFSET('Raw Data'!EJ11,$B$38,$B$37) -> 12 | AC12: =OFFSET('Raw Data'!EK11,$B$38,$B$37) -> 15 | AD12: =OFFSET('Raw Data'!EL11,$B$38,$B$37) -> 13 | AE12: =OFFSET('Raw Data'!EM11,$B$38,$B$37) -> 12 | AF12: =OFFSET('Raw Data'!EN11,$B$38,$B$37) -> 17 | AG12: =OFFSET('Raw Data'!EO11,$B$38,$B$37) -> 24 | AH12: =OFFSET('Raw Data'!EP11,$B$38,$B$37) -> 26 | AI12: 13.8 | AJ12: 17 | AK12: 01:45:00 | AL12: 12 | AM12: 15 | AN12: 13 | AO12: 12 | AP12: 17 | AQ12: 24 | AR12: 26 | AS12: 13.8 | AT12: 17
G13: 9 | O13: 0 | AA13: 200 | AB13: =OFFSET('Raw Data'!EJ12,$B$38,$B$37) -> 7 | AC13: =OFFSET('Raw Data'!EK12,$B$38,$B$37) -> 7 | AD13: =OFFSET('Raw Data'!EL12,$B$38,$B$37) -> 14 | AE13: =OFFSET('Raw Data'!EM12,$B$38,$B$37) -> 14 | AF13: =OFFSET('Raw Data'!EN12,$B$38,$B$37) -> 14 | AG13: =OFFSET('Raw Data'!EO12,$B$38,$B$37) -> 25 | AH13: =OFFSET('Raw Data'!EP12,$B$38,$B$37) -> 38 | AI13: 11.2 | AJ13: 17 | AK13: 02:00:00 | AL13: 7 | AM13: 7 | AN13: 14 | AO13: 14 | AP13: 14 | AQ13: 25 | AR13: 38 | AS13: 11.2 | AT13: 17 | AW13: 7D - avg speed | AX13: 7-D 85th | AY13: 7D avg, no. speeding | AZ13: 7D TOT
G14: 10 | O14: 0 | AA14: 215 | AB14: =OFFSET('Raw Data'!EJ13,$B$38,$B$37) -> 11 | AC14: =OFFSET('Raw Data'!EK13,$B$38,$B$37) -> 9 | AD14: =OFFSET('Raw Data'!EL13,$B$38,$B$37) -> 12 | AE14: =OFFSET('Raw Data'!EM13,$B$38,$B$37) -> 16 | AF14: =OFFSET('Raw Data'!EN13,$B$38,$B$37) -> 12 | AG14: =OFFSET('Raw Data'!EO13,$B$38,$B$37) -> 26 | AH14: =OFFSET('Raw Data'!EP13,$B$38,$B$37) -> 34 | AI14: 12 | AJ14: 17.14285714 | AK14: 02:15:00 | AL14: 11 | AM14: 9 | AN14: 12 | AO14: 16 | AP14: 12 | AQ14: 26 | AR14: 34 | AS14: 12 | AT14: 17.14285714 | AV14: PRI | AW14: =IFERROR(AVERAGE(OFFSET('Raw Data'!$AN$772, $B$12, 0):OFFSET('Raw Data'!$AN867,$B$12, 0)), "-") -> 19.16145833 | AX14: =IFERROR(AVERAGE(OFFSET('Raw Data'!$AO$772, $B$12, 0):OFFSET('Raw Data'!$AO$867,$B$12, 0)), "-") -> 22.49332589 | AY14: =IFERROR(SUM(OFFSET('Raw Data'!$T$772,$B$12,VLOOKUP(Input_Details!$N$3, 'Speed Summary'!$AF$3:$AG$12, 2,0)-1):OFFSET('Raw Data'!$AM$867, $B$12, 0)), "-") -> 1435 | AZ14: =IFERROR(SUM(OFFSET('Raw Data'!$T$772, $B$12, 0):OFFSET('Raw Data'!$AM$867, $B$12, 0)), "-") -> 3976
B15: Day Options | G15: 11 | AA15: 230 | AB15: =OFFSET('Raw Data'!EJ14,$B$38,$B$37) -> 4 | AC15: =OFFSET('Raw Data'!EK14,$B$38,$B$37) -> 5 | AD15: =OFFSET('Raw Data'!EL14,$B$38,$B$37) -> 9 | AE15: =OFFSET('Raw Data'!EM14,$B$38,$B$37) -> 11 | AF15: =OFFSET('Raw Data'!EN14,$B$38,$B$37) -> 14 | AG15: =OFFSET('Raw Data'!EO14,$B$38,$B$37) -> 23 | AH15: =OFFSET('Raw Data'!EP14,$B$38,$B$37) -> 32 | AI15: 8.6 | AJ15: 14 | AK15: 02:30:00 | AL15: 4 | AM15: 5 | AN15: 9 | AO15: 11 | AP15: 14 | AQ15: 23 | AR15: 32 | AS15: 8.6 | AT15: 14 | AV15: SEC | AW15: =IFERROR(AVERAGE(OFFSET('Raw Data'!$CA$772, $B$12, 0):OFFSET('Raw Data'!$CA$867,$B$12, 0)), "-") -> 16.62815972 | AX15: =IFERROR(AVERAGE(OFFSET('Raw Data'!$CB$772, $B$12, 0):OFFSET('Raw Data'!$CB$867,$B$12, 0)), "-") -> 19.05625 | AY15: =IFERROR(SUM(OFFSET('Raw Data'!$BG$772,$B$12,VLOOKUP(Input_Details!$N$3, 'Speed Summary'!$AF$3:$AG$12, 2,0)-1):OFFSET('Raw Data'!$BZ$867, $B$12, 0)), "-") -> 73 | AZ15: =IFERROR(SUM(OFFSET('Raw Data'!$BG$772, $B$12, 0):OFFSET('Raw Data'!$BZ$867, $B$12, 0)), "-") -> 562
B16: Monday | G16: 12 | AA16: 245 | AB16: =OFFSET('Raw Data'!EJ15,$B$38,$B$37) -> 4 | AC16: =OFFSET('Raw Data'!EK15,$B$38,$B$37) -> 5 | AD16: =OFFSET('Raw Data'!EL15,$B$38,$B$37) -> 10 | AE16: =OFFSET('Raw Data'!EM15,$B$38,$B$37) -> 6 | AF16: =OFFSET('Raw Data'!EN15,$B$38,$B$37) -> 13 | AG16: =OFFSET('Raw Data'!EO15,$B$38,$B$37) -> 13 | AH16: =OFFSET('Raw Data'!EP15,$B$38,$B$37) -> 26 | AI16: 7.6 | AJ16: 11 | AK16: 02:45:00 | AL16: 4 | AM16: 5 | AN16: 10 | AO16: 6 | AP16: 13 | AQ16: 13 | AR16: 26 | AS16: 7.6 | AT16: 11 | AV16: COM | AW16: =IFERROR(AVERAGE(OFFSET('Raw Data'!$DN$772, $B$12, 0):OFFSET('Raw Data'!$DN$867,$B$12, 0)), "-") -> 18.74461283 | AX16: =IFERROR(AVERAGE(OFFSET('Raw Data'!$DO$772, $B$12, 0):OFFSET('Raw Data'!$DO$867,$B$12, 0)), "-") -> 21.30307292 | AY16: =IFERROR(SUM(OFFSET('Raw Data'!$CT$772,$B$12,VLOOKUP(Input_Details!$N$3, 'Speed Summary'!$AF$3:$AG$12, 2,0)-1):OFFSET('Raw Data'!$DM$867, $B$12, 0)), "-") -> 1696 | AZ16: =IFERROR(SUM(OFFSET('Raw Data'!$CT$772, $B$12, 0):OFFSET('Raw Data'!$DM$867, $B$12, 0)), "-") -> 4950
B17: Tuesday | G17: 13 | AA17: 300 | AB17: =OFFSET('Raw Data'!EJ16,$B$38,$B$37) -> 10 | AC17: =OFFSET('Raw Data'!EK16,$B$38,$B$37) -> 5 | AD17: =OFFSET('Raw Data'!EL16,$B$38,$B$37) -> 16 | AE17: =OFFSET('Raw Data'!EM16,$B$38,$B$37) -> 8 | AF17: =OFFSET('Raw Data'!EN16,$B$38,$B$37) -> 6 | AG17: =OFFSET('Raw Data'!EO16,$B$38,$B$37) -> 19 | AH17: =OFFSET('Raw Data'!EP16,$B$38,$B$37) -> 25 | AI17: 9 | AJ17: 12.71428571 | AK17: 03:00:00 | AL17: 10 | AM17: 5 | AN17: 16 | AO17: 8 | AP17: 6 | AQ17: 19 | AR17: 25 | AS17: 9 | AT17: 12.71428571
B18: Wednesday | G18: 14 | AA18: 315 | AB18: =OFFSET('Raw Data'!EJ17,$B$38,$B$37) -> 9 | AC18: =OFFSET('Raw Data'!EK17,$B$38,$B$37) -> 12 | AD18: =OFFSET('Raw Data'!EL17,$B$38,$B$37) -> 12 | AE18: =OFFSET('Raw Data'!EM17,$B$38,$B$37) -> 6 | AF18: =OFFSET('Raw Data'!EN17,$B$38,$B$37) -> 15 | AG18: =OFFSET('Raw Data'!EO17,$B$38,$B$37) -> 14 | AH18: =OFFSET('Raw Data'!EP17,$B$38,$B$37) -> 21 | AI18: 10.8 | AJ18: 12.71428571 | AK18: 03:15:00 | AL18: 9 | AM18: 12 | AN18: 12 | AO18: 6 | AP18: 15 | AQ18: 14 | AR18: 21 | AS18: 10.8 | AT18: 12.71428571
B19: Thursday | G19: 15 | AA19: 330 | AB19: =OFFSET('Raw Data'!EJ18,$B$38,$B$37) -> 7 | AC19: =OFFSET('Raw Data'!EK18,$B$38,$B$37) -> 5 | AD19: =OFFSET('Raw Data'!EL18,$B$38,$B$37) -> 6 | AE19: =OFFSET('Raw Data'!EM18,$B$38,$B$37) -> 9 | AF19: =OFFSET('Raw Data'!EN18,$B$38,$B$37) -> 18 | AG19: =OFFSET('Raw Data'!EO18,$B$38,$B$37) -> 21 | AH19: =OFFSET('Raw Data'!EP18,$B$38,$B$37) -> 20 | AI19: 9 | AJ19: 12.28571429 | AK19: 03:30:00 | AL19: 7 | AM19: 5 | AN19: 6 | AO19: 9 | AP19: 18 | AQ19: 21 | AR19: 20 | AS19: 9 | AT19: 12.28571429
B20: Friday | G20: 16 | AA20: 345 | AB20: =OFFSET('Raw Data'!EJ19,$B$38,$B$37) -> 6 | AC20: =OFFSET('Raw Data'!EK19,$B$38,$B$37) -> 11 | AD20: =OFFSET('Raw Data'!EL19,$B$38,$B$37) -> 12 | AE20: =OFFSET('Raw Data'!EM19,$B$38,$B$37) -> 8 | AF20: =OFFSET('Raw Data'!EN19,$B$38,$B$37) -> 11 | AG20: =OFFSET('Raw Data'!EO19,$B$38,$B$37) -> 12 | AH20: =OFFSET('Raw Data'!EP19,$B$38,$B$37) -> 21 | AI20: 9.6 | AJ20: 11.57142857 | AK20: 03:45:00 | AL20: 6 | AM20: 11 | AN20: 12 | AO20: 8 | AP20: 11 | AQ20: 12 | AR20: 21 | AS20: 9.6 | AT20: 11.57142857
B21: Saturday | G21: 17 | AA21: 400 | AB21: =OFFSET('Raw Data'!EJ20,$B$38,$B$37) -> 7 | AC21: =OFFSET('Raw Data'!EK20,$B$38,$B$37) -> 6 | AD21: =OFFSET('Raw Data'!EL20,$B$38,$B$37) -> 7 | AE21: =OFFSET('Raw Data'!EM20,$B$38,$B$37) -> 12 | AF21: =OFFSET('Raw Data'!EN20,$B$38,$B$37) -> 11 | AG21: =OFFSET('Raw Data'!EO20,$B$38,$B$37) -> 13 | AH21: =OFFSET('Raw Data'!EP20,$B$38,$B$37) -> 10 | AI21: 8.6 | AJ21: 9.428571429 | AK21: 04:00:00 | AL21: 7 | AM21: 6 | AN21: 7 | AO21: 12 | AP21: 11 | AQ21: 13 | AR21: 10 | AS21: 8.6 | AT21: 9.428571429
B22: Sunday | G22: 18 | AA22: 415 | AB22: =OFFSET('Raw Data'!EJ21,$B$38,$B$37) -> 6 | AC22: =OFFSET('Raw Data'!EK21,$B$38,$B$37) -> 10 | AD22: =OFFSET('Raw Data'!EL21,$B$38,$B$37) -> 13 | AE22: =OFFSET('Raw Data'!EM21,$B$38,$B$37) -> 8 | AF22: =OFFSET('Raw Data'!EN21,$B$38,$B$37) -> 8 | AG22: =OFFSET('Raw Data'!EO21,$B$38,$B$37) -> 9 | AH22: =OFFSET('Raw Data'!EP21,$B$38,$B$37) -> 18 | AI22: 9 | AJ22: 10.28571429 | AK22: 04:15:00 | AL22: 6 | AM22: 10 | AN22: 13 | AO22: 8 | AP22: 8 | AQ22: 9 | AR22: 18 | AS22: 9 | AT22: 10.28571429
B23: Weekday Average | G23: 19 | AA23: 430 | AB23: =OFFSET('Raw Data'!EJ22,$B$38,$B$37) -> 5 | AC23: =OFFSET('Raw Data'!EK22,$B$38,$B$37) -> 11 | AD23: =OFFSET('Raw Data'!EL22,$B$38,$B$37) -> 8 | AE23: =OFFSET('Raw Data'!EM22,$B$38,$B$37) -> 8 | AF23: =OFFSET('Raw Data'!EN22,$B$38,$B$37) -> 9 | AG23: =OFFSET('Raw Data'!EO22,$B$38,$B$37) -> 15 | AH23: =OFFSET('Raw Data'!EP22,$B$38,$B$37) -> 15 | AI23: 8.2 | AJ23: 10.14285714 | AK23: 04:30:00 | AL23: 5 | AM23: 11 | AN23: 8 | AO23: 8 | AP23: 9 | AQ23: 15 | AR23: 15 | AS23: 8.2 | AT23: 10.14285714
B24: 7-Day Average | G24: 20 | AA24: 445 | AB24: =OFFSET('Raw Data'!EJ23,$B$38,$B$37) -> 10 | AC24: =OFFSET('Raw Data'!EK23,$B$38,$B$37) -> 14 | AD24: =OFFSET('Raw Data'!EL23,$B$38,$B$37) -> 13 | AE24: =OFFSET('Raw Data'!EM23,$B$38,$B$37) -> 12 | AF24: =OFFSET('Raw Data'!EN23,$B$38,$B$37) -> 10 | AG24: =OFFSET('Raw Data'!EO23,$B$38,$B$37) -> 16 | AH24: =OFFSET('Raw Data'!EP23,$B$38,$B$37) -> 10 | AI24: 11.8 | AJ24: 12.14285714 | AK24: 04:45:00 | AL24: 10 | AM24: 14 | AN24: 13 | AO24: 12 | AP24: 10 | AQ24: 16 | AR24: 10 | AS24: 11.8 | AT24: 12.14285714
B25: 9 | AA25: 500 | AB25: =OFFSET('Raw Data'!EJ24,$B$38,$B$37) -> 15 | AC25: =OFFSET('Raw Data'!EK24,$B$38,$B$37) -> 14 | AD25: =OFFSET('Raw Data'!EL24,$B$38,$B$37) -> 16 | AE25: =OFFSET('Raw Data'!EM24,$B$38,$B$37) -> 13 | AF25: =OFFSET('Raw Data'!EN24,$B$38,$B$37) -> 15 | AG25: =OFFSET('Raw Data'!EO24,$B$38,$B$37) -> 19 | AH25: =OFFSET('Raw Data'!EP24,$B$38,$B$37) -> 17 | AI25: 14.6 | AJ25: 15.57142857 | AK25: 05:00:00 | AL25: 15 | AM25: 14 | AN25: 16 | AO25: 13 | AP25: 15 | AQ25: 19 | AR25: 17 | AS25: 14.6 | AT25: 15.57142857
H26: Input_Plans Details - alter if less site plans are needed than the no. of sites | AA26: 515 | AB26: =OFFSET('Raw Data'!EJ25,$B$38,$B$37) -> 12 | AC26: =OFFSET('Raw Data'!EK25,$B$38,$B$37) -> 12 | AD26: =OFFSET('Raw Data'!EL25,$B$38,$B$37) -> 7 | AE26: =OFFSET('Raw Data'!EM25,$B$38,$B$37) -> 13 | AF26: =OFFSET('Raw Data'!EN25,$B$38,$B$37) -> 19 | AG26: =OFFSET('Raw Data'!EO25,$B$38,$B$37) -> 26 | AH26: =OFFSET('Raw Data'!EP25,$B$38,$B$37) -> 18 | AI26: 12.6 | AJ26: 15.28571429 | AK26: =AK25+"00:15" -> 05:15:00 | AL26: =IF(AL$3=TRUE,AB26,"") -> 12 | AM26: 12 | AN26: 7 | AO26: 13 | AP26: 19 | AQ26: 26 | AR26: 18 | AS26: 12.6 | AT26: 15.28571429
B27: Current Data Row Reference (Classes) | H27: Road | I27: Location | J27: Site No. | O27: "Select Site…" | AA27: 530 | AB27: =OFFSET('Raw Data'!EJ26,$B$38,$B$37) -> 11 | AC27: =OFFSET('Raw Data'!EK26,$B$38,$B$37) -> 18 | AD27: =OFFSET('Raw Data'!EL26,$B$38,$B$37) -> 13 | AE27: =OFFSET('Raw Data'!EM26,$B$38,$B$37) -> 17 | AF27: =OFFSET('Raw Data'!EN26,$B$38,$B$37) -> 14 | AG27: =OFFSET('Raw Data'!EO26,$B$38,$B$37) -> 13 | AH27: =OFFSET('Raw Data'!EP26,$B$38,$B$37) -> 19 | AI27: 14.6 | AJ27: 15 | AK27: =AK26+"00:15" -> 05:30:00 | AL27: 11 | AM27: 18 | AN27: 13 | AO27: 17 | AP27: 14 | AQ27: 13 | AR27: 19 | AS27: 14.6 | AT27: 15
B28: =SUM(B25-1)*96 -> 768 | H28: =IF(H5="", "", H5) -> Harper Road (South of Falmouth Road) | I28: =IF(I5="", "", I5) -> 51.49617, -0.09302 | J28: 1 | O28: =IF(H28="", "",J28&". "&H28&" - "&I28) -> 1. Harper Road (South of Falmouth Road) - 51.49617, -0.09302 | AA28: 545 | AB28: =OFFSET('Raw Data'!EJ27,$B$38,$B$37) -> 19 | AC28: =OFFSET('Raw Data'!EK27,$B$38,$B$37) -> 28 | AD28: =OFFSET('Raw Data'!EL27,$B$38,$B$37) -> 31 | AE28: =OFFSET('Raw Data'!EM27,$B$38,$B$37) -> 17 | AF28: =OFFSET('Raw Data'!EN27,$B$38,$B$37) -> 23 | AG28: =OFFSET('Raw Data'!EO27,$B$38,$B$37) -> 13 | AH28: =OFFSET('Raw Data'!EP27,$B$38,$B$37) -> 17 | AI28: 23.6 | AJ28: 21.14285714 | AK28: 05:45:00 | AL28: 19 | AM28: 28 | AN28: 31 | AO28: 17 | AP28: 23 | AQ28: 13 | AR28: 17 | AS28: 23.6 | AT28: 21.14285714
B29: =SUM(($G$3-1)*864)+B28 -> 768 | H29: =IF(H6="", "", H6) -> Harper Road (South of Borough High street) | I29: 51.49882, -0.09646 | J29: 2 | O29: =IF(H29="", "",J29&". "&H29&" - "&I29) -> 2. Harper Road (South of Borough High street) - 51.49882, -0.09646 | AA29: 600 | AB29: =OFFSET('Raw Data'!EJ28,$B$38,$B$37) -> 22 | AC29: =OFFSET('Raw Data'!EK28,$B$38,$B$37) -> 32 | AD29: =OFFSET('Raw Data'!EL28,$B$38,$B$37) -> 26 | AE29: =OFFSET('Raw Data'!EM28,$B$38,$B$37) -> 26 | AF29: =OFFSET('Raw Data'!EN28,$B$38,$B$37) -> 21 | AG29: =OFFSET('Raw Data'!EO28,$B$38,$B$37) -> 15 | AH29: =OFFSET('Raw Data'!EP28,$B$38,$B$37) -> 16 | AI29: =SUM(AB29:AF29)/5 -> 25.4 | AJ29: =SUM(AB29:AH29)/7 -> 22.57142857 | AK29: 06:00:00 | AL29: 22 | AM29: 32 | AN29: 26 | AO29: 26 | AP29: 21 | AQ29: 15 | AR29: 16 | AS29: 25.4 | AT29: 22.57142857
H30: =IF(H7="", "", H7) ->  | AA30: 615 | AB30: =OFFSET('Raw Data'!EJ29,$B$38,$B$37) -> 35 | AC30: =OFFSET('Raw Data'!EK29,$B$38,$B$37) -> 43 | AD30: =OFFSET('Raw Data'!EL29,$B$38,$B$37) -> 42 | AE30: =OFFSET('Raw Data'!EM29,$B$38,$B$37) -> 34 | AF30: =OFFSET('Raw Data'!EN29,$B$38,$B$37) -> 37 | AG30: =OFFSET('Raw Data'!EO29,$B$38,$B$37) -> 21 | AH30: =OFFSET('Raw Data'!EP29,$B$38,$B$37) -> 22 | AI30: 38.2 | AJ30: 33.42857143 | AK30: 06:15:00 | AL30: 35 | AM30: 43 | AN30: 42 | AO30: 34 | AP30: 37 | AQ30: 21 | AR30: 22 | AS30: 38.2 | AT30: 33.42857143
B31: Current Data Row Reference (Speed) | H31: =IF(H8="", "", H8) ->  | AA31: 630 | AB31: =OFFSET('Raw Data'!EJ30,$B$38,$B$37) -> 40 | AC31: =OFFSET('Raw Data'!EK30,$B$38,$B$37) -> 51 | AD31: =OFFSET('Raw Data'!EL30,$B$38,$B$37) -> 61 | AE31: =OFFSET('Raw Data'!EM30,$B$38,$B$37) -> 43 | AF31: =OFFSET('Raw Data'!EN30,$B$38,$B$37) -> 42 | AG31: =OFFSET('Raw Data'!EO30,$B$38,$B$37) -> 21 | AH31: =OFFSET('Raw Data'!EP30,$B$38,$B$37) -> 24 | AI31: 47.4 | AJ31: 40.28571429 | AK31: 06:30:00 | AL31: 40 | AM31: 51 | AN31: 61 | AO31: 43 | AP31: 42 | AQ31: 21 | AR31: 24 | AS31: 47.4 | AT31: 40.28571429
B32: =SUM(B4-1)*39 -> 78 | H32: =IF(H9="", "", H9) ->  | AA32: 645 | AB32: =OFFSET('Raw Data'!EJ31,$B$38,$B$37) -> 52 | AC32: =OFFSET('Raw Data'!EK31,$B$38,$B$37) -> 56 | AD32: =OFFSET('Raw Data'!EL31,$B$38,$B$37) -> 50 | AE32: =OFFSET('Raw Data'!EM31,$B$38,$B$37) -> 43 | AF32: =OFFSET('Raw Data'!EN31,$B$38,$B$37) -> 51 | AG32: =OFFSET('Raw Data'!EO31,$B$38,$B$37) -> 20 | AH32: =OFFSET('Raw Data'!EP31,$B$38,$B$37) -> 24 | AI32: 50.4 | AJ32: 42.28571429 | AK32: 06:45:00 | AL32: 52 | AM32: 56 | AN32: 50 | AO32: 43 | AP32: 51 | AQ32: 20 | AR32: 24 | AS32: 50.4 | AT32: 42.28571429
B33: =SUM(B25-1)*96 -> 768 | H33: =IF(H10="", "", H10) ->  | AA33: 700 | AB33: =OFFSET('Raw Data'!EJ32,$B$38,$B$37) -> 35 | AC33: =OFFSET('Raw Data'!EK32,$B$38,$B$37) -> 31 | AD33: =OFFSET('Raw Data'!EL32,$B$38,$B$37) -> 47 | AE33: =OFFSET('Raw Data'!EM32,$B$38,$B$37) -> 36 | AF33: =OFFSET('Raw Data'!EN32,$B$38,$B$37) -> 38 | AG33: =OFFSET('Raw Data'!EO32,$B$38,$B$37) -> 21 | AH33: =OFFSET('Raw Data'!EP32,$B$38,$B$37) -> 17 | AI33: 37.4 | AJ33: 32.14285714 | AK33: 07:00:00 | AL33: 35 | AM33: 31 | AN33: 47 | AO33: 36 | AP33: 38 | AQ33: 21 | AR33: 17 | AS33: 37.4 | AT33: 32.14285714
B34: =SUM(B33+B12) -> 768 | H34: =IF(H11="", "", H11) ->  | AA34: 715 | AB34: =OFFSET('Raw Data'!EJ33,$B$38,$B$37) -> 35 | AC34: =OFFSET('Raw Data'!EK33,$B$38,$B$37) -> 40 | AD34: =OFFSET('Raw Data'!EL33,$B$38,$B$37) -> 57 | AE34: =OFFSET('Raw Data'!EM33,$B$38,$B$37) -> 51 | AF34: =OFFSET('Raw Data'!EN33,$B$38,$B$37) -> 40 | AG34: =OFFSET('Raw Data'!EO33,$B$38,$B$37) -> 22 | AH34: =OFFSET('Raw Data'!EP33,$B$38,$B$37) -> 21 | AI34: 44.6 | AJ34: 38 | AK34: 07:15:00 | AL34: 35 | AM34: 40 | AN34: 57 | AO34: 51 | AP34: 40 | AQ34: 22 | AR34: 21 | AS34: 44.6 | AT34: 38
H35: =IF(H12="", "", H12) ->  | AA35: 730 | AB35: =OFFSET('Raw Data'!EJ34,$B$38,$B$37) -> 52 | AC35: =OFFSET('Raw Data'!EK34,$B$38,$B$37) -> 59 | AD35: =OFFSET('Raw Data'!EL34,$B$38,$B$37) -> 61 | AE35: =OFFSET('Raw Data'!EM34,$B$38,$B$37) -> 57 | AF35: =OFFSET('Raw Data'!EN34,$B$38,$B$37) -> 62 | AG35: =OFFSET('Raw Data'!EO34,$B$38,$B$37) -> 24 | AH35: =OFFSET('Raw Data'!EP34,$B$38,$B$37) -> 13 | AI35: 58.2 | AJ35: 46.85714286 | AK35: 07:30:00 | AL35: 52 | AM35: 59 | AN35: 61 | AO35: 57 | AP35: 62 | AQ35: 24 | AR35: 13 | AS35: 58.2 | AT35: 46.85714286
B36: Current Data Row Reference (Vol Graph) | H36: =IF(H13="", "", H13) ->  | AA36: 745 | AB36: =OFFSET('Raw Data'!EJ35,$B$38,$B$37) -> 55 | AC36: =OFFSET('Raw Data'!EK35,$B$38,$B$37) -> 67 | AD36: =OFFSET('Raw Data'!EL35,$B$38,$B$37) -> 66 | AE36: =OFFSET('Raw Data'!EM35,$B$38,$B$37) -> 49 | AF36: =OFFSET('Raw Data'!EN35,$B$38,$B$37) -> 51 | AG36: =OFFSET('Raw Data'!EO35,$B$38,$B$37) -> 34 | AH36: =OFFSET('Raw Data'!EP35,$B$38,$B$37) -> 22 | AI36: 57.6 | AJ36: 49.14285714 | AK36: 07:45:00 | AL36: 55 | AM36: 67 | AN36: 66 | AO36: 49 | AP36: 51 | AQ36: 34 | AR36: 22 | AS36: 57.6 | AT36: 49.14285714
B37: =+B11 -> 14 | H37: =IF(H14="", "", H14) ->  | AA37: 800 | AB37: =OFFSET('Raw Data'!EJ36,$B$38,$B$37) -> 54 | AC37: =OFFSET('Raw Data'!EK36,$B$38,$B$37) -> 62 | AD37: =OFFSET('Raw Data'!EL36,$B$38,$B$37) -> 55 | AE37: =OFFSET('Raw Data'!EM36,$B$38,$B$37) -> 50 | AF37: =OFFSET('Raw Data'!EN36,$B$38,$B$37) -> 57 | AG37: =OFFSET('Raw Data'!EO36,$B$38,$B$37) -> 28 | AH37: =OFFSET('Raw Data'!EP36,$B$38,$B$37) -> 13 | AI37: 55.6 | AJ37: 45.57142857 | AK37: 08:00:00 | AL37: 54 | AM37: 62 | AN37: 55 | AO37: 50 | AP37: 57 | AQ37: 28 | AR37: 13 | AS37: 55.6 | AT37: 45.57142857
B38: =+B12 -> 0 | AA38: 815 | AB38: =OFFSET('Raw Data'!EJ37,$B$38,$B$37) -> 78 | AC38: =OFFSET('Raw Data'!EK37,$B$38,$B$37) -> 72 | AD38: =OFFSET('Raw Data'!EL37,$B$38,$B$37) -> 67 | AE38: =OFFSET('Raw Data'!EM37,$B$38,$B$37) -> 72 | AF38: =OFFSET('Raw Data'!EN37,$B$38,$B$37) -> 67 | AG38: =OFFSET('Raw Data'!EO37,$B$38,$B$37) -> 36 | AH38: =OFFSET('Raw Data'!EP37,$B$38,$B$37) -> 26 | AI38: 71.2 | AJ38: 59.71428571 | AK38: 08:15:00 | AL38: 78 | AM38: 72 | AN38: 67 | AO38: 72 | AP38: 67 | AQ38: 36 | AR38: 26 | AS38: 71.2 | AT38: 59.71428571
AA39: 830 | AB39: =OFFSET('Raw Data'!EJ38,$B$38,$B$37) -> 64 | AC39: =OFFSET('Raw Data'!EK38,$B$38,$B$37) -> 64 | AD39: =OFFSET('Raw Data'!EL38,$B$38,$B$37) -> 67 | AE39: =OFFSET('Raw Data'!EM38,$B$38,$B$37) -> 69 | AF39: =OFFSET('Raw Data'!EN38,$B$38,$B$37) -> 57 | AG39: =OFFSET('Raw Data'!EO38,$B$38,$B$37) -> 35 | AH39: =OFFSET('Raw Data'!EP38,$B$38,$B$37) -> 17 | AI39: 64.2 | AJ39: 53.28571429 | AK39: 08:30:00 | AL39: 64 | AM39: 64 | AN39: 67 | AO39: 69 | AP39: 57 | AQ39: 35 | AR39: 17 | AS39: 64.2 | AT39: 53.28571429
AA40: 845 | AB40: =OFFSET('Raw Data'!EJ39,$B$38,$B$37) -> 58 | AC40: =OFFSET('Raw Data'!EK39,$B$38,$B$37) -> 72 | AD40: =OFFSET('Raw Data'!EL39,$B$38,$B$37) -> 60 | AE40: =OFFSET('Raw Data'!EM39,$B$38,$B$37) -> 66 | AF40: =OFFSET('Raw Data'!EN39,$B$38,$B$37) -> 74 | AG40: =OFFSET('Raw Data'!EO39,$B$38,$B$37) -> 26 | AH40: =OFFSET('Raw Data'!EP39,$B$38,$B$37) -> 17 | AI40: 66 | AJ40: 53.28571429 | AK40: 08:45:00 | AL40: 58 | AM40: 72 | AN40: 60 | AO40: 66 | AP40: 74 | AQ40: 26 | AR40: 17 | AS40: 66 | AT40: 53.28571429
AA41: 900 | AB41: =OFFSET('Raw Data'!EJ40,$B$38,$B$37) -> 73 | AC41: =OFFSET('Raw Data'!EK40,$B$38,$B$37) -> 75 | AD41: =OFFSET('Raw Data'!EL40,$B$38,$B$37) -> 70 | AE41: =OFFSET('Raw Data'!EM40,$B$38,$B$37) -> 61 | AF41: =OFFSET('Raw Data'!EN40,$B$38,$B$37) -> 65 | AG41: =OFFSET('Raw Data'!EO40,$B$38,$B$37) -> 39 | AH41: =OFFSET('Raw Data'!EP40,$B$38,$B$37) -> 20 | AI41: 68.8 | AJ41: 57.57142857 | AK41: 09:00:00 | AL41: 73 | AM41: 75 | AN41: 70 | AO41: 61 | AP41: 65 | AQ41: 39 | AR41: 20 | AS41: 68.8 | AT41: 57.57142857
AA42: 915 | AB42: =OFFSET('Raw Data'!EJ41,$B$38,$B$37) -> 56 | AC42: =OFFSET('Raw Data'!EK41,$B$38,$B$37) -> 45 | AD42: =OFFSET('Raw Data'!EL41,$B$38,$B$37) -> 65 | AE42: =OFFSET('Raw Data'!EM41,$B$38,$B$37) -> 46 | AF42: =OFFSET('Raw Data'!EN41,$B$38,$B$37) -> 61 | AG42: =OFFSET('Raw Data'!EO41,$B$38,$B$37) -> 46 | AH42: =OFFSET('Raw Data'!EP41,$B$38,$B$37) -> 18 | AI42: 54.6 | AJ42: 48.14285714 | AK42: 09:15:00 | AL42: 56 | AM42: 45 | AN42: 65 | AO42: 46 | AP42: 61 | AQ42: 46 | AR42: 18 | AS42: 54.6 | AT42: 48.14285714
AA43: 930 | AB43: =OFFSET('Raw Data'!EJ42,$B$38,$B$37) -> 48 | AC43: =OFFSET('Raw Data'!EK42,$B$38,$B$37) -> 59 | AD43: =OFFSET('Raw Data'!EL42,$B$38,$B$37) -> 47 | AE43: =OFFSET('Raw Data'!EM42,$B$38,$B$37) -> 54 | AF43: =OFFSET('Raw Data'!EN42,$B$38,$B$37) -> 59 | AG43: =OFFSET('Raw Data'!EO42,$B$38,$B$37) -> 41 | AH43: =OFFSET('Raw Data'!EP42,$B$38,$B$37) -> 34 | AI43: 53.4 | AJ43: 48.85714286 | AK43: 09:30:00 | AL43: 48 | AM43: 59 | AN43: 47 | AO43: 54 | AP43: 59 | AQ43: 41 | AR43: 34 | AS43: 53.4 | AT43: 48.85714286
AA44: 945 | AB44: =OFFSET('Raw Data'!EJ43,$B$38,$B$37) -> 45 | AC44: =OFFSET('Raw Data'!EK43,$B$38,$B$37) -> 65 | AD44: =OFFSET('Raw Data'!EL43,$B$38,$B$37) -> 52 | AE44: =OFFSET('Raw Data'!EM43,$B$38,$B$37) -> 43 | AF44: =OFFSET('Raw Data'!EN43,$B$38,$B$37) -> 65 | AG44: =OFFSET('Raw Data'!EO43,$B$38,$B$37) -> 52 | AH44: =OFFSET('Raw Data'!EP43,$B$38,$B$37) -> 29 | AI44: 54 | AJ44: 50.14285714 | AK44: 09:45:00 | AL44: 45 | AM44: 65 | AN44: 52 | AO44: 43 | AP44: 65 | AQ44: 52 | AR44: 29 | AS44: 54 | AT44: 50.14285714
AA45: 1000 | AB45: =OFFSET('Raw Data'!EJ44,$B$38,$B$37) -> 57 | AC45: =OFFSET('Raw Data'!EK44,$B$38,$B$37) -> 53 | AD45: =OFFSET('Raw Data'!EL44,$B$38,$B$37) -> 63 | AE45: =OFFSET('Raw Data'!EM44,$B$38,$B$37) -> 51 | AF45: =OFFSET('Raw Data'!EN44,$B$38,$B$37) -> 41 | AG45: =OFFSET('Raw Data'!EO44,$B$38,$B$37) -> 48 | AH45: =OFFSET('Raw Data'!EP44,$B$38,$B$37) -> 24 | AI45: 53 | AJ45: 48.14285714 | AK45: 10:00:00 | AL45: 57 | AM45: 53 | AN45: 63 | AO45: 51 | AP45: 41 | AQ45: 48 | AR45: 24 | AS45: 53 | AT45: 48.14285714
AA46: 1015 | AB46: =OFFSET('Raw Data'!EJ45,$B$38,$B$37) -> 59 | AC46: =OFFSET('Raw Data'!EK45,$B$38,$B$37) -> 50 | AD46: =OFFSET('Raw Data'!EL45,$B$38,$B$37) -> 78 | AE46: =OFFSET('Raw Data'!EM45,$B$38,$B$37) -> 66 | AF46: =OFFSET('Raw Data'!EN45,$B$38,$B$37) -> 55 | AG46: =OFFSET('Raw Data'!EO45,$B$38,$B$37) -> 54 | AH46: =OFFSET('Raw Data'!EP45,$B$38,$B$37) -> 27 | AI46: 61.6 | AJ46: 55.57142857 | AK46: 10:15:00 | AL46: 59 | AM46: 50 | AN46: 78 | AO46: 66 | AP46: 55 | AQ46: 54 | AR46: 27 | AS46: 61.6 | AT46: 55.57142857
AA47: 1030 | AB47: =OFFSET('Raw Data'!EJ46,$B$38,$B$37) -> 52 | AC47: =OFFSET('Raw Data'!EK46,$B$38,$B$37) -> 65 | AD47: =OFFSET('Raw Data'!EL46,$B$38,$B$37) -> 69 | AE47: =OFFSET('Raw Data'!EM46,$B$38,$B$37) -> 67 | AF47: =OFFSET('Raw Data'!EN46,$B$38,$B$37) -> 62 | AG47: =OFFSET('Raw Data'!EO46,$B$38,$B$37) -> 47 | AH47: =OFFSET('Raw Data'!EP46,$B$38,$B$37) -> 30 | AI47: 63 | AJ47: 56 | AK47: 10:30:00 | AL47: 52 | AM47: 65 | AN47: 69 | AO47: 67 | AP47: 62 | AQ47: 47 | AR47: 30 | AS47: 63 | AT47: 56
AA48: 1045 | AB48: =OFFSET('Raw Data'!EJ47,$B$38,$B$37) -> 71 | AC48: =OFFSET('Raw Data'!EK47,$B$38,$B$37) -> 87 | AD48: =OFFSET('Raw Data'!EL47,$B$38,$B$37) -> 56 | AE48: =OFFSET('Raw Data'!EM47,$B$38,$B$37) -> 63 | AF48: =OFFSET('Raw Data'!EN47,$B$38,$B$37) -> 56 | AG48: =OFFSET('Raw Data'!EO47,$B$38,$B$37) -> 47 | AH48: =OFFSET('Raw Data'!EP47,$B$38,$B$37) -> 43 | AI48: 66.6 | AJ48: 60.42857143 | AK48: =AK47+"00:15" -> 10:45:00 | AL48: 71 | AM48: 87 | AN48: 56 | AO48: 63 | AP48: 56 | AQ48: 47 | AR48: 43 | AS48: 66.6 | AT48: 60.42857143
AA49: 1100 | AB49: =OFFSET('Raw Data'!EJ48,$B$38,$B$37) -> 65 | AC49: =OFFSET('Raw Data'!EK48,$B$38,$B$37) -> 61 | AD49: =OFFSET('Raw Data'!EL48,$B$38,$B$37) -> 56 | AE49: =OFFSET('Raw Data'!EM48,$B$38,$B$37) -> 72 | AF49: =OFFSET('Raw Data'!EN48,$B$38,$B$37) -> 61 | AG49: =OFFSET('Raw Data'!EO48,$B$38,$B$37) -> 46 | AH49: =OFFSET('Raw Data'!EP48,$B$38,$B$37) -> 40 | AI49: 63 | AJ49: 57.28571429 | AK49: 11:00:00 | AL49: 65 | AM49: 61 | AN49: 56 | AO49: 72 | AP49: 61 | AQ49: 46 | AR49: 40 | AS49: 63 | AT49: 57.28571429
AA50: 1115 | AB50: =OFFSET('Raw Data'!EJ49,$B$38,$B$37) -> 54 | AC50: =OFFSET('Raw Data'!EK49,$B$38,$B$37) -> 52 | AD50: =OFFSET('Raw Data'!EL49,$B$38,$B$37) -> 63 | AE50: =OFFSET('Raw Data'!EM49,$B$38,$B$37) -> 66 | AF50: =OFFSET('Raw Data'!EN49,$B$38,$B$37) -> 59 | AG50: =OFFSET('Raw Data'!EO49,$B$38,$B$37) -> 62 | AH50: =OFFSET('Raw Data'!EP49,$B$38,$B$37) -> 34 | AI50: 58.8 | AJ50: 55.71428571 | AK50: 11:15:00 | AL50: 54 | AM50: 52 | AN50: 63 | AO50: 66 | AP50: 59 | AQ50: 62 | AR50: 34 | AS50: 58.8 | AT50: 55.71428571
AA51: 1130 | AB51: =OFFSET('Raw Data'!EJ50,$B$38,$B$37) -> 38 | AC51: =OFFSET('Raw Data'!EK50,$B$38,$B$37) -> 57 | AD51: =OFFSET('Raw Data'!EL50,$B$38,$B$37) -> 66 | AE51: =OFFSET('Raw Data'!EM50,$B$38,$B$37) -> 60 | AF51: =OFFSET('Raw Data'!EN50,$B$38,$B$37) -> 61 | AG51: =OFFSET('Raw Data'!EO50,$B$38,$B$37) -> 54 | AH51: =OFFSET('Raw Data'!EP50,$B$38,$B$37) -> 41 | AI51: 56.4 | AJ51: 53.85714286 | AK51: 11:30:00 | AL51: 38 | AM51: 57 | AN51: 66 | AO51: 60 | AP51: 61 | AQ51: 54 | AR51: 41 | AS51: 56.4 | AT51: 53.85714286
AA52: 1145 | AB52: =OFFSET('Raw Data'!EJ51,$B$38,$B$37) -> 49 | AC52: =OFFSET('Raw Data'!EK51,$B$38,$B$37) -> 64 | AD52: =OFFSET('Raw Data'!EL51,$B$38,$B$37) -> 70 | AE52: =OFFSET('Raw Data'!EM51,$B$38,$B$37) -> 69 | AF52: =OFFSET('Raw Data'!EN51,$B$38,$B$37) -> 59 | AG52: =OFFSET('Raw Data'!EO51,$B$38,$B$37) -> 55 | AH52: =OFFSET('Raw Data'!EP51,$B$38,$B$37) -> 33 | AI52: 62.2 | AJ52: 57 | AK52: 11:45:00 | AL52: 49 | AM52: 64 | AN52: 70 | AO52: 69 | AP52: 59 | AQ52: 55 | AR52: 33 | AS52: 62.2 | AT52: 57
AA53: 1200 | AB53: =OFFSET('Raw Data'!EJ52,$B$38,$B$37) -> 55 | AC53: =OFFSET('Raw Data'!EK52,$B$38,$B$37) -> 65 | AD53: =OFFSET('Raw Data'!EL52,$B$38,$B$37) -> 56 | AE53: =OFFSET('Raw Data'!EM52,$B$38,$B$37) -> 56 | AF53: =OFFSET('Raw Data'!EN52,$B$38,$B$37) -> 71 | AG53: =OFFSET('Raw Data'!EO52,$B$38,$B$37) -> 51 | AH53: =OFFSET('Raw Data'!EP52,$B$38,$B$37) -> 32 | AI53: 60.6 | AJ53: 55.14285714 | AK53: 12:00:00 | AL53: 55 | AM53: 65 | AN53: 56 | AO53: 56 | AP53: 71 | AQ53: 51 | AR53: 32 | AS53: 60.6 | AT53: 55.14285714
AA54: 1215 | AB54: =OFFSET('Raw Data'!EJ53,$B$38,$B$37) -> 60 | AC54: =OFFSET('Raw Data'!EK53,$B$38,$B$37) -> 71 | AD54: =OFFSET('Raw Data'!EL53,$B$38,$B$37) -> 64 | AE54: =OFFSET('Raw Data'!EM53,$B$38,$B$37) -> 66 | AF54: =OFFSET('Raw Data'!EN53,$B$38,$B$37) -> 75 | AG54: =OFFSET('Raw Data'!EO53,$B$38,$B$37) -> 54 | AH54: =OFFSET('Raw Data'!EP53,$B$38,$B$37) -> 39 | AI54: 67.2 | AJ54: 61.28571429 | AK54: 12:15:00 | AL54: 60 | AM54: 71 | AN54: 64 | AO54: 66 | AP54: 75 | AQ54: 54 | AR54: 39 | AS54: 67.2 | AT54: 61.28571429
AA55: 1230 | AB55: =OFFSET('Raw Data'!EJ54,$B$38,$B$37) -> 57 | AC55: =OFFSET('Raw Data'!EK54,$B$38,$B$37) -> 59 | AD55: =OFFSET('Raw Data'!EL54,$B$38,$B$37) -> 73 | AE55: =OFFSET('Raw Data'!EM54,$B$38,$B$37) -> 58 | AF55: =OFFSET('Raw Data'!EN54,$B$38,$B$37) -> 80 | AG55: =OFFSET('Raw Data'!EO54,$B$38,$B$37) -> 66 | AH55: =OFFSET('Raw Data'!EP54,$B$38,$B$37) -> 49 | AI55: 65.4 | AJ55: 63.14285714 | AK55: 12:30:00 | AL55: 57 | AM55: 59 | AN55: 73 | AO55: 58 | AP55: 80 | AQ55: 66 | AR55: 49 | AS55: 65.4 | AT55: 63.14285714
AA56: 1245 | AB56: =OFFSET('Raw Data'!EJ55,$B$38,$B$37) -> 54 | AC56: =OFFSET('Raw Data'!EK55,$B$38,$B$37) -> 65 | AD56: =OFFSET('Raw Data'!EL55,$B$38,$B$37) -> 61 | AE56: =OFFSET('Raw Data'!EM55,$B$38,$B$37) -> 58 | AF56: =OFFSET('Raw Data'!EN55,$B$38,$B$37) -> 70 | AG56: =OFFSET('Raw Data'!EO55,$B$38,$B$37) -> 66 | AH56: =OFFSET('Raw Data'!EP55,$B$38,$B$37) -> 50 | AI56: 61.6 | AJ56: 60.57142857 | AK56: 12:45:00 | AL56: 54 | AM56: 65 | AN56: 61 | AO56: 58 | AP56: 70 | AQ56: 66 | AR56: 50 | AS56: 61.6 | AT56: 60.57142857
AA57: 1300 | AB57: =OFFSET('Raw Data'!EJ56,$B$38,$B$37) -> 65 | AC57: =OFFSET('Raw Data'!EK56,$B$38,$B$37) -> 75 | AD57: =OFFSET('Raw Data'!EL56,$B$38,$B$37) -> 68 | AE57: =OFFSET('Raw Data'!EM56,$B$38,$B$37) -> 73 | AF57: =OFFSET('Raw Data'!EN56,$B$38,$B$37) -> 70 | AG57: =OFFSET('Raw Data'!EO56,$B$38,$B$37) -> 84 | AH57: =OFFSET('Raw Data'!EP56,$B$38,$B$37) -> 35 | AI57: 70.2 | AJ57: 67.14285714 | AK57: 13:00:00 | AL57: 65 | AM57: 75 | AN57: 68 | AO57: 73 | AP57: 70 | AQ57: 84 | AR57: 35 | AS57: 70.2 | AT57: 67.14285714
AA58: 1315 | AB58: =OFFSET('Raw Data'!EJ57,$B$38,$B$37) -> 72 | AC58: =OFFSET('Raw Data'!EK57,$B$38,$B$37) -> 60 | AD58: =OFFSET('Raw Data'!EL57,$B$38,$B$37) -> 73 | AE58: =OFFSET('Raw Data'!EM57,$B$38,$B$37) -> 77 | AF58: =OFFSET('Raw Data'!EN57,$B$38,$B$37) -> 69 | AG58: =OFFSET('Raw Data'!EO57,$B$38,$B$37) -> 85 | AH58: =OFFSET('Raw Data'!EP57,$B$38,$B$37) -> 56 | AI58: 70.2 | AJ58: 70.28571429 | AK58: 13:15:00 | AL58: 72 | AM58: 60 | AN58: 73 | AO58: 77 | AP58: 69 | AQ58: 85 | AR58: 56 | AS58: 70.2 | AT58: 70.28571429
AA59: 1330 | AB59: =OFFSET('Raw Data'!EJ58,$B$38,$B$37) -> 67 | AC59: =OFFSET('Raw Data'!EK58,$B$38,$B$37) -> 68 | AD59: =OFFSET('Raw Data'!EL58,$B$38,$B$37) -> 87 | AE59: =OFFSET('Raw Data'!EM58,$B$38,$B$37) -> 65 | AF59: =OFFSET('Raw Data'!EN58,$B$38,$B$37) -> 65 | AG59: =OFFSET('Raw Data'!EO58,$B$38,$B$37) -> 79 | AH59: =OFFSET('Raw Data'!EP58,$B$38,$B$37) -> 43 | AI59: 70.4 | AJ59: 67.71428571 | AK59: 13:30:00 | AL59: 67 | AM59: 68 | AN59: 87 | AO59: 65 | AP59: 65 | AQ59: 79 | AR59: 43 | AS59: 70.4 | AT59: 67.71428571
AA60: 1345 | AB60: =OFFSET('Raw Data'!EJ59,$B$38,$B$37) -> 64 | AC60: =OFFSET('Raw Data'!EK59,$B$38,$B$37) -> 78 | AD60: =OFFSET('Raw Data'!EL59,$B$38,$B$37) -> 72 | AE60: =OFFSET('Raw Data'!EM59,$B$38,$B$37) -> 83 | AF60: =OFFSET('Raw Data'!EN59,$B$38,$B$37) -> 105 | AG60: =OFFSET('Raw Data'!EO59,$B$38,$B$37) -> 81 | AH60: =OFFSET('Raw Data'!EP59,$B$38,$B$37) -> 51 | AI60: 80.4 | AJ60: 76.28571429 | AK60: 13:45:00 | AL60: 64 | AM60: 78 | AN60: 72 | AO60: 83 | AP60: 105 | AQ60: 81 | AR60: 51 | AS60: 80.4 | AT60: 76.28571429
AA61: 1400 | AB61: =OFFSET('Raw Data'!EJ60,$B$38,$B$37) -> 67 | AC61: =OFFSET('Raw Data'!EK60,$B$38,$B$37) -> 73 | AD61: =OFFSET('Raw Data'!EL60,$B$38,$B$37) -> 87 | AE61: =OFFSET('Raw Data'!EM60,$B$38,$B$37) -> 72 | AF61: =OFFSET('Raw Data'!EN60,$B$38,$B$37) -> 86 | AG61: =OFFSET('Raw Data'!EO60,$B$38,$B$37) -> 84 | AH61: =OFFSET('Raw Data'!EP60,$B$38,$B$37) -> 44 | AI61: 77 | AJ61: 73.28571429 | AK61: 14:00:00 | AL61: 67 | AM61: 73 | AN61: 87 | AO61: 72 | AP61: 86 | AQ61: 84 | AR61: 44 | AS61: 77 | AT61: 73.28571429
AA62: 1415 | AB62: =OFFSET('Raw Data'!EJ61,$B$38,$B$37) -> 76 | AC62: =OFFSET('Raw Data'!EK61,$B$38,$B$37) -> 78 | AD62: =OFFSET('Raw Data'!EL61,$B$38,$B$37) -> 77 | AE62: =OFFSET('Raw Data'!EM61,$B$38,$B$37) -> 77 | AF62: =OFFSET('Raw Data'!EN61,$B$38,$B$37) -> 71 | AG62: =OFFSET('Raw Data'!EO61,$B$38,$B$37) -> 57 | AH62: =OFFSET('Raw Data'!EP61,$B$38,$B$37) -> 57 | AI62: 75.8 | AJ62: 70.42857143 | AK62: 14:15:00 | AL62: 76 | AM62: 78 | AN62: 77 | AO62: 77 | AP62: 71 | AQ62: 57 | AR62: 57 | AS62: 75.8 | AT62: 70.42857143
AA63: 1430 | AB63: =OFFSET('Raw Data'!EJ62,$B$38,$B$37) -> 70 | AC63: =OFFSET('Raw Data'!EK62,$B$38,$B$37) -> 83 | AD63: =OFFSET('Raw Data'!EL62,$B$38,$B$37) -> 93 | AE63: =OFFSET('Raw Data'!EM62,$B$38,$B$37) -> 58 | AF63: =OFFSET('Raw Data'!EN62,$B$38,$B$37) -> 71 | AG63: =OFFSET('Raw Data'!EO62,$B$38,$B$37) -> 69 | AH63: =OFFSET('Raw Data'!EP62,$B$38,$B$37) -> 50 | AI63: 75 | AJ63: 70.57142857 | AK63: 14:30:00 | AL63: 70 | AM63: 83 | AN63: 93 | AO63: 58 | AP63: 71 | AQ63: 69 | AR63: 50 | AS63: 75 | AT63: 70.57142857
AA64: 1445 | AB64: =OFFSET('Raw Data'!EJ63,$B$38,$B$37) -> 77 | AC64: =OFFSET('Raw Data'!EK63,$B$38,$B$37) -> 96 | AD64: =OFFSET('Raw Data'!EL63,$B$38,$B$37) -> 74 | AE64: =OFFSET('Raw Data'!EM63,$B$38,$B$37) -> 93 | AF64: =OFFSET('Raw Data'!EN63,$B$38,$B$37) -> 78 | AG64: =OFFSET('Raw Data'!EO63,$B$38,$B$37) -> 81 | AH64: =OFFSET('Raw Data'!EP63,$B$38,$B$37) -> 43 | AI64: 83.6 | AJ64: 77.42857143 | AK64: 14:45:00 | AL64: 77 | AM64: 96 | AN64: 74 | AO64: 93 | AP64: 78 | AQ64: 81 | AR64: 43 | AS64: 83.6 | AT64: 77.42857143
AA65: 1500 | AB65: =OFFSET('Raw Data'!EJ64,$B$38,$B$37) -> 78 | AC65: =OFFSET('Raw Data'!EK64,$B$38,$B$37) -> 85 | AD65: =OFFSET('Raw Data'!EL64,$B$38,$B$37) -> 99 | AE65: =OFFSET('Raw Data'!EM64,$B$38,$B$37) -> 74 | AF65: =OFFSET('Raw Data'!EN64,$B$38,$B$37) -> 79 | AG65: =OFFSET('Raw Data'!EO64,$B$38,$B$37) -> 66 | AH65: =OFFSET('Raw Data'!EP64,$B$38,$B$37) -> 43 | AI65: 83 | AJ65: 74.85714286 | AK65: 15:00:00 | AL65: 78 | AM65: 85 | AN65: 99 | AO65: 74 | AP65: 79 | AQ65: 66 | AR65: 43 | AS65: 83 | AT65: 74.85714286
AA66: 1515 | AB66: =OFFSET('Raw Data'!EJ65,$B$38,$B$37) -> 61 | AC66: =OFFSET('Raw Data'!EK65,$B$38,$B$37) -> 76 | AD66: =OFFSET('Raw Data'!EL65,$B$38,$B$37) -> 71 | AE66: =OFFSET('Raw Data'!EM65,$B$38,$B$37) -> 105 | AF66: =OFFSET('Raw Data'!EN65,$B$38,$B$37) -> 79 | AG66: =OFFSET('Raw Data'!EO65,$B$38,$B$37) -> 71 | AH66: =OFFSET('Raw Data'!EP65,$B$38,$B$37) -> 46 | AI66: 78.4 | AJ66: 72.71428571 | AK66: 15:15:00 | AL66: 61 | AM66: 76 | AN66: 71 | AO66: 105 | AP66: 79 | AQ66: 71 | AR66: 46 | AS66: 78.4 | AT66: 72.71428571
AA67: 1530 | AB67: =OFFSET('Raw Data'!EJ66,$B$38,$B$37) -> 87 | AC67: =OFFSET('Raw Data'!EK66,$B$38,$B$37) -> 94 | AD67: =OFFSET('Raw Data'!EL66,$B$38,$B$37) -> 75 | AE67: =OFFSET('Raw Data'!EM66,$B$38,$B$37) -> 80 | AF67: =OFFSET('Raw Data'!EN66,$B$38,$B$37) -> 78 | AG67: =OFFSET('Raw Data'!EO66,$B$38,$B$37) -> 57 | AH67: =OFFSET('Raw Data'!EP66,$B$38,$B$37) -> 53 | AI67: 82.8 | AJ67: 74.85714286 | AK67: 15:30:00 | AL67: 87 | AM67: 94 | AN67: 75 | AO67: 80 | AP67: 78 | AQ67: 57 | AR67: 53 | AS67: 82.8 | AT67: 74.85714286
AA68: 1545 | AB68: =OFFSET('Raw Data'!EJ67,$B$38,$B$37) -> 71 | AC68: =OFFSET('Raw Data'!EK67,$B$38,$B$37) -> 91 | AD68: =OFFSET('Raw Data'!EL67,$B$38,$B$37) -> 104 | AE68: =OFFSET('Raw Data'!EM67,$B$38,$B$37) -> 94 | AF68: =OFFSET('Raw Data'!EN67,$B$38,$B$37) -> 91 | AG68: =OFFSET('Raw Data'!EO67,$B$38,$B$37) -> 59 | AH68: =OFFSET('Raw Data'!EP67,$B$38,$B$37) -> 58 | AI68: 90.2 | AJ68: 81.14285714 | AK68: 15:45:00 | AL68: 71 | AM68: 91 | AN68: 104 | AO68: 94 | AP68: 91 | AQ68: 59 | AR68: 58 | AS68: 90.2 | AT68: 81.14285714
AA69: 1600 | AB69: =OFFSET('Raw Data'!EJ68,$B$38,$B$37) -> 83 | AC69: =OFFSET('Raw Data'!EK68,$B$38,$B$37) -> 88 | AD69: =OFFSET('Raw Data'!EL68,$B$38,$B$37) -> 95 | AE69: =OFFSET('Raw Data'!EM68,$B$38,$B$37) -> 91 | AF69: =OFFSET('Raw Data'!EN68,$B$38,$B$37) -> 102 | AG69: =OFFSET('Raw Data'!EO68,$B$38,$B$37) -> 78 | AH69: =OFFSET('Raw Data'!EP68,$B$38,$B$37) -> 36 | AI69: 91.8 | AJ69: 81.85714286 | AK69: 16:00:00 | AL69: 83 | AM69: 88 | AN69: 95 | AO69: 91 | AP69: 102 | AQ69: 78 | AR69: 36 | AS69: 91.8 | AT69: 81.85714286
AA70: 1615 | AB70: =OFFSET('Raw Data'!EJ69,$B$38,$B$37) -> 75 | AC70: =OFFSET('Raw Data'!EK69,$B$38,$B$37) -> 69 | AD70: =OFFSET('Raw Data'!EL69,$B$38,$B$37) -> 97 | AE70: =OFFSET('Raw Data'!EM69,$B$38,$B$37) -> 90 | AF70: =OFFSET('Raw Data'!EN69,$B$38,$B$37) -> 82 | AG70: =OFFSET('Raw Data'!EO69,$B$38,$B$37) -> 73 | AH70: =OFFSET('Raw Data'!EP69,$B$38,$B$37) -> 52 | AI70: 82.6 | AJ70: 76.85714286 | AK70: 16:15:00 | AL70: =IF(AL$3=TRUE,AB70,"") -> 75 | AM70: =IF(AM$3=TRUE,AC70,"") -> 69 | AN70: =IF(AN$3=TRUE,AD70,"") -> 97 | AO70: =IF(AO$3=TRUE,AE70,"") -> 90 | AP70: =IF(AP$3=TRUE,AF70,"") -> 82 | AQ70: =IF(AQ$3=TRUE,AG70,"") -> 73 | AR70: =IF(AR$3=TRUE,AH70,"") -> 52 | AS70: =IF(AS$3=TRUE,AI70,"") -> 82.6 | AT70: =IF(AT$3=TRUE,AJ70,"") -> 76.85714286
AA71: 1630 | AB71: =OFFSET('Raw Data'!EJ70,$B$38,$B$37) -> 97 | AC71: =OFFSET('Raw Data'!EK70,$B$38,$B$37) -> 85 | AD71: =OFFSET('Raw Data'!EL70,$B$38,$B$37) -> 104 | AE71: =OFFSET('Raw Data'!EM70,$B$38,$B$37) -> 95 | AF71: =OFFSET('Raw Data'!EN70,$B$38,$B$37) -> 89 | AG71: =OFFSET('Raw Data'!EO70,$B$38,$B$37) -> 59 | AH71: =OFFSET('Raw Data'!EP70,$B$38,$B$37) -> 56 | AI71: 94 | AJ71: 83.57142857 | AK71: =AK70+"00:15" -> 16:30:00 | AL71: 97 | AM71: 85 | AN71: 104 | AO71: 95 | AP71: 89 | AQ71: 59 | AR71: 56 | AS71: 94 | AT71: 83.57142857
AA72: 1645 | AB72: =OFFSET('Raw Data'!EJ71,$B$38,$B$37) -> 105 | AC72: =OFFSET('Raw Data'!EK71,$B$38,$B$37) -> 100 | AD72: =OFFSET('Raw Data'!EL71,$B$38,$B$37) -> 124 | AE72: =OFFSET('Raw Data'!EM71,$B$38,$B$37) -> 103 | AF72: =OFFSET('Raw Data'!EN71,$B$38,$B$37) -> 85 | AG72: =OFFSET('Raw Data'!EO71,$B$38,$B$37) -> 69 | AH72: =OFFSET('Raw Data'!EP71,$B$38,$B$37) -> 43 | AI72: 103.4 | AJ72: 89.85714286 | AK72: 16:45:00 | AL72: 105 | AM72: 100 | AN72: 124 | AO72: 103 | AP72: 85 | AQ72: 69 | AR72: 43 | AS72: 103.4 | AT72: 89.85714286
AA73: 1700 | AB73: =OFFSET('Raw Data'!EJ72,$B$38,$B$37) -> 78 | AC73: =OFFSET('Raw Data'!EK72,$B$38,$B$37) -> 81 | AD73: =OFFSET('Raw Data'!EL72,$B$38,$B$37) -> 106 | AE73: =OFFSET('Raw Data'!EM72,$B$38,$B$37) -> 85 | AF73: =OFFSET('Raw Data'!EN72,$B$38,$B$37) -> 91 | AG73: =OFFSET('Raw Data'!EO72,$B$38,$B$37) -> 65 | AH73: =OFFSET('Raw Data'!EP72,$B$38,$B$37) -> 56 | AI73: 88.2 | AJ73: 80.28571429 | AK73: 17:00:00 | AL73: 78 | AM73: 81 | AN73: 106 | AO73: 85 | AP73: 91 | AQ73: 65 | AR73: 56 | AS73: 88.2 | AT73: 80.28571429
AA74: 1715 | AB74: =OFFSET('Raw Data'!EJ73,$B$38,$B$37) -> 97 | AC74: =OFFSET('Raw Data'!EK73,$B$38,$B$37) -> 115 | AD74: =OFFSET('Raw Data'!EL73,$B$38,$B$37) -> 105 | AE74: =OFFSET('Raw Data'!EM73,$B$38,$B$37) -> 87 | AF74: =OFFSET('Raw Data'!EN73,$B$38,$B$37) -> 116 | AG74: =OFFSET('Raw Data'!EO73,$B$38,$B$37) -> 75 | AH74: =OFFSET('Raw Data'!EP73,$B$38,$B$37) -> 70 | AI74: 104 | AJ74: 95 | AK74: 17:15:00 | AL74: 97 | AM74: 115 | AN74: 105 | AO74: 87 | AP74: 116 | AQ74: 75 | AR74: 70 | AS74: 104 | AT74: 95
AA75: 1730 | AB75: =OFFSET('Raw Data'!EJ74,$B$38,$B$37) -> 96 | AC75: =OFFSET('Raw Data'!EK74,$B$38,$B$37) -> 104 | AD75: =OFFSET('Raw Data'!EL74,$B$38,$B$37) -> 90 | AE75: =OFFSET('Raw Data'!EM74,$B$38,$B$37) -> 107 | AF75: =OFFSET('Raw Data'!EN74,$B$38,$B$37) -> 91 | AG75: =OFFSET('Raw Data'!EO74,$B$38,$B$37) -> 48 | AH75: =OFFSET('Raw Data'!EP74,$B$38,$B$37) -> 63 | AI75: 97.6 | AJ75: 85.57142857 | AK75: 17:30:00 | AL75: 96 | AM75: 104 | AN75: 90 | AO75: 107 | AP75: 91 | AQ75: 48 | AR75: 63 | AS75: 97.6 | AT75: 85.57142857
AA76: 1745 | AB76: =OFFSET('Raw Data'!EJ75,$B$38,$B$37) -> 97 | AC76: =OFFSET('Raw Data'!EK75,$B$38,$B$37) -> 124 | AD76: =OFFSET('Raw Data'!EL75,$B$38,$B$37) -> 99 | AE76: =OFFSET('Raw Data'!EM75,$B$38,$B$37) -> 99 | AF76: =OFFSET('Raw Data'!EN75,$B$38,$B$37) -> 109 | AG76: =OFFSET('Raw Data'!EO75,$B$38,$B$37) -> 60 | AH76: =OFFSET('Raw Data'!EP75,$B$38,$B$37) -> 70 | AI76: 105.6 | AJ76: 94 | AK76: 17:45:00 | AL76: 97 | AM76: 124 | AN76: 99 | AO76: 99 | AP76: 109 | AQ76: 60 | AR76: 70 | AS76: 105.6 | AT76: 94
AA77: 1800 | AB77: =OFFSET('Raw Data'!EJ76,$B$38,$B$37) -> 116 | AC77: =OFFSET('Raw Data'!EK76,$B$38,$B$37) -> 120 | AD77: =OFFSET('Raw Data'!EL76,$B$38,$B$37) -> 120 | AE77: =OFFSET('Raw Data'!EM76,$B$38,$B$37) -> 117 | AF77: =OFFSET('Raw Data'!EN76,$B$38,$B$37) -> 96 | AG77: =OFFSET('Raw Data'!EO76,$B$38,$B$37) -> 71 | AH77: =OFFSET('Raw Data'!EP76,$B$38,$B$37) -> 60 | AI77: 113.8 | AJ77: 100 | AK77: 18:00:00 | AL77: 116 | AM77: 120 | AN77: 120 | AO77: 117 | AP77: 96 | AQ77: 71 | AR77: 60 | AS77: 113.8 | AT77: 100
AA78: 1815 | AB78: =OFFSET('Raw Data'!EJ77,$B$38,$B$37) -> 92 | AC78: =OFFSET('Raw Data'!EK77,$B$38,$B$37) -> 104 | AD78: =OFFSET('Raw Data'!EL77,$B$38,$B$37) -> 122 | AE78: =OFFSET('Raw Data'!EM77,$B$38,$B$37) -> 106 | AF78: =OFFSET('Raw Data'!EN77,$B$38,$B$37) -> 105 | AG78: =OFFSET('Raw Data'!EO77,$B$38,$B$37) -> 70 | AH78: =OFFSET('Raw Data'!EP77,$B$38,$B$37) -> 72 | AI78: 105.8 | AJ78: 95.85714286 | AK78: 18:15:00 | AL78: 92 | AM78: 104 | AN78: 122 | AO78: 106 | AP78: 105 | AQ78: 70 | AR78: 72 | AS78: 105.8 | AT78: 95.85714286
AA79: 1830 | AB79: =OFFSET('Raw Data'!EJ78,$B$38,$B$37) -> 98 | AC79: =OFFSET('Raw Data'!EK78,$B$38,$B$37) -> 123 | AD79: =OFFSET('Raw Data'!EL78,$B$38,$B$37) -> 113 | AE79: =OFFSET('Raw Data'!EM78,$B$38,$B$37) -> 96 | AF79: =OFFSET('Raw Data'!EN78,$B$38,$B$37) -> 104 | AG79: =OFFSET('Raw Data'!EO78,$B$38,$B$37) -> 95 | AH79: =OFFSET('Raw Data'!EP78,$B$38,$B$37) -> 69 | AI79: 106.8 | AJ79: 99.71428571 | AK79: 18:30:00 | AL79: 98 | AM79: 123 | AN79: 113 | AO79: 96 | AP79: 104 | AQ79: 95 | AR79: 69 | AS79: 106.8 | AT79: 99.71428571
AA80: 1845 | AB80: =OFFSET('Raw Data'!EJ79,$B$38,$B$37) -> 90 | AC80: =OFFSET('Raw Data'!EK79,$B$38,$B$37) -> 107 | AD80: =OFFSET('Raw Data'!EL79,$B$38,$B$37) -> 105 | AE80: =OFFSET('Raw Data'!EM79,$B$38,$B$37) -> 89 | AF80: =OFFSET('Raw Data'!EN79,$B$38,$B$37) -> 105 | AG80: =OFFSET('Raw Data'!EO79,$B$38,$B$37) -> 75 | AH80: =OFFSET('Raw Data'!EP79,$B$38,$B$37) -> 68 | AI80: 99.2 | AJ80: 91.28571429 | AK80: 18:45:00 | AL80: 90 | AM80: 107 | AN80: 105 | AO80: 89 | AP80: 105 | AQ80: 75 | AR80: 68 | AS80: 99.2 | AT80: 91.28571429
AA81: 1900 | AB81: =OFFSET('Raw Data'!EJ80,$B$38,$B$37) -> 99 | AC81: =OFFSET('Raw Data'!EK80,$B$38,$B$37) -> 83 | AD81: =OFFSET('Raw Data'!EL80,$B$38,$B$37) -> 113 | AE81: =OFFSET('Raw Data'!EM80,$B$38,$B$37) -> 94 | AF81: =OFFSET('Raw Data'!EN80,$B$38,$B$37) -> 111 | AG81: =OFFSET('Raw Data'!EO80,$B$38,$B$37) -> 79 | AH81: =OFFSET('Raw Data'!EP80,$B$38,$B$37) -> 66 | AI81: 100 | AJ81: 92.14285714 | AK81: 19:00:00 | AL81: 99 | AM81: 83 | AN81: 113 | AO81: 94 | AP81: 111 | AQ81: 79 | AR81: 66 | AS81: 100 | AT81: 92.14285714
AA82: 1915 | AB82: =OFFSET('Raw Data'!EJ81,$B$38,$B$37) -> 76 | AC82: =OFFSET('Raw Data'!EK81,$B$38,$B$37) -> 84 | AD82: =OFFSET('Raw Data'!EL81,$B$38,$B$37) -> 111 | AE82: =OFFSET('Raw Data'!EM81,$B$38,$B$37) -> 83 | AF82: =OFFSET('Raw Data'!EN81,$B$38,$B$37) -> 73 | AG82: =OFFSET('Raw Data'!EO81,$B$38,$B$37) -> 66 | AH82: =OFFSET('Raw Data'!EP81,$B$38,$B$37) -> 72 | AI82: 85.4 | AJ82: 80.71428571 | AK82: 19:15:00 | AL82: 76 | AM82: 84 | AN82: 111 | AO82: 83 | AP82: 73 | AQ82: 66 | AR82: 72 | AS82: 85.4 | AT82: 80.71428571
AA83: 1930 | AB83: =OFFSET('Raw Data'!EJ82,$B$38,$B$37) -> 69 | AC83: =OFFSET('Raw Data'!EK82,$B$38,$B$37) -> 91 | AD83: =OFFSET('Raw Data'!EL82,$B$38,$B$37) -> 89 | AE83: =OFFSET('Raw Data'!EM82,$B$38,$B$37) -> 84 | AF83: =OFFSET('Raw Data'!EN82,$B$38,$B$37) -> 75 | AG83: =OFFSET('Raw Data'!EO82,$B$38,$B$37) -> 77 | AH83: =OFFSET('Raw Data'!EP82,$B$38,$B$37) -> 64 | AI83: 81.6 | AJ83: 78.42857143 | AK83: 19:30:00 | AL83: 69 | AM83: 91 | AN83: 89 | AO83: 84 | AP83: 75 | AQ83: 77 | AR83: 64 | AS83: 81.6 | AT83: 78.42857143
AA84: 1945 | AB84: =OFFSET('Raw Data'!EJ83,$B$38,$B$37) -> 63 | AC84: =OFFSET('Raw Data'!EK83,$B$38,$B$37) -> 72 | AD84: =OFFSET('Raw Data'!EL83,$B$38,$B$37) -> 85 | AE84: =OFFSET('Raw Data'!EM83,$B$38,$B$37) -> 74 | AF84: =OFFSET('Raw Data'!EN83,$B$38,$B$37) -> 89 | AG84: =OFFSET('Raw Data'!EO83,$B$38,$B$37) -> 51 | AH84: =OFFSET('Raw Data'!EP83,$B$38,$B$37) -> 59 | AI84: 76.6 | AJ84: 70.42857143 | AK84: 19:45:00 | AL84: 63 | AM84: 72 | AN84: 85 | AO84: 74 | AP84: 89 | AQ84: 51 | AR84: 59 | AS84: 76.6 | AT84: 70.42857143
AA85: 2000 | AB85: =OFFSET('Raw Data'!EJ84,$B$38,$B$37) -> 59 | AC85: =OFFSET('Raw Data'!EK84,$B$38,$B$37) -> 65 | AD85: =OFFSET('Raw Data'!EL84,$B$38,$B$37) -> 73 | AE85: =OFFSET('Raw Data'!EM84,$B$38,$B$37) -> 74 | AF85: =OFFSET('Raw Data'!EN84,$B$38,$B$37) -> 68 | AG85: =OFFSET('Raw Data'!EO84,$B$38,$B$37) -> 56 | AH85: =OFFSET('Raw Data'!EP84,$B$38,$B$37) -> 58 | AI85: 67.8 | AJ85: 64.71428571 | AK85: 20:00:00 | AL85: 59 | AM85: 65 | AN85: 73 | AO85: 74 | AP85: 68 | AQ85: 56 | AR85: 58 | AS85: 67.8 | AT85: 64.71428571
AA86: 2015 | AB86: =OFFSET('Raw Data'!EJ85,$B$38,$B$37) -> 60 | AC86: =OFFSET('Raw Data'!EK85,$B$38,$B$37) -> 61 | AD86: =OFFSET('Raw Data'!EL85,$B$38,$B$37) -> 75 | AE86: =OFFSET('Raw Data'!EM85,$B$38,$B$37) -> 68 | AF86: =OFFSET('Raw Data'!EN85,$B$38,$B$37) -> 55 | AG86: =OFFSET('Raw Data'!EO85,$B$38,$B$37) -> 67 | AH86: =OFFSET('Raw Data'!EP85,$B$38,$B$37) -> 52 | AI86: 63.8 | AJ86: 62.57142857 | AK86: 20:15:00 | AL86: 60 | AM86: 61 | AN86: 75 | AO86: 68 | AP86: 55 | AQ86: 67 | AR86: 52 | AS86: 63.8 | AT86: 62.57142857
AA87: 2030 | AB87: =OFFSET('Raw Data'!EJ86,$B$38,$B$37) -> 61 | AC87: =OFFSET('Raw Data'!EK86,$B$38,$B$37) -> 76 | AD87: =OFFSET('Raw Data'!EL86,$B$38,$B$37) -> 78 | AE87: =OFFSET('Raw Data'!EM86,$B$38,$B$37) -> 60 | AF87: =OFFSET('Raw Data'!EN86,$B$38,$B$37) -> 87 | AG87: =OFFSET('Raw Data'!EO86,$B$38,$B$37) -> 64 | AH87: =OFFSET('Raw Data'!EP86,$B$38,$B$37) -> 53 | AI87: 72.4 | AJ87: 68.42857143 | AK87: 20:30:00 | AL87: 61 | AM87: 76 | AN87: 78 | AO87: 60 | AP87: 87 | AQ87: 64 | AR87: 53 | AS87: 72.4 | AT87: 68.42857143
AA88: 2045 | AB88: =OFFSET('Raw Data'!EJ87,$B$38,$B$37) -> 53 | AC88: =OFFSET('Raw Data'!EK87,$B$38,$B$37) -> 60 | AD88: =OFFSET('Raw Data'!EL87,$B$38,$B$37) -> 67 | AE88: =OFFSET('Raw Data'!EM87,$B$38,$B$37) -> 59 | AF88: =OFFSET('Raw Data'!EN87,$B$38,$B$37) -> 67 | AG88: =OFFSET('Raw Data'!EO87,$B$38,$B$37) -> 67 | AH88: =OFFSET('Raw Data'!EP87,$B$38,$B$37) -> 58 | AI88: 61.2 | AJ88: 61.57142857 | AK88: 20:45:00 | AL88: 53 | AM88: 60 | AN88: 67 | AO88: 59 | AP88: 67 | AQ88: 67 | AR88: 58 | AS88: 61.2 | AT88: 61.57142857
AA89: 2100 | AB89: =OFFSET('Raw Data'!EJ88,$B$38,$B$37) -> 48 | AC89: =OFFSET('Raw Data'!EK88,$B$38,$B$37) -> 56 | AD89: =OFFSET('Raw Data'!EL88,$B$38,$B$37) -> 65 | AE89: =OFFSET('Raw Data'!EM88,$B$38,$B$37) -> 53 | AF89: =OFFSET('Raw Data'!EN88,$B$38,$B$37) -> 52 | AG89: =OFFSET('Raw Data'!EO88,$B$38,$B$37) -> 62 | AH89: =OFFSET('Raw Data'!EP88,$B$38,$B$37) -> 58 | AI89: 54.8 | AJ89: 56.28571429 | AK89: 21:00:00 | AL89: 48 | AM89: 56 | AN89: 65 | AO89: 53 | AP89: 52 | AQ89: 62 | AR89: 58 | AS89: 54.8 | AT89: 56.28571429
AA90: 2115 | AB90: =OFFSET('Raw Data'!EJ89,$B$38,$B$37) -> 45 | AC90: =OFFSET('Raw Data'!EK89,$B$38,$B$37) -> 46 | AD90: =OFFSET('Raw Data'!EL89,$B$38,$B$37) -> 32 | AE90: =OFFSET('Raw Data'!EM89,$B$38,$B$37) -> 61 | AF90: =OFFSET('Raw Data'!EN89,$B$38,$B$37) -> 56 | AG90: =OFFSET('Raw Data'!EO89,$B$38,$B$37) -> 56 | AH90: =OFFSET('Raw Data'!EP89,$B$38,$B$37) -> 38 | AI90: 48 | AJ90: 47.71428571 | AK90: 21:15:00 | AL90: 45 | AM90: 46 | AN90: 32 | AO90: 61 | AP90: 56 | AQ90: 56 | AR90: 38 | AS90: 48 | AT90: 47.71428571
AA91: 2130 | AB91: =OFFSET('Raw Data'!EJ90,$B$38,$B$37) -> 59 | AC91: =OFFSET('Raw Data'!EK90,$B$38,$B$37) -> 44 | AD91: =OFFSET('Raw Data'!EL90,$B$38,$B$37) -> 58 | AE91: =OFFSET('Raw Data'!EM90,$B$38,$B$37) -> 39 | AF91: =OFFSET('Raw Data'!EN90,$B$38,$B$37) -> 59 | AG91: =OFFSET('Raw Data'!EO90,$B$38,$B$37) -> 59 | AH91: =OFFSET('Raw Data'!EP90,$B$38,$B$37) -> 65 | AI91: 51.8 | AJ91: 54.71428571 | AK91: 21:30:00 | AL91: 59 | AM91: 44 | AN91: 58 | AO91: 39 | AP91: 59 | AQ91: 59 | AR91: 65 | AS91: 51.8 | AT91: 54.71428571
AA92: 2145 | AB92: =OFFSET('Raw Data'!EJ91,$B$38,$B$37) -> 51 | AC92: =OFFSET('Raw Data'!EK91,$B$38,$B$37) -> 51 | AD92: =OFFSET('Raw Data'!EL91,$B$38,$B$37) -> 52 | AE92: =OFFSET('Raw Data'!EM91,$B$38,$B$37) -> 48 | AF92: =OFFSET('Raw Data'!EN91,$B$38,$B$37) -> 57 | AG92: =OFFSET('Raw Data'!EO91,$B$38,$B$37) -> 65 | AH92: =OFFSET('Raw Data'!EP91,$B$38,$B$37) -> 50 | AI92: 51.8 | AJ92: 53.42857143 | AK92: 21:45:00 | AL92: 51 | AM92: 51 | AN92: 52 | AO92: 48 | AP92: 57 | AQ92: 65 | AR92: 50 | AS92: 51.8 | AT92: 53.42857143
AA93: 2200 | AB93: =OFFSET('Raw Data'!EJ92,$B$38,$B$37) -> 47 | AC93: =OFFSET('Raw Data'!EK92,$B$38,$B$37) -> 55 | AD93: =OFFSET('Raw Data'!EL92,$B$38,$B$37) -> 59 | AE93: =OFFSET('Raw Data'!EM92,$B$38,$B$37) -> 64 | AF93: =OFFSET('Raw Data'!EN92,$B$38,$B$37) -> 56 | AG93: =OFFSET('Raw Data'!EO92,$B$38,$B$37) -> 59 | AH93: =OFFSET('Raw Data'!EP92,$B$38,$B$37) -> 47 | AI93: =SUM(AB93:AF93)/5 -> 56.2 | AJ93: =SUM(AB93:AH93)/7 -> 55.28571429 | AK93: 22:00:00 | AL93: 47 | AM93: 55 | AN93: 59 | AO93: 64 | AP93: 56 | AQ93: 59 | AR93: 47 | AS93: 56.2 | AT93: 55.28571429
AA94: 2215 | AB94: =OFFSET('Raw Data'!EJ93,$B$38,$B$37) -> 58 | AC94: =OFFSET('Raw Data'!EK93,$B$38,$B$37) -> 66 | AD94: =OFFSET('Raw Data'!EL93,$B$38,$B$37) -> 71 | AE94: =OFFSET('Raw Data'!EM93,$B$38,$B$37) -> 36 | AF94: =OFFSET('Raw Data'!EN93,$B$38,$B$37) -> 53 | AG94: =OFFSET('Raw Data'!EO93,$B$38,$B$37) -> 76 | AH94: =OFFSET('Raw Data'!EP93,$B$38,$B$37) -> 41 | AI94: 56.8 | AJ94: 57.28571429 | AK94: 22:15:00 | AL94: 58 | AM94: 66 | AN94: 71 | AO94: 36 | AP94: 53 | AQ94: 76 | AR94: 41 | AS94: 56.8 | AT94: 57.28571429
AA95: 2230 | AB95: =OFFSET('Raw Data'!EJ94,$B$38,$B$37) -> 40 | AC95: =OFFSET('Raw Data'!EK94,$B$38,$B$37) -> 57 | AD95: =OFFSET('Raw Data'!EL94,$B$38,$B$37) -> 48 | AE95: =OFFSET('Raw Data'!EM94,$B$38,$B$37) -> 40 | AF95: =OFFSET('Raw Data'!EN94,$B$38,$B$37) -> 62 | AG95: =OFFSET('Raw Data'!EO94,$B$38,$B$37) -> 64 | AH95: =OFFSET('Raw Data'!EP94,$B$38,$B$37) -> 40 | AI95: 49.4 | AJ95: 50.14285714 | AK95: 22:30:00 | AL95: 40 | AM95: 57 | AN95: 48 | AO95: 40 | AP95: 62 | AQ95: 64 | AR95: 40 | AS95: 49.4 | AT95: 50.14285714
AA96: 2245 | AB96: =OFFSET('Raw Data'!EJ95,$B$38,$B$37) -> 40 | AC96: =OFFSET('Raw Data'!EK95,$B$38,$B$37) -> 52 | AD96: =OFFSET('Raw Data'!EL95,$B$38,$B$37) -> 47 | AE96: =OFFSET('Raw Data'!EM95,$B$38,$B$37) -> 49 | AF96: =OFFSET('Raw Data'!EN95,$B$38,$B$37) -> 68 | AG96: =OFFSET('Raw Data'!EO95,$B$38,$B$37) -> 58 | AH96: =OFFSET('Raw Data'!EP95,$B$38,$B$37) -> 43 | AI96: 51.2 | AJ96: 51 | AK96: 22:45:00 | AL96: 40 | AM96: 52 | AN96: 47 | AO96: 49 | AP96: 68 | AQ96: 58 | AR96: 43 | AS96: 51.2 | AT96: 51
AA97: 2300 | AB97: =OFFSET('Raw Data'!EJ96,$B$38,$B$37) -> 48 | AC97: =OFFSET('Raw Data'!EK96,$B$38,$B$37) -> 63 | AD97: =OFFSET('Raw Data'!EL96,$B$38,$B$37) -> 46 | AE97: =OFFSET('Raw Data'!EM96,$B$38,$B$37) -> 48 | AF97: =OFFSET('Raw Data'!EN96,$B$38,$B$37) -> 46 | AG97: =OFFSET('Raw Data'!EO96,$B$38,$B$37) -> 50 | AH97: =OFFSET('Raw Data'!EP96,$B$38,$B$37) -> 33 | AI97: 50.2 | AJ97: 47.71428571 | AK97: 23:00:00 | AL97: 48 | AM97: 63 | AN97: 46 | AO97: 48 | AP97: 46 | AQ97: 50 | AR97: 33 | AS97: 50.2 | AT97: 47.71428571
AA98: 2315 | AB98: =OFFSET('Raw Data'!EJ97,$B$38,$B$37) -> 34 | AC98: =OFFSET('Raw Data'!EK97,$B$38,$B$37) -> 34 | AD98: =OFFSET('Raw Data'!EL97,$B$38,$B$37) -> 45 | AE98: =OFFSET('Raw Data'!EM97,$B$38,$B$37) -> 51 | AF98: =OFFSET('Raw Data'!EN97,$B$38,$B$37) -> 66 | AG98: =OFFSET('Raw Data'!EO97,$B$38,$B$37) -> 56 | AH98: =OFFSET('Raw Data'!EP97,$B$38,$B$37) -> 33 | AI98: 46 | AJ98: 45.57142857 | AK98: 23:15:00 | AL98: 34 | AM98: 34 | AN98: 45 | AO98: 51 | AP98: 66 | AQ98: 56 | AR98: 33 | AS98: 46 | AT98: 45.57142857
AA99: 2330 | AB99: =OFFSET('Raw Data'!EJ98,$B$38,$B$37) -> 36 | AC99: =OFFSET('Raw Data'!EK98,$B$38,$B$37) -> 35 | AD99: =OFFSET('Raw Data'!EL98,$B$38,$B$37) -> 56 | AE99: =OFFSET('Raw Data'!EM98,$B$38,$B$37) -> 47 | AF99: =OFFSET('Raw Data'!EN98,$B$38,$B$37) -> 58 | AG99: =OFFSET('Raw Data'!EO98,$B$38,$B$37) -> 59 | AH99: =OFFSET('Raw Data'!EP98,$B$38,$B$37) -> 26 | AI99: 46.4 | AJ99: 45.28571429 | AK99: 23:30:00 | AL99: 36 | AM99: 35 | AN99: 56 | AO99: 47 | AP99: 58 | AQ99: 59 | AR99: 26 | AS99: 46.4 | AT99: 45.28571429
AA100: 2345 | AB100: =OFFSET('Raw Data'!EJ99,$B$38,$B$37) -> 20 | AC100: =OFFSET('Raw Data'!EK99,$B$38,$B$37) -> 60 | AD100: =OFFSET('Raw Data'!EL99,$B$38,$B$37) -> 29 | AE100: =OFFSET('Raw Data'!EM99,$B$38,$B$37) -> 35 | AF100: =OFFSET('Raw Data'!EN99,$B$38,$B$37) -> 36 | AG100: =OFFSET('Raw Data'!EO99,$B$38,$B$37) -> 51 | AH100: =OFFSET('Raw Data'!EP99,$B$38,$B$37) -> 27 | AI100: 36 | AJ100: 36.85714286 | AK100: 23:45:00 | AL100: 20 | AM100: 60 | AN100: 29 | AO100: 35 | AP100: 36 | AQ100: 51 | AR100: 27 | AS100: 36 | AT100: 36.85714286

Sheet Input_Plans (hidden)
A1: Please select… | B1: Site Picture
A2: =Input_Details!O28 -> 1. Harper Road (South of Falmouth Road) - 51.49617, -0.09302 | B2: Picture 1
A3: =Input_Details!O29 -> 2. Harper Road (South of Borough High street) - 51.49882, -0.09646 | B3: Picture 2
A4: =Input_Details!O30 ->  | B4: Picture 3
A5: =Input_Details!O31 ->  | B5: Picture 4
A6: =Input_Details!O32 ->  | B6: Picture 5
A7: =Input_Details!O33 ->  | B7: Picture 6
A8: =Input_Details!O34 ->  | B8: Picture 7
A9: =Input_Details!O35 ->  | B9: Picture 8
A10: =Input_Details!O36 ->  | B10: Picture 9
A11: =Input_Details!O37 ->  | B11: Picture 10

Sheet Raw Data
E1: PRIMARY DATA | AR1: SECONDARY DATA | CH1: COMBINED DATA | DN1: Speed | DR1: PRIMARY DATA Class Grouping | DX1: SECONDARY DATA Class Grouping | ED1: COMBINED Class Grouping | EJ1: PRIMARY DATA Weekly Summary | EQ1: SECONDARY DATA Weekly Summary | EX1: COMBINED DATA Weekly Summary
H2: Volume Counts - Vehicle Classification Breakdown | T2: Volume Counts - Vehicle Speed Bin Breakdown | AN2: Speed Statistics | AU2: Volume Counts - Vehicle Classification Breakdown | BG2: Volume Counts - Vehicle Speed Bin Breakdown | CA2: Speed Statistics | CH2: Vehicle Classification | CT2: Vehicle Speed Bins | DR2: PC + MC | DS2: Cars | DT2: LGV, R2 & PSV 2Axle | DU2: OGV1 & PSV 3Axle | DV2: OGV2 | DW2: Total | DX2: =DR2 -> PC + MC | DY2: =DS2 -> Cars | DZ2: LGV, R2 & PSV 2Axle | EA2: OGV1 & PSV 3Axle | EB2: OGV2 | EC2: Total | ED2: PC + MC | EE2: Cars | EF2: LGV, R2 & PSV 2Axle | EG2: OGV1 & PSV 3Axle | EH2: OGV2 | EI2: Total
A3: Site No. | B3: Date | C3: Road Name | D3: Location | E3: Primary Direction | F3: Day | G3: Time | H3: PC & MC | I3: Car | J3: Short Towing | K3: R2 | L3: R3 | M3: R4 | N3: A3 | O3: A4 | P3: A5 | Q3: A6+ | R3: BD | S3: DRT | T3: 0-10 | U3: 10-15 | V3: 15-20 | W3: 20-25 | X3: 25-30 | Y3: 30-35 | Z3: 35-40 | AA3: 40-45 | AB3: 45-50 | AC3: 50-55 | AD3: 55-60 | AE3: 60-65 | AF3: 65-70 | AG3: 70-75 | AH3: 75-80 | AI3: 80-85 | AJ3: 85-90 | AK3: 90-95 | AL3: 95-100 | AM3: 100+ | AN3: Ave | AO3: 85%ile | AP3: Min | AQ3: Max | AR3: Secondary Direction | AS3: Day | AT3: Time | AU3: =H3 -> PC & MC | AV3: =I3 -> Car | AW3: Short Towing | AX3: R2 | AY3: R3 | AZ3: R4 | BA3: A3 | BB3: A4 | BC3: A5 | BD3: A6+ | BE3: BD | BF3: DRT | BG3: 0-10 | BH3: 10-15 | BI3: 15-20 | BJ3: 20-25 | BK3: 25-30 | BL3: 30-35 | BM3: 35-40 | BN3: 40-45 | BO3: 45-50 | BP3: 50-55 | BQ3: 55-60 | BR3: 60-65 | BS3: 65-70 | BT3: 70-75 | BU3: 75-80 | BV3: 80-85 | BW3: 85-90 | BX3: 90-95 | BY3: 95-100 | BZ3: 100+ | CA3: Ave | CB3: 85%ile | CC3: Min | CD3: Max | CH3: =H3 -> PC & MC | CI3: =I3 -> Car | CJ3: Short Towing | CK3: R2 | CL3: R3 | CM3: R4 | CN3: A3 | CO3: A4 | CP3: A5 | CQ3: A6+ | CR3: BD | CS3: DRT | CT3: 0-10 | CU3: 10-15 | CV3: 15-20 | CW3: 20-25 | CX3: 25-30 | CY3: 30-35 | CZ3: 35-40 | DA3: 40-45 | DB3: 45-50 | DC3: 50-55 | DD3: 55-60 | DE3: 60-65 | DF3: 65-70 | DG3: 70-75 | DH3: 75-80 | DI3: 80-85 | DJ3: 85-90 | DK3: 90-95 | DL3: 95-100 | DM3: 100+ | DN3: Ave | DO3: 85%ile | DP3: Min | DQ3: Max | EJ3: Mon | EK3: Tue | EL3: Wed | EM3: Thu | EN3: Fri | EO3: Sat | EP3: Sun | EQ3: Mon | ER3: Tue | ES3: Wed | ET3: Thu | EU3: Fri | EV3: Sat | EW3: Sun | EX3: Mon | EY3: Tue | EZ3: Wed | FA3: Thu | FB3: Fri | FC3: Sat | FD3: Sun
A4: =Input_Details!$J$5 -> 1 | B4: =OFFSET(Input_Details!$Q$4,MATCH($A4, Input_Details!$J$5:$J$24, 0), 0) -> 2017-04-24 | C4: =INDEX(Input_Details!$H$5:$H$24, MATCH($A4, Input_Details!$J$5:$J$24, 0), 0) -> Harper Road (South of Falmouth Road) | D4: =INDEX(Input_Details!$I$5:$I$24, MATCH($A4, Input_Details!$J$5:$J$24, 0), 0) -> 51.49617, -0.09302 | E4: =INDEX(Input_Details!$K$5:$K$24, MATCH($A4, Input_Details!$J$5:$J$24, 0), 0) -> Southbound | F4: Mon | G4: 00:00:00 | H4: 1 | I4: 20 | J4: 0 | K4: 0 | L4: 1 | M4: 1 | N4: 0 | O4: 0 | P4: 0 | Q4: 0 | R4: 0 | S4: 0 | T4: 0 | U4: 5 | V4: 10 | W4: 5 | X4: 3 | Y4: 0 | Z4: 0 | AA4: 0 | AB4: 0 | AC4: 0 | AD4: 0 | AE4: 0 | AF4: 0 | AG4: 0 | AH4: 0 | AI4: 0 | AJ4: 0 | AK4: 0 | AL4: 0 | AM4: 0 | AN4: 18.7 | AO4: 22.6 | AP4: 10.5 | AQ4: 29.3 | AR4: =INDEX(Input_Details!$L$5:$L$24, MATCH($A4, Input_Details!$J$5:$J$24, 0), 0) -> Northbound | AS4: Mon | AT4: 00:00:00 | AU4: 1 | AV4: 5 | AW4: 0 | AX4: 0 | AY4: 1 | AZ4: 0 | BA4: 0 | BB4: 0 | BC4: 0 | BD4: 0 | BE4: 0 | BF4: 0 | BG4: 0 | BH4: 1 | BI4: 2 | BJ4: 4 | BK4: 0 | BL4: 0 | BM4: 0 | BN4: 0 | BO4: 0 | BP4: 0 | BQ4: 0 | BR4: 0 | BS4: 0 | BT4: 0 | BU4: 0 | BV4: 0 | BW4: 0 | BX4: 0 | BY4: 0 | BZ4: 0 | CA4: 19.5 | CB4: - | CC4: 13.6 | CD4: 23.1 | CF4: Mon | CG4: 00:00:00 | CH4: =IF(OR(H4="", AU4=""), "-",SUM(H4+AU4)) -> 2 | CI4: =IF(OR(I4="", AV4=""), "-",SUM(I4+AV4)) -> 25 | CJ4: =IF(OR(J4="", AW4=""), "-",SUM(J4+AW4)) -> 0 | CK4: =IF(OR(K4="", AX4=""), "-",SUM(K4+AX4)) -> 0 | CL4: =IF(OR(L4="", AY4=""), "-",SUM(L4+AY4)) -> 2 | CM4: =IF(OR(M4="", AZ4=""), "-",SUM(M4+AZ4)) -> 1 | CN4: =IF(OR(N4="", BA4=""), "-",SUM(N4+BA4)) -> 0 | CO4: =IF(OR(O4="", BB4=""), "-",SUM(O4+BB4)) -> 0 | CP4: =IF(OR(P4="", BC4=""), "-",SUM(P4+BC4)) -> 0 | CQ4: =IF(OR(Q4="", BD4=""), "-",SUM(Q4+BD4)) -> 0 | CR4: =IF(OR(R4="", BE4=""), "-",SUM(R4+BE4)) -> 0 | CS4: =IF(OR(S4="", BF4=""), "-",SUM(S4+BF4)) -> 0 | CT4: =IF(OR(T4="", BG4=""), "-",SUM(T4+BG4)) -> 0 | CU4: =IF(OR(U4="", BH4=""), "-",SUM(U4+BH4)) -> 6 | CV4: =IF(OR(V4="", BI4=""), "-",SUM(V4+BI4)) -> 12 | CW4: =IF(OR(W4="", BJ4=""), "-",SUM(W4+BJ4)) -> 9 | CX4: =IF(OR(X4="", BK4=""), "-",SUM(X4+BK4)) -> 3 | CY4: =IF(OR(Y4="", BL4=""), "-",SUM(Y4+BL4)) -> 0 | CZ4: =IF(OR(Z4="", BM4=""), "-",SUM(Z4+BM4)) -> 0 | DA4: =IF(OR(AA4="", BN4=""), "-",SUM(AA4+BN4)) -> 0 | DB4: =IF(OR(AB4="", BO4=""), "-",SUM(AB4+BO4)) -> 0 | DC4: =IF(OR(AC4="", BP4=""), "-",SUM(AC4+BP4)) -> 0 | DD4: =IF(OR(AD4="", BQ4=""), "-",SUM(AD4+BQ4)) -> 0 | DE4: =IF(OR(AE4="", BR4=""), "-",SUM(AE4+BR4)) -> 0 | DF4: =IF(OR(AF4="", BS4=""), "-",SUM(AF4+BS4)) -> 0 | DG4: =IF(OR(AG4="", BT4=""), "-",SUM(AG4+BT4)) -> 0 | DH4: =IF(OR(AH4="", BU4=""), "-",SUM(AH4+BU4)) -> 0 | DI4: =IF(OR(AI4="", BV4=""), "-",SUM(AI4+BV4)) -> 0 | DJ4: =IF(OR(AJ4="", BW4=""), "-",SUM(AJ4+BW4)) -> 0 | DK4: =IF(OR(AK4="", BX4=""), "-",SUM(AK4+BX4)) -> 0 | DL4: =IF(OR(AL4="", BY4=""), "-",SUM(AL4+BY4)) -> 0 | DM4: =IF(OR(AM4="", BZ4=""), "-",SUM(AM4+BZ4)) -> 0 | DN4: =IF(OR(DW4="-", EC4="-", EI4="-", EI4=0),"-",IF(OR(DW4="-", DW4=0),CA4,IF(EC4=0,AN4,SUM((AN4*DW4),(CA4*EC4))/EI4))) -> 18.88666667 | DO4: =IFERROR(IF(OR(DW4="-", EC4="-", EI4="-", EI4=0), "-", IF(AO4="-", CB4, AVERAGE(AO4,CB4))), "-") -> 22.6 | DP4: =IF(OR(DW4="-", EC4="-",EI4="-", EI4=0),"-",MIN(AP4,CC4)) -> 10.5 | DQ4: =IF(OR(DW4="-", EC4="-",EI4="-", EI4=0),"-",MAX(AQ4,CD4)) -> 29.3 | DR4: =IF(H4="", "-", H4) -> 1 | DS4: =IF(DR4="-", "-", SUM(I4:J4)) -> 20 | DT4: =IF(DR4="-", "-", K4) -> 0 | DU4: =IF(DR4="-", "-", L4) -> 1 | DV4: =IF(DR4="-", "-", SUM(M4:S4)) -> 1 | DW4: =IF(DR4="-", "-", SUM(H4:S4)) -> 23 | DX4: =IF(AU4="", "-", AU4) -> 1 | DY4: =IF(DX4="-", "-", SUM(AV4:AW4)) -> 5 | DZ4: =IF(DX4="-", "-", AX4) -> 0 | EA4: =IF(DX4="-", "-", AY4) -> 1 | EB4: =IF(DX4="-", "-", SUM(AZ4:BF4)) -> 0 | EC4: =IF(DX4="-", "-", SUM(AU4:BF4)) -> 7 | ED4: =IF(OR(DR4="-", DX4="-"), "-", SUM(DR4,DX4)) -> 2 | EE4: =IF(OR(DS4="-", DY4="-"), "-", SUM(DS4,DY4)) -> 25 | EF4: =IF(OR(DT4="-", DZ4="-"), "-", SUM(DT4,DZ4)) -> 0 | EG4: =IF(OR(DU4="-", EA4="-"), "-", SUM(DU4,EA4)) -> 2 | EH4: =IF(OR(DV4="-", EB4="-"), "-", SUM(DV4,EB4)) -> 1 | EI4: =IF(OR(DW4="-", EC4="-"), "-", SUM(DW4,EC4)) -> 30 | EJ4: =+DW4 -> 23 | EK4: =+DW100 -> 24 | EL4: =+DW196 -> 27 | EM4: =+DW292 -> 34 | EN4: =+DW388 -> 35 | EO4: =+DW484 -> 37 | EP4: =+DW580 -> 49 | EQ4: =+EC4 -> 7 | ER4: =+EC100 -> 4 | ES4: =+EC196 -> 7 | ET4: =+EC292 -> 8 | EU4: =+EC388 -> 6 | EV4: =+EC484 -> 5 | EW4: =+EC580 -> 8 | EX4: =IF(OR(EJ4="-", EQ4="-"), "-", SUM(EJ4,EQ4)) -> 30 | EY4: =IF(OR(EK4="-", ER4="-"), "-", SUM(EK4,ER4)) -> 28 | EZ4: =IF(OR(EL4="-", ES4="-"), "-", SUM(EL4,ES4)) -> 34 | FA4: =IF(OR(EM4="-", ET4="-"), "-", SUM(EM4,ET4)) -> 42 | FB4: =IF(OR(EN4="-", EU4="-"), "-", SUM(EN4,EU4)) -> 41 | FC4: =IF(OR(EO4="-", EV4="-"), "-", SUM(EO4,EV4)) -> 42 | FD4: =IF(OR(EP4="-", EW4="-"), "-", SUM(EP4,EW4)) -> 57
A5: =A4 -> 1 | B5: =OFFSET(Input_Details!$Q$4,MATCH($A5, Input_Details!$J$5:$J$24, 0), 0) -> 2017-04-24 | C5: =INDEX(Input_Details!$H$5:$H$24, MATCH($A5, Input_Details!$J$5:$J$24, 0), 0) -> Harper Road (South of Falmouth Road) | D5: =INDEX(Input_Details!$I$5:$I$24, MATCH($A5, Input_Details!$J$5:$J$24, 0), 0) -> 51.49617, -0.09302 | E5: =INDEX(Input_Details!$K$5:$K$24, MATCH($A5, Input_Details!$J$5:$J$24, 0), 0) -> Southbound | F5: =+F4 -> Mon | G5: 00:15:00 | H5: 2 | I5: 16 | J5: 0 | K5: 0 | L5: 2 | M5: 0 | N5: 0 | O5: 0 | P5: 0 | Q5: 0 | R5: 0 | S5: 0 | T5: 0 | U5: 4 | V5: 11 | W5: 4 | X5: 1 | Y5: 0 | Z5: 0 | AA5: 0 | AB5: 0 | AC5: 0 | AD5: 0 | AE5: 0 | AF5: 0 | AG5: 0 | AH5: 0 | AI5: 0 | AJ5: 0 | AK5: 0 | AL5: 0 | AM5: 0 | AN5: 17.9 | AO5: 21 | AP5: 10.4 | AQ5: 25.2 | AR5: =INDEX(Input_Details!$L$5:$L$24, MATCH($A5, Input_Details!$J$5:$J$24, 0), 0) -> Northbound | AS5: Mon | AT5: 00:15:00 | AU5: 0 | AV5: 3 | AW5: 0 | AX5: 0 | AY5: 1 | AZ5: 0 | BA5: 0 | BB5: 0 | BC5: 0 | BD5: 0 | BE5: 0 | BF5: 0 | BG5: 0 | BH5: 1 | BI5: 0 | BJ5: 3 | BK5: 0 | BL5: 0 | BM5: 0 | BN5: 0 | BO5: 0 | BP5: 0 | BQ5: 0 | BR5: 0 | BS5: 0 | BT5: 0 | BU5: 0 | BV5: 0 | BW5: 0 | BX5: 0 | BY5: 0 | BZ5: 0 | CA5: 19.8 | CB5: - | CC5: 12.5 | CD5: 22.7 | CF5: Mon | CG5: 00:15:00 | CH5: =IF(OR(H5="", AU5=""), "-",SUM(H5+AU5)) -> 2 | CI5: 19 | CJ5: 0 | CK5: 0 | CL5: 3 | CM5: 0 | CN5: 0 | CO5: 0 | CP5: 0 | CQ5: 0 | CR5: 0 | CS5: 0 | CT5: 0 | CU5: 5 | CV5: 11 | CW5: 7 | CX5: 1 | CY5: 0 | CZ5: 0 | DA5: 0 | DB5: 0 | DC5: 0 | DD5: 0 | DE5: 0 | DF5: 0 | DG5: 0 | DH5: 0 | DI5: 0 | DJ5: 0 | DK5: 0 | DL5: 0 | DM5: 0 | DN5: =IF(OR(DW5="-", EC5="-", EI5="-", EI5=0),"-",IF(OR(DW5="-", DW5=0),CA5,IF(EC5=0,AN5,SUM((AN5*DW5),(CA5*EC5))/EI5))) -> 18.21666667 | DO5: =IFERROR(IF(OR(DW5="-", EC5="-", EI5="-", EI5=0), "-", IF(AO5="-", CB5, AVERAGE(AO5,CB5))), "-") -> 21 | DP5: =IF(OR(DW5="-", EC5="-",EI5="-", EI5=0),"-",MIN(AP5,CC5)) -> 10.4 | DQ5: =IF(OR(DW5="-", EC5="-",EI5="-", EI5=0),"-",MAX(AQ5,CD5)) -> 25.2 | DR5: 2 | DS5: 16 | DT5: 0 | DU5: 2 | DV5: 0 | DW5: 20 | DX5: =IF(AU5="", "-", AU5) -> 0 | DY5: =IF(DX5="-", "-", SUM(AV5:AW5)) -> 3 | DZ5: =IF(DX5="-", "-", AX5) -> 0 | EA5: =IF(DX5="-", "-", AY5) -> 1 | EB5: =IF(DX5="-", "-", SUM(AZ5:BF5)) -> 0 | EC5: =IF(DX5="-", "-", SUM(AU5:BF5)) -> 4 | ED5: =IF(OR(DR5="-", DX5="-"), "-", SUM(DR5,DX5)) -> 2 | EE5: 19 | EF5: 0 | EG5: 3 | EH5: 0 | EI5: 24 | EJ5: =+DW5 -> 20 | EK5: =+DW101 -> 19 | EL5: =+DW197 -> 26 | EM5: =+DW293 -> 29 | EN5: =+DW389 -> 22 | EO5: =+DW485 -> 42 | EP5: =+DW581 -> 29 | EQ5: =+EC5 -> 4 | ER5: =+EC101 -> 7 | ES5: =+EC197 -> 10 | ET5: =+EC293 -> 3 | EU5: =+EC389 -> 1 | EV5: =+EC485 -> 3 | EW5: =+EC581 -> 6 | EX5: =IF(OR(EJ5="-", EQ5="-"), "-", SUM(EJ5,EQ5)) -> 24 | EY5: 26 | EZ5: 36 | FA5: 32 | FB5: 23 | FC5: 45 | FD5: 35
A6: 1 | B6: =OFFSET(Input_Details!$Q$4,MATCH($A6, Input_Details!$J$5:$J$24, 0), 0) -> 2017-04-24 | C6: =INDEX(Input_Details!$H$5:$H$24, MATCH($A6, Input_Details!$J$5:$J$24, 0), 0) -> Harper Road (South of Falmouth Road) | D6: =INDEX(Input_Details!$I$5:$I$24, MATCH($A6, Input_Details!$J$5:$J$24, 0), 0) -> 51.49617, -0.09302 | E6: =INDEX(Input_Details!$K$5:$K$24, MATCH($A6, Input_Details!$J$5:$J$24, 0), 0) -> Southbound | F6: Mon | G6: 00:30:00 | H6: 1 | I6: 13 | J6: 0 | K6: 1 | L6: 4 | M6: 0 | N6: 0 | O6: 0 | P6: 0 | Q6: 0 | R6: 0 | S6: 0 | T6: 0 | U6: 1 | V6: 10 | W6: 6 | X6: 2 | Y6: 0 | Z6: 0 | AA6: 0 | AB6: 0 | AC6: 0 | AD6: 0 | AE6: 0 | AF6: 0 | AG6: 0 | AH6: 0 | AI6: 0 | AJ6: 0 | AK6: 0 | AL6: 0 | AM6: 0 | AN6: 19.5 | AO6: 23 | AP6: 12.4 | AQ6: 28 | AR6: =INDEX(Input_Details!$L$5:$L$24, MATCH($A6, Input_Details!$J$5:$J$24, 0), 0) -> Northbound | AS6: Mon | AT6: 00:30:00 | AU6: 1 | AV6: 2 | AW6: 0 | AX6: 0 | AY6: 0 | AZ6: 0 | BA6: 0 | BB6: 0 | BC6: 0 | BD6: 0 | BE6: 0 | BF6: 0 | BG6: 1 | BH6: 2 | BI6: 0 | BJ6: 0 | BK6: 0 | BL6: 0 | BM6: 0 | BN6: 0 | BO6: 0 | BP6: 0 | BQ6: 0 | BR6: 0 | BS6: 0 | BT6: 0 | BU6: 0 | BV6: 0 | BW6: 0 | BX6: 0 | BY6: 0 | BZ6: 0 | CA6: 11.1 | CB6: - | CC6: 7.9 | CD6: 12.6 | CF6: Mon | CG6: 00:30:00 | CH6: 2 | CI6: 15 | CJ6: 0 | CK6: 1 | CL6: 4 | CM6: 0 | CN6: 0 | CO6: 0 | CP6: 0 | CQ6: 0 | CR6: 0 | CS6: 0 | CT6: 1 | CU6: 3 | CV6: 10 | CW6: 6 | CX6: 2 | CY6: 0 | CZ6: 0 | DA6: 0 | DB6: 0 | DC6: 0 | DD6: 0 | DE6: 0 | DF6: 0 | DG6: 0 | DH6: 0 | DI6: 0 | DJ6: 0 | DK6: 0 | DL6: 0 | DM6: 0 | DN6: 18.35454545 | DO6: 23 | DP6: 7.9 | DQ6: 28 | DR6: 1 | DS6: 13 | DT6: 1 | DU6: 4 | DV6: 0 | DW6: 19 | DX6: 1 | DY6: 2 | DZ6: 0 | EA6: 0 | EB6: 0 | EC6: 3 | ED6: 2 | EE6: 15 | EF6: 1 | EG6: 4 | EH6: 0 | EI6: 22 | EJ6: 19 | EK6: 13 | EL6: 28 | EM6: 16 | EN6: 28 | EO6: 37 | EP6: 41 | EQ6: 3 | ER6: 4 | ES6: 10 | ET6: 4 | EU6: 3 | EV6: 4 | EW6: 8 | EX6: 22 | EY6: 17 | EZ6: 38 | FA6: 20 | FB6: 31 | FC6: 41 | FD6: 49
A7: 1 | B7: =OFFSET(Input_Details!$Q$4,MATCH($A7, Input_Details!$J$5:$J$24, 0), 0) -> 2017-04-24 | C7: =INDEX(Input_Details!$H$5:$H$24, MATCH($A7, Input_Details!$J$5:$J$24, 0), 0) -> Harper Road (South of Falmouth Road) | D7: =INDEX(Input_Details!$I$5:$I$24, MATCH($A7, Input_Details!$J$5:$J$24, 0), 0) -> 51.49617, -0.09302 | E7: =INDEX(Input_Details!$K$5:$K$24, MATCH($A7, Input_Details!$J$5:$J$24, 0), 0) -> Southbound | F7: Mon | G7: 00:45:00 | H7: 0 | I7: 15 | J7: 0 | K7: 0 | L7: 0 | M7: 0 | N7: 0 | O7: 0 | P7: 0 | Q7: 0 | R7: 0 | S7: 0 | T7: 0 | U7: 0 | V7: 12 | W7: 1 | X7: 2 | Y7: 0 | Z7: 0 | AA7: 0 | AB7: 0 | AC7: 0 | AD7: 0 | AE7: 0 | AF7: 0 | AG7: 0 | AH7: 0 | AI7: 0 | AJ7: 0 | AK7: 0 | AL7: 0 | AM7: 0 | AN7: 18.5 | AO7: 20.8 | AP7: 15.2 | AQ7: 25.4 | AR7: =INDEX(Input_Details!$L$5:$L$24, MATCH($A7, Input_Details!$J$5:$J$24, 0), 0) -> Northbound | AS7: Mon | AT7: 00:45:00 | AU7: 1 | AV7: 3 | AW7: 0 | AX7: 0 | AY7: 0 | AZ7: 0 | BA7: 0 | BB7: 0 | BC7: 0 | BD7: 0 | BE7: 0 | BF7: 0 | BG7: 0 | BH7: 2 | BI7: 2 | BJ7: 0 | BK7: 0 | BL7: 0 | BM7: 0 | BN7: 0 | BO7: 0 | BP7: 0 | BQ7: 0 | BR7: 0 | BS7: 0 | BT7: 0 | BU7: 0 | BV7: 0 | BW7: 0 | BX7: 0 | BY7: 0 | BZ7: 0 | CA7: 15.4 | CB7: - | CC7: 12.6 | CD7: 18.6 | CF7: Mon | CG7: 00:45:00 | CH7: 1 | CI7: 18 | CJ7: 0 | CK7: 0 | CL7: 0 | CM7: 0 | CN7: 0 | CO7: 0 | CP7: 0 | CQ7: 0 | CR7: 0 | CS7: 0 | CT7: 0 | CU7: 2 | CV7: 14 | CW7: 1 | CX7: 2 | CY7: 0 | CZ7: 0 | DA7: 0 | DB7: 0 | DC7: 0 | DD7: 0 | DE7: 0 | DF7: 0 | DG7: 0 | DH7: 0 | DI7: 0 | DJ7: 0 | DK7: 0 | DL7: 0 | DM7: 0 | DN7: 17.84736842 | DO7: 20.8 | DP7: 12.6 | DQ7: 25.4 | DR7: 0 | DS7: 15 | DT7: 0 | DU7: 0 | DV7: 0 | DW7: 15 | DX7: 1 | DY7: 3 | DZ7: 0 | EA7: 0 | EB7: 0 | EC7: 4 | ED7: 1 | EE7: 18 | EF7: 0 | EG7: 0 | EH7: 0 | EI7: 19 | EJ7: 15 | EK7: 19 | EL7: 17 | EM7: 24 | EN7: 30 | EO7: 37 | EP7: 43 | EQ7: 4 | ER7: 5 | ES7: 6 | ET7: 4 | EU7: 5 | EV7: 7 | EW7: 6 | EX7: 19 | EY7: 24 | EZ7: 23 | FA7: 28 | FB7: 35 | FC7: 44 | FD7: 49
A8: 1 | B8: =OFFSET(Input_Details!$Q$4,MATCH($A8, Input_Details!$J$5:$J$24, 0), 0) -> 2017-04-24 | C8: =INDEX(Input_Details!$H$5:$H$24, MATCH($A8, Input_Details!$J$5:$J$24, 0), 0) -> Harper Road (South of Falmouth Road) | D8: =INDEX(Input_Details!$I$5:$I$24, MATCH($A8, Input_Details!$J$5:$J$24, 0), 0) -> 51.49617, -0.09302 | E8: =INDEX(Input_Details!$K$5:$K$24, MATCH($A8, Input_Details!$J$5:$J$24, 0), 0) -> Southbound | F8: Mon | G8: 01:00:00 | H8: 1 | I8: 11 | J8: 0 | K8: 1 | L8: 1 | M8: 0 | N8: 0 | O8: 0 | P8: 0 | Q8: 0 | R8: 0 | S8: 0 | T8: 0 | U8: 1 | V8: 3 | W8: 5 | X8: 5 | Y8: 0 | Z8: 0 | AA8: 0 | AB8: 0 | AC8: 0 | AD8: 0 | AE8: 0 | AF8: 0 | AG8: 0 | AH8: 0 | AI8: 0 | AJ8: 0 | AK8: 0 | AL8: 0 | AM8: 0 | AN8: 22.8 | AO8: 27.3 | AP8: 14.5 | AQ8: 29.8 | AR8: =INDEX(Input_Details!$L$5:$L$24, MATCH($A8, Input_Details!$J$5:$J$24, 0), 0) -> Northbound | AS8: Mon | AT8: 01:00:00 | AU8: 0 | AV8: 3 | AW8: 0 | AX8: 0 | AY8: 0 | AZ8: 0 | BA8: 0 | BB8: 0 | BC8: 0 | BD8: 0 | BE8: 0 | BF8: 0 | BG8: 0 | BH8: 0 | BI8: 2 | BJ8: 1 | BK8: 0 | BL8: 0 | BM8: 0 | BN8: 0 | BO8: 0 | BP8: 0 | BQ8: 0 | BR8: 0 | BS8: 0 | BT8: 0 | BU8: 0 | BV8: 0 | BW8: 0 | BX8: 0 | BY8: 0 | BZ8: 0 | CA8: 17.1 | CB8: - | CC8: 15.3 | CD8: 20.9 | CF8: Mon | CG8: 01:00:00 | CH8: 1 | CI8: 14 | CJ8: 0 | CK8: 1 | CL8: 1 | CM8: 0 | CN8: 0 | CO8: 0 | CP8: 0 | CQ8: 0 | CR8: 0 | CS8: 0 | CT8: 0 | CU8: 1 | CV8: 5 | CW8: 6 | CX8: 5 | CY8: 0 | CZ8: 0 | DA8: 0 | DB8: 0 | DC8: 0 | DD8: 0 | DE8: 0 | DF8: 0 | DG8: 0 | DH8: 0 | DI8: 0 | DJ8: 0 | DK8: 0 | DL8: 0 | DM8: 0 | DN8: 21.79411765 | DO8: 27.3 | DP8: 14.5 | DQ8: 29.8 | DR8: 1 | DS8: 11 | DT8: 1 | DU8: 1 | DV8: 0 | DW8: 14 | DX8: 0 | DY8: 3 | DZ8: 0 | EA8: 0 | EB8: 0 | EC8: 3 | ED8: 1 | EE8: 14 | EF8: 1 | EG8: 1 | EH8: 0 | EI8: 17 | EJ8: 14 | EK8: 12 | EL8: 18 | EM8: 19 | EN8: 22 | EO8: 20 | EP8: 32 | EQ8: 3 | ER8: 2 | ES8: 3 | ET8: 1 | EU8: 3 | EV8: 7 | EW8: 3 | EX8: 17 | EY8: 14 | EZ8: 21 | FA8: 20 | FB8: 25 | FC8: 27 | FD8: 35
A9: 1 | B9: =OFFSET(Input_Details!$Q$4,MATCH($A9, Input_Details!$J$5:$J$24, 0), 0) -> 2017-04-24 | C9: =INDEX(Input_Details!$H$5:$H$24, MATCH($A9, Input_Details!$J$5:$J$24, 0), 0) -> Harper Road (South of Falmouth Road) | D9: =INDEX(Input_Details!$I$5:$I$24, MATCH($A9, Input_Details!$J$5:$J$24, 0), 0) -> 51.49617, -0.09302 | E9: =INDEX(Input_Details!$K$5:$K$24, MATCH($A9, Input_Details!$J$5:$J$24, 0), 0) -> Southbound | F9: Mon | G9: 01:15:00 | H9: 0 | I9: 8 | J9: 0 | K9: 0 | L9: 0 | M9: 0 | N9: 0 | O9: 0 | P9: 0 | Q9: 0 | R9: 0 | S9: 0 | T9: 0 | U9: 0 | V9: 4 | W9: 3 | X9: 1 | Y9: 0 | Z9: 0 | AA9: 0 | AB9: 0 | AC9: 0 | AD9: 0 | AE9: 0 | AF9: 0 | AG9: 0 | AH9: 0 | AI9: 0 | AJ9: 0 | AK9: 0 | AL9: 0 | AM9: 0 | AN9: 20.1 | AO9: - | AP9: 15.1 | AQ9: 25.3 | AR9: =INDEX(Input_Details!$L$5:$L$24, MATCH($A9, Input_Details!$J$5:$J$24, 0), 0) -> Northbound | AS9: Mon | AT9: 01:15:00 | AU9: 1 | AV9: 1 | AW9: 0 | AX9: 0 | AY9: 0 | AZ9: 0 | BA9: 0 | BB9: 0 | BC9: 0 | BD9: 0 | BE9: 0 | BF9: 0 | BG9: 0 | BH9: 0 | BI9: 1 | BJ9: 0 | BK9: 0 | BL9: 1 | BM9: 0 | BN9: 0 | BO9: 0 | BP9: 0 | BQ9: 0 | BR9: 0 | BS9: 0 | BT9: 0 | BU9: 0 | BV9: 0 | BW9: 0 | BX9: 0 | BY9: 0 | BZ9: 0 | CA9: 24.2 | CB9: - | CC9: 18.4 | CD9: 30 | CF9: Mon | CG9: 01:15:00 | CH9: 1 | CI9: 9 | CJ9: 0 | CK9: 0 | CL9: 0 | CM9: 0 | CN9: 0 | CO9: 0 | CP9: 0 | CQ9: 0 | CR9: 0 | CS9: 0 | CT9: 0 | CU9: 0 | CV9: 5 | CW9: 3 | CX9: 1 | CY9: 1 | CZ9: 0 | DA9: 0 | DB9: 0 | DC9: 0 | DD9: 0 | DE9: 0 | DF9: 0 | DG9: 0 | DH9: 0 | DI9: 0 | DJ9: 0 | DK9: 0 | DL9: 0 | DM9: 0 | DN9: 20.92 | DO9: - | DP9: 15.1 | DQ9: 30 | DR9: 0 | DS9: 8 | DT9: 0 | DU9: 0 | DV9: 0 | DW9: 8 | DX9: 1 | DY9: 1 | DZ9: 0 | EA9: 0 | EB9: 0 | EC9: 2 | ED9: 1 | EE9: 9 | EF9: 0 | EG9: 0 | EH9: 0 | EI9: 10 | EJ9: 8 | EK9: 10 | EL9: 18 | EM9: 16 | EN9: 13 | EO9: 29 | EP9: 31 | EQ9: 2 | ER9: 6 | ES9: 10 | ET9: 2 | EU9: 2 | EV9: 2 | EW9: 8 | EX9: 10 | EY9: 16 | EZ9: 28 | FA9: 18 | FB9: 15 | FC9: 31 | FD9: 39
A10: 1 | B10: =OFFSET(Input_Details!$Q$4,MATCH($A10, Input_Details!$J$5:$J$24, 0), 0) -> 2017-04-24 | C10: =INDEX(Input_Details!$H$5:$H$24, MATCH($A10, Input_Details!$J$5:$J$24, 0), 0) -> Harper Road (South of Falmouth Road) | D10: =INDEX(Input_Details!$I$5:$I$24, MATCH($A10, Input_Details!$J$5:$J$24, 0), 0) -> 51.49617, -0.09302 | E10: =INDEX(Input_Details!$K$5:$K$24, MATCH($A10, Input_Details!$J$5:$J$24, 0), 0) -> Southbound | F10: Mon | G10: 01:30:00 | H10: 1 | I10: 11 | J10: 0 | K10: 2 | L10: 0 | M10: 0 | N10: 0 | O10: 0 | P10: 0 | Q10: 0 | R10: 0 | S10: 0 | T10: 0 | U10: 5 | V10: 6 | W10: 3 | X10: 0 | Y10: 0 | Z10: 0 | AA10: 0 | AB10: 0 | AC10: 0 | AD10: 0 | AE10: 0 | AF10: 0 | AG10: 0 | AH10: 0 | AI10: 0 | AJ10: 0 | AK10: 0 | AL10: 0 | AM10: 0 | AN10: 17 | AO10: 20.1 | AP10: 11.9 | AQ10: 23.1 | AR10: =INDEX(Input_Details!$L$5:$L$24, MATCH($A10, Input_Details!$J$5:$J$24, 0), 0) -> Northbound | AS10: Mon | AT10: 01:30:00 | AU10: 0 | AV10: 3 | AW10: 0 | AX10: 0 | AY10: 0 | AZ10: 0 | BA10: 0 | BB10: 0 | BC10: 0 | BD10: 0 | BE10: 0 | BF10: 0 | BG10: 0 | BH10: 0 | BI10: 0 | BJ10: 3 | BK10: 0 | BL10: 0 | BM10: 0 | BN10: 0 | BO10: 0 | BP10: 0 | BQ10: 0 | BR10: 0 | BS10: 0 | BT10: 0 | BU10: 0 | BV10: 0 | BW10: 0 | BX10: 0 | BY10: 0 | BZ10: 0 | CA10: 21.2 | CB10: - | CC10: 21.2 | CD10: 21.2 | CF10: Mon | CG10: 01:30:00 | CH10: 1 | CI10: 14 | CJ10: 0 | CK10: 2 | CL10: 0 | CM10: 0 | CN10: 0 | CO10: 0 | CP10: 0 | CQ10: 0 | CR10: 0 | CS10: 0 | CT10: 0 | CU10: 5 | CV10: 6 | CW10: 6 | CX10: 0 | CY10: 0 | CZ10: 0 | DA10: 0 | DB10: 0 | DC10: 0 | DD10: 0 | DE10: 0 | DF10: 0 | DG10: 0 | DH10: 0 | DI10: 0 | DJ10: 0 | DK10: 0 | DL10: 0 | DM10: 0 | DN10: 17.74117647 | DO10: 20.1 | DP10: 11.9 | DQ10: 23.1 | DR10: 1 | DS10: 11 | DT10: 2 | DU10: 0 | DV10: 0 | DW10: 14 | DX10: 0 | DY10: 3 | DZ10: 0 | EA10: 0 | EB10: 0 | EC10: 3 | ED10: 1 | EE10: 14 | EF10: 2 | EG10: 0 | EH10: 0 | EI10: 17 | EJ10: 14 | EK10: 13 | EL10: 14 | EM10: 13 | EN10: 21 | EO10: 23 | EP10: 27 | EQ10: 3 | ER10: 5 | ES10: 5 | ET10: 4 | EU10: 2 | EV10: 3 | EW10: 3 | EX10: 17 | EY10: 18 | EZ10: 19 | FA10: 17 | FB10: 23 | FC10: 26 | FD10: 30
A11: 1 | B11: =OFFSET(Input_Details!$Q$4,MATCH($A11, Input_Details!$J$5:$J$24, 0), 0) -> 2017-04-24 | C11: =INDEX(Input_Details!$H$5:$H$24, MATCH($A11, Input_Details!$J$5:$J$24, 0), 0) -> Harper Road (South of Falmouth Road) | D11: =INDEX(Input_Details!$I$5:$I$24, MATCH($A11, Input_Details!$J$5:$J$24, 0), 0) -> 51.49617, -0.09302 | E11: =INDEX(Input_Details!$K$5:$K$24, MATCH($A11, Input_Details!$J$5:$J$24, 0), 0) -> Southbound | F11: Mon | G11: 01:45:00 | H11: 0 | I11: 9 | J11: 0 | K11: 0 | L11: 0 | M11: 0 | N11: 0 | O11: 0 | P11: 0 | Q11: 0 | R11: 0 | S11: 0 | T11: 0 | U11: 4 | V11: 3 | W11: 1 | X11: 0 | Y11: 0 | Z11: 0 | AA11: 1 | AB11: 0 | AC11: 0 | AD11: 0 | AE11: 0 | AF11: 0 | AG11: 0 | AH11: 0 | AI11: 0 | AJ11: 0 | AK11: 0 | AL11: 0 | AM11: 0 | AN11: 18.9 | AO11: - | AP11: 12.8 | AQ11: 41.1 | AR11: =INDEX(Input_Details!$L$5:$L$24, MATCH($A11, Input_Details!$J$5:$J$24, 0), 0) -> Northbound | AS11: Mon | AT11: 01:45:00 | AU11: 0 | AV11: 3 | AW11: 0 | AX11: 0 | AY11: 0 | AZ11: 0 | BA11: 0 | BB11: 0 | BC11: 0 | BD11: 0 | BE11: 0 | BF11: 0 | BG11: 0 | BH11: 0 | BI11: 0 | BJ11: 3 | BK11: 0 | BL11: 0 | BM11: 0 | BN11: 0 | BO11: 0 | BP11: 0 | BQ11: 0 | BR11: 0 | BS11: 0 | BT11: 0 | BU11: 0 | BV11: 0 | BW11: 0 | BX11: 0 | BY11: 0 | BZ11: 0 | CA11: 20.9 | CB11: - | CC11: 20.8 | CD11: 21 | CF11: Mon | CG11: 01:45:00 | CH11: 0 | CI11: 12 | CJ11: 0 | CK11: 0 | CL11: 0 | CM11: 0 | CN11: 0 | CO11: 0 | CP11: 0 | CQ11: 0 | CR11: 0 | CS11: 0 | CT11: 0 | CU11: 4 | CV11: 3 | CW11: 4 | CX11: 0 | CY11: 0 | CZ11: 0 | DA11: 1 | DB11: 0 | DC11: 0 | DD11: 0 | DE11: 0 | DF11: 0 | DG11: 0 | DH11: 0 | DI11: 0 | DJ11: 0 | DK11: 0 | DL11: 0 | DM11: 0 | DN11: 19.4 | DO11: - | DP11: 12.8 | DQ11: 41.1 | DR11: 0 | DS11: 9 | DT11: 0 | DU11: 0 | DV11: 0 | DW11: 9 | DX11: 0 | DY11: 3 | DZ11: 0 | EA11: 0 | EB11: 0 | EC11: 3 | ED11: 0 | EE11: 12 | EF11: 0 | EG11: 0 | EH11: 0 | EI11: 12 | EJ11: 9 | EK11: 11 | EL11: 10 | EM11: 11 | EN11: 15 | EO11: 18 | EP11: 25 | EQ11: 3 | ER11: 4 | ES11: 3 | ET11: 1 | EU11: 2 | EV11: 6 | EW11: 1 | EX11: 12 | EY11: 15 | EZ11: 13 | FA11: 12 | FB11: 17 | FC11: 24 | FD11: 26
A12: 1 | B12: =OFFSET(Input_Details!$Q$4,MATCH($A12, Input_Details!$J$5:$J$24, 0), 0) -> 2017-04-24 | C12: =INDEX(Input_Details!$H$5:$H$24, MATCH($A12, Input_Details!$J$5:$J$24, 0), 0) -> Harper Road (South of Falmouth Road) | D12: =INDEX(Input_Details!$I$5:$I$24, MATCH($A12, Input_Details!$J$5:$J$24, 0), 0) -> 51.49617, -0.09302 | E12: =INDEX(Input_Details!$K$5:$K$24, MATCH($A12, Input_Details!$J$5:$J$24, 0), 0) -> Southbound | F12: Mon | G12: 02:00:00 | H12: 0 | I12: 5 | J12: 0 | K12: 0 | L12: 1 | M12: 0 | N12: 0 | O12: 0 | P12: 0 | Q12: 0 | R12: 0 | S12: 0 | T12: 0 | U12: 1 | V12: 0 | W12: 4 | X12: 1 | Y12: 0 | Z12: 0 | AA12: 0 | AB12: 0 | AC12: 0 | AD12: 0 | AE12: 0 | AF12: 0 | AG12: 0 | AH12: 0 | AI12: 0 | AJ12: 0 | AK12: 0 | AL12: 0 | AM12: 0 | AN12: 21.1 | AO12: - | AP12: 14 | AQ12: 25.4 | AR12: =INDEX(Input_Details!$L$5:$L$24, MATCH($A12, Input_Details!$J$5:$J$24, 0), 0) -> Northbound | AS12: Mon | AT12: 02:00:00 | AU12: 1 | AV12: 0 | AW12: 0 | AX12: 0 | AY12: 0 | AZ12: 0 | BA12: 0 | BB12: 0 | BC12: 0 | BD12: 0 | BE12: 0 | BF12: 0 | BG12: 0 | BH12: 1 | BI12: 0 | BJ12: 0 | BK12: 0 | BL12: 0 | BM12: 0 | BN12: 0 | BO12: 0 | BP12: 0 | BQ12: 0 | BR12: 0 | BS12: 0 | BT12: 0 | BU12: 0 | BV12: 0 | BW12: 0 | BX12: 0 | BY12: 0 | BZ12: 0 | CA12: 12.7 | CB12: - | CC12: 12.7 | CD12: 12.7 | CF12: Mon | CG12: 02:00:00 | CH12: 1 | CI12: 5 | CJ12: 0 | CK12: 0 | CL12: 1 | CM12: 0 | CN12: 0 | CO12: 0 | CP12: 0 | CQ12: 0 | CR12: 0 | CS12: 0 | CT12: 0 | CU12: 2 | CV12: 0 | CW12: 4 | CX12: 1 | CY12: 0 | CZ12: 0 | DA12: 0 | DB12: 0 | DC12: 0 | DD12: 0 | DE12: 0 | DF12: 0 | DG12: 0 | DH12: 0 | DI12: 0 | DJ12: 0 | DK12: 0 | DL12: 0 | DM12: 0 | DN12: 19.9 | DO12: - | DP12: 12.7 | DQ12: 25.4 | DR12: 0 | DS12: 5 | DT12: 0 | DU12: 1 | DV12: 0 | DW12: 6 | DX12: 1 | DY12: 0 | DZ12: 0 | EA12: 0 | EB12: 0 | EC12: 1 | ED12: 1 | EE12: 5 | EF12: 0 | EG12: 1 | EH12: 0 | EI12: 7 | EJ12: 6 | EK12: 6 | EL12: 9 | EM12: 12 | EN12: 13 | EO12: 20 | EP12: 30 | EQ12: 1 | ER12: 1 | ES12: 5 | ET12: 2 | EU12: 1 | EV12: 5 | EW12: 8 | EX12: 7 | EY12: 7 | EZ12: 14 | FA12: 14 | FB12: 14 | FC12: 25 | FD12: 38
A13: 1 | B13: =OFFSET(Input_Details!$Q$4,MATCH($A13, Input_Details!$J$5:$J$24, 0), 0) -> 2017-04-24 | C13: =INDEX(Input_Details!$H$5:$H$24, MATCH($A13, Input_Details!$J$5:$J$24, 0), 0) -> Harper Road (South of Falmouth Road) | D13: =INDEX(Input_Details!$I$5:$I$24, MATCH($A13, Input_Details!$J$5:$J$24, 0), 0) -> 51.49617, -0.09302 | E13: =INDEX(Input_Details!$K$5:$K$24, MATCH($A13, Input_Details!$J$5:$J$24, 0), 0) -> Southbound | F13: Mon | G13: 02:15:00 | H13: 1 | I13: 7 | J13: 0 | K13: 0 | L13: 0 | M13: 0 | N13: 0 | O13: 0 | P13: 0 | Q13: 0 | R13: 0 | S13: 0 | T13: 0 | U13: 1 | V13: 3 | W13: 4 | X13: 0 | Y13: 0 | Z13: 0 | AA13: 0 | AB13: 0 | AC13: 0 | AD13: 0 | AE13: 0 | AF13: 0 | AG13: 0 | AH13: 0 | AI13: 0 | AJ13: 0 | AK13: 0 | AL13: 0 | AM13: 0 | AN13: 18.7 | AO13: - | AP13: 13.8 | AQ13: 21.9 | AR13: =INDEX(Input_Details!$L$5:$L$24, MATCH($A13, Input_Details!$J$5:$J$24, 0), 0) -> Northbound | AS13: Mon | AT13: 02:15:00 | AU13: 0 | AV13: 3 | AW13: 0 | AX13: 0 | AY13: 0 | AZ13: 0 | BA13: 0 | BB13: 0 | BC13: 0 | BD13: 0 | BE13: 0 | BF13: 0 | BG13: 0 | BH13: 1 | BI13: 2 | BJ13: 0 | BK13: 0 | BL13: 0 | BM13: 0 | BN13: 0 | BO13: 0 | BP13: 0 | BQ13: 0 | BR13: 0 | BS13: 0 | BT13: 0 | BU13: 0 | BV13: 0 | BW13: 0 | BX13: 0 | BY13: 0 | BZ13: 0 | CA13: 16 | CB13: - | CC13: 14.4 | CD13: 16.8 | CF13: Mon | CG13: 02:15:00 | CH13: 1 | CI13: 10 | CJ13: 0 | CK13: 0 | CL13: 0 | CM13: 0 | CN13: 0 | CO13: 0 | CP13: 0 | CQ13: 0 | CR13: 0 | CS13: 0 | CT13: 0 | CU13: 2 | CV13: 5 | CW13: 4 | CX13: 0 | CY13: 0 | CZ13: 0 | DA13: 0 | DB13: 0 | DC13: 0 | DD13: 0 | DE13: 0 | DF13: 0 | DG13: 0 | DH13: 0 | DI13: 0 | DJ13: 0 | DK13: 0 | DL13: 0 | DM13: 0 | DN13: 17.96363636 | DO13: - | DP13: 13.8 | DQ13: 21.9 | DR13: 1 | DS13: 7 | DT13: 0 | DU13: 0 | DV13: 0 | DW13: 8 | DX13: 0 | DY13: 3 | DZ13: 0 | EA13: 0 | EB13: 0 | EC13: 3 | ED13: 1 | EE13: 10 | EF13: 0 | EG13: 0 | EH13: 0 | EI13: 11 | EJ13: 8 | EK13: 6 | EL13: 9 | EM13: 16 | EN13: 10 | EO13: 23 | EP13: 27 | EQ13: 3 | ER13: 3 | ES13: 3 | ET13: 0 | EU13: 2 | EV13: 3 | EW13: 7 | EX13: 11 | EY13: 9 | EZ13: 12 | FA13: 16 | FB13: 12 | FC13: 26 | FD13: 34
A14: 1 | B14: =OFFSET(Input_Details!$Q$4,MATCH($A14, Input_Details!$J$5:$J$24, 0), 0) -> 2017-04-24 | C14: =INDEX(Input_Details!$H$5:$H$24, MATCH($A14, Input_Details!$J$5:$J$24, 0), 0) -> Harper Road (South of Falmouth Road) | D14: =INDEX(Input_Details!$I$5:$I$24, MATCH($A14, Input_Details!$J$5:$J$24, 0), 0) -> 51.49617, -0.09302 | E14: =INDEX(Input_Details!$K$5:$K$24, MATCH($A14, Input_Details!$J$5:$J$24, 0), 0) -> Southbound | F14: Mon | G14: 02:30:00 | H14: 0 | I14: 1 | J14: 0 | K14: 0 | L14: 1 | M14: 0 | N14: 0 | O14: 0 | P14: 0 | Q14: 0 | R14: 0 | S14: 0 | T14: 0 | U14: 0 | V14: 2 | W14: 0 | X14: 0 | Y14: 0 | Z14: 0 | AA14: 0 | AB14: 0 | AC14: 0 | AD14: 0 | AE14: 0 | AF14: 0 | AG14: 0 | AH14: 0 | AI14: 0 | AJ14: 0 | AK14: 0 | AL14: 0 | AM14: 0 | AN14: 19 | AO14: - | AP14: 19 | AQ14: 19 | AR14: =INDEX(Input_Details!$L$5:$L$24, MATCH($A14, Input_Details!$J$5:$J$24, 0), 0) -> Northbound | AS14: Mon | AT14: 02:30:00 | AU14: 0 | AV14: 2 | AW14: 0 | AX14: 0 | AY14: 0 | AZ14: 0 | BA14: 0 | BB14: 0 | BC14: 0 | BD14: 0 | BE14: 0 | BF14: 0 | BG14: 0 | BH14: 1 | BI14: 0 | BJ14: 1 | BK14: 0 | BL14: 0 | BM14: 0 | BN14: 0 | BO14: 0 | BP14: 0 | BQ14: 0 | BR14: 0 | BS14: 0 | BT14: 0 | BU14: 0 | BV14: 0 | BW14: 0 | BX14: 0 | BY14: 0 | BZ14: 0 | CA14: 15.5 | CB14: - | CC14: 10.6 | CD14: 20.5 | CF14: Mon | CG14: 02:30:00 | CH14: 0 | CI14: 3 | CJ14: 0 | CK14: 0 | CL14: 1 | CM14: 0 | CN14: 0 | CO14: 0 | CP14: 0 | CQ14: 0 | CR14: 0 | CS14: 0 | CT14: 0 | CU14: 1 | CV14: 2 | CW14: 1 | CX14: 0 | CY14: 0 | CZ14: 0 | DA14: 0 | DB14: 0 | DC14: 0 | DD14: 0 | DE14: 0 | DF14: 0 | DG14: 0 | DH14: 0 | DI14: 0 | DJ14: 0 | DK14: 0 | DL14: 0 | DM14: 0 | DN14: 17.25 | DO14: - | DP14: 10.6 | DQ14: 20.5 | DR14: 0 | DS14: 1 | DT14: 0 | DU14: 1 | DV14: 0 | DW14: 2 | DX14: 0 | DY14: 2 | DZ14: 0 | EA14: 0 | EB14: 0 | EC14: 2 | ED14: 0 | EE14: 3 | EF14: 0 | EG14: 1 | EH14: 0 | EI14: 4 | EJ14: 2 | EK14: 4 | EL14: 8 | EM14: 7 | EN14: 14 | EO14: 22 | EP14: 25 | EQ14: 2 | ER14: 1 | ES14: 1 | ET14: 4 | EU14: 0 | EV14: 1 | EW14: 7 | EX14: 4 | EY14: 5 | EZ14: 9 | FA14: 11 | FB14: 14 | FC14: 23 | FD14: 32
A15: 1 | B15: =OFFSET(Input_Details!$Q$4,MATCH($A15, Input_Details!$J$5:$J$24, 0), 0) -> 2017-04-24 | C15: =INDEX(Input_Details!$H$5:$H$24, MATCH($A15, Input_Details!$J$5:$J$24, 0), 0) -> Harper Road (South of Falmouth Road) | D15: =INDEX(Input_Details!$I$5:$I$24, MATCH($A15, Input_Details!$J$5:$J$24, 0), 0) -> 51.49617, -0.09302 | E15: =INDEX(Input_Details!$K$5:$K$24, MATCH($A15, Input_Details!$J$5:$J$24, 0), 0) -> Southbound | F15: Mon | G15: 02:45:00 | H15: 0 | I15: 3 | J15: 0 | K15: 0 | L15: 0 | M15: 0 | N15: 0 | O15: 0 | P15: 0 | Q15: 0 | R15: 0 | S15: 0 | T15: 0 | U15: 2 | V15: 1 | W15: 0 | X15: 0 | Y15: 0 | Z15: 0 | AA15: 0 | AB15: 0 | AC15: 0 | AD15: 0 | AE15: 0 | AF15: 0 | AG15: 0 | AH15: 0 | AI15: 0 | AJ15: 0 | AK15: 0 | AL15: 0 | AM15: 0 | AN15: 13.9 | AO15: - | AP15: 12.8 | AQ15: 15.2 | AR15: =INDEX(Input_Details!$L$5:$L$24, MATCH($A15, Input_Details!$J$5:$J$24, 0), 0) -> Northbound | AS15: Mon | AT15: 02:45:00 | AU15: 0 | AV15: 0 | AW15: 0 | AX15: 0 | AY15: 1 | AZ15: 0 | BA15: 0 | BB15: 0 | BC15: 0 | BD15: 0 | BE15: 0 | BF15: 0 | BG15: 0 | BH15: 0 | BI15: 1 | BJ15: 0 | BK15: 0 | BL15: 0 | BM15: 0 | BN15: 0 | BO15: 0 | BP15: 0 | BQ15: 0 | BR15: 0 | BS15: 0 | BT15: 0 | BU15: 0 | BV15: 0 | BW15: 0 | BX15: 0 | BY15: 0 | BZ15: 0 | CA15: 17.6 | CB15: - | CC15: 17.6 | CD15: 17.6 | CF15: Mon | CG15: 02:45:00 | CH15: 0 | CI15: 3 | CJ15: 0 | CK15: 0 | CL15: 1 | CM15: 0 | CN15: 0 | CO15: 0 | CP15: 0 | CQ15: 0 | CR15: 0 | CS15: 0 | CT15: 0 | CU15: 2 | CV15: 2 | CW15: 0 | CX15: 0 | CY15: 0 | CZ15: 0 | DA15: 0 | DB15: 0 | DC15: 0 | DD15: 0 | DE15: 0 | DF15: 0 | DG15: 0 | DH15: 0 | DI15: 0 | DJ15: 0 | DK15: 0 | DL15: 0 | DM15: 0 | DN15: 14.825 | DO15: - | DP15: 12.8 | DQ15: 17.6 | DR15: 0 | DS15: 3 | DT15: 0 | DU15: 0 | DV15: 0 | DW15: 3 | DX15: 0 | DY15: 0 | DZ15: 0 | EA15: 1 | EB15: 0 | EC15: 1 | ED15: 0 | EE15: 3 | EF15: 0 | EG15: 1 | EH15: 0 | EI15: 4 | EJ15: 3 | EK15: 4 | EL15: 8 | EM15: 5 | EN15: 12 | EO15: 11 | EP15: 24 | EQ15: 1 | ER15: 1 | ES15: 2 | ET15: 1 | EU15: 1 | EV15: 2 | EW15: 2 | EX15: 4 | EY15: 5 | EZ15: 10 | FA15: 6 | FB15: 13 | FC15: 13 | FD15: 26
A16: 1 | B16: =OFFSET(Input_Details!$Q$4,MATCH($A16, Input_Details!$J$5:$J$24, 0), 0) -> 2017-04-24 | C16: =INDEX(Input_Details!$H$5:$H$24, MATCH($A16, Input_Details!$J$5:$J$24, 0), 0) -> Harper Road (South of Falmouth Road) | D16: =INDEX(Input_Details!$I$5:$I$24, MATCH($A16, Input_Details!$J$5:$J$24, 0), 0) -> 51.49617, -0.09302 | E16: =INDEX(Input_Details!$K$5:$K$24, MATCH($A16, Input_Details!$J$5:$J$24, 0), 0) -> Southbound | F16: Mon | G16: 03:00:00 | H16: 0 | I16: 7 | J16: 0 | K16: 1 | L16: 1 | M16: 0 | N16: 0 | O16: 0 | P16: 0 | Q16: 0 | R16: 0 | S16: 0 | T16: 0 | U16: 1 | V16: 5 | W16: 2 | X16: 1 | Y16: 0 | Z16: 0 | AA16: 0 | AB16: 0 | AC16: 0 | AD16: 0 | AE16: 0 | AF16: 0 | AG16: 0 | AH16: 0 | AI16: 0 | AJ16: 0 | AK16: 0 | AL16: 0 | AM16: 0 | AN16: 19.5 | AO16: - | AP16: 12.3 | AQ16: 29.3 | AR16: =INDEX(Input_Details!$L$5:$L$24, MATCH($A16, Input_Details!$J$5:$J$24, 0), 0) -> Northbound | AS16: Mon | AT16: 03:00:00 | AU16: 0 | AV16: 1 | AW16: 0 | AX16: 0 | AY16: 0 | AZ16: 0 | BA16: 0 | BB16: 0 | BC16: 0 | BD16: 0 | BE16: 0 | BF16: 0 | BG16: 0 | BH16: 0 | BI16: 1 | BJ16: 0 | BK16: 0 | BL16: 0 | BM16: 0 | BN16: 0 | BO16: 0 | BP16: 0 | BQ16: 0 | BR16: 0 | BS16: 0 | BT16: 0 | BU16: 0 | BV16: 0 | BW16: 0 | BX16: 0 | BY16: 0 | BZ16: 0 | CA16: 17.2 | CB16: - | CC16: 17.2 | CD16: 17.2 | CF16: Mon | CG16: 03:00:00 | CH16: 0 | CI16: 8 | CJ16: 0 | CK16: 1 | CL16: 1 | CM16: 0 | CN16: 0 | CO16: 0 | CP16: 0 | CQ16: 0 | CR16: 0 | CS16: 0 | CT16: 0 | CU16: 1 | CV16: 6 | CW16: 2 | CX16: 1 | CY16: 0 | CZ16: 0 | DA16: 0 | DB16: 0 | DC16: 0 | DD16: 0 | DE16: 0 | DF16: 0 | DG16: 0 | DH16: 0 | DI16: 0 | DJ16: 0 | DK16: 0 | DL16: 0 | DM16: 0 | DN16: 19.27 | DO16: - | DP16: 12.3 | DQ16: 29.3 | DR16: 0 | DS16: 7 | DT16: 1 | DU16: 1 | DV16: 0 | DW16: 9 | DX16: 0 | DY16: 1 | DZ16: 0 | EA16: 0 | EB16: 0 | EC16: 1 | ED16: 0 | EE16: 8 | EF16: 1 | EG16: 1 | EH16: 0 | EI16: 10 | EJ16: 9 | EK16: 3 | EL16: 10 | EM16: 8 | EN16: 6 | EO16: 18 | EP16: 20 | EQ16: 1 | ER16: 2 | ES16: 6 | ET16: 0 | EU16: 0 | EV16: 1 | EW16: 5 | EX16: 10 | EY16: 5 | EZ16: 16 | FA16: 8 | FB16: 6 | FC16: 19 | FD16: 25
A17: 1 | B17: =OFFSET(Input_Details!$Q$4,MATCH($A17, Input_Details!$J$5:$J$24, 0), 0) -> 2017-04-24 | C17: =INDEX(Input_Details!$H$5:$H$24, MATCH($A17, Input_Details!$J$5:$J$24, 0), 0) -> Harper Road (South of Falmouth Road) | D17: =INDEX(Input_Details!$I$5:$I$24, MATCH($A17, Input_Details!$J$5:$J$24, 0), 0) -> 51.49617, -0.09302 | E17: =INDEX(Input_Details!$K$5:$K$24, MATCH($A17, Input_Details!$J$5:$J$24, 0), 0) -> Southbound | F17: Mon | G17: 03:15:00 | H17: 0 | I17: 6 | J17: 0 | K17: 1 | L17: 0 | M17: 0 | N17: 0 | O17: 0 | P17: 0 | Q17: 0 | R17: 0 | S17: 0 | T17: 0 | U17: 0 | V17: 0 | W17: 6 | X17: 1 | Y17: 0 | Z17: 0 | AA17: 0 | AB17: 0 | AC17: 0 | AD17: 0 | AE17: 0 | AF17: 0 | AG17: 0 | AH17: 0 | AI17: 0 | AJ17: 0 | AK17: 0 | AL17: 0 | AM17: 0 | AN17: 23.1 | AO17: - | AP17: 20.2 | AQ17: 25.9 | AR17: =INDEX(Input_Details!$L$5:$L$24, MATCH($A17, Input_Details!$J$5:$J$24, 0), 0) -> Northbound | AS17: Mon | AT17: 03:15:00 | AU17: 0 | AV17: 2 | AW17: 0 | AX17: 0 | AY17: 0 | AZ17: 0 | BA17: 0 | BB17: 0 | BC17: 0 | BD17: 0 | BE17: 0 | BF17: 0 | BG17: 0 | BH17: 0 | BI17: 1 | BJ17: 1 | BK17: 0 | BL17: 0 | BM17: 0 | BN17: 0 | BO17: 0 | BP17: 0 | BQ17: 0 | BR17: 0 | BS17: 0 | BT17: 0 | BU17: 0 | BV17: 0 | BW17: 0 | BX17: 0 | BY17: 0 | BZ17: 0 | CA17: 20.4 | CB17: - | CC17: 17.2 | CD17: 23.6 | CF17: Mon | CG17: 03:15:00 | CH17: 0 | CI17: 8 | CJ17: 0 | CK17: 1 | CL17: 0 | CM17: 0 | CN17: 0 | CO17: 0 | CP17: 0 | CQ17: 0 | CR17: 0 | CS17: 0 | CT17: 0 | CU17: 0 | CV17: 1 | CW17: 7 | CX17: 1 | CY17: 0 | CZ17: 0 | DA17: 0 | DB17: 0 | DC17: 0 | DD17: 0 | DE17: 0 | DF17: 0 | DG17: 0 | DH17: 0 | DI17: 0 | DJ17: 0 | DK17: 0 | DL17: 0 | DM17: 0 | DN17: 22.5 | DO17: - | DP17: 17.2 | DQ17: 25.9 | DR17: 0 | DS17: 6 | DT17: 1 | DU17: 0 | DV17: 0 | DW17: 7 | DX17: 0 | DY17: 2 | DZ17: 0 | EA17: 0 | EB17: 0 | EC17: 2 | ED17: 0 | EE17: 8 | EF17: 1 | EG17: 0 | EH17: 0 | EI17: 9 | EJ17: 7 | EK17: 11 | EL17: 9 | EM17: 4 | EN17: 15 | EO17: 14 | EP17: 17 | EQ17: 2 | ER17: 1 | ES17: 3 | ET17: 2 | EU17: 0 | EV17: 0 | EW17: 4 | EX17: 9 | EY17: 12 | EZ17: 12 | FA17: 6 | FB17: 15 | FC17: 14 | FD17: 21
A18: 1 | B18: =OFFSET(Input_Details!$Q$4,MATCH($A18, Input_Details!$J$5:$J$24, 0), 0) -> 2017-04-24 | C18: =INDEX(Input_Details!$H$5:$H$24, MATCH($A18, Input_Details!$J$5:$J$24, 0), 0) -> Harper Road (South of Falmouth Road) | D18: =INDEX(Input_Details!$I$5:$I$24, MATCH($A18, Input_Details!$J$5:$J$24, 0), 0) -> 51.49617, -0.09302 | E18: =INDEX(Input_Details!$K$5:$K$24, MATCH($A18, Input_Details!$J$5:$J$24, 0), 0) -> Southbound | F18: Mon | G18: 03:30:00 | H18: 0 | I18: 6 | J18: 0 | K18: 0 | L18: 0 | M18: 0 | N18: 0 | O18: 0 | P18: 0 | Q18: 0 | R18: 0 | S18: 0 | T18: 0 | U18: 0 | V18: 1 | W18: 3 | X18: 0 | Y18: 1 | Z18: 0 | AA18: 1 | AB18: 0 | AC18: 0 | AD18: 0 | AE18: 0 | AF18: 0 | AG18: 0 | AH18: 0 | AI18: 0 | AJ18: 0 | AK18: 0 | AL18: 0 | AM18: 0 | AN18: 26.3 | AO18: - | AP18: 19.9 | AQ18: 42.2 | AR18: =INDEX(Input_Details!$L$5:$L$24, MATCH($A18, Input_Details!$J$5:$J$24, 0), 0) -> Northbound | AS18: Mon | AT18: 03:30:00 | AU18: 1 | AV18: 0 | AW18: 0 | AX18: 0 | AY18: 0 | AZ18: 0 | BA18: 0 | BB18: 0 | BC18: 0 | BD18: 0 | BE18: 0 | BF18: 0 | BG18: 0 | BH18: 1 | BI18: 0 | BJ18: 0 | BK18: 0 | BL18: 0 | BM18: 0 | BN18: 0 | BO18: 0 | BP18: 0 | BQ18: 0 | BR18: 0 | BS18: 0 | BT18: 0 | BU18: 0 | BV18: 0 | BW18: 0 | BX18: 0 | BY18: 0 | BZ18: 0 | CA18: 11.6 | CB18: - | CC18: 11.6 | CD18: 11.6 | CF18: Mon | CG18: 03:30:00 | CH18: 1 | CI18: 6 | CJ18: 0 | CK18: 0 | CL18: 0 | CM18: 0 | CN18: 0 | CO18: 0 | CP18: 0 | CQ18: 0 | CR18: 0 | CS18: 0 | CT18: 0 | CU18: 1 | CV18: 1 | CW18: 3 | CX18: 0 | CY18: 1 | CZ18: 0 | DA18: 1 | DB18: 0 | DC18: 0 | DD18: 0 | DE18: 0 | DF18: 0 | DG18: 0 | DH18: 0 | DI18: 0 | DJ18: 0 | DK18: 0 | DL18: 0 | DM18: 0 | DN18: 24.2 | DO18: - | DP18: 11.6 | DQ18: 42.2 | DR18: 0 | DS18: 6 | DT18: 0 | DU18: 0 | DV18: 0 | DW18: 6 | DX18: 1 | DY18: 0 | DZ18: 0 | EA18: 0 | EB18: 0 | EC18: 1 | ED18: 1 | EE18: 6 | EF18: 0 | EG18: 0 | EH18: 0 | EI18: 7 | EJ18: 6 | EK18: 5 | EL18: 3 | EM18: 8 | EN18: 17 | EO18: 20 | EP18: 16 | EQ18: 1 | ER18: 0 | ES18: 3 | ET18: 1 | EU18: 1 | EV18: 1 | EW18: 4 | EX18: 7 | EY18: 5 | EZ18: 6 | FA18: 9 | FB18: 18 | FC18: 21 | FD18: 20
A19: 1 | B19: =OFFSET(Input_Details!$Q$4,MATCH($A19, Input_Details!$J$5:$J$24, 0), 0) -> 2017-04-24 | C19: =INDEX(Input_Details!$H$5:$H$24, MATCH($A19, Input_Details!$J$5:$J$24, 0), 0) -> Harper Road (South of Falmouth Road) | D19: =INDEX(Input_Details!$I$5:$I$24, MATCH($A19, Input_Details!$J$5:$J$24, 0), 0) -> 51.49617, -0.09302 | E19: =INDEX(Input_Details!$K$5:$K$24, MATCH($A19, Input_Details!$J$5:$J$24, 0), 0) -> Southbound | F19: Mon | G19: 03:45:00 | H19: 0 | I19: 5 | J19: 0 | K19: 0 | L19: 1 | M19: 0 | N19: 0 | O19: 0 | P19: 0 | Q19: 0 | R19: 0 | S19: 0 | T19: 0 | U19: 1 | V19: 2 | W19: 2 | X19: 0 | Y19: 1 | Z19: 0 | AA19: 0 | AB19: 0 | AC19: 0 | AD19: 0 | AE19: 0 | AF19: 0 | AG19: 0 | AH19: 0 | AI19: 0 | AJ19: 0 | AK19: 0 | AL19: 0 | AM19: 0 | AN19: 20.8 | AO19: - | AP19: 13.7 | AQ19: 31.7 | AR19: =INDEX(Input_Details!$L$5:$L$24, MATCH($A19, Input_Details!$J$5:$J$24, 0), 0) -> Northbound | AS19: Mon | AT19: 03:45:00 | AU19: 0 | AV19: 0 | AW19: 0 | AX19: 0 | AY19: 0 | AZ19: 0 | BA19: 0 | BB19: 0 | BC19: 0 | BD19: 0 | BE19: 0 | BF19: 0 | BG19: 0 | BH19: 0 | BI19: 0 | BJ19: 0 | BK19: 0 | BL19: 0 | BM19: 0 | BN19: 0 | BO19: 0 | BP19: 0 | BQ19: 0 | BR19: 0 | BS19: 0 | BT19: 0 | BU19: 0 | BV19: 0 | BW19: 0 | BX19: 0 | BY19: 0 | BZ19: 0 | CA19: - | CB19: - | CC19: - | CD19: - | CF19: Mon | CG19: 03:45:00 | CH19: 0 | CI19: 5 | CJ19: 0 | CK19: 0 | CL19: 1 | CM19: 0 | CN19: 0 | CO19: 0 | CP19: 0 | CQ19: 0 | CR19: 0 | CS19: 0 | CT19: 0 | CU19: 1 | CV19: 2 | CW19: 2 | CX19: 0 | CY19: 1 | CZ19: 0 | DA19: 0 | DB19: 0 | DC19: 0 | DD19: 0 | DE19: 0 | DF19: 0 | DG19: 0 | DH19: 0 | DI19: 0 | DJ19: 0 | DK19: 0 | DL19: 0 | DM19: 0 | DN19: 20.8 | DO19: - | DP19: 13.7 | DQ19: 31.7 | DR19: 0 | DS19: 5 | DT19: 0 | DU19: 1 | DV19: 0 | DW19: 6 | DX19: 0 | DY19: 0 | DZ19: 0 | EA19: 0 | EB19: 0 | EC19: 0 | ED19: 0 | EE19: 5 | EF19: 0 | EG19: 1 | EH19: 0 | EI19: 6 | EJ19: 6 | EK19: 8 | EL19: 9 | EM19: 8 | EN19: 11 | EO19: 10 | EP19: 19 | EQ19: 0 | ER19: 3 | ES19: 3 | ET19: 0 | EU19: 0 | EV19: 2 | EW19: 2 | EX19: 6 | EY19: 11 | EZ19: 12 | FA19: 8 | FB19: 11 | FC19: 12 | FD19: 21
A20: 1 | B20: =OFFSET(Input_Details!$Q$4,MATCH($A20, Input_Details!$J$5:$J$24, 0), 0) -> 2017-04-24 | C20: =INDEX(Input_Details!$H$5:$H$24, MATCH($A20, Input_Details!$J$5:$J$24, 0), 0) -> Harper Road (South of Falmouth Road) | D20: =INDEX(Input_Details!$I$5:$I$24, MATCH($A20, Input_Details!$J$5:$J$24, 0), 0) -> 51.49617, -0.09302 | E20: =INDEX(Input_Details!$K$5:$K$24, MATCH($A20, Input_Details!$J$5:$J$24, 0), 0) -> Southbound | F20: Mon | G20: 04:00:00 | H20: 0 | I20: 5 | J20: 0 | K20: 0 | L20: 1 | M20: 0 | N20: 0 | O20: 0 | P20: 0 | Q20: 0 | R20: 0 | S20: 0 | T20: 0 | U20: 1 | V20: 2 | W20: 2 | X20: 1 | Y20: 0 | Z20: 0 | AA20: 0 | AB20: 0 | AC20: 0 | AD20: 0 | AE20: 0 | AF20: 0 | AG20: 0 | AH20: 0 | AI20: 0 | AJ20: 0 | AK20: 0 | AL20: 0 | AM20: 0 | AN20: 19.7 | AO20: - | AP20: 14.6 | AQ20: 25.2 | AR20: =INDEX(Input_Details!$L$5:$L$24, MATCH($A20, Input_Details!$J$5:$J$24, 0), 0) -> Northbound | AS20: Mon | AT20: 04:00:00 | AU20: 0 | AV20: 1 | AW20: 0 | AX20: 0 | AY20: 0 | AZ20: 0 | BA20: 0 | BB20: 0 | BC20: 0 | BD20: 0 | BE20: 0 | BF20: 0 | BG20: 0 | BH20: 1 | BI20: 0 | BJ20: 0 | BK20: 0 | BL20: 0 | BM20: 0 | BN20: 0 | BO20: 0 | BP20: 0 | BQ20: 0 | BR20: 0 | BS20: 0 | BT20: 0 | BU20: 0 | BV20: 0 | BW20: 0 | BX20: 0 | BY20: 0 | BZ20: 0 | CA20: 14.4 | CB20: - | CC20: 14.4 | CD20: 14.4 | CF20: Mon | CG20: 04:00:00 | CH20: 0 | CI20: 6 | CJ20: 0 | CK20: 0 | CL20: 1 | CM20: 0 | CN20: 0 | CO20: 0 | CP20: 0 | CQ20: 0 | CR20: 0 | CS20: 0 | CT20: 0 | CU20: 2 | CV20: 2 | CW20: 2 | CX20: 1 | CY20: 0 | CZ20: 0 | DA20: 0 | DB20: 0 | DC20: 0 | DD20: 0 | DE20: 0 | DF20: 0 | DG20: 0 | DH20: 0 | DI20: 0 | DJ20: 0 | DK20: 0 | DL20: 0 | DM20: 0 | DN20: 18.94285714 | DO20: - | DP20: 14.4 | DQ20: 25.2 | DR20: 0 | DS20: 5 | DT20: 0 | DU20: 1 | DV20: 0 | DW20: 6 | DX20: 0 | DY20: 1 | DZ20: 0 | EA20: 0 | EB20: 0 | EC20: 1 | ED20: 0 | EE20: 6 | EF20: 0 | EG20: 1 | EH20: 0 | EI20: 7 | EJ20: 6 | EK20: 4 | EL20: 7 | EM20: 12 | EN20: 11 | EO20: 11 | EP20: 8 | EQ20: 1 | ER20: 2 | ES20: 0 | ET20: 0 | EU20: 0 | EV20: 2 | EW20: 2 | EX20: 7 | EY20: 6 | EZ20: 7 | FA20: 12 | FB20: 11 | FC20: 13 | FD20: 10
A21: 1 | B21: =OFFSET(Input_Details!$Q$4,MATCH($A21, Input_Details!$J$5:$J$24, 0), 0) -> 2017-04-24 | C21: =INDEX(Input_Details!$H$5:$H$24, MATCH($A21, Input_Details!$J$5:$J$24, 0), 0) -> Harper Road (South of Falmouth Road) | D21: =INDEX(Input_Details!$I$5:$I$24, MATCH($A21, Input_Details!$J$5:$J$24, 0), 0) -> 51.49617, -0.09302 | E21: =INDEX(Input_Details!$K$5:$K$24, MATCH($A21, Input_Details!$J$5:$J$24, 0), 0) -> Southbound | F21: Mon | G21: 04:15:00 | H21: 0 | I21: 5 | J21: 0 | K21: 0 | L21: 0 | M21: 0 | N21: 0 | O21: 0 | P21: 0 | Q21: 0 | R21: 0 | S21: 0 | T21: 1 | U21: 1 | V21: 2 | W21: 1 | X21: 0 | Y21: 0 | Z21: 0 | AA21: 0 | AB21: 0 | AC21: 0 | AD21: 0 | AE21: 0 | AF21: 0 | AG21: 0 | AH21: 0 | AI21: 0 | AJ21: 0 | AK21: 0 | AL21: 0 | AM21: 0 | AN21: 15.5 | AO21: - | AP21: 7.8 | AQ21: 21.1 | AR21: =INDEX(Input_Details!$L$5:$L$24, MATCH($A21, Input_Details!$J$5:$J$24, 0), 0) -> Northbound | AS21: Mon | AT21: 04:15:00 | AU21: 0 | AV21: 1 | AW21: 0 | AX21: 0 | AY21: 0 | AZ21: 0 | BA21: 0 | BB21: 0 | BC21: 0 | BD21: 0 | BE21: 0 | BF21: 0 | BG21: 0 | BH21: 1 | BI21: 0 | BJ21: 0 | BK21: 0 | BL21: 0 | BM21: 0 | BN21: 0 | BO21: 0 | BP21: 0 | BQ21: 0 | BR21: 0 | BS21: 0 | BT21: 0 | BU21: 0 | BV21: 0 | BW21: 0 | BX21: 0 | BY21: 0 | BZ21: 0 | CA21: 14.4 | CB21: - | CC21: 14.4 | CD21: 14.4 | CF21: Mon | CG21: 04:15:00 | CH21: 0 | CI21: 6 | CJ21: 0 | CK21: 0 | CL21: 0 | CM21: 0 | CN21: 0 | CO21: 0 | CP21: 0 | CQ21: 0 | CR21: 0 | CS21: 0 | CT21: 1 | CU21: 2 | CV21: 2 | CW21: 1 | CX21: 0 | CY21: 0 | CZ21: 0 | DA21: 0 | DB21: 0 | DC21: 0 | DD21: 0 | DE21: 0 | DF21: 0 | DG21: 0 | DH21: 0 | DI21: 0 | DJ21: 0 | DK21: 0 | DL21: 0 | DM21: 0 | DN21: 15.31666667 | DO21: - | DP21: 7.8 | DQ21: 21.1 | DR21: 0 | DS21: 5 | DT21: 0 | DU21: 0 | DV21: 0 | DW21: 5 | DX21: 0 | DY21: 1 | DZ21: 0 | EA21: 0 | EB21: 0 | EC21: 1 | ED21: 0 | EE21: 6 | EF21: 0 | EG21: 0 | EH21: 0 | EI21: 6 | EJ21: 5 | EK21: 9 | EL21: 7 | EM21: 8 | EN21: 7 | EO21: 9 | EP21: 17 | EQ21: 1 | ER21: 1 | ES21: 6 | ET21: 0 | EU21: 1 | EV21: 0 | EW21: 1 | EX21: 6 | EY21: 10 | EZ21: 13 | FA21: 8 | FB21: 8 | FC21: 9 | FD21: 18
A22: 1 | B22: =OFFSET(Input_Details!$Q$4,MATCH($A22, Input_Details!$J$5:$J$24, 0), 0) -> 2017-04-24 | C22: =INDEX(Input_Details!$H$5:$H$24, MATCH($A22, Input_Details!$J$5:$J$24, 0), 0) -> Harper Road (South of Falmouth Road) | D22: =INDEX(Input_Details!$I$5:$I$24, MATCH($A22, Input_Details!$J$5:$J$24, 0), 0) -> 51.49617, -0.09302 | E22: =INDEX(Input_Details!$K$5:$K$24, MATCH($A22, Input_Details!$J$5:$J$24, 0), 0) -> Southbound | F22: Mon | G22: 04:30:00 | H22: 0 | I22: 3 | J22: 0 | K22: 0 | L22: 1 | M22: 0 | N22: 0 | O22: 0 | P22: 0 | Q22: 0 | R22: 0 | S22: 0 | T22: 0 | U22: 1 | V22: 1 | W22: 2 | X22: 0 | Y22: 0 | Z22: 0 | AA22: 0 | AB22: 0 | AC22: 0 | AD22: 0 | AE22: 0 | AF22: 0 | AG22: 0 | AH22: 0 | AI22: 0 | AJ22: 0 | AK22: 0 | AL22: 0 | AM22: 0 | AN22: 18.7 | AO22: - | AP22: 14.1 | AQ22: 21 | AR22: =INDEX(Input_Details!$L$5:$L$24, MATCH($A22, Input_Details!$J$5:$J$24, 0), 0) -> Northbound | AS22: Mon | AT22: 04:30:00 | AU22: 0 | AV22: 1 | AW22: 0 | AX22: 0 | AY22: 0 | AZ22: 0 | BA22: 0 | BB22: 0 | BC22: 0 | BD22: 0 | BE22: 0 | BF22: 0 | BG22: 0 | BH22: 0 | BI22: 0 | BJ22: 1 | BK22: 0 | BL22: 0 | BM22: 0 | BN22: 0 | BO22: 0 | BP22: 0 | BQ22: 0 | BR22: 0 | BS22: 0 | BT22: 0 | BU22: 0 | BV22: 0 | BW22: 0 | BX22: 0 | BY22: 0 | BZ22: 0 | CA22: 24.1 | CB22: - | CC22: 24.1 | CD22: 24.1 | CF22: Mon | CG22: 04:30:00 | CH22: 0 | CI22: 4 | CJ22: 0 | CK22: 0 | CL22: 1 | CM22: 0 | CN22: 0 | CO22: 0 | CP22: 0 | CQ22: 0 | CR22: 0 | CS22: 0 | CT22: 0 | CU22: 1 | CV22: 1 | CW22: 3 | CX22: 0 | CY22: 0 | CZ22: 0 | DA22: 0 | DB22: 0 | DC22: 0 | DD22: 0 | DE22: 0 | DF22: 0 | DG22: 0 | DH22: 0 | DI22: 0 | DJ22: 0 | DK22: 0 | DL22: 0 | DM22: 0 | DN22: 19.78 | DO22: - | DP22: 14.1 | DQ22: 24.1 | DR22: 0 | DS22: 3 | DT22: 0 | DU22: 1 | DV22: 0 | DW22: 4 | DX22: 0 | DY22: 1 | DZ22: 0 | EA22: 0 | EB22: 0 | EC22: 1 | ED22: 0 | EE22: 4 | EF22: 0 | EG22: 1 | EH22: 0 | EI22: 5 | EJ22: 4 | EK22: 10 | EL22: 5 | EM22: 4 | EN22: 7 | EO22: 13 | EP22: 11 | EQ22: 1 | ER22: 1 | ES22: 3 | ET22: 4 | EU22: 2 | EV22: 2 | EW22: 4 | EX22: 5 | EY22: 11 | EZ22: 8 | FA22: 8 | FB22: 9 | FC22: 15 | FD22: 15
A23: 1 | B23: =OFFSET(Input_Details!$Q$4,MATCH($A23, Input_Details!$J$5:$J$24, 0), 0) -> 2017-04-24 | C23: =INDEX(Input_Details!$H$5:$H$24, MATCH($A23, Input_Details!$J$5:$J$24, 0), 0) -> Harper Road (South of Falmouth Road) | D23: =INDEX(Input_Details!$I$5:$I$24, MATCH($A23, Input_Details!$J$5:$J$24, 0), 0) -> 51.49617, -0.09302 | E23: =INDEX(Input_Details!$K$5:$K$24, MATCH($A23, Input_Details!$J$5:$J$24, 0), 0) -> Southbound | F23: Mon | G23: 04:45:00 | H23: 1 | I23: 4 | J23: 0 | K23: 1 | L23: 0 | M23: 0 | N23: 0 | O23: 0 | P23: 0 | Q23: 0 | R23: 0 | S23: 0 | T23: 0 | U23: 0 | V23: 2 | W23: 2 | X23: 1 | Y23: 1 | Z23: 0 | AA23: 0 | AB23: 0 | AC23: 0 | AD23: 0 | AE23: 0 | AF23: 0 | AG23: 0 | AH23: 0 | AI23: 0 | AJ23: 0 | AK23: 0 | AL23: 0 | AM23: 0 | AN23: 23.3 | AO23: - | AP23: 17.4 | AQ23: 31.2 | AR23: =INDEX(Input_Details!$L$5:$L$24, MATCH($A23, Input_Details!$J$5:$J$24, 0), 0) -> Northbound | AS23: Mon | AT23: 04:45:00 | AU23: 3 | AV23: 1 | AW23: 0 | AX23: 0 | AY23: 0 | AZ23: 0 | BA23: 0 | BB23: 0 | BC23: 0 | BD23: 0 | BE23: 0 | BF23: 0 | BG23: 0 | BH23: 2 | BI23: 2 | BJ23: 0 | BK23: 0 | BL23: 0 | BM23: 0 | BN23: 0 | BO23: 0 | BP23: 0 | BQ23: 0 | BR23: 0 | BS23: 0 | BT23: 0 | BU23: 0 | BV23: 0 | BW23: 0 | BX23: 0 | BY23: 0 | BZ23: 0 | CA23: 14.9 | CB23: - | CC23: 11 | CD23: 19.3 | CF23: Mon | CG23: 04:45:00 | CH23: 4 | CI23: 5 | CJ23: 0 | CK23: 1 | CL23: 0 | CM23: 0 | CN23: 0 | CO23: 0 | CP23: 0 | CQ23: 0 | CR23: 0 | CS23: 0 | CT23: 0 | CU23: 2 | CV23: 4 | CW23: 2 | CX23: 1 | CY23: 1 | CZ23: 0 | DA23: 0 | DB23: 0 | DC23: 0 | DD23: 0 | DE23: 0 | DF23: 0 | DG23: 0 | DH23: 0 | DI23: 0 | DJ23: 0 | DK23: 0 | DL23: 0 | DM23: 0 | DN23: 19.94 | DO23: - | DP23: 11 | DQ23: 31.2 | DR23: 1 | DS23: 4 | DT23: 1 | DU23: 0 | DV23: 0 | DW23: 6 | DX23: 3 | DY23: 1 | DZ23: 0 | EA23: 0 | EB23: 0 | EC23: 4 | ED23: 4 | EE23: 5 | EF23: 1 | EG23: 0 | EH23: 0 | EI23: 10 | EJ23: 6 | EK23: 9 | EL23: 7 | EM23: 7 | EN23: 5 | EO23: 12 | EP23: 7 | EQ23: 4 | ER23: 5 | ES23: 6 | ET23: 5 | EU23: 5 | EV23: 4 | EW23: 3 | EX23: 10 | EY23: 14 | EZ23: 13 | FA23: 12 | FB23: 10 | FC23: 16 | FD23: 10
A24: 1 | B24: =OFFSET(Input_Details!$Q$4,MATCH($A24, Input_Details!$J$5:$J$24, 0), 0) -> 2017-04-24 | C24: =INDEX(Input_Details!$H$5:$H$24, MATCH($A24, Input_Details!$J$5:$J$24, 0), 0) -> Harper Road (South of Falmouth Road) | D24: =INDEX(Input_Details!$I$5:$I$24, MATCH($A24, Input_Details!$J$5:$J$24, 0), 0) -> 51.49617, -0.09302 | E24: =INDEX(Input_Details!$K$5:$K$24, MATCH($A24, Input_Details!$J$5:$J$24, 0), 0) -> Southbound | F24: Mon | G24: 05:00:00 | H24: 1 | I24: 7 | J24: 0 | K24: 0 | L24: 2 | M24: 0 | N24: 0 | O24: 0 | P24: 0 | Q24: 0 | R24: 0 | S24: 0 | T24: 0 | U24: 1 | V24: 1 | W24: 7 | X24: 1 | Y24: 0 | Z24: 0 | AA24: 0 | AB24: 0 | AC24: 0 | AD24: 0 | AE24: 0 | AF24: 0 | AG24: 0 | AH24: 0 | AI24: 0 | AJ24: 0 | AK24: 0 | AL24: 0 | AM24: 0 | AN24: 20.9 | AO24: - | AP24: 13.4 | AQ24: 26.4 | AR24: =INDEX(Input_Details!$L$5:$L$24, MATCH($A24, Input_Details!$J$5:$J$24, 0), 0) -> Northbound | AS24: Mon | AT24: 05:00:00 | AU24: 2 | AV24: 3 | AW24: 0 | AX24: 0 | AY24: 0 | AZ24: 0 | BA24: 0 | BB24: 0 | BC24: 0 | BD24: 0 | BE24: 0 | BF24: 0 | BG24: 0 | BH24: 4 | BI24: 0 | BJ24: 1 | BK24: 0 | BL24: 0 | BM24: 0 | BN24: 0 | BO24: 0 | BP24: 0 | BQ24: 0 | BR24: 0 | BS24: 0 | BT24: 0 | BU24: 0 | BV24: 0 | BW24: 0 | BX24: 0 | BY24: 0 | BZ24: 0 | CA24: 15.8 | CB24: - | CC24: 10.5 | CD24: 24.7 | CF24: Mon | CG24: 05:00:00 | CH24: 3 | CI24: 10 | CJ24: 0 | CK24: 0 | CL24: 2 | CM24: 0 | CN24: 0 | CO24: 0 | CP24: 0 | CQ24: 0 | CR24: 0 | CS24: 0 | CT24: 0 | CU24: 5 | CV24: 1 | CW24: 8 | CX24: 1 | CY24: 0 | CZ24: 0 | DA24: 0 | DB24: 0 | DC24: 0 | DD24: 0 | DE24: 0 | DF24: 0 | DG24: 0 | DH24: 0 | DI24: 0 | DJ24: 0 | DK24: 0 | DL24: 0 | DM24: 0 | DN24: 19.2 | DO24: - | DP24: 10.5 | DQ24: 26.4 | DR24: 1 | DS24: 7 | DT24: 0 | DU24: 2 | DV24: 0 | DW24: 10 | DX24: 2 | DY24: 3 | DZ24: 0 | EA24: 0 | EB24: 0 | EC24: 5 | ED24: 3 | EE24: 10 | EF24: 0 | EG24: 2 | EH24: 0 | EI24: 15 | EJ24: 10 | EK24: 10 | EL24: 14 | EM24: 10 | EN24: 11 | EO24: 10 | EP24: 14 | EQ24: 5 | ER24: 4 | ES24: 2 | ET24: 3 | EU24: 4 | EV24: 9 | EW24: 3 | EX24: 15 | EY24: 14 | EZ24: 16 | FA24: 13 | FB24: 15 | FC24: 19 | FD24: 17
A25: 1 | B25: =OFFSET(Input_Details!$Q$4,MATCH($A25, Input_Details!$J$5:$J$24, 0), 0) -> 2017-04-24 | C25: =INDEX(Input_Details!$H$5:$H$24, MATCH($A25, Input_Details!$J$5:$J$24, 0), 0) -> Harper Road (South of Falmouth Road) | D25: =INDEX(Input_Details!$I$5:$I$24, MATCH($A25, Input_Details!$J$5:$J$24, 0), 0) -> 51.49617, -0.09302 | E25: =INDEX(Input_Details!$K$5:$K$24, MATCH($A25, Input_Details!$J$5:$J$24, 0), 0) -> Southbound | F25: Mon | G25: 05:15:00 | H25: 0 | I25: 7 | J25: 0 | K25: 0 | L25: 1 | M25: 0 | N25: 0 | O25: 0 | P25: 0 | Q25: 0 | R25: 0 | S25: 0 | T25: 0 | U25: 1 | V25: 3 | W25: 4 | X25: 0 | Y25: 0 | Z25: 0 | AA25: 0 | AB25: 0 | AC25: 0 | AD25: 0 | AE25: 0 | AF25: 0 | AG25: 0 | AH25: 0 | AI25: 0 | AJ25: 0 | AK25: 0 | AL25: 0 | AM25: 0 | AN25: 18.8 | AO25: - | AP25: 13.8 | AQ25: 23.1 | AR25: =INDEX(Input_Details!$L$5:$L$24, MATCH($A25, Input_Details!$J$5:$J$24, 0), 0) -> Northbound | AS25: Mon | AT25: 05:15:00 | AU25: 1 | AV25: 3 | AW25: 0 | AX25: 0 | AY25: 0 | AZ25: 0 | BA25: 0 | BB25: 0 | BC25: 0 | BD25: 0 | BE25: 0 | BF25: 0 | BG25: 0 | BH25: 2 | BI25: 0 | BJ25: 0 | BK25: 2 | BL25: 0 | BM25: 0 | BN25: 0 | BO25: 0 | BP25: 0 | BQ25: 0 | BR25: 0 | BS25: 0 | BT25: 0 | BU25: 0 | BV25: 0 | BW25: 0 | BX25: 0 | BY25: 0 | BZ25: 0 | CA25: 19.9 | CB25: - | CC25: 12.2 | CD25: 26.7 | CF25: Mon | CG25: 05:15:00 | CH25: 1 | CI25: 10 | CJ25: 0 | CK25: 0 | CL25: 1 | CM25: 0 | CN25: 0 | CO25: 0 | CP25: 0 | CQ25: 0 | CR25: 0 | CS25: 0 | CT25: 0 | CU25: 3 | CV25: 3 | CW25: 4 | CX25: 2 | CY25: 0 | CZ25: 0 | DA25: 0 | DB25: 0 | DC25: 0 | DD25: 0 | DE25: 0 | DF25: 0 | DG25: 0 | DH25: 0 | DI25: 0 | DJ25: 0 | DK25: 0 | DL25: 0 | DM25: 0 | DN25: 19.16666667 | DO25: - | DP25: 12.2 | DQ25: 26.7 | DR25: 0 | DS25: 7 | DT25: 0 | DU25: 1 | DV25: 0 | DW25: 8 | DX25: 1 | DY25: 3 | DZ25: 0 | EA25: 0 | EB25: 0 | EC25: 4 | ED25: 1 | EE25: 10 | EF25: 0 | EG25: 1 | EH25: 0 | EI25: 12 | EJ25: 8 | EK25: 11 | EL25: 5 | EM25: 10 | EN25: 15 | EO25: 19 | EP25: 13 | EQ25: 4 | ER25: 1 | ES25: 2 | ET25: 3 | EU25: 4 | EV25: 7 | EW25: 5 | EX25: 12 | EY25: 12 | EZ25: 7 | FA25: 13 | FB25: 19 | FC25: 26 | FD25: 18
A26: 1 | B26: =OFFSET(Input_Details!$Q$4,MATCH($A26, Input_Details!$J$5:$J$24, 0), 0) -> 2017-04-24 | C26: =INDEX(Input_Details!$H$5:$H$24, MATCH($A26, Input_Details!$J$5:$J$24, 0), 0) -> Harper Road (South of Falmouth Road) | D26: =INDEX(Input_Details!$I$5:$I$24, MATCH($A26, Input_Details!$J$5:$J$24, 0), 0) -> 51.49617, -0.09302 | E26: =INDEX(Input_Details!$K$5:$K$24, MATCH($A26, Input_Details!$J$5:$J$24, 0), 0) -> Southbound | F26: Mon | G26: 05:30:00 | H26: 0 | I26: 5 | J26: 0 | K26: 1 | L26: 0 | M26: 0 | N26: 0 | O26: 0 | P26: 0 | Q26: 0 | R26: 0 | S26: 0 | T26: 0 | U26: 0 | V26: 2 | W26: 3 | X26: 1 | Y26: 0 | Z26: 0 | AA26: 0 | AB26: 0 | AC26: 0 | AD26: 0 | AE26: 0 | AF26: 0 | AG26: 0 | AH26: 0 | AI26: 0 | AJ26: 0 | AK26: 0 | AL26: 0 | AM26: 0 | AN26: 23.1 | AO26: - | AP26: 18.9 | AQ26: 29.4 | AR26: =INDEX(Input_Details!$L$5:$L$24, MATCH($A26, Input_Details!$J$5:$J$24, 0), 0) -> Northbound | AS26: Mon | AT26: 05:30:00 | AU26: 3 | AV26: 1 | AW26: 0 | AX26: 0 | AY26: 1 | AZ26: 0 | BA26: 0 | BB26: 0 | BC26: 0 | BD26: 0 | BE26: 0 | BF26: 0 | BG26: 1 | BH26: 1 | BI26: 0 | BJ26: 2 | BK26: 1 | BL26: 0 | BM26: 0 | BN26: 0 | BO26: 0 | BP26: 0 | BQ26: 0 | BR26: 0 | BS26: 0 | BT26: 0 | BU26: 0 | BV26: 0 | BW26: 0 | BX26: 0 | BY26: 0 | BZ26: 0 | CA26: 18.1 | CB26: - | CC26: 9.7 | CD26: 29.5 | CF26: Mon | CG26: 05:30:00 | CH26: 3 | CI26: 6 | CJ26: 0 | CK26: 1 | CL26: 1 | CM26: 0 | CN26: 0 | CO26: 0 | CP26: 0 | CQ26: 0 | CR26: 0 | CS26: 0 | CT26: 1 | CU26: 1 | CV26: 2 | CW26: 5 | CX26: 2 | CY26: 0 | CZ26: 0 | DA26: 0 | DB26: 0 | DC26: 0 | DD26: 0 | DE26: 0 | DF26: 0 | DG26: 0 | DH26: 0 | DI26: 0 | DJ26: 0 | DK26: 0 | DL26: 0 | DM26: 0 | DN26: 20.82727273 | DO26: - | DP26: 9.7 | DQ26: 29.5 | DR26: 0 | DS26: 5 | DT26: 1 | DU26: 0 | DV26: 0 | DW26: 6 | DX26: 3 | DY26: 1 | DZ26: 0 | EA26: 1 | EB26: 0 | EC26: 5 | ED26: 3 | EE26: 6 | EF26: 1 | EG26: 1 | EH26: 0 | EI26: 11 | EJ26: 6 | EK26: 12 | EL26: 7 | EM26: 13 | EN26: 10 | EO26: 11 | EP26: 15 | EQ26: 5 | ER26: 6 | ES26: 6 | ET26: 4 | EU26: 4 | EV26: 2 | EW26: 4 | EX26: 11 | EY26: 18 | EZ26: 13 | FA26: 17 | FB26: 14 | FC26: 13 | FD26: 19
A27: 1 | B27: =OFFSET(Input_Details!$Q$4,MATCH($A27, Input_Details!$J$5:$J$24, 0), 0) -> 2017-04-24 | C27: =INDEX(Input_Details!$H$5:$H$24, MATCH($A27, Input_Details!$J$5:$J$24, 0), 0) -> Harper Road (South of Falmouth Road) | D27: =INDEX(Input_Details!$I$5:$I$24, MATCH($A27, Input_Details!$J$5:$J$24, 0), 0) -> 51.49617, -0.09302 | E27: =INDEX(Input_Details!$K$5:$K$24, MATCH($A27, Input_Details!$J$5:$J$24, 0), 0) -> Southbound | F27: Mon | G27: 05:45:00 | H27: 0 | I27: 12 | J27: 0 | K27: 3 | L27: 1 | M27: 0 | N27: 0 | O27: 0 | P27: 0 | Q27: 0 | R27: 0 | S27: 0 | T27: 0 | U27: 1 | V27: 7 | W27: 5 | X27: 3 | Y27: 0 | Z27: 0 | AA27: 0 | AB27: 0 | AC27: 0 | AD27: 0 | AE27: 0 | AF27: 0 | AG27: 0 | AH27: 0 | AI27: 0 | AJ27: 0 | AK27: 0 | AL27: 0 | AM27: 0 | AN27: 20.5 | AO27: 25.3 | AP27: 13.9 | AQ27: 28.1 | AR27: =INDEX(Input_Details!$L$5:$L$24, MATCH($A27, Input_Details!$J$5:$J$24, 0), 0) -> Northbound | AS27: Mon | AT27: 05:45:00 | AU27: 2 | AV27: 1 | AW27: 0 | AX27: 0 | AY27: 0 | AZ27: 0 | BA27: 0 | BB27: 0 | BC27: 0 | BD27: 0 | BE27: 0 | BF27: 0 | BG27: 0 | BH27: 1 | BI27: 1 | BJ27: 1 | BK27: 0 | BL27: 0 | BM27: 0 | BN27: 0 | BO27: 0 | BP27: 0 | BQ27: 0 | BR27: 0 | BS27: 0 | BT27: 0 | BU27: 0 | BV27: 0 | BW27: 0 | BX27: 0 | BY27: 0 | BZ27: 0 | CA27: 18.3 | CB27: - | CC27: 11.7 | CD27: 23.4 | CF27: Mon | CG27: 05:45:00 | CH27: 2 | CI27: 13 | CJ27: 0 | CK27: 3 | CL27: 1 | CM27: 0 | CN27: 0 | CO27: 0 | CP27: 0 | CQ27: 0 | CR27: 0 | CS27: 0 | CT27: 0 | CU27: 2 | CV27: 8 | CW27: 6 | CX27: 3 | CY27: 0 | CZ27: 0 | DA27: 0 | DB27: 0 | DC27: 0 | DD27: 0 | DE27: 0 | DF27: 0 | DG27: 0 | DH27: 0 | DI27: 0 | DJ27: 0 | DK27: 0 | DL27: 0 | DM27: 0 | DN27: 20.15263158 | DO27: 25.3 | DP27: 11.7 | DQ27: 28.1 | DR27: 0 | DS27: 12 | DT27: 3 | DU27: 1 | DV27: 0 | DW27: 16 | DX27: 2 | DY27: 1 | DZ27: 0 | EA27: 0 | EB27: 0 | EC27: 3 | ED27: 2 | EE27: 13 | EF27: 3 | EG27: 1 | EH27: 0 | EI27: 19 | EJ27: 16 | EK27: 17 | EL27: 22 | EM27: 11 | EN27: 12 | EO27: 11 | EP27: 16 | EQ27: 3 | ER27: 11 | ES27: 9 | ET27: 6 | EU27: 11 | EV27: 2 | EW27: 1 | EX27: 19 | EY27: 28 | EZ27: 31 | FA27: 17 | FB27: 23 | FC27: 13 | FD27: 17
A28: 1 | B28: =OFFSET(Input_Details!$Q$4,MATCH($A28, Input_Details!$J$5:$J$24, 0), 0) -> 2017-04-24 | C28: =INDEX(Input_Details!$H$5:$H$24, MATCH($A28, Input_Details!$J$5:$J$24, 0), 0) -> Harper Road (South of Falmouth Road) | D28: =INDEX(Input_Details!$I$5:$I$24, MATCH($A28, Input_Details!$J$5:$J$24, 0), 0) -> 51.49617, -0.09302 | E28: =INDEX(Input_Details!$K$5:$K$24, MATCH($A28, Input_Details!$J$5:$J$24, 0), 0) -> Southbound | F28: Mon | G28: 06:00:00 | H28: 0 | I28: 12 | J28: 0 | K28: 0 | L28: 1 | M28: 1 | N28: 0 | O28: 0 | P28: 0 | Q28: 0 | R28: 0 | S28: 0 | T28: 0 | U28: 2 | V28: 4 | W28: 6 | X28: 1 | Y28: 1 | Z28: 0 | AA28: 0 | AB28: 0 | AC28: 0 | AD28: 0 | AE28: 0 | AF28: 0 | AG28: 0 | AH28: 0 | AI28: 0 | AJ28: 0 | AK28: 0 | AL28: 0 | AM28: 0 | AN28: 20.5 | AO28: 23.9 | AP28: 12.6 | AQ28: 31 | AR28: =INDEX(Input_Details!$L$5:$L$24, MATCH($A28, Input_Details!$J$5:$J$24, 0), 0) -> Northbound | AS28: Mon | AT28: 06:00:00 | AU28: 3 | AV28: 5 | AW28: 0 | AX28: 0 | AY28: 0 | AZ28: 0 | BA28: 0 | BB28: 0 | BC28: 0 | BD28: 0 | BE28: 0 | BF28: 0 | BG28: 0 | BH28: 1 | BI28: 1 | BJ28: 4 | BK28: 1 | BL28: 1 | BM28: 0 | BN28: 0 | BO28: 0 | BP28: 0 | BQ28: 0 | BR28: 0 | BS28: 0 | BT28: 0 | BU28: 0 | BV28: 0 | BW28: 0 | BX28: 0 | BY28: 0 | BZ28: 0 | CA28: 21.9 | CB28: - | CC28: 14 | CD28: 33 | CF28: Mon | CG28: 06:00:00 | CH28: 3 | CI28: 17 | CJ28: 0 | CK28: 0 | CL28: 1 | CM28: 1 | CN28: 0 | CO28: 0 | CP28: 0 | CQ28: 0 | CR28: 0 | CS28: 0 | CT28: 0 | CU28: 3 | CV28: 5 | CW28: 10 | CX28: 2 | CY28: 2 | CZ28: 0 | DA28: 0 | DB28: 0 | DC28: 0 | DD28: 0 | DE28: 0 | DF28: 0 | DG28: 0 | DH28: 0 | DI28: 0 | DJ28: 0 | DK28: 0 | DL28: 0 | DM28: 0 | DN28: 21.00909091 | DO28: 23.9 | DP28: 12.6 | DQ28: 33 | DR28: 0 | DS28: 12 | DT28: 0 | DU28: 1 | DV28: 1 | DW28: 14 | DX28: 3 | DY28: 5 | DZ28: 0 | EA28: 0 | EB28: 0 | EC28: 8 | ED28: 3 | EE28: 17 | EF28: 0 | EG28: 1 | EH28: 1 | EI28: 22 | EJ28: 14 | EK28: 22 | EL28: 18 | EM28: 23 | EN28: 19 | EO28: 11 | EP28: 11 | EQ28: 8 | ER28: 10 | ES28: 8 | ET28: 3 | EU28: 2 | EV28: 4 | EW28: 5 | EX28: 22 | EY28: 32 | EZ28: 26 | FA28: 26 | FB28: 21 | FC28: 15 | FD28: 16
A29: 1 | B29: =OFFSET(Input_Details!$Q$4,MATCH($A29, Input_Details!$J$5:$J$24, 0), 0) -> 2017-04-24 | C29: =INDEX(Input_Details!$H$5:$H$24, MATCH($A29, Input_Details!$J$5:$J$24, 0), 0) -> Harper Road (South of Falmouth Road) | D29: =INDEX(Input_Details!$I$5:$I$24, MATCH($A29, Input_Details!$J$5:$J$24, 0), 0) -> 51.49617, -0.09302 | E29: =INDEX(Input_Details!$K$5:$K$24, MATCH($A29, Input_Details!$J$5:$J$24, 0), 0) -> Southbound | F29: Mon | G29: 06:15:00 | H29: 0 | I29: 21 | J29: 0 | K29: 3 | L29: 1 | M29: 1 | N29: 0 | O29: 0 | P29: 0 | Q29: 0 | R29: 0 | S29: 0 | T29: 3 | U29: 4 | V29: 14 | W29: 4 | X29: 1 | Y29: 0 | Z29: 0 | AA29: 0 | AB29: 0 | AC29: 0 | AD29: 0 | AE29: 0 | AF29: 0 | AG29: 0 | AH29: 0 | AI29: 0 | AJ29: 0 | AK29: 0 | AL29: 0 | AM29: 0 | AN29: 17.1 | AO29: 19.9 | AP29: 9 | AQ29: 28 | AR29: =INDEX(Input_Details!$L$5:$L$24, MATCH($A29, Input_Details!$J$5:$J$24, 0), 0) -> Northbound | AS29: Mon | AT29: 06:15:00 | AU29: 4 | AV29: 4 | AW29: 0 | AX29: 0 | AY29: 1 | AZ29: 0 | BA29: 0 | BB29: 0 | BC29: 0 | BD29: 0 | BE29: 0 | BF29: 0 | BG29: 0 | BH29: 1 | BI29: 3 | BJ29: 3 | BK29: 1 | BL29: 1 | BM29: 0 | BN29: 0 | BO29: 0 | BP29: 0 | BQ29: 0 | BR29: 0 | BS29: 0 | BT29: 0 | BU29: 0 | BV29: 0 | BW29: 0 | BX29: 0 | BY29: 0 | BZ29: 0 | CA29: 21.4 | CB29: - | CC29: 14.1 | CD29: 32.1 | CF29: Mon | CG29: 06:15:00 | CH29: 4 | CI29: 25 | CJ29: 0 | CK29: 3 | CL29: 2 | CM29: 1 | CN29: 0 | CO29: 0 | CP29: 0 | CQ29: 0 | CR29: 0 | CS29: 0 | CT29: 3 | CU29: 5 | CV29: 17 | CW29: 7 | CX29: 2 | CY29: 1 | CZ29: 0 | DA29: 0 | DB29: 0 | DC29: 0 | DD29: 0 | DE29: 0 | DF29: 0 | DG29: 0 | DH29: 0 | DI29: 0 | DJ29: 0 | DK29: 0 | DL29: 0 | DM29: 0 | DN29: 18.20571429 | DO29: 19.9 | DP29: 9 | DQ29: 32.1 | DR29: 0 | DS29: 21 | DT29: 3 | DU29: 1 | DV29: 1 | DW29: 26 | DX29: 4 | DY29: 4 | DZ29: 0 | EA29: 1 | EB29: 0 | EC29: 9 | ED29: 4 | EE29: 25 | EF29: 3 | EG29: 2 | EH29: 1 | EI29: 35 | EJ29: 26 | EK29: 27 | EL29: 27 | EM29: 26 | EN29: 31 | EO29: 21 | EP29: 16 | EQ29: 9 | ER29: 16 | ES29: 15 | ET29: 8 | EU29: 6 | EV29: 0 | EW29: 6 | EX29: 35 | EY29: 43 | EZ29: 42 | FA29: 34 | FB29: 37 | FC29: 21 | FD29: 22
A30: 1 | B30: =OFFSET(Input_Details!$Q$4,MATCH($A30, Input_Details!$J$5:$J$24, 0), 0) -> 2017-04-24 | C30: =INDEX(Input_Details!$H$5:$H$24, MATCH($A30, Input_Details!$J$5:$J$24, 0), 0) -> Harper Road (South of Falmouth Road) | D30: =INDEX(Input_Details!$I$5:$I$24, MATCH($A30, Input_Details!$J$5:$J$24, 0), 0) -> 51.49617, -0.09302 | E30: =INDEX(Input_Details!$K$5:$K$24, MATCH($A30, Input_Details!$J$5:$J$24, 0), 0) -> Southbound | F30: Mon | G30: 06:30:00 | H30: 0 | I30: 24 | J30: 0 | K30: 3 | L30: 3 | M30: 0 | N30: 0 | O30: 0 | P30: 0 | Q30: 0 | R30: 0 | S30: 0 | T30: 0 | U30: 0 | V30: 13 | W30: 12 | X30: 5 | Y30: 0 | Z30: 0 | AA30: 0 | AB30: 0 | AC30: 0 | AD30: 0 | AE30: 0 | AF30: 0 | AG30: 0 | AH30: 0 | AI30: 0 | AJ30: 0 | AK30: 0 | AL30: 0 | AM30: 0 | AN30: 21.3 | AO30: 25.1 | AP30: 15.3 | AQ30: 27.5 | AR30: =INDEX(Input_Details!$L$5:$L$24, MATCH($A30, Input_Details!$J$5:$J$24, 0), 0) -> Northbound | AS30: Mon | AT30: 06:30:00 | AU30: 3 | AV30: 5 | AW30: 0 | AX30: 0 | AY30: 2 | AZ30: 0 | BA30: 0 | BB30: 0 | BC30: 0 | BD30: 0 | BE30: 0 | BF30: 0 | BG30: 0 | BH30: 1 | BI30: 5 | BJ30: 2 | BK30: 1 | BL30: 1 | BM30: 0 | BN30: 0 | BO30: 0 | BP30: 0 | BQ30: 0 | BR30: 0 | BS30: 0 | BT30: 0 | BU30: 0 | BV30: 0 | BW30: 0 | BX30: 0 | BY30: 0 | BZ30: 0 | CA30: 20.1 | CB30: - | CC30: 14.8 | CD30: 32 | CF30: Mon | CG30: 06:30:00 | CH30: 3 | CI30: 29 | CJ30: 0 | CK30: 3 | CL30: 5 | CM30: 0 | CN30: 0 | CO30: 0 | CP30: 0 | CQ30: 0 | CR30: 0 | CS30: 0 | CT30: 0 | CU30: 1 | CV30: 18 | CW30: 14 | CX30: 6 | CY30: 1 | CZ30: 0 | DA30: 0 | DB30: 0 | DC30: 0 | DD30: 0 | DE30: 0 | DF30: 0 | DG30: 0 | DH30: 0 | DI30: 0 | DJ30: 0 | DK30: 0 | DL30: 0 | DM30: 0 | DN30: 21 | DO30: 25.1 | DP30: 14.8 | DQ30: 32 | DR30: 0 | DS30: 24 | DT30: 3 | DU30: 3 | DV30: 0 | DW30: 30 | DX30: 3 | DY30: 5 | DZ30: 0 | EA30: 2 | EB30: 0 | EC30: 10 | ED30: 3 | EE30: 29 | EF30: 3 | EG30: 5 | EH30: 0 | EI30: 40 | EJ30: 30 | EK30: 37 | EL30: 42 | EM30: 37 | EN30: 29 | EO30: 19 | EP30: 22 | EQ30: 10 | ER30: 14 | ES30: 19 | ET30: 6 | EU30: 13 | EV30: 2 | EW30: 2 | EX30: 40 | EY30: 51 | EZ30: 61 | FA30: 43 | FB30: 42 | FC30: 21 | FD30: 24
A31: 1 | B31: =OFFSET(Input_Details!$Q$4,MATCH($A31, Input_Details!$J$5:$J$24, 0), 0) -> 2017-04-24 | C31: =INDEX(Input_Details!$H$5:$H$24, MATCH($A31, Input_Details!$J$5:$J$24, 0), 0) -> Harper Road (South of Falmouth Road) | D31: =INDEX(Input_Details!$I$5:$I$24, MATCH($A31, Input_Details!$J$5:$J$24, 0), 0) -> 51.49617, -0.09302 | E31: =INDEX(Input_Details!$K$5:$K$24, MATCH($A31, Input_Details!$J$5:$J$24, 0), 0) -> Southbound | F31: Mon | G31: 06:45:00 | H31: 4 | I31: 27 | J31: 0 | K31: 2 | L31: 5 | M31: 0 | N31: 0 | O31: 0 | P31: 0 | Q31: 0 | R31: 0 | S31: 0 | T31: 0 | U31: 3 | V31: 4 | W31: 22 | X31: 8 | Y31: 1 | Z31: 0 | AA31: 0 | AB31: 0 | AC31: 0 | AD31: 0 | AE31: 0 | AF31: 0 | AG31: 0 | AH31: 0 | AI31: 0 | AJ31: 0 | AK31: 0 | AL31: 0 | AM31: 0 | AN31: 22 | AO31: 25.9 | AP31: 10.8 | AQ31: 31.5 | AR31: =INDEX(Input_Details!$L$5:$L$24, MATCH($A31, Input_Details!$J$5:$J$24, 0), 0) -> Northbound | AS31: Mon | AT31: 06:45:00 | AU31: 5 | AV31: 6 | AW31: 0 | AX31: 1 | AY31: 2 | AZ31: 0 | BA31: 0 | BB31: 0 | BC31: 0 | BD31: 0 | BE31: 0 | BF31: 0 | BG31: 1 | BH31: 3 | BI31: 6 | BJ31: 1 | BK31: 2 | BL31: 1 | BM31: 0 | BN31: 0 | BO31: 0 | BP31: 0 | BQ31: 0 | BR31: 0 | BS31: 0 | BT31: 0 | BU31: 0 | BV31: 0 | BW31: 0 | BX31: 0 | BY31: 0 | BZ31: 0 | CA31: 18.8 | CB31: 25.7 | CC31: 9.7 | CD31: 33.6 | CF31: Mon | CG31: 06:45:00 | CH31: 9 | CI31: 33 | CJ31: 0 | CK31: 3 | CL31: 7 | CM31: 0 | CN31: 0 | CO31: 0 | CP31: 0 | CQ31: 0 | CR31: 0 | CS31: 0 | CT31: 1 | CU31: 6 | CV31: 10 | CW31: 23 | CX31: 10 | CY31: 2 | CZ31: 0 | DA31: 0 | DB31: 0 | DC31: 0 | DD31: 0 | DE31: 0 | DF31: 0 | DG31: 0 | DH31: 0 | DI31: 0 | DJ31: 0 | DK31: 0 | DL31: 0 | DM31: 0 | DN31: 21.13846154 | DO31: 25.8 | DP31: 9.7 | DQ31: 33.6 | DR31: 4 | DS31: 27 | DT31: 2 | DU31: 5 | DV31: 0 | DW31: 38 | DX31: 5 | DY31: 6 | DZ31: 1 | EA31: 2 | EB31: 0 | EC31: 14 | ED31: 9 | EE31: 33 | EF31: 3 | EG31: 7 | EH31: 0 | EI31: 52 | EJ31: 38 | EK31: 38 | EL31: 28 | EM31: 31 | EN31: 36 | EO31: 19 | EP31: 21 | EQ31: 14 | ER31: 18 | ES31: 22 | ET31: 12 | EU31: 15 | EV31: 1 | EW31: 3 | EX31: 52 | EY31: 56 | EZ31: 50 | FA31: 43 | FB31: 51 | FC31: 20 | FD31: 24
A32: 1 | B32: =OFFSET(Input_Details!$Q$4,MATCH($A32, Input_Details!$J$5:$J$24, 0), 0) -> 2017-04-24 | C32: =INDEX(Input_Details!$H$5:$H$24, MATCH($A32, Input_Details!$J$5:$J$24, 0), 0) -> Harper Road (South of Falmouth Road) | D32: =INDEX(Input_Details!$I$5:$I$24, MATCH($A32, Input_Details!$J$5:$J$24, 0), 0) -> 51.49617, -0.09302 | E32: =INDEX(Input_Details!$K$5:$K$24, MATCH($A32, Input_Details!$J$5:$J$24, 0), 0) -> Southbound | F32: Mon | G32: 07:00:00 | H32: 1 | I32: 19 | J32: 0 | K32: 0 | L32: 1 | M32: 0 | N32: 0 | O32: 0 | P32: 0 | Q32: 0 | R32: 1 | S32: 0 | T32: 1 | U32: 4 | V32: 7 | W32: 7 | X32: 2 | Y32: 1 | Z32: 0 | AA32: 0 | AB32: 0 | AC32: 0 | AD32: 0 | AE32: 0 | AF32: 0 | AG32: 0 | AH32: 0 | AI32: 0 | AJ32: 0 | AK32: 0 | AL32: 0 | AM32: 0 | AN32: 19.8 | AO32: 24.8 | AP32: 10 | AQ32: 30.3 | AR32: =INDEX(Input_Details!$L$5:$L$24, MATCH($A32, Input_Details!$J$5:$J$24, 0), 0) -> Northbound | AS32: Mon | AT32: 07:00:00 | AU32: 4 | AV32: 8 | AW32: 0 | AX32: 0 | AY32: 0 | AZ32: 1 | BA32: 0 | BB32: 0 | BC32: 0 | BD32: 0 | BE32: 0 | BF32: 0 | BG32: 2 | BH32: 0 | BI32: 5 | BJ32: 3 | BK32: 3 | BL32: 0 | BM32: 0 | BN32: 0 | BO32: 0 | BP32: 0 | BQ32: 0 | BR32: 0 | BS32: 0 | BT32: 0 | BU32: 0 | BV32: 0 | BW32: 0 | BX32: 0 | BY32: 0 | BZ32: 0 | CA32: 19.7 | CB32: 25.5 | CC32: 9.7 | CD32: 28.7 | CF32: Mon | CG32: 07:00:00 | CH32: 5 | CI32: 27 | CJ32: 0 | CK32: 0 | CL32: 1 | CM32: 1 | CN32: 0 | CO32: 0 | CP32: 0 | CQ32: 0 | CR32: 1 | CS32: 0 | CT32: 3 | CU32: 4 | CV32: 12 | CW32: 10 | CX32: 5 | CY32: 1 | CZ32: 0 | DA32: 0 | DB32: 0 | DC32: 0 | DD32: 0 | DE32: 0 | DF32: 0 | DG32: 0 | DH32: 0 | DI32: 0 | DJ32: 0 | DK32: 0 | DL32: 0 | DM32: 0 | DN32: 19.76285714 | DO32: 25.15 | DP32: 9.7 | DQ32: 30.3 | DR32: 1 | DS32: 19 | DT32: 0 | DU32: 1 | DV32: 1 | DW32: 22 | DX32: 4 | DY32: 8 | DZ32: 0 | EA32: 0 | EB32: 1 | EC32: 13 | ED32: 5 | EE32: 27 | EF32: 0 | EG32: 1 | EH32: 2 | EI32: 35 | EJ32: 22 | EK32: 21 | EL32: 32 | EM32: 28 | EN32: 31 | EO32: 19 | EP32: 13 | EQ32: 13 | ER32: 10 | ES32: 15 | ET32: 8 | EU32: 7 | EV32: 2 | EW32: 4 | EX32: 35 | EY32: 31 | EZ32: 47 | FA32: 36 | FB32: 38 | FC32: 21 | FD32: 17
A33: 1 | B33: =OFFSET(Input_Details!$Q$4,MATCH($A33, Input_Details!$J$5:$J$24, 0), 0) -> 2017-04-24 | C33: =INDEX(Input_Details!$H$5:$H$24, MATCH($A33, Input_Details!$J$5:$J$24, 0), 0) -> Harper Road (South of Falmouth Road) | D33: =INDEX(Input_Details!$I$5:$I$24, MATCH($A33, Input_Details!$J$5:$J$24, 0), 0) -> 51.49617, -0.09302 | E33: =INDEX(Input_Details!$K$5:$K$24, MATCH($A33, Input_Details!$J$5:$J$24, 0), 0) -> Southbound | F33: Mon | G33: 07:15:00 | H33: 0 | I33: 18 | J33: 0 | K33: 1 | L33: 3 | M33: 1 | N33: 0 | O33: 0 | P33: 0 | Q33: 0 | R33: 0 | S33: 0 | T33: 1 | U33: 1 | V33: 13 | W33: 8 | X33: 0 | Y33: 0 | Z33: 0 | AA33: 0 | AB33: 0 | AC33: 0 | AD33: 0 | AE33: 0 | AF33: 0 | AG33: 0 | AH33: 0 | AI33: 0 | AJ33: 0 | AK33: 0 | AL33: 0 | AM33: 0 | AN33: 18.7 | AO33: 20.6 | AP33: 9.9 | AQ33: 21.5 | AR33: =INDEX(Input_Details!$L$5:$L$24, MATCH($A33, Input_Details!$J$5:$J$24, 0), 0) -> Northbound | AS33: Mon | AT33: 07:15:00 | AU33: 6 | AV33: 6 | AW33: 0 | AX33: 0 | AY33: 0 | AZ33: 0 | BA33: 0 | BB33: 0 | BC33: 0 | BD33: 0 | BE33: 0 | BF33: 0 | BG33: 1 | BH33: 5 | BI33: 1 | BJ33: 4 | BK33: 0 | BL33: 1 | BM33: 0 | BN33: 0 | BO33: 0 | BP33: 0 | BQ33: 0 | BR33: 0 | BS33: 0 | BT33: 0 | BU33: 0 | BV33: 0 | BW33: 0 | BX33: 0 | BY33: 0 | BZ33: 0 | CA33: 17.5 | CB33: 21 | CC33: 9.9 | CD33: 33 | CF33: Mon | CG33: 07:15:00 | CH33: 6 | CI33: 24 | CJ33: 0 | CK33: 1 | CL33: 3 | CM33: 1 | CN33: 0 | CO33: 0 | CP33: 0 | CQ33: 0 | CR33: 0 | CS33: 0 | CT33: 2 | CU33: 6 | CV33: 14 | CW33: 12 | CX33: 0 | CY33: 1 | CZ33: 0 | DA33: 0 | DB33: 0 | DC33: 0 | DD33: 0 | DE33: 0 | DF33: 0 | DG33: 0 | DH33: 0 | DI33: 0 | DJ33: 0 | DK33: 0 | DL33: 0 | DM33: 0 | DN33: 18.28857143 | DO33: 20.8 | DP33: 9.9 | DQ33: 33 | DR33: 0 | DS33: 18 | DT33: 1 | DU33: 3 | DV33: 1 | DW33: 23 | DX33: 6 | DY33: 6 | DZ33: 0 | EA33: 0 | EB33: 0 | EC33: 12 | ED33: 6 | EE33: 24 | EF33: 1 | EG33: 3 | EH33: 1 | EI33: 35 | EJ33: 23 | EK33: 24 | EL33: 38 | EM33: 35 | EN33: 31 | EO33: 17 | EP33: 19 | EQ33: 12 | ER33: 16 | ES33: 19 | ET33: 16 | EU33: 9 | EV33: 5 | EW33: 2 | EX33: 35 | EY33: 40 | EZ33: 57 | FA33: 51 | FB33: 40 | FC33: 22 | FD33: 21
A34: 1 | B34: =OFFSET(Input_Details!$Q$4,MATCH($A34, Input_Details!$J$5:$J$24, 0), 0) -> 2017-04-24 | C34: =INDEX(Input_Details!$H$5:$H$24, MATCH($A34, Input_Details!$J$5:$J$24, 0), 0) -> Harper Road (South of Falmouth Road) | D34: =INDEX(Input_Details!$I$5:$I$24, MATCH($A34, Input_Details!$J$5:$J$24, 0), 0) -> 51.49617, -0.09302 | E34: =INDEX(Input_Details!$K$5:$K$24, MATCH($A34, Input_Details!$J$5:$J$24, 0), 0) -> Southbound | F34: Mon | G34: 07:30:00 | H34: 6 | I34: 28 | J34: 0 | K34: 1 | L34: 1 | M34: 0 | N34: 0 | O34: 0 | P34: 0 | Q34: 0 | R34: 0 | S34: 0 | T34: 1 | U34: 6 | V34: 7 | W34: 19 | X34: 3 | Y34: 0 | Z34: 0 | AA34: 0 | AB34: 0 | AC34: 0 | AD34: 0 | AE34: 0 | AF34: 0 | AG34: 0 | AH34: 0 | AI34: 0 | AJ34: 0 | AK34: 0 | AL34: 0 | AM34: 0 | AN34: 20.2 | AO34: 23.7 | AP34: 7.9 | AQ34: 29.3 | AR34: =INDEX(Input_Details!$L$5:$L$24, MATCH($A34, Input_Details!$J$5:$J$24, 0), 0) -> Northbound | AS34: Mon | AT34: 07:30:00 | AU34: 4 | AV34: 12 | AW34: 0 | AX34: 0 | AY34: 0 | AZ34: 0 | BA34: 0 | BB34: 0 | BC34: 0 | BD34: 0 | BE34: 0 | BF34: 0 | BG34: 0 | BH34: 4 | BI34: 8 | BJ34: 2 | BK34: 1 | BL34: 1 | BM34: 0 | BN34: 0 | BO34: 0 | BP34: 0 | BQ34: 0 | BR34: 0 | BS34: 0 | BT34: 0 | BU34: 0 | BV34: 0 | BW34: 0 | BX34: 0 | BY34: 0 | BZ34: 0 | CA34: 18.7 | CB34: 24.6 | CC34: 13.1 | CD34: 33 | CF34: Mon | CG34: 07:30:00 | CH34: 10 | CI34: 40 | CJ34: 0 | CK34: 1 | CL34: 1 | CM34: 0 | CN34: 0 | CO34: 0 | CP34: 0 | CQ34: 0 | CR34: 0 | CS34: 0 | CT34: 1 | CU34: 10 | CV34: 15 | CW34: 21 | CX34: 4 | CY34: 1 | CZ34: 0 | DA34: 0 | DB34: 0 | DC34: 0 | DD34: 0 | DE34: 0 | DF34: 0 | DG34: 0 | DH34: 0 | DI34: 0 | DJ34: 0 | DK34: 0 | DL34: 0 | DM34: 0 | DN34: 19.73846154 | DO34: 24.15 | DP34: 7.9 | DQ34: 33 | DR34: 6 | DS34: 28 | DT34: 1 | DU34: 1 | DV34: 0 | DW34: 36 | DX34: 4 | DY34: 12 | DZ34: 0 | EA34: 0 | EB34: 0 | EC34: 16 | ED34: 10 | EE34: 40 | EF34: 1 | EG34: 1 | EH34: 0 | EI34: 52 | EJ34: 36 | EK34: 37 | EL34: 43 | EM34: 40 | EN34: 49 | EO34: 16 | EP34: 11 | EQ34: 16 | ER34: 22 | ES34: 18 | ET34: 17 | EU34: 13 | EV34: 8 | EW34: 2 | EX34: 52 | EY34: 59 | EZ34: 61 | FA34: 57 | FB34: 62 | FC34: 24 | FD34: 13
A35: 1 | B35: =OFFSET(Input_Details!$Q$4,MATCH($A35, Input_Details!$J$5:$J$24, 0), 0) -> 2017-04-24 | C35: =INDEX(Input_Details!$H$5:$H$24, MATCH($A35, Input_Details!$J$5:$J$24, 0), 0) -> Harper Road (South of Falmouth Road) | D35: =INDEX(Input_Details!$I$5:$I$24, MATCH($A35, Input_Details!$J$5:$J$24, 0), 0) -> 51.49617, -0.09302 | E35: =INDEX(Input_Details!$K$5:$K$24, MATCH($A35, Input_Details!$J$5:$J$24, 0), 0) -> Southbound | F35: Mon | G35: 07:45:00 | H35: 7 | I35: 31 | J35: 0 | K35: 2 | L35: 1 | M35: 0 | N35: 0 | O35: 0 | P35: 0 | Q35: 0 | R35: 0 | S35: 0 | T35: 1 | U35: 4 | V35: 13 | W35: 15 | X35: 8 | Y35: 0 | Z35: 0 | AA35: 0 | AB35: 0 | AC35: 0 | AD35: 0 | AE35: 0 | AF35: 0 | AG35: 0 | AH35: 0 | AI35: 0 | AJ35: 0 | AK35: 0 | AL35: 0 | AM35: 0 | AN35: 20.3 | AO35: 25.5 | AP35: 8.2 | AQ35: 28.9 | AR35: =INDEX(Input_Details!$L$5:$L$24, MATCH($A35, Input_Details!$J$5:$J$24, 0), 0) -> Northbound | AS35: Mon | AT35: 07:45:00 | AU35: 9 | AV35: 3 | AW35: 0 | AX35: 0 | AY35: 2 | AZ35: 0 | BA35: 0 | BB35: 0 | BC35: 0 | BD35: 0 | BE35: 0 | BF35: 0 | BG35: 1 | BH35: 6 | BI35: 5 | BJ35: 1 | BK35: 1 | BL35: 0 | BM35: 0 | BN35: 0 | BO35: 0 | BP35: 0 | BQ35: 0 | BR35: 0 | BS35: 0 | BT35: 0 | BU35: 0 | BV35: 0 | BW35: 0 | BX35: 0 | BY35: 0 | BZ35: 0 | CA35: 16 | CB35: 18.8 | CC35: 9.5 | CD35: 28.5 | CF35: Mon | CG35: 07:45:00 | CH35: 16 | CI35: 34 | CJ35: 0 | CK35: 2 | CL35: 3 | CM35: 0 | CN35: 0 | CO35: 0 | CP35: 0 | CQ35: 0 | CR35: 0 | CS35: 0 | CT35: 2 | CU35: 10 | CV35: 18 | CW35: 16 | CX35: 9 | CY35: 0 | CZ35: 0 | DA35: 0 | DB35: 0 | DC35: 0 | DD35: 0 | DE35: 0 | DF35: 0 | DG35: 0 | DH35: 0 | DI35: 0 | DJ35: 0 | DK35: 0 | DL35: 0 | DM35: 0 | DN35: 19.20545455 | DO35: 22.15 | DP35: 8.2 | DQ35: 28.9 | DR35: 7 | DS35: 31 | DT35: 2 | DU35: 1 | DV35: 0 | DW35: 41 | DX35: 9 | DY35: 3 | DZ35: 0 | EA35: 2 | EB35: 0 | EC35: 14 | ED35: 16 | EE35: 34 | EF35: 2 | EG35: 3 | EH35: 0 | EI35: 55 | EJ35: 41 | EK35: 43 | EL35: 42 | EM35: 39 | EN35: 36 | EO35: 28 | EP35: 17 | EQ35: 14 | ER35: 24 | ES35: 24 | ET35: 10 | EU35: 15 | EV35: 6 | EW35: 5 | EX35: 55 | EY35: 67 | EZ35: 66 | FA35: 49 | FB35: 51 | FC35: 34 | FD35: 22
A36: 1 | B36: =OFFSET(Input_Details!$Q$4,MATCH($A36, Input_Details!$J$5:$J$24, 0), 0) -> 2017-04-24 | C36: =INDEX(Input_Details!$H$5:$H$24, MATCH($A36, Input_Details!$J$5:$J$24, 0), 0) -> Harper Road (South of Falmouth Road) | D36: =INDEX(Input_Details!$I$5:$I$24, MATCH($A36, Input_Details!$J$5:$J$24, 0), 0) -> 51.49617, -0.09302 | E36: =INDEX(Input_Details!$K$5:$K$24, MATCH($A36, Input_Details!$J$5:$J$24, 0), 0) -> Southbound | F36: Mon | G36: 08:00:00 | H36: 3 | I36: 26 | J36: 0 | K36: 4 | L36: 1 | M36: 0 | N36: 0 | O36: 2 | P36: 0 | Q36: 0 | R36: 0 | S36: 0 | T36: 0 | U36: 6 | V36: 19 | W36: 10 | X36: 0 | Y36: 1 | Z36: 0 | AA36: 0 | AB36: 0 | AC36: 0 | AD36: 0 | AE36: 0 | AF36: 0 | AG36: 0 | AH36: 0 | AI36: 0 | AJ36: 0 | AK36: 0 | AL36: 0 | AM36: 0 | AN36: 18.5 | AO36: 21 | AP36: 10.6 | AQ36: 31.5 | AR36: =INDEX(Input_Details!$L$5:$L$24, MATCH($A36, Input_Details!$J$5:$J$24, 0), 0) -> Northbound | AS36: Mon | AT36: 08:00:00 | AU36: 10 | AV36: 8 | AW36: 0 | AX36: 0 | AY36: 0 | AZ36: 0 | BA36: 0 | BB36: 0 | BC36: 0 | BD36: 0 | BE36: 0 | BF36: 0 | BG36: 2 | BH36: 5 | BI36: 9 | BJ36: 2 | BK36: 0 | BL36: 0 | BM36: 0 | BN36: 0 | BO36: 0 | BP36: 0 | BQ36: 0 | BR36: 0 | BS36: 0 | BT36: 0 | BU36: 0 | BV36: 0 | BW36: 0 | BX36: 0 | BY36: 0 | BZ36: 0 | CA36: 15.5 | CB36: 18.8 | CC36: 8.5 | CD36: 23.2 | CF36: Mon | CG36: 08:00:00 | CH36: 13 | CI36: 34 | CJ36: 0 | CK36: 4 | CL36: 1 | CM36: 0 | CN36: 0 | CO36: 2 | CP36: 0 | CQ36: 0 | CR36: 0 | CS36: 0 | CT36: 2 | CU36: 11 | CV36: 28 | CW36: 12 | CX36: 0 | CY36: 1 | CZ36: 0 | DA36: 0 | DB36: 0 | DC36: 0 | DD36: 0 | DE36: 0 | DF36: 0 | DG36: 0 | DH36: 0 | DI36: 0 | DJ36: 0 | DK36: 0 | DL36: 0 | DM36: 0 | DN36: 17.5 | DO36: 19.9 | DP36: 8.5 | DQ36: 31.5 | DR36: 3 | DS36: 26 | DT36: 4 | DU36: 1 | DV36: 2 | DW36: 36 | DX36: 10 | DY36: 8 | DZ36: 0 | EA36: 0 | EB36: 0 | EC36: 18 | ED36: 13 | EE36: 34 | EF36: 4 | EG36: 1 | EH36: 2 | EI36: 54 | EJ36: 36 | EK36: 41 | EL36: 43 | EM36: 38 | EN36: 45 | EO36: 23 | EP36: 11 | EQ36: 18 | ER36: 21 | ES36: 12 | ET36: 12 | EU36: 12 | EV36: 5 | EW36: 2 | EX36: 54 | EY36: 62 | EZ36: 55 | FA36: 50 | FB36: 57 | FC36: 28 | FD36: 13
A37: 1 | B37: =OFFSET(Input_Details!$Q$4,MATCH($A37, Input_Details!$J$5:$J$24, 0), 0) -> 2017-04-24 | C37: =INDEX(Input_Details!$H$5:$H$24, MATCH($A37, Input_Details!$J$5:$J$24, 0), 0) -> Harper Road (South of Falmouth Road) | D37: =INDEX(Input_Details!$I$5:$I$24, MATCH($A37, Input_Details!$J$5:$J$24, 0), 0) -> 51.49617, -0.09302 | E37: =INDEX(Input_Details!$K$5:$K$24, MATCH($A37, Input_Details!$J$5:$J$24, 0), 0) -> Southbound | F37: =+F36 -> Mon | G37: 08:15:00 | H37: 2 | I37: 44 | J37: 0 | K37: 7 | L37: 2 | M37: 1 | N37: 0 | O37: 1 | P37: 0 | Q37: 0 | R37: 0 | S37: 0 | T37: 1 | U37: 7 | V37: 34 | W37: 14 | X37: 1 | Y37: 0 | Z37: 0 | AA37: 0 | AB37: 0 | AC37: 0 | AD37: 0 | AE37: 0 | AF37: 0 | AG37: 0 | AH37: 0 | AI37: 0 | AJ37: 0 | AK37: 0 | AL37: 0 | AM37: 0 | AN37: 18 | AO37: 21 | AP37: 8.2 | AQ37: 25.1 | AR37: =INDEX(Input_Details!$L$5:$L$24, MATCH($A37, Input_Details!$J$5:$J$24, 0), 0) -> Northbound | AS37: Mon | AT37: 08:15:00 | AU37: 9 | AV37: 11 | AW37: 0 | AX37: 0 | AY37: 0 | AZ37: 1 | BA37: 0 | BB37: 0 | BC37: 0 | BD37: 0 | BE37: 0 | BF37: 0 | BG37: 1 | BH37: 12 | BI37: 5 | BJ37: 3 | BK37: 0 | BL37: 0 | BM37: 0 | BN37: 0 | BO37: 0 | BP37: 0 | BQ37: 0 | BR37: 0 | BS37: 0 | BT37: 0 | BU37: 0 | BV37: 0 | BW37: 0 | BX37: 0 | BY37: 0 | BZ37: 0 | CA37: 14.9 | CB37: 18.3 | CC37: 8.2 | CD37: 21.9 | CF37: Mon | CG37: 08:15:00 | CH37: 11 | CI37: 55 | CJ37: 0 | CK37: 7 | CL37: 2 | CM37: 2 | CN37: 0 | CO37: 1 | CP37: 0 | CQ37: 0 | CR37: 0 | CS37: 0 | CT37: 2 | CU37: 19 | CV37: 39 | CW37: 17 | CX37: 1 | CY37: 0 | CZ37: 0 | DA37: 0 | DB37: 0 | DC37: 0 | DD37: 0 | DE37: 0 | DF37: 0 | DG37: 0 | DH37: 0 | DI37: 0 | DJ37: 0 | DK37: 0 | DL37: 0 | DM37: 0 | DN37: 17.16538462 | DO37: 19.65 | DP37: 8.2 | DQ37: 25.1 | DR37: 2 | DS37: 44 | DT37: 7 | DU37: 2 | DV37: 2 | DW37: 57 | DX37: 9 | DY37: 11 | DZ37: 0 | EA37: 0 | EB37: 1 | EC37: 21 | ED37: 11 | EE37: 55 | EF37: 7 | EG37: 2 | EH37: 3 | EI37: 78 | EJ37: 57 | EK37: 39 | EL37: 37 | EM37: 51 | EN37: 52 | EO37: 29 | EP37: 22 | EQ37: 21 | ER37: 33 | ES37: 30 | ET37: 21 | EU37: 15 | EV37: 7 | EW37: 4 | EX37: 78 | EY37: 72 | EZ37: 67 | FA37: 72 | FB37: 67 | FC37: 36 | FD37: 26
A38: 1 | B38: =OFFSET(Input_Details!$Q$4,MATCH($A38, Input_Details!$J$5:$J$24, 0), 0) -> 2017-04-24 | C38: =INDEX(Input_Details!$H$5:$H$24, MATCH($A38, Input_Details!$J$5:$J$24, 0), 0) -> Harper Road (South of Falmouth Road) | D38: =INDEX(Input_Details!$I$5:$I$24, MATCH($A38, Input_Details!$J$5:$J$24, 0), 0) -> 51.49617, -0.09302 | E38: =INDEX(Input_Details!$K$5:$K$24, MATCH($A38, Input_Details!$J$5:$J$24, 0), 0) -> Southbound | F38: Mon | G38: 08:30:00 | H38: 8 | I38: 29 | J38: 0 | K38: 2 | L38: 4 | M38: 0 | N38: 0 | O38: 0 | P38: 0 | Q38: 1 | R38: 0 | S38: 0 | T38: 0 | U38: 6 | V38: 26 | W38: 10 | X38: 1 | Y38: 0 | Z38: 1 | AA38: 0 | AB38: 0 | AC38: 0 | AD38: 0 | AE38: 0 | AF38: 0 | AG38: 0 | AH38: 0 | AI38: 0 | AJ38: 0 | AK38: 0 | AL38: 0 | AM38: 0 | AN38: 18.2 | AO38: 21.7 | AP38: 10.8 | AQ38: 38 | AR38: =INDEX(Input_Details!$L$5:$L$24, MATCH($A38, Input_Details!$J$5:$J$24, 0), 0) -> Northbound | AS38: Mon | AT38: 08:30:00 | AU38: 11 | AV38: 9 | AW38: 0 | AX38: 0 | AY38: 0 | AZ38: 0 | BA38: 0 | BB38: 0 | BC38: 0 | BD38: 0 | BE38: 0 | BF38: 0 | BG38: 2 | BH38: 10 | BI38: 6 | BJ38: 0 | BK38: 1 | BL38: 0 | BM38: 1 | BN38: 0 | BO38: 0 | BP38: 0 | BQ38: 0 | BR38: 0 | BS38: 0 | BT38: 0 | BU38: 0 | BV38: 0 | BW38: 0 | BX38: 0 | BY38: 0 | BZ38: 0 | CA38: 15.9 | CB38: 17.4 | CC38: 9 | CD38: 37.1 | CF38: Mon | CG38: 08:30:00 | CH38: 19 | CI38: 38 | CJ38: 0 | CK38: 2 | CL38: 4 | CM38: 0 | CN38: 0 | CO38: 0 | CP38: 0 | CQ38: 1 | CR38: 0 | CS38: 0 | CT38: 2 | CU38: 16 | CV38: 32 | CW38: 10 | CX38: 2 | CY38: 0 | CZ38: 2 | DA38: 0 | DB38: 0 | DC38: 0 | DD38: 0 | DE38: 0 | DF38: 0 | DG38: 0 | DH38: 0 | DI38: 0 | DJ38: 0 | DK38: 0 | DL38: 0 | DM38: 0 | DN38: 17.48125 | DO38: 19.55 | DP38: 9 | DQ38: 38 | DR38: 8 | DS38: 29 | DT38: 2 | DU38: 4 | DV38: 1 | DW38: 44 | DX38: 11 | DY38: 9 | DZ38: 0 | EA38: 0 | EB38: 0 | EC38: 20 | ED38: 19 | EE38: 38 | EF38: 2 | EG38: 4 | EH38: 1 | EI38: 64 | EJ38: 44 | EK38: 34 | EL38: 40 | EM38: 52 | EN38: 38 | EO38: 31 | EP38: 15 | EQ38: 20 | ER38: 30 | ES38: 27 | ET38: 17 | EU38: 19 | EV38: 4 | EW38: 2 | EX38: 64 | EY38: 64 | EZ38: 67 | FA38: 69 | FB38: 57 | FC38: 35 | FD38: 17
A39: 1 | B39: =OFFSET(Input_Details!$Q$4,MATCH($A39, Input_Details!$J$5:$J$24, 0), 0) -> 2017-04-24 | C39: =INDEX(Input_Details!$H$5:$H$24, MATCH($A39, Input_Details!$J$5:$J$24, 0), 0) -> Harper Road (South of Falmouth Road) | D39: =INDEX(Input_Details!$I$5:$I$24, MATCH($A39, Input_Details!$J$5:$J$24, 0), 0) -> 51.49617, -0.09302 | E39: =INDEX(Input_Details!$K$5:$K$24, MATCH($A39, Input_Details!$J$5:$J$24, 0), 0) -> Southbound | F39: Mon | G39: 08:45:00 | H39: 2 | I39: 33 | J39: 0 | K39: 2 | L39: 0 | M39: 0 | N39: 0 | O39: 0 | P39: 0 | Q39: 1 | R39: 1 | S39: 0 | T39: 0 | U39: 5 | V39: 20 | W39: 10 | X39: 4 | Y39: 0 | Z39: 0 | AA39: 0 | AB39: 0 | AC39: 0 | AD39: 0 | AE39: 0 | AF39: 0 | AG39: 0 | AH39: 0 | AI39: 0 | AJ39: 0 | AK39: 0 | AL39: 0 | AM39: 0 | AN39: 19.1 | AO39: 23.9 | AP39: 10.5 | AQ39: 27.4 | AR39: =INDEX(Input_Details!$L$5:$L$24, MATCH($A39, Input_Details!$J$5:$J$24, 0), 0) -> Northbound | AS39: Mon | AT39: 08:45:00 | AU39: 10 | AV39: 9 | AW39: 0 | AX39: 0 | AY39: 0 | AZ39: 0 | BA39: 0 | BB39: 0 | BC39: 0 | BD39: 0 | BE39: 0 | BF39: 0 | BG39: 1 | BH39: 9 | BI39: 5 | BJ39: 3 | BK39: 1 | BL39: 0 | BM39: 0 | BN39: 0 | BO39: 0 | BP39: 0 | BQ39: 0 | BR39: 0 | BS39: 0 | BT39: 0 | BU39: 0 | BV39: 0 | BW39: 0 | BX39: 0 | BY39: 0 | BZ39: 0 | CA39: 15.7 | CB39: 19.9 | CC39: 9.7 | CD39: 26.3 | CF39: Mon | CG39: 08:45:00 | CH39: 12 | CI39: 42 | CJ39: 0 | CK39: 2 | CL39: 0 | CM39: 0 | CN39: 0 | CO39: 0 | CP39: 0 | CQ39: 1 | CR39: 1 | CS39: 0 | CT39: 1 | CU39: 14 | CV39: 25 | CW39: 13 | CX39: 5 | CY39: 0 | CZ39: 0 | DA39: 0 | DB39: 0 | DC39: 0 | DD39: 0 | DE39: 0 | DF39: 0 | DG39: 0 | DH39: 0 | DI39: 0 | DJ39: 0 | DK39: 0 | DL39: 0 | DM39: 0 | DN39: 17.9862069 | DO39: 21.9 | DP39: 9.7 | DQ39: 27.4 | DR39: 2 | DS39: 33 | DT39: 2 | DU39: 0 | DV39: 2 | DW39: 39 | DX39: 10 | DY39: 9 | DZ39: 0 | EA39: 0 | EB39: 0 | EC39: 19 | ED39: 12 | EE39: 42 | EF39: 2 | EG39: 0 | EH39: 2 | EI39: 58 | EJ39: 39 | EK39: 40 | EL39: 42 | EM39: 46 | EN39: 57 | EO39: 22 | EP39: 11 | EQ39: 19 | ER39: 32 | ES39: 18 | ET39: 20 | EU39: 17 | EV39: 4 | EW39: 6 | EX39: 58 | EY39: 72 | EZ39: 60 | FA39: 66 | FB39: 74 | FC39: 26 | FD39: 17
A40: 1 | B40: =OFFSET(Input_Details!$Q$4,MATCH($A40, Input_Details!$J$5:$J$24, 0), 0) -> 2017-04-24 | C40: =INDEX(Input_Details!$H$5:$H$24, MATCH($A40, Input_Details!$J$5:$J$24, 0), 0) -> Harper Road (South of Falmouth Road) | D40: =INDEX(Input_Details!$I$5:$I$24, MATCH($A40, Input_Details!$J$5:$J$24, 0), 0) -> 51.49617, -0.09302 | E40: =INDEX(Input_Details!$K$5:$K$24, MATCH($A40, Input_Details!$J$5:$J$24, 0), 0) -> Southbound | F40: Mon | G40: 09:00:00 | H40: 5 | I40: 39 | J40: 0 | K40: 6 | L40: 1 | M40: 1 | N40: 0 | O40: 0 | P40: 0 | Q40: 0 | R40: 0 | S40: 0 | T40: 0 | U40: 7 | V40: 25 | W40: 17 | X40: 3 | Y40: 0 | Z40: 0 | AA40: 0 | AB40: 0 | AC40: 0 | AD40: 0 | AE40: 0 | AF40: 0 | AG40: 0 | AH40: 0 | AI40: 0 | AJ40: 0 | AK40: 0 | AL40: 0 | AM40: 0 | AN40: 19.1 | AO40: 22.8 | AP40: 12.1 | AQ40: 26.9 | AR40: =INDEX(Input_Details!$L$5:$L$24, MATCH($A40, Input_Details!$J$5:$J$24, 0), 0) -> Northbound | AS40: Mon | AT40: 09:00:00 | AU40: 13 | AV40: 6 | AW40: 0 | AX40: 1 | AY40: 1 | AZ40: 0 | BA40: 0 | BB40: 0 | BC40: 0 | BD40: 0 | BE40: 0 | BF40: 0 | BG40: 1 | BH40: 14 | BI40: 4 | BJ40: 1 | BK40: 1 | BL40: 0 | BM40: 0 | BN40: 0 | BO40: 0 | BP40: 0 | BQ40: 0 | BR40: 0 | BS40: 0 | BT40: 0 | BU40: 0 | BV40: 0 | BW40: 0 | BX40: 0 | BY40: 0 | BZ40: 0 | CA40: 14.7 | CB40: 16.3 | CC40: 8.7 | CD40: 29 | CF40: Mon | CG40: 09:00:00 | CH40: 18 | CI40: 45 | CJ40: 0 | CK40: 7 | CL40: 2 | CM40: 1 | CN40: 0 | CO40: 0 | CP40: 0 | CQ40: 0 | CR40: 0 | CS40: 0 | CT40: 1 | CU40: 21 | CV40: 29 | CW40: 18 | CX40: 4 | CY40: 0 | CZ40: 0 | DA40: 0 | DB40: 0 | DC40: 0 | DD40: 0 | DE40: 0 | DF40: 0 | DG40: 0 | DH40: 0 | DI40: 0 | DJ40: 0 | DK40: 0 | DL40: 0 | DM40: 0 | DN40: 17.83424658 | DO40: 19.55 | DP40: 8.7 | DQ40: 29 | DR40: 5 | DS40: 39 | DT40: 6 | DU40: 1 | DV40: 1 | DW40: 52 | DX40: 13 | DY40: 6 | DZ40: 1 | EA40: 1 | EB40: 0 | EC40: 21 | ED40: 18 | EE40: 45 | EF40: 7 | EG40: 2 | EH40: 1 | EI40: 73 | EJ40: 52 | EK40: 49 | EL40: 52 | EM40: 48 | EN40: 47 | EO40: 34 | EP40: 16 | EQ40: 21 | ER40: 26 | ES40: 18 | ET40: 13 | EU40: 18 | EV40: 5 | EW40: 4 | EX40: 73 | EY40: 75 | EZ40: 70 | FA40: 61 | FB40: 65 | FC40: 39 | FD40: 20
A41: 1 | B41: =OFFSET(Input_Details!$Q$4,MATCH($A41, Input_Details!$J$5:$J$24, 0), 0) -> 2017-04-24 | C41: =INDEX(Input_Details!$H$5:$H$24, MATCH($A41, Input_Details!$J$5:$J$24, 0), 0) -> Harper Road (South of Falmouth Road) | D41: =INDEX(Input_Details!$I$5:$I$24, MATCH($A41, Input_Details!$J$5:$J$24, 0), 0) -> 51.49617, -0.09302 | E41: =INDEX(Input_Details!$K$5:$K$24, MATCH($A41, Input_Details!$J$5:$J$24, 0), 0) -> Southbound | F41: Mon | G41: 09:15:00 | H41: 2 | I41: 33 | J41: 0 | K41: 9 | L41: 0 | M41: 0 | N41: 0 | O41: 0 | P41: 0 | Q41: 1 | R41: 0 | S41: 0 | T41: 0 | U41: 3 | V41: 22 | W41: 16 | X41: 3 | Y41: 1 | Z41: 0 | AA41: 0 | AB41: 0 | AC41: 0 | AD41: 0 | AE41: 0 | AF41: 0 | AG41: 0 | AH41: 0 | AI41: 0 | AJ41: 0 | AK41: 0 | AL41: 0 | AM41: 0 | AN41: 19.7 | AO41: 23 | AP41: 12.6 | AQ41: 31.2 | AR41: =INDEX(Input_Details!$L$5:$L$24, MATCH($A41, Input_Details!$J$5:$J$24, 0), 0) -> Northbound | AS41: Mon | AT41: 09:15:00 | AU41: 7 | AV41: 4 | AW41: 0 | AX41: 0 | AY41: 0 | AZ41: 0 | BA41: 0 | BB41: 0 | BC41: 0 | BD41: 0 | BE41: 0 | BF41: 0 | BG41: 1 | BH41: 6 | BI41: 3 | BJ41: 1 | BK41: 0 | BL41: 0 | BM41: 0 | BN41: 0 | BO41: 0 | BP41: 0 | BQ41: 0 | BR41: 0 | BS41: 0 | BT41: 0 | BU41: 0 | BV41: 0 | BW41: 0 | BX41: 0 | BY41: 0 | BZ41: 0 | CA41: 13.9 | CB41: 16.3 | CC41: 8.7 | CD41: 20.2 | CF41: Mon | CG41: 09:15:00 | CH41: 9 | CI41: 37 | CJ41: 0 | CK41: 9 | CL41: 0 | CM41: 0 | CN41: 0 | CO41: 0 | CP41: 0 | CQ41: 1 | CR41: 0 | CS41: 0 | CT41: 1 | CU41: 9 | CV41: 25 | CW41: 17 | CX41: 3 | CY41: 1 | CZ41: 0 | DA41: 0 | DB41: 0 | DC41: 0 | DD41: 0 | DE41: 0 | DF41: 0 | DG41: 0 | DH41: 0 | DI41: 0 | DJ41: 0 | DK41: 0 | DL41: 0 | DM41: 0 | DN41: 18.56071429 | DO41: 19.65 | DP41: 8.7 | DQ41: 31.2 | DR41: 2 | DS41: 33 | DT41: 9 | DU41: 0 | DV41: 1 | DW41: 45 | DX41: 7 | DY41: 4 | DZ41: 0 | EA41: 0 | EB41: 0 | EC41: 11 | ED41: 9 | EE41: 37 | EF41: 9 | EG41: 0 | EH41: 1 | EI41: 56 | EJ41: 45 | EK41: 31 | EL41: 48 | EM41: 36 | EN41: 51 | EO41: 39 | EP41: 16 | EQ41: 11 | ER41: 14 | ES41: 17 | ET41: 10 | EU41: 10 | EV41: 7 | EW41: 2 | EX41: 56 | EY41: 45 | EZ41: 65 | FA41: 46 | FB41: 61 | FC41: 46 | FD41: 18
A42: 1 | B42: =OFFSET(Input_Details!$Q$4,MATCH($A42, Input_Details!$J$5:$J$24, 0), 0) -> 2017-04-24 | C42: =INDEX(Input_Details!$H$5:$H$24, MATCH($A42, Input_Details!$J$5:$J$24, 0), 0) -> Harper Road (South of Falmouth Road) | D42: =INDEX(Input_Details!$I$5:$I$24, MATCH($A42, Input_Details!$J$5:$J$24, 0), 0) -> 51.49617, -0.09302 | E42: =INDEX(Input_Details!$K$5:$K$24, MATCH($A42, Input_Details!$J$5:$J$24, 0), 0) -> Southbound | F42: Mon | G42: 09:30:00 | H42: 1 | I42: 33 | J42: 0 | K42: 7 | L42: 0 | M42: 0 | N42: 0 | O42: 0 | P42: 0 | Q42: 0 | R42: 0 | S42: 0 | T42: 1 | U42: 5 | V42: 18 | W42: 16 | X42: 1 | Y42: 0 | Z42: 0 | AA42: 0 | AB42: 0 | AC42: 0 | AD42: 0 | AE42: 0 | AF42: 0 | AG42: 0 | AH42: 0 | AI42: 0 | AJ42: 0 | AK42: 0 | AL42: 0 | AM42: 0 | AN42: 19.3 | AO42: 21.7 | AP42: 8 | AQ42: 28.7 | AR42: =INDEX(Input_Details!$L$5:$L$24, MATCH($A42, Input_Details!$J$5:$J$24, 0), 0) -> Northbound | AS42: Mon | AT42: 09:30:00 | AU42: 3 | AV42: 3 | AW42: 0 | AX42: 0 | AY42: 0 | AZ42: 1 | BA42: 0 | BB42: 0 | BC42: 0 | BD42: 0 | BE42: 0 | BF42: 0 | BG42: 0 | BH42: 2 | BI42: 3 | BJ42: 2 | BK42: 0 | BL42: 0 | BM42: 0 | BN42: 0 | BO42: 0 | BP42: 0 | BQ42: 0 | BR42: 0 | BS42: 0 | BT42: 0 | BU42: 0 | BV42: 0 | BW42: 0 | BX42: 0 | BY42: 0 | BZ42: 0 | CA42: 17.3 | CB42: - | CC42: 10.5 | CD42: 24.5 | CF42: Mon | CG42: 09:30:00 | CH42: 4 | CI42: 36 | CJ42: 0 | CK42: 7 | CL42: 0 | CM42: 1 | CN42: 0 | CO42: 0 | CP42: 0 | CQ42: 0 | CR42: 0 | CS42: 0 | CT42: 1 | CU42: 7 | CV42: 21 | CW42: 18 | CX42: 1 | CY42: 0 | CZ42: 0 | DA42: 0 | DB42: 0 | DC42: 0 | DD42: 0 | DE42: 0 | DF42: 0 | DG42: 0 | DH42: 0 | DI42: 0 | DJ42: 0 | DK42: 0 | DL42: 0 | DM42: 0 | DN42: 19.00833333 | DO42: 21.7 | DP42: 8 | DQ42: 28.7 | DR42: 1 | DS42: 33 | DT42: 7 | DU42: 0 | DV42: 0 | DW42: 41 | DX42: 3 | DY42: 3 | DZ42: 0 | EA42: 0 | EB42: 1 | EC42: 7 | ED42: 4 | EE42: 36 | EF42: 7 | EG42: 0 | EH42: 1 | EI42: 48 | EJ42: 41 | EK42: 43 | EL42: 39 | EM42: 40 | EN42: 51 | EO42: 32 | EP42: 25 | EQ42: 7 | ER42: 16 | ES42: 8 | ET42: 14 | EU42: 8 | EV42: 9 | EW42: 9 | EX42: 48 | EY42: 59 | EZ42: 47 | FA42: 54 | FB42: 59 | FC42: 41 | FD42: 34
A43: 1 | B43: =OFFSET(Input_Details!$Q$4,MATCH($A43, Input_Details!$J$5:$J$24, 0), 0) -> 2017-04-24 | C43: =INDEX(Input_Details!$H$5:$H$24, MATCH($A43, Input_Details!$J$5:$J$24, 0), 0) -> Harper Road (South of Falmouth Road) | D43: =INDEX(Input_Details!$I$5:$I$24, MATCH($A43, Input_Details!$J$5:$J$24, 0), 0) -> 51.49617, -0.09302 | E43: =INDEX(Input_Details!$K$5:$K$24, MATCH($A43, Input_Details!$J$5:$J$24, 0), 0) -> Southbound | F43: Mon | G43: 09:45:00 | H43: 3 | I43: 23 | J43: 0 | K43: 11 | L43: 0 | M43: 0 | N43: 0 | O43: 0 | P43: 0 | Q43: 0 | R43: 0 | S43: 0 | T43: 0 | U43: 2 | V43: 12 | W43: 14 | X43: 9 | Y43: 0 | Z43: 0 | AA43: 0 | AB43: 0 | AC43: 0 | AD43: 0 | AE43: 0 | AF43: 0 | AG43: 0 | AH43: 0 | AI43: 0 | AJ43: 0 | AK43: 0 | AL43: 0 | AM43: 0 | AN43: 21.8 | AO43: 26.2 | AP43: 13.4 | AQ43: 29.4 | AR43: =INDEX(Input_Details!$L$5:$L$24, MATCH($A43, Input_Details!$J$5:$J$24, 0), 0) -> Northbound | AS43: Mon | AT43: 09:45:00 | AU43: 1 | AV43: 7 | AW43: 0 | AX43: 0 | AY43: 0 | AZ43: 0 | BA43: 0 | BB43: 0 | BC43: 0 | BD43: 0 | BE43: 0 | BF43: 0 | BG43: 0 | BH43: 1 | BI43: 6 | BJ43: 1 | BK43: 0 | BL43: 0 | BM43: 0 | BN43: 0 | BO43: 0 | BP43: 0 | BQ43: 0 | BR43: 0 | BS43: 0 | BT43: 0 | BU43: 0 | BV43: 0 | BW43: 0 | BX43: 0 | BY43: 0 | BZ43: 0 | CA43: 18 | CB43: - | CC43: 10.2 | CD43: 22.3 | CF43: Mon | CG43: 09:45:00 | CH43: 4 | CI43: 30 | CJ43: 0 | CK43: 11 | CL43: 0 | CM43: 0 | CN43: 0 | CO43: 0 | CP43: 0 | CQ43: 0 | CR43: 0 | CS43: 0 | CT43: 0 | CU43: 3 | CV43: 18 | CW43: 15 | CX43: 9 | CY43: 0 | CZ43: 0 | DA43: 0 | DB43: 0 | DC43: 0 | DD43: 0 | DE43: 0 | DF43: 0 | DG43: 0 | DH43: 0 | DI43: 0 | DJ43: 0 | DK43: 0 | DL43: 0 | DM43: 0 | DN43: 21.12444444 | DO43: 26.2 | DP43: 10.2 | DQ43: 29.4 | DR43: 3 | DS43: 23 | DT43: 11 | DU43: 0 | DV43: 0 | DW43: 37 | DX43: 1 | DY43: 7 | DZ43: 0 | EA43: 0 | EB43: 0 | EC43: 8 | ED43: 4 | EE43: 30 | EF43: 11 | EG43: 0 | EH43: 0 | EI43: 45 | EJ43: 37 | EK43: 49 | EL43: 43 | EM43: 34 | EN43: 55 | EO43: 48 | EP43: 23 | EQ43: 8 | ER43: 16 | ES43: 9 | ET43: 9 | EU43: 10 | EV43: 4 | EW43: 6 | EX43: 45 | EY43: 65 | EZ43: 52 | FA43: 43 | FB43: 65 | FC43: 52 | FD43: 29
A44: 1 | B44: =OFFSET(Input_Details!$Q$4,MATCH($A44, Input_Details!$J$5:$J$24, 0), 0) -> 2017-04-24 | C44: =INDEX(Input_Details!$H$5:$H$24, MATCH($A44, Input_Details!$J$5:$J$24, 0), 0) -> Harper Road (South of Falmouth Road) | D44: =INDEX(Input_Details!$I$5:$I$24, MATCH($A44, Input_Details!$J$5:$J$24, 0), 0) -> 51.49617, -0.09302 | E44: =INDEX(Input_Details!$K$5:$K$24, MATCH($A44, Input_Details!$J$5:$J$24, 0), 0) -> Southbound | F44: Mon | G44: 10:00:00 | H44: 1 | I44: 41 | J44: 0 | K44: 1 | L44: 1 | M44: 3 | N44: 0 | O44: 0 | P44: 1 | Q44: 0 | R44: 0 | S44: 0 | T44: 0 | U44: 1 | V44: 26 | W44: 20 | X44: 1 | Y44: 0 | Z44: 0 | AA44: 0 | AB44: 0 | AC44: 0 | AD44: 0 | AE44: 0 | AF44: 0 | AG44: 0 | AH44: 0 | AI44: 0 | AJ44: 0 | AK44: 0 | AL44: 0 | AM44: 0 | AN44: 19.6 | AO44: 22.1 | AP44: 12.3 | AQ44: 26.2 | AR44: =INDEX(Input_Details!$L$5:$L$24, MATCH($A44, Input_Details!$J$5:$J$24, 0), 0) -> Northbound | AS44: Mon | AT44: 10:00:00 | AU44: 3 | AV44: 5 | AW44: 0 | AX44: 0 | AY44: 0 | AZ44: 1 | BA44: 0 | BB44: 0 | BC44: 0 | BD44: 0 | BE44: 0 | BF44: 0 | BG44: 1 | BH44: 2 | BI44: 1 | BJ44: 2 | BK44: 2 | BL44: 0 | BM44: 0 | BN44: 1 | BO44: 0 | BP44: 0 | BQ44: 0 | BR44: 0 | BS44: 0 | BT44: 0 | BU44: 0 | BV44: 0 | BW44: 0 | BX44: 0 | BY44: 0 | BZ44: 0 | CA44: 20.7 | CB44: - | CC44: 7.6 | CD44: 40.6 | CF44: Mon | CG44: 10:00:00 | CH44: 4 | CI44: 46 | CJ44: 0 | CK44: 1 | CL44: 1 | CM44: 4 | CN44: 0 | CO44: 0 | CP44: 1 | CQ44: 0 | CR44: 0 | CS44: 0 | CT44: 1 | CU44: 3 | CV44: 27 | CW44: 22 | CX44: 3 | CY44: 0 | CZ44: 0 | DA44: 1 | DB44: 0 | DC44: 0 | DD44: 0 | DE44: 0 | DF44: 0 | DG44: 0 | DH44: 0 | DI44: 0 | DJ44: 0 | DK44: 0 | DL44: 0 | DM44: 0 | DN44: 19.77368421 | DO44: 22.1 | DP44: 7.6 | DQ44: 40.6 | DR44: 1 | DS44: 41 | DT44: 1 | DU44: 1 | DV44: 4 | DW44: 48 | DX44: 3 | DY44: 5 | DZ44: 0 | EA44: 0 | EB44: 1 | EC44: 9 | ED44: 4 | EE44: 46 | EF44: 1 | EG44: 1 | EH44: 5 | EI44: 57 | EJ44: 48 | EK44: 41 | EL44: 49 | EM44: 47 | EN44: 33 | EO44: 39 | EP44: 21 | EQ44: 9 | ER44: 12 | ES44: 14 | ET44: 4 | EU44: 8 | EV44: 9 | EW44: 3 | EX44: 57 | EY44: 53 | EZ44: 63 | FA44: 51 | FB44: 41 | FC44: 48 | FD44: 24
A45: 1 | B45: =OFFSET(Input_Details!$Q$4,MATCH($A45, Input_Details!$J$5:$J$24, 0), 0) -> 2017-04-24 | C45: =INDEX(Input_Details!$H$5:$H$24, MATCH($A45, Input_Details!$J$5:$J$24, 0), 0) -> Harper Road (South of Falmouth Road) | D45: =INDEX(Input_Details!$I$5:$I$24, MATCH($A45, Input_Details!$J$5:$J$24, 0), 0) -> 51.49617, -0.09302 | E45: =INDEX(Input_Details!$K$5:$K$24, MATCH($A45, Input_Details!$J$5:$J$24, 0), 0) -> Southbound | F45: Mon | G45: 10:15:00 | H45: 3 | I45: 35 | J45: 0 | K45: 10 | L45: 4 | M45: 1 | N45: 0 | O45: 0 | P45: 0 | Q45: 0 | R45: 0 | S45: 0 | T45: 1 | U45: 2 | V45: 12 | W45: 35 | X45: 3 | Y45: 0 | Z45: 0 | AA45: 0 | AB45: 0 | AC45: 0 | AD45: 0 | AE45: 0 | AF45: 0 | AG45: 0 | AH45: 0 | AI45: 0 | AJ45: 0 | AK45: 0 | AL45: 0 | AM45: 0 | AN45: 21 | AO45: 24.2 | AP45: 8.8 | AQ45: 28.8 | AR45: =INDEX(Input_Details!$L$5:$L$24, MATCH($A45, Input_Details!$J$5:$J$24, 0), 0) -> Northbound | AS45: Mon | AT45: 10:15:00 | AU45: 0 | AV45: 6 | AW45: 0 | AX45: 0 | AY45: 0 | AZ45: 0 | BA45: 0 | BB45: 0 | BC45: 0 | BD45: 0 | BE45: 0 | BF45: 0 | BG45: 0 | BH45: 1 | BI45: 5 | BJ45: 0 | BK45: 0 | BL45: 0 | BM45: 0 | BN45: 0 | BO45: 0 | BP45: 0 | BQ45: 0 | BR45: 0 | BS45: 0 | BT45: 0 | BU45: 0 | BV45: 0 | BW45: 0 | BX45: 0 | BY45: 0 | BZ45: 0 | CA45: 16.5 | CB45: - | CC45: 10.2 | CD45: 17.8 | CF45: Mon | CG45: 10:15:00 | CH45: 3 | CI45: 41 | CJ45: 0 | CK45: 10 | CL45: 4 | CM45: 1 | CN45: 0 | CO45: 0 | CP45: 0 | CQ45: 0 | CR45: 0 | CS45: 0 | CT45: 1 | CU45: 3 | CV45: 17 | CW45: 35 | CX45: 3 | CY45: 0 | CZ45: 0 | DA45: 0 | DB45: 0 | DC45: 0 | DD45: 0 | DE45: 0 | DF45: 0 | DG45: 0 | DH45: 0 | DI45: 0 | DJ45: 0 | DK45: 0 | DL45: 0 | DM45: 0 | DN45: 20.54237288 | DO45: 24.2 | DP45: 8.8 | DQ45: 28.8 | DR45: 3 | DS45: 35 | DT45: 10 | DU45: 4 | DV45: 1 | DW45: 53 | DX45: 0 | DY45: 6 | DZ45: 0 | EA45: 0 | EB45: 0 | EC45: 6 | ED45: 3 | EE45: 41 | EF45: 10 | EG45: 4 | EH45: 1 | EI45: 59 | EJ45: 53 | EK45: 39 | EL45: 60 | EM45: 56 | EN45: 49 | EO45: 49 | EP45: 20 | EQ45: 6 | ER45: 11 | ES45: 18 | ET45: 10 | EU45: 6 | EV45: 5 | EW45: 7 | EX45: 59 | EY45: 50 | EZ45: 78 | FA45: 66 | FB45: 55 | FC45: 54 | FD45: 27
A46: 1 | B46: =OFFSET(Input_Details!$Q$4,MATCH($A46, Input_Details!$J$5:$J$24, 0), 0) -> 2017-04-24 | C46: =INDEX(Input_Details!$H$5:$H$24, MATCH($A46, Input_Details!$J$5:$J$24, 0), 0) -> Harper Road (South of Falmouth Road) | D46: =INDEX(Input_Details!$I$5:$I$24, MATCH($A46, Input_Details!$J$5:$J$24, 0), 0) -> 51.49617, -0.09302 | E46: =INDEX(Input_Details!$K$5:$K$24, MATCH($A46, Input_Details!$J$5:$J$24, 0), 0) -> Southbound | F46: Mon | G46: 10:30:00 | H46: 4 | I46: 25 | J46: 1 | K46: 15 | L46: 3 | M46: 1 | N46: 0 | O46: 0 | P46: 0 | Q46: 0 | R46: 0 | S46: 0 | T46: 0 | U46: 7 | V46: 17 | W46: 18 | X46: 6 | Y46: 1 | Z46: 0 | AA46: 0 | AB46: 0 | AC46: 0 | AD46: 0 | AE46: 0 | AF46: 0 | AG46: 0 | AH46: 0 | AI46: 0 | AJ46: 0 | AK46: 0 | AL46: 0 | AM46: 0 | AN46: 20.3 | AO46: 24.8 | AP46: 12.8 | AQ46: 30.3 | AR46: =INDEX(Input_Details!$L$5:$L$24, MATCH($A46, Input_Details!$J$5:$J$24, 0), 0) -> Northbound | AS46: Mon | AT46: 10:30:00 | AU46: 0 | AV46: 3 | AW46: 0 | AX46: 0 | AY46: 0 | AZ46: 0 | BA46: 0 | BB46: 0 | BC46: 0 | BD46: 0 | BE46: 0 | BF46: 0 | BG46: 0 | BH46: 0 | BI46: 3 | BJ46: 0 | BK46: 0 | BL46: 0 | BM46: 0 | BN46: 0 | BO46: 0 | BP46: 0 | BQ46: 0 | BR46: 0 | BS46: 0 | BT46: 0 | BU46: 0 | BV46: 0 | BW46: 0 | BX46: 0 | BY46: 0 | BZ46: 0 | CA46: 18.6 | CB46: - | CC46: 17.8 | CD46: 19.4 | CF46: Mon | CG46: 10:30:00 | CH46: 4 | CI46: 28 | CJ46: 1 | CK46: 15 | CL46: 3 | CM46: 1 | CN46: 0 | CO46: 0 | CP46: 0 | CQ46: 0 | CR46: 0 | CS46: 0 | CT46: 0 | CU46: 7 | CV46: 20 | CW46: 18 | CX46: 6 | CY46: 1 | CZ46: 0 | DA46: 0 | DB46: 0 | DC46: 0 | DD46: 0 | DE46: 0 | DF46: 0 | DG46: 0 | DH46: 0 | DI46: 0 | DJ46: 0 | DK46: 0 | DL46: 0 | DM46: 0 | DN46: 20.20192308 | DO46: 24.8 | DP46: 12.8 | DQ46: 30.3 | DR46: 4 | DS46: 26 | DT46: 15 | DU46: 3 | DV46: 1 | DW46: 49 | DX46: 0 | DY46: 3 | DZ46: 0 | EA46: 0 | EB46: 0 | EC46: 3 | ED46: 4 | EE46: 29 | EF46: 15 | EG46: 3 | EH46: 1 | EI46: 52 | EJ46: 49 | EK46: 53 | EL46: 54 | EM46: 58 | EN46: 56 | EO46: 40 | EP46: 27 | EQ46: 3 | ER46: 12 | ES46: 15 | ET46: 9 | EU46: 6 | EV46: 7 | EW46: 3 | EX46: 52 | EY46: 65 | EZ46: 69 | FA46: 67 | FB46: 62 | FC46: 47 | FD46: 30
A47: 1 | B47: =OFFSET(Input_Details!$Q$4,MATCH($A47, Input_Details!$J$5:$J$24, 0), 0) -> 2017-04-24 | C47: =INDEX(Input_Details!$H$5:$H$24, MATCH($A47, Input_Details!$J$5:$J$24, 0), 0) -> Harper Road (South of Falmouth Road) | D47: =INDEX(Input_Details!$I$5:$I$24, MATCH($A47, Input_Details!$J$5:$J$24, 0), 0) -> 51.49617, -0.09302 | E47: =INDEX(Input_Details!$K$5:$K$24, MATCH($A47, Input_Details!$J$5:$J$24, 0), 0) -> Southbound | F47: Mon | G47: 10:45:00 | H47: 2 | I47: 37 | J47: 0 | K47: 17 | L47: 3 | M47: 1 | N47: 0 | O47: 0 | P47: 0 | Q47: 0 | R47: 0 | S47: 0 | T47: 0 | U47: 4 | V47: 28 | W47: 23 | X47: 4 | Y47: 1 | Z47: 0 | AA47: 0 | AB47: 0 | AC47: 0 | AD47: 0 | AE47: 0 | AF47: 0 | AG47: 0 | AH47: 0 | AI47: 0 | AJ47: 0 | AK47: 0 | AL47: 0 | AM47: 0 | AN47: 20.2 | AO47: 23 | AP47: 14 | AQ47: 32.9 | AR47: =INDEX(Input_Details!$L$5:$L$24, MATCH($A47, Input_Details!$J$5:$J$24, 0), 0) -> Northbound | AS47: Mon | AT47: 10:45:00 | AU47: 2 | AV47: 7 | AW47: 0 | AX47: 0 | AY47: 2 | AZ47: 0 | BA47: 0 | BB47: 0 | BC47: 0 | BD47: 0 | BE47: 0 | BF47: 0 | BG47: 0 | BH47: 5 | BI47: 4 | BJ47: 2 | BK47: 0 | BL47: 0 | BM47: 0 | BN47: 0 | BO47: 0 | BP47: 0 | BQ47: 0 | BR47: 0 | BS47: 0 | BT47: 0 | BU47: 0 | BV47: 0 | BW47: 0 | BX47: 0 | BY47: 0 | BZ47: 0 | CA47: 16 | CB47: 18.6 | CC47: 11.2 | CD47: 23.7 | CF47: Mon | CG47: 10:45:00 | CH47: 4 | CI47: 44 | CJ47: 0 | CK47: 17 | CL47: 5 | CM47: 1 | CN47: 0 | CO47: 0 | CP47: 0 | CQ47: 0 | CR47: 0 | CS47: 0 | CT47: 0 | CU47: 9 | CV47: 32 | CW47: 25 | CX47: 4 | CY47: 1 | CZ47: 0 | DA47: 0 | DB47: 0 | DC47: 0 | DD47: 0 | DE47: 0 | DF47: 0 | DG47: 0 | DH47: 0 | DI47: 0 | DJ47: 0 | DK47: 0 | DL47: 0 | DM47: 0 | DN47: 19.54929577 | DO47: 20.8 | DP47: 11.2 | DQ47: 32.9 | DR47: 2 | DS47: 37 | DT47: 17 | DU47: 3 | DV47: 1 | DW47: 60 | DX47: 2 | DY47: 7 | DZ47: 0 | EA47: 2 | EB47: 0 | EC47: 11 | ED47: 4 | EE47: 44 | EF47: 17 | EG47: 5 | EH47: 1 | EI47: 71 | EJ47: 60 | EK47: 74 | EL47: 48 | EM47: 57 | EN47: 52 | EO47: 40 | EP47: 36 | EQ47: 11 | ER47: 13 | ES47: 8 | ET47: 6 | EU47: 4 | EV47: 7 | EW47: 7 | EX47: 71 | EY47: 87 | EZ47: 56 | FA47: 63 | FB47: 56 | FC47: 47 | FD47: 43
A48: 1 | B48: =OFFSET(Input_Details!$Q$4,MATCH($A48, Input_Details!$J$5:$J$24, 0), 0) -> 2017-04-24 | C48: =INDEX(Input_Details!$H$5:$H$24, MATCH($A48, Input_Details!$J$5:$J$24, 0), 0) -> Harper Road (South of Falmouth Road) | D48: =INDEX(Input_Details!$I$5:$I$24, MATCH($A48, Input_Details!$J$5:$J$24, 0), 0) -> 51.49617, -0.09302 | E48: =INDEX(Input_Details!$K$5:$K$24, MATCH($A48, Input_Details!$J$5:$J$24, 0), 0) -> Southbound | F48: Mon | G48: 11:00:00 | H48: 2 | I48: 48 | J48: 0 | K48: 10 | L48: 1 | M48: 1 | N48: 0 | O48: 0 | P48: 0 | Q48: 0 | R48: 0 | S48: 0 | T48: 0 | U48: 7 | V48: 32 | W48: 19 | X48: 3 | Y48: 1 | Z48: 0 | AA48: 0 | AB48: 0 | AC48: 0 | AD48: 0 | AE48: 0 | AF48: 0 | AG48: 0 | AH48: 0 | AI48: 0 | AJ48: 0 | AK48: 0 | AL48: 0 | AM48: 0 | AN48: 19.3 | AO48: 21.5 | AP48: 12.2 | AQ48: 30.6 | AR48: =INDEX(Input_Details!$L$5:$L$24, MATCH($A48, Input_Details!$J$5:$J$24, 0), 0) -> Northbound | AS48: Mon | AT48: 11:00:00 | AU48: 1 | AV48: 2 | AW48: 0 | AX48: 0 | AY48: 0 | AZ48: 0 | BA48: 0 | BB48: 0 | BC48: 0 | BD48: 0 | BE48: 0 | BF48: 0 | BG48: 0 | BH48: 1 | BI48: 1 | BJ48: 1 | BK48: 0 | BL48: 0 | BM48: 0 | BN48: 0 | BO48: 0 | BP48: 0 | BQ48: 0 | BR48: 0 | BS48: 0 | BT48: 0 | BU48: 0 | BV48: 0 | BW48: 0 | BX48: 0 | BY48: 0 | BZ48: 0 | CA48: 16.2 | CB48: - | CC48: 12.4 | CD48: 20.5 | CF48: Mon | CG48: 11:00:00 | CH48: 3 | CI48: 50 | CJ48: 0 | CK48: 10 | CL48: 1 | CM48: 1 | CN48: 0 | CO48: 0 | CP48: 0 | CQ48: 0 | CR48: 0 | CS48: 0 | CT48: 0 | CU48: 8 | CV48: 33 | CW48: 20 | CX48: 3 | CY48: 1 | CZ48: 0 | DA48: 0 | DB48: 0 | DC48: 0 | DD48: 0 | DE48: 0 | DF48: 0 | DG48: 0 | DH48: 0 | DI48: 0 | DJ48: 0 | DK48: 0 | DL48: 0 | DM48: 0 | DN48: 19.15692308 | DO48: 21.5 | DP48: 12.2 | DQ48: 30.6 | DR48: 2 | DS48: 48 | DT48: 10 | DU48: 1 | DV48: 1 | DW48: 62 | DX48: 1 | DY48: 2 | DZ48: 0 | EA48: 0 | EB48: 0 | EC48: 3 | ED48: 3 | EE48: 50 | EF48: 10 | EG48: 1 | EH48: 1 | EI48: 65 | EJ48: 62 | EK48: 50 | EL48: 49 | EM48: 60 | EN48: 55 | EO48: 42 | EP48: 34 | EQ48: 3 | ER48: 11 | ES48: 7 | ET48: 12 | EU48: 6 | EV48: 4 | EW48: 6 | EX48: 65 | EY48: 61 | EZ48: 56 | FA48: 72 | FB48: 61 | FC48: 46 | FD48: 40
A49: 1 | B49: =OFFSET(Input_Details!$Q$4,MATCH($A49, Input_Details!$J$5:$J$24, 0), 0) -> 2017-04-24 | C49: =INDEX(Input_Details!$H$5:$H$24, MATCH($A49, Input_Details!$J$5:$J$24, 0), 0) -> Harper Road (South of Falmouth Road) | D49: =INDEX(Input_Details!$I$5:$I$24, MATCH($A49, Input_Details!$J$5:$J$24, 0), 0) -> 51.49617, -0.09302 | E49: =INDEX(Input_Details!$K$5:$K$24, MATCH($A49, Input_Details!$J$5:$J$24, 0), 0) -> Southbound | F49: Mon | G49: 11:15:00 | H49: 6 | I49: 32 | J49: 0 | K49: 7 | L49: 0 | M49: 2 | N49: 0 | O49: 0 | P49: 0 | Q49: 0 | R49: 0 | S49: 0 | T49: 0 | U49: 3 | V49: 25 | W49: 14 | X49: 4 | Y49: 0 | Z49: 1 | AA49: 0 | AB49: 0 | AC49: 0 | AD49: 0 | AE49: 0 | AF49: 0 | AG49: 0 | AH49: 0 | AI49: 0 | AJ49: 0 | AK49: 0 | AL49: 0 | AM49: 0 | AN49: 20.2 | AO49: 24.2 | AP49: 10.7 | AQ49: 35.3 | AR49: =INDEX(Input_Details!$L$5:$L$24, MATCH($A49, Input_Details!$J$5:$J$24, 0), 0) -> Northbound | AS49: Mon | AT49: 11:15:00 | AU49: 2 | AV49: 5 | AW49: 0 | AX49: 0 | AY49: 0 | AZ49: 0 | BA49: 0 | BB49: 0 | BC49: 0 | BD49: 0 | BE49: 0 | BF49: 0 | BG49: 0 | BH49: 2 | BI49: 4 | BJ49: 1 | BK49: 0 | BL49: 0 | BM49: 0 | BN49: 0 | BO49: 0 | BP49: 0 | BQ49: 0 | BR49: 0 | BS49: 0 | BT49: 0 | BU49: 0 | BV49: 0 | BW49: 0 | BX49: 0 | BY49: 0 | BZ49: 0 | CA49: 15.8 | CB49: - | CC49: 11.8 | CD49: 22 | CF49: Mon | CG49: 11:15:00 | CH49: 8 | CI49: 37 | CJ49: 0 | CK49: 7 | CL49: 0 | CM49: 2 | CN49: 0 | CO49: 0 | CP49: 0 | CQ49: 0 | CR49: 0 | CS49: 0 | CT49: 0 | CU49: 5 | CV49: 29 | CW49: 15 | CX49: 4 | CY49: 0 | CZ49: 1 | DA49: 0 | DB49: 0 | DC49: 0 | DD49: 0 | DE49: 0 | DF49: 0 | DG49: 0 | DH49: 0 | DI49: 0 | DJ49: 0 | DK49: 0 | DL49: 0 | DM49: 0 | DN49: 19.62962963 | DO49: 24.2 | DP49: 10.7 | DQ49: 35.3 | DR49: 6 | DS49: 32 | DT49: 7 | DU49: 0 | DV49: 2 | DW49: 47 | DX49: 2 | DY49: 5 | DZ49: 0 | EA49: 0 | EB49: 0 | EC49: 7 | ED49: 8 | EE49: 37 | EF49: 7 | EG49: 0 | EH49: 2 | EI49: 54 | EJ49: 47 | EK49: 47 | EL49: 53 | EM49: 56 | EN49: 52 | EO49: 55 | EP49: 28 | EQ49: 7 | ER49: 5 | ES49: 10 | ET49: 10 | EU49: 7 | EV49: 7 | EW49: 6 | EX49: 54 | EY49: 52 | EZ49: 63 | FA49: 66 | FB49: 59 | FC49: 62 | FD49: 34
A50: 1 | B50: =OFFSET(Input_Details!$Q$4,MATCH($A50, Input_Details!$J$5:$J$24, 0), 0) -> 2017-04-24 | C50: =INDEX(Input_Details!$H$5:$H$24, MATCH($A50, Input_Details!$J$5:$J$24, 0), 0) -> Harper Road (South of Falmouth Road) | D50: =INDEX(Input_Details!$I$5:$I$24, MATCH($A50, Input_Details!$J$5:$J$24, 0), 0) -> 51.49617, -0.09302 | E50: =INDEX(Input_Details!$K$5:$K$24, MATCH($A50, Input_Details!$J$5:$J$24, 0), 0) -> Southbound | F50: Mon | G50: 11:30:00 | H50: 2 | I50: 18 | J50: 0 | K50: 7 | L50: 2 | M50: 1 | N50: 0 | O50: 0 | P50: 0 | Q50: 0 | R50: 0 | S50: 0 | T50: 1 | U50: 2 | V50: 15 | W50: 8 | X50: 4 | Y50: 0 | Z50: 0 | AA50: 0 | AB50: 0 | AC50: 0 | AD50: 0 | AE50: 0 | AF50: 0 | AG50: 0 | AH50: 0 | AI50: 0 | AJ50: 0 | AK50: 0 | AL50: 0 | AM50: 0 | AN50: 19.6 | AO50: 23 | AP50: 9.3 | AQ50: 29.8 | AR50: =INDEX(Input_Details!$L$5:$L$24, MATCH($A50, Input_Details!$J$5:$J$24, 0), 0) -> Northbound | AS50: Mon | AT50: 11:30:00 | AU50: 2 | AV50: 6 | AW50: 0 | AX50: 0 | AY50: 0 | AZ50: 0 | BA50: 0 | BB50: 0 | BC50: 0 | BD50: 0 | BE50: 0 | BF50: 0 | BG50: 0 | BH50: 3 | BI50: 3 | BJ50: 2 | BK50: 0 | BL50: 0 | BM50: 0 | BN50: 0 | BO50: 0 | BP50: 0 | BQ50: 0 | BR50: 0 | BS50: 0 | BT50: 0 | BU50: 0 | BV50: 0 | BW50: 0 | BX50: 0 | BY50: 0 | BZ50: 0 | CA50: 16.5 | CB50: - | CC50: 12.1 | CD50: 20.9 | CF50: Mon | CG50: 11:30:00 | CH50: 4 | CI50: 24 | CJ50: 0 | CK50: 7 | CL50: 2 | CM50: 1 | CN50: 0 | CO50: 0 | CP50: 0 | CQ50: 0 | CR50: 0 | CS50: 0 | CT50: 1 | CU50: 5 | CV50: 18 | CW50: 10 | CX50: 4 | CY50: 0 | CZ50: 0 | DA50: 0 | DB50: 0 | DC50: 0 | DD50: 0 | DE50: 0 | DF50: 0 | DG50: 0 | DH50: 0 | DI50: 0 | DJ50: 0 | DK50: 0 | DL50: 0 | DM50: 0 | DN50: 18.94736842 | DO50: 23 | DP50: 9.3 | DQ50: 29.8 | DR50: 2 | DS50: 18 | DT50: 7 | DU50: 2 | DV50: 1 | DW50: 30 | DX50: 2 | DY50: 6 | DZ50: 0 | EA50: 0 | EB50: 0 | EC50: 8 | ED50: 4 | EE50: 24 | EF50: 7 | EG50: 2 | EH50: 1 | EI50: 38 | EJ50: 30 | EK50: 48 | EL50: 59 | EM50: 58 | EN50: 57 | EO50: 48 | EP50: 36 | EQ50: 8 | ER50: 9 | ES50: 7 | ET50: 2 | EU50: 4 | EV50: 6 | EW50: 5 | EX50: 38 | EY50: 57 | EZ50: 66 | FA50: 60 | FB50: 61 | FC50: 54 | FD50: 41
A51: 1 | B51: =OFFSET(Input_Details!$Q$4,MATCH($A51, Input_Details!$J$5:$J$24, 0), 0) -> 2017-04-24 | C51: =INDEX(Input_Details!$H$5:$H$24, MATCH($A51, Input_Details!$J$5:$J$24, 0), 0) -> Harper Road (South of Falmouth Road) | D51: =INDEX(Input_Details!$I$5:$I$24, MATCH($A51, Input_Details!$J$5:$J$24, 0), 0) -> 51.49617, -0.09302 | E51: =INDEX(Input_Details!$K$5:$K$24, MATCH($A51, Input_Details!$J$5:$J$24, 0), 0) -> Southbound | F51: Mon | G51: 11:45:00 | H51: 3 | I51: 27 | J51: 0 | K51: 9 | L51: 1 | M51: 0 | N51: 0 | O51: 0 | P51: 0 | Q51: 0 | R51: 0 | S51: 0 | T51: 0 | U51: 5 | V51: 17 | W51: 15 | X51: 3 | Y51: 0 | Z51: 0 | AA51: 0 | AB51: 0 | AC51: 0 | AD51: 0 | AE51: 0 | AF51: 0 | AG51: 0 | AH51: 0 | AI51: 0 | AJ51: 0 | AK51: 0 | AL51: 0 | AM51: 0 | AN51: 19.3 | AO51: 22.8 | AP51: 11.2 | AQ51: 27.4 | AR51: =INDEX(Input_Details!$L$5:$L$24, MATCH($A51, Input_Details!$J$5:$J$24, 0), 0) -> Northbound | AS51: Mon | AT51: 11:45:00 | AU51: 3 | AV51: 6 | AW51: 0 | AX51: 0 | AY51: 0 | AZ51: 0 | BA51: 0 | BB51: 0 | BC51: 0 | BD51: 0 | BE51: 0 | BF51: 0 | BG51: 1 | BH51: 5 | BI51: 1 | BJ51: 2 | BK51: 0 | BL51: 0 | BM51: 0 | BN51: 0 | BO51: 0 | BP51: 0 | BQ51: 0 | BR51: 0 | BS51: 0 | BT51: 0 | BU51: 0 | BV51: 0 | BW51: 0 | BX51: 0 | BY51: 0 | BZ51: 0 | CA51: 15.5 | CB51: - | CC51: 9.4 | CD51: 24.4 | CF51: Mon | CG51: 11:45:00 | CH51: 6 | CI51: 33 | CJ51: 0 | CK51: 9 | CL51: 1 | CM51: 0 | CN51: 0 | CO51: 0 | CP51: 0 | CQ51: 0 | CR51: 0 | CS51: 0 | CT51: 1 | CU51: 10 | CV51: 18 | CW51: 17 | CX51: 3 | CY51: 0 | CZ51: 0 | DA51: 0 | DB51: 0 | DC51: 0 | DD51: 0 | DE51: 0 | DF51: 0 | DG51: 0 | DH51: 0 | DI51: 0 | DJ51: 0 | DK51: 0 | DL51: 0 | DM51: 0 | DN51: 18.60204082 | DO51: 22.8 | DP51: 9.4 | DQ51: 27.4 | DR51: 3 | DS51: 27 | DT51: 9 | DU51: 1 | DV51: 0 | DW51: 40 | DX51: 3 | DY51: 6 | DZ51: 0 | EA51: 0 | EB51: 0 | EC51: 9 | ED51: 6 | EE51: 33 | EF51: 9 | EG51: 1 | EH51: 0 | EI51: 49 | EJ51: 40 | EK51: 53 | EL51: 62 | EM51: 63 | EN51: 55 | EO51: 48 | EP51: 23 | EQ51: 9 | ER51: 11 | ES51: 8 | ET51: 6 | EU51: 4 | EV51: 7 | EW51: 10 | EX51: 49 | EY51: 64 | EZ51: 70 | FA51: 69 | FB51: 59 | FC51: 55 | FD51: 33
A52: 1 | B52: =OFFSET(Input_Details!$Q$4,MATCH($A52, Input_Details!$J$5:$J$24, 0), 0) -> 2017-04-24 | C52: =INDEX(Input_Details!$H$5:$H$24, MATCH($A52, Input_Details!$J$5:$J$24, 0), 0) -> Harper Road (South of Falmouth Road) | D52: =INDEX(Input_Details!$I$5:$I$24, MATCH($A52, Input_Details!$J$5:$J$24, 0), 0) -> 51.49617, -0.09302 | E52: =INDEX(Input_Details!$K$5:$K$24, MATCH($A52, Input_Details!$J$5:$J$24, 0), 0) -> Southbound | F52: Mon | G52: 12:00:00 | H52: 6 | I52: 30 | J52: 1 | K52: 13 | L52: 0 | M52: 0 | N52: 0 | O52: 1 | P52: 0 | Q52: 0 | R52: 0 | S52: 0 | T52: 0 | U52: 4 | V52: 15 | W52: 26 | X52: 4 | Y52: 0 | Z52: 2 | AA52: 0 | AB52: 0 | AC52: 0 | AD52: 0 | AE52: 0 | AF52: 0 | AG52: 0 | AH52: 0 | AI52: 0 | AJ52: 0 | AK52: 0 | AL52: 0 | AM52: 0 | AN52: 21.1 | AO52: 24.4 | AP52: 13 | AQ52: 36.3 | AR52: =INDEX(Input_Details!$L$5:$L$24, MATCH($A52, Input_Details!$J$5:$J$24, 0), 0) -> Northbound | AS52: Mon | AT52: 12:00:00 | AU52: 0 | AV52: 4 | AW52: 0 | AX52: 0 | AY52: 0 | AZ52: 0 | BA52: 0 | BB52: 0 | BC52: 0 | BD52: 0 | BE52: 0 | BF52: 0 | BG52: 0 | BH52: 0 | BI52: 4 | BJ52: 0 | BK52: 0 | BL52: 0 | BM52: 0 | BN52: 0 | BO52: 0 | BP52: 0 | BQ52: 0 | BR52: 0 | BS52: 0 | BT52: 0 | BU52: 0 | BV52: 0 | BW52: 0 | BX52: 0 | BY52: 0 | BZ52: 0 | CA52: 18.5 | CB52: - | CC52: 17.1 | CD52: 19.4 | CF52: Mon | CG52: 12:00:00 | CH52: 6 | CI52: 34 | CJ52: 1 | CK52: 13 | CL52: 0 | CM52: 0 | CN52: 0 | CO52: 1 | CP52: 0 | CQ52: 0 | CR52: 0 | CS52: 0 | CT52: 0 | CU52: 4 | CV52: 19 | CW52: 26 | CX52: 4 | CY52: 0 | CZ52: 2 | DA52: 0 | DB52: 0 | DC52: 0 | DD52: 0 | DE52: 0 | DF52: 0 | DG52: 0 | DH52: 0 | DI52: 0 | DJ52: 0 | DK52: 0 | DL52: 0 | DM52: 0 | DN52: 20.91090909 | DO52: 24.4 | DP52: 13 | DQ52: 36.3 | DR52: 6 | DS52: 31 | DT52: 13 | DU52: 0 | DV52: 1 | DW52: 51 | DX52: 0 | DY52: 4 | DZ52: 0 | EA52: 0 | EB52: 0 | EC52: 4 | ED52: 6 | EE52: 35 | EF52: 13 | EG52: 0 | EH52: 1 | EI52: 55 | EJ52: 51 | EK52: 52 | EL52: 47 | EM52: 50 | EN52: 64 | EO52: 45 | EP52: 29 | EQ52: 4 | ER52: 13 | ES52: 9 | ET52: 6 | EU52: 7 | EV52: 6 | EW52: 3 | EX52: 55 | EY52: 65 | EZ52: 56 | FA52: 56 | FB52: 71 | FC52: 51 | FD52: 32
A53: 1 | B53: =OFFSET(Input_Details!$Q$4,MATCH($A53, Input_Details!$J$5:$J$24, 0), 0) -> 2017-04-24 | C53: =INDEX(Input_Details!$H$5:$H$24, MATCH($A53, Input_Details!$J$5:$J$24, 0), 0) -> Harper Road (South of Falmouth Road) | D53: =INDEX(Input_Details!$I$5:$I$24, MATCH($A53, Input_Details!$J$5:$J$24, 0), 0) -> 51.49617, -0.09302 | E53: =INDEX(Input_Details!$K$5:$K$24, MATCH($A53, Input_Details!$J$5:$J$24, 0), 0) -> Southbound | F53: Mon | G53: 12:15:00 | H53: 4 | I53: 40 | J53: 1 | K53: 8 | L53: 0 | M53: 1 | N53: 0 | O53: 0 | P53: 0 | Q53: 0 | R53: 0 | S53: 0 | T53: 0 | U53: 2 | V53: 12 | W53: 35 | X53: 3 | Y53: 1 | Z53: 1 | AA53: 0 | AB53: 0 | AC53: 0 | AD53: 0 | AE53: 0 | AF53: 0 | AG53: 0 | AH53: 0 | AI53: 0 | AJ53: 0 | AK53: 0 | AL53: 0 | AM53: 0 | AN53: 21.9 | AO53: 24.4 | AP53: 14.9 | AQ53: 35.4 | AR53: =INDEX(Input_Details!$L$5:$L$24, MATCH($A53, Input_Details!$J$5:$J$24, 0), 0) -> Northbound | AS53: Mon | AT53: 12:15:00 | AU53: 1 | AV53: 5 | AW53: 0 | AX53: 0 | AY53: 0 | AZ53: 0 | BA53: 0 | BB53: 0 | BC53: 0 | BD53: 0 | BE53: 0 | BF53: 0 | BG53: 0 | BH53: 2 | BI53: 4 | BJ53: 0 | BK53: 0 | BL53: 0 | BM53: 0 | BN53: 0 | BO53: 0 | BP53: 0 | BQ53: 0 | BR53: 0 | BS53: 0 | BT53: 0 | BU53: 0 | BV53: 0 | BW53: 0 | BX53: 0 | BY53: 0 | BZ53: 0 | CA53: 16.2 | CB53: - | CC53: 12.8 | CD53: 18.9 | CF53: Mon | CG53: 12:15:00 | CH53: 5 | CI53: 45 | CJ53: 1 | CK53: 8 | CL53: 0 | CM53: 1 | CN53: 0 | CO53: 0 | CP53: 0 | CQ53: 0 | CR53: 0 | CS53: 0 | CT53: 0 | CU53: 4 | CV53: 16 | CW53: 35 | CX53: 3 | CY53: 1 | CZ53: 1 | DA53: 0 | DB53: 0 | DC53: 0 | DD53: 0 | DE53: 0 | DF53: 0 | DG53: 0 | DH53: 0 | DI53: 0 | DJ53: 0 | DK53: 0 | DL53: 0 | DM53: 0 | DN53: 21.33 | DO53: 24.4 | DP53: 12.8 | DQ53: 35.4 | DR53: 4 | DS53: 41 | DT53: 8 | DU53: 0 | DV53: 1 | DW53: 54 | DX53: 1 | DY53: 5 | DZ53: 0 | EA53: 0 | EB53: 0 | EC53: 6 | ED53: 5 | EE53: 46 | EF53: 8 | EG53: 0 | EH53: 1 | EI53: 60 | EJ53: 54 | EK53: 66 | EL53: 55 | EM53: 61 | EN53: 68 | EO53: 49 | EP53: 30 | EQ53: 6 | ER53: 5 | ES53: 9 | ET53: 5 | EU53: 7 | EV53: 5 | EW53: 9 | EX53: 60 | EY53: 71 | EZ53: 64 | FA53: 66 | FB53: 75 | FC53: 54 | FD53: 39
A54: 1 | B54: =OFFSET(Input_Details!$Q$4,MATCH($A54, Input_Details!$J$5:$J$24, 0), 0) -> 2017-04-24 | C54: =INDEX(Input_Details!$H$5:$H$24, MATCH($A54, Input_Details!$J$5:$J$24, 0), 0) -> Harper Road (South of Falmouth Road) | D54: =INDEX(Input_Details!$I$5:$I$24, MATCH($A54, Input_Details!$J$5:$J$24, 0), 0) -> 51.49617, -0.09302 | E54: =INDEX(Input_Details!$K$5:$K$24, MATCH($A54, Input_Details!$J$5:$J$24, 0), 0) -> Southbound | F54: Mon | G54: 12:30:00 | H54: 6 | I54: 33 | J54: 0 | K54: 13 | L54: 0 | M54: 0 | N54: 0 | O54: 0 | P54: 0 | Q54: 1 | R54: 0 | S54: 0 | T54: 0 | U54: 6 | V54: 23 | W54: 16 | X54: 5 | Y54: 3 | Z54: 0 | AA54: 0 | AB54: 0 | AC54: 0 | AD54: 0 | AE54: 0 | AF54: 0 | AG54: 0 | AH54: 0 | AI54: 0 | AJ54: 0 | AK54: 0 | AL54: 0 | AM54: 0 | AN54: 20.3 | AO54: 24.6 | AP54: 12.3 | AQ54: 31.3 | AR54: =INDEX(Input_Details!$L$5:$L$24, MATCH($A54, Input_Details!$J$5:$J$24, 0), 0) -> Northbound | AS54: Mon | AT54: 12:30:00 | AU54: 0 | AV54: 4 | AW54: 0 | AX54: 0 | AY54: 0 | AZ54: 0 | BA54: 0 | BB54: 0 | BC54: 0 | BD54: 0 | BE54: 0 | BF54: 0 | BG54: 0 | BH54: 3 | BI54: 0 | BJ54: 1 | BK54: 0 | BL54: 0 | BM54: 0 | BN54: 0 | BO54: 0 | BP54: 0 | BQ54: 0 | BR54: 0 | BS54: 0 | BT54: 0 | BU54: 0 | BV54: 0 | BW54: 0 | BX54: 0 | BY54: 0 | BZ54: 0 | CA54: 14.4 | CB54: - | CC54: 10.7 | CD54: 20.3 | CF54: Mon | CG54: 12:30:00 | CH54: 6 | CI54: 37 | CJ54: 0 | CK54: 13 | CL54: 0 | CM54: 0 | CN54: 0 | CO54: 0 | CP54: 0 | CQ54: 1 | CR54: 0 | CS54: 0 | CT54: 0 | CU54: 9 | CV54: 23 | CW54: 17 | CX54: 5 | CY54: 3 | CZ54: 0 | DA54: 0 | DB54: 0 | DC54: 0 | DD54: 0 | DE54: 0 | DF54: 0 | DG54: 0 | DH54: 0 | DI54: 0 | DJ54: 0 | DK54: 0 | DL54: 0 | DM54: 0 | DN54: 19.88596491 | DO54: 24.6 | DP54: 10.7 | DQ54: 31.3 | DR54: 6 | DS54: 33 | DT54: 13 | DU54: 0 | DV54: 1 | DW54: 53 | DX54: 0 | DY54: 4 | DZ54: 0 | EA54: 0 | EB54: 0 | EC54: 4 | ED54: 6 | EE54: 37 | EF54: 13 | EG54: 0 | EH54: 1 | EI54: 57 | EJ54: 53 | EK54: 51 | EL54: 59 | EM54: 52 | EN54: 71 | EO54: 62 | EP54: 44 | EQ54: 4 | ER54: 8 | ES54: 14 | ET54: 6 | EU54: 9 | EV54: 4 | EW54: 5 | EX54: 57 | EY54: 59 | EZ54: 73 | FA54: 58 | FB54: 80 | FC54: 66 | FD54: 49
A55: 1 | B55: =OFFSET(Input_Details!$Q$4,MATCH($A55, Input_Details!$J$5:$J$24, 0), 0) -> 2017-04-24 | C55: =INDEX(Input_Details!$H$5:$H$24, MATCH($A55, Input_Details!$J$5:$J$24, 0), 0) -> Harper Road (South of Falmouth Road) | D55: =INDEX(Input_Details!$I$5:$I$24, MATCH($A55, Input_Details!$J$5:$J$24, 0), 0) -> 51.49617, -0.09302 | E55: =INDEX(Input_Details!$K$5:$K$24, MATCH($A55, Input_Details!$J$5:$J$24, 0), 0) -> Southbound | F55: Mon | G55: 12:45:00 | H55: 2 | I55: 32 | J55: 0 | K55: 10 | L55: 0 | M55: 0 | N55: 0 | O55: 0 | P55: 0 | Q55: 0 | R55: 0 | S55: 0 | T55: 0 | U55: 1 | V55: 15 | W55: 25 | X55: 3 | Y55: 0 | Z55: 0 | AA55: 0 | AB55: 0 | AC55: 0 | AD55: 0 | AE55: 0 | AF55: 0 | AG55: 0 | AH55: 0 | AI55: 0 | AJ55: 0 | AK55: 0 | AL55: 0 | AM55: 0 | AN55: 20.6 | AO55: 22.8 | AP55: 11.9 | AQ55: 26.2 | AR55: =INDEX(Input_Details!$L$5:$L$24, MATCH($A55, Input_Details!$J$5:$J$24, 0), 0) -> Northbound | AS55: Mon | AT55: 12:45:00 | AU55: 5 | AV55: 4 | AW55: 0 | AX55: 0 | AY55: 1 | AZ55: 0 | BA55: 0 | BB55: 0 | BC55: 0 | BD55: 0 | BE55: 0 | BF55: 0 | BG55: 0 | BH55: 2 | BI55: 6 | BJ55: 2 | BK55: 0 | BL55: 0 | BM55: 0 | BN55: 0 | BO55: 0 | BP55: 0 | BQ55: 0 | BR55: 0 | BS55: 0 | BT55: 0 | BU55: 0 | BV55: 0 | BW55: 0 | BX55: 0 | BY55: 0 | BZ55: 0 | CA55: 17.8 | CB55: - | CC55: 10.8 | CD55: 23.4 | CF55: Mon | CG55: 12:45:00 | CH55: 7 | CI55: 36 | CJ55: 0 | CK55: 10 | CL55: 1 | CM55: 0 | CN55: 0 | CO55: 0 | CP55: 0 | CQ55: 0 | CR55: 0 | CS55: 0 | CT55: 0 | CU55: 3 | CV55: 21 | CW55: 27 | CX55: 3 | CY55: 0 | CZ55: 0 | DA55: 0 | DB55: 0 | DC55: 0 | DD55: 0 | DE55: 0 | DF55: 0 | DG55: 0 | DH55: 0 | DI55: 0 | DJ55: 0 | DK55: 0 | DL55: 0 | DM55: 0 | DN55: 20.08148148 | DO55: 22.8 | DP55: 10.8 | DQ55: 26.2 | DR55: 2 | DS55: 32 | DT55: 10 | DU55: 0 | DV55: 0 | DW55: 44 | DX55: 5 | DY55: 4 | DZ55: 0 | EA55: 1 | EB55: 0 | EC55: 10 | ED55: 7 | EE55: 36 | EF55: 10 | EG55: 1 | EH55: 0 | EI55: 54 | EJ55: 44 | EK55: 57 | EL55: 53 | EM55: 54 | EN55: 64 | EO55: 58 | EP55: 39 | EQ55: 10 | ER55: 8 | ES55: 8 | ET55: 4 | EU55: 6 | EV55: 8 | EW55: 11 | EX55: 54 | EY55: 65 | EZ55: 61 | FA55: 58 | FB55: 70 | FC55: 66 | FD55: 50
A56: 1 | B56: =OFFSET(Input_Details!$Q$4,MATCH($A56, Input_Details!$J$5:$J$24, 0), 0) -> 2017-04-24 | C56: =INDEX(Input_Details!$H$5:$H$24, MATCH($A56, Input_Details!$J$5:$J$24, 0), 0) -> Harper Road (South of Falmouth Road) | D56: =INDEX(Input_Details!$I$5:$I$24, MATCH($A56, Input_Details!$J$5:$J$24, 0), 0) -> 51.49617, -0.09302 | E56: =INDEX(Input_Details!$K$5:$K$24, MATCH($A56, Input_Details!$J$5:$J$24, 0), 0) -> Southbound | F56: Mon | G56: 13:00:00 | H56: 5 | I56: 42 | J56: 0 | K56: 9 | L56: 0 | M56: 2 | N56: 0 | O56: 0 | P56: 0 | Q56: 0 | R56: 0 | S56: 0 | T56: 0 | U56: 4 | V56: 27 | W56: 23 | X56: 2 | Y56: 2 | Z56: 0 | AA56: 0 | AB56: 0 | AC56: 0 | AD56: 0 | AE56: 0 | AF56: 0 | AG56: 0 | AH56: 0 | AI56: 0 | AJ56: 0 | AK56: 0 | AL56: 0 | AM56: 0 | AN56: 20.1 | AO56: 23.3 | AP56: 12.4 | AQ56: 30.7 | AR56: =INDEX(Input_Details!$L$5:$L$24, MATCH($A56, Input_Details!$J$5:$J$24, 0), 0) -> Northbound | AS56: Mon | AT56: 13:00:00 | AU56: 1 | AV56: 5 | AW56: 0 | AX56: 0 | AY56: 0 | AZ56: 1 | BA56: 0 | BB56: 0 | BC56: 0 | BD56: 0 | BE56: 0 | BF56: 0 | BG56: 0 | BH56: 2 | BI56: 3 | BJ56: 2 | BK56: 0 | BL56: 0 | BM56: 0 | BN56: 0 | BO56: 0 | BP56: 0 | BQ56: 0 | BR56: 0 | BS56: 0 | BT56: 0 | BU56: 0 | BV56: 0 | BW56: 0 | BX56: 0 | BY56: 0 | BZ56: 0 | CA56: 16.9 | CB56: - | CC56: 10.6 | CD56: 20.9 | CF56: Mon | CG56: 13:00:00 | CH56: 6 | CI56: 47 | CJ56: 0 | CK56: 9 | CL56: 0 | CM56: 3 | CN56: 0 | CO56: 0 | CP56: 0 | CQ56: 0 | CR56: 0 | CS56: 0 | CT56: 0 | CU56: 6 | CV56: 30 | CW56: 25 | CX56: 2 | CY56: 2 | CZ56: 0 | DA56: 0 | DB56: 0 | DC56: 0 | DD56: 0 | DE56: 0 | DF56: 0 | DG56: 0 | DH56: 0 | DI56: 0 | DJ56: 0 | DK56: 0 | DL56: 0 | DM56: 0 | DN56: 19.75538462 | DO56: 23.3 | DP56: 10.6 | DQ56: 30.7 | DR56: 5 | DS56: 42 | DT56: 9 | DU56: 0 | DV56: 2 | DW56: 58 | DX56: 1 | DY56: 5 | DZ56: 0 | EA56: 0 | EB56: 1 | EC56: 7 | ED56: 6 | EE56: 47 | EF56: 9 | EG56: 0 | EH56: 3 | EI56: 65 | EJ56: 58 | EK56: 65 | EL56: 59 | EM56: 64 | EN56: 58 | EO56: 76 | EP56: 30 | EQ56: 7 | ER56: 10 | ES56: 9 | ET56: 9 | EU56: 12 | EV56: 8 | EW56: 5 | EX56: 65 | EY56: 75 | EZ56: 68 | FA56: 73 | FB56: 70 | FC56: 84 | FD56: 35
A57: 1 | B57: =OFFSET(Input_Details!$Q$4,MATCH($A57, Input_Details!$J$5:$J$24, 0), 0) -> 2017-04-24 | C57: =INDEX(Input_Details!$H$5:$H$24, MATCH($A57, Input_Details!$J$5:$J$24, 0), 0) -> Harper Road (South of Falmouth Road) | D57: =INDEX(Input_Details!$I$5:$I$24, MATCH($A57, Input_Details!$J$5:$J$24, 0), 0) -> 51.49617, -0.09302 | E57: =INDEX(Input_Details!$K$5:$K$24, MATCH($A57, Input_Details!$J$5:$J$24, 0), 0) -> Southbound | F57: Mon | G57: 13:15:00 | H57: 5 | I57: 43 | J57: 0 | K57: 8 | L57: 3 | M57: 2 | N57: 0 | O57: 1 | P57: 0 | Q57: 0 | R57: 0 | S57: 0 | T57: 0 | U57: 9 | V57: 33 | W57: 18 | X57: 2 | Y57: 0 | Z57: 0 | AA57: 0 | AB57: 0 | AC57: 0 | AD57: 0 | AE57: 0 | AF57: 0 | AG57: 0 | AH57: 0 | AI57: 0 | AJ57: 0 | AK57: 0 | AL57: 0 | AM57: 0 | AN57: 18.9 | AO57: 22.1 | AP57: 10.9 | AQ57: 28.7 | AR57: =INDEX(Input_Details!$L$5:$L$24, MATCH($A57, Input_Details!$J$5:$J$24, 0), 0) -> Northbound | AS57: Mon | AT57: 13:15:00 | AU57: 0 | AV57: 9 | AW57: 0 | AX57: 0 | AY57: 1 | AZ57: 0 | BA57: 0 | BB57: 0 | BC57: 0 | BD57: 0 | BE57: 0 | BF57: 0 | BG57: 0 | BH57: 7 | BI57: 2 | BJ57: 1 | BK57: 0 | BL57: 0 | BM57: 0 | BN57: 0 | BO57: 0 | BP57: 0 | BQ57: 0 | BR57: 0 | BS57: 0 | BT57: 0 | BU57: 0 | BV57: 0 | BW57: 0 | BX57: 0 | BY57: 0 | BZ57: 0 | CA57: 14.8 | CB57: - | CC57: 10.8 | CD57: 20.3 | CF57: Mon | CG57: 13:15:00 | CH57: 5 | CI57: 52 | CJ57: 0 | CK57: 8 | CL57: 4 | CM57: 2 | CN57: 0 | CO57: 1 | CP57: 0 | CQ57: 0 | CR57: 0 | CS57: 0 | CT57: 0 | CU57: 16 | CV57: 35 | CW57: 19 | CX57: 2 | CY57: 0 | CZ57: 0 | DA57: 0 | DB57: 0 | DC57: 0 | DD57: 0 | DE57: 0 | DF57: 0 | DG57: 0 | DH57: 0 | DI57: 0 | DJ57: 0 | DK57: 0 | DL57: 0 | DM57: 0 | DN57: 18.33055556 | DO57: 22.1 | DP57: 10.8 | DQ57: 28.7 | DR57: 5 | DS57: 43 | DT57: 8 | DU57: 3 | DV57: 3 | DW57: 62 | DX57: 0 | DY57: 9 | DZ57: 0 | EA57: 1 | EB57: 0 | EC57: 10 | ED57: 5 | EE57: 52 | EF57: 8 | EG57: 4 | EH57: 3 | EI57: 72 | EJ57: 62 | EK57: 53 | EL57: 67 | EM57: 69 | EN57: 60 | EO57: 70 | EP57: 42 | EQ57: 10 | ER57: 7 | ES57: 6 | ET57: 8 | EU57: 9 | EV57: 15 | EW57: 14 | EX57: 72 | EY57: 60 | EZ57: 73 | FA57: 77 | FB57: 69 | FC57: 85 | FD57: 56
A58: 1 | B58: =OFFSET(Input_Details!$Q$4,MATCH($A58, Input_Details!$J$5:$J$24, 0), 0) -> 2017-04-24 | C58: =INDEX(Input_Details!$H$5:$H$24, MATCH($A58, Input_Details!$J$5:$J$24, 0), 0) -> Harper Road (South of Falmouth Road) | D58: =INDEX(Input_Details!$I$5:$I$24, MATCH($A58, Input_Details!$J$5:$J$24, 0), 0) -> 51.49617, -0.09302 | E58: =INDEX(Input_Details!$K$5:$K$24, MATCH($A58, Input_Details!$J$5:$J$24, 0), 0) -> Southbound | F58: Mon | G58: 13:30:00 | H58: 5 | I58: 40 | J58: 1 | K58: 10 | L58: 2 | M58: 0 | N58: 1 | O58: 0 | P58: 0 | Q58: 0 | R58: 0 | S58: 0 | T58: 0 | U58: 2 | V58: 28 | W58: 22 | X58: 6 | Y58: 1 | Z58: 0 | AA58: 0 | AB58: 0 | AC58: 0 | AD58: 0 | AE58: 0 | AF58: 0 | AG58: 0 | AH58: 0 | AI58: 0 | AJ58: 0 | AK58: 0 | AL58: 0 | AM58: 0 | AN58: 20.7 | AO58: 23.7 | AP58: 10.6 | AQ58: 34.2 | AR58: =INDEX(Input_Details!$L$5:$L$24, MATCH($A58, Input_Details!$J$5:$J$24, 0), 0) -> Northbound | AS58: Mon | AT58: 13:30:00 | AU58: 1 | AV58: 7 | AW58: 0 | AX58: 0 | AY58: 0 | AZ58: 0 | BA58: 0 | BB58: 0 | BC58: 0 | BD58: 0 | BE58: 0 | BF58: 0 | BG58: 0 | BH58: 8 | BI58: 0 | BJ58: 0 | BK58: 0 | BL58: 0 | BM58: 0 | BN58: 0 | BO58: 0 | BP58: 0 | BQ58: 0 | BR58: 0 | BS58: 0 | BT58: 0 | BU58: 0 | BV58: 0 | BW58: 0 | BX58: 0 | BY58: 0 | BZ58: 0 | CA58: 13 | CB58: - | CC58: 11.6 | CD58: 14.4 | CF58: Mon | CG58: 13:30:00 | CH58: 6 | CI58: 47 | CJ58: 1 | CK58: 10 | CL58: 2 | CM58: 0 | CN58: 1 | CO58: 0 | CP58: 0 | CQ58: 0 | CR58: 0 | CS58: 0 | CT58: 0 | CU58: 10 | CV58: 28 | CW58: 22 | CX58: 6 | CY58: 1 | CZ58: 0 | DA58: 0 | DB58: 0 | DC58: 0 | DD58: 0 | DE58: 0 | DF58: 0 | DG58: 0 | DH58: 0 | DI58: 0 | DJ58: 0 | DK58: 0 | DL58: 0 | DM58: 0 | DN58: 19.78059701 | DO58: 23.7 | DP58: 10.6 | DQ58: 34.2 | DR58: 5 | DS58: 41 | DT58: 10 | DU58: 2 | DV58: 1 | DW58: 59 | DX58: 1 | DY58: 7 | DZ58: 0 | EA58: 0 | EB58: 0 | EC58: 8 | ED58: 6 | EE58: 48 | EF58: 10 | EG58: 2 | EH58: 1 | EI58: 67 | EJ58: 59 | EK58: 57 | EL58: 72 | EM58: 62 | EN58: 54 | EO58: 73 | EP58: 38 | EQ58: 8 | ER58: 11 | ES58: 15 | ET58: 3 | EU58: 11 | EV58: 6 | EW58: 5 | EX58: 67 | EY58: 68 | EZ58: 87 | FA58: 65 | FB58: 65 | FC58: 79 | FD58: 43
A59: 1 | B59: =OFFSET(Input_Details!$Q$4,MATCH($A59, Input_Details!$J$5:$J$24, 0), 0) -> 2017-04-24 | C59: =INDEX(Input_Details!$H$5:$H$24, MATCH($A59, Input_Details!$J$5:$J$24, 0), 0) -> Harper Road (South of Falmouth Road) | D59: =INDEX(Input_Details!$I$5:$I$24, MATCH($A59, Input_Details!$J$5:$J$24, 0), 0) -> 51.49617, -0.09302 | E59: =INDEX(Input_Details!$K$5:$K$24, MATCH($A59, Input_Details!$J$5:$J$24, 0), 0) -> Southbound | F59: Mon | G59: 13:45:00 | H59: 5 | I59: 39 | J59: 0 | K59: 7 | L59: 4 | M59: 0 | N59: 0 | O59: 0 | P59: 1 | Q59: 0 | R59: 0 | S59: 0 | T59: 0 | U59: 2 | V59: 24 | W59: 25 | X59: 4 | Y59: 1 | Z59: 0 | AA59: 0 | AB59: 0 | AC59: 0 | AD59: 0 | AE59: 0 | AF59: 0 | AG59: 0 | AH59: 0 | AI59: 0 | AJ59: 0 | AK59: 0 | AL59: 0 | AM59: 0 | AN59: 20.7 | AO59: 24.2 | AP59: 11.3 | AQ59: 32.9 | AR59: =INDEX(Input_Details!$L$5:$L$24, MATCH($A59, Input_Details!$J$5:$J$24, 0), 0) -> Northbound | AS59: Mon | AT59: 13:45:00 | AU59: 2 | AV59: 6 | AW59: 0 | AX59: 0 | AY59: 0 | AZ59: 0 | BA59: 0 | BB59: 0 | BC59: 0 | BD59: 0 | BE59: 0 | BF59: 0 | BG59: 0 | BH59: 3 | BI59: 4 | BJ59: 1 | BK59: 0 | BL59: 0 | BM59: 0 | BN59: 0 | BO59: 0 | BP59: 0 | BQ59: 0 | BR59: 0 | BS59: 0 | BT59: 0 | BU59: 0 | BV59: 0 | BW59: 0 | BX59: 0 | BY59: 0 | BZ59: 0 | CA59: 16.7 | CB59: - | CC59: 12.2 | CD59: 23.1 | CF59: Mon | CG59: 13:45:00 | CH59: 7 | CI59: 45 | CJ59: 0 | CK59: 7 | CL59: 4 | CM59: 0 | CN59: 0 | CO59: 0 | CP59: 1 | CQ59: 0 | CR59: 0 | CS59: 0 | CT59: 0 | CU59: 5 | CV59: 28 | CW59: 26 | CX59: 4 | CY59: 1 | CZ59: 0 | DA59: 0 | DB59: 0 | DC59: 0 | DD59: 0 | DE59: 0 | DF59: 0 | DG59: 0 | DH59: 0 | DI59: 0 | DJ59: 0 | DK59: 0 | DL59: 0 | DM59: 0 | DN59: 20.2 | DO59: 24.2 | DP59: 11.3 | DQ59: 32.9 | DR59: 5 | DS59: 39 | DT59: 7 | DU59: 4 | DV59: 1 | DW59: 56 | DX59: 2 | DY59: 6 | DZ59: 0 | EA59: 0 | EB59: 0 | EC59: 8 | ED59: 7 | EE59: 45 | EF59: 7 | EG59: 4 | EH59: 1 | EI59: 64 | EJ59: 56 | EK59: 63 | EL59: 65 | EM59: 75 | EN59: 96 | EO59: 76 | EP59: 45 | EQ59: 8 | ER59: 15 | ES59: 7 | ET59: 8 | EU59: 9 | EV59: 5 | EW59: 6 | EX59: 64 | EY59: 78 | EZ59: 72 | FA59: 83 | FB59: 105 | FC59: 81 | FD59: 51
A60: 1 | B60: =OFFSET(Input_Details!$Q$4,MATCH($A60, Input_Details!$J$5:$J$24, 0), 0) -> 2017-04-24 | C60: =INDEX(Input_Details!$H$5:$H$24, MATCH($A60, Input_Details!$J$5:$J$24, 0), 0) -> Harper Road (South of Falmouth Road) | D60: =INDEX(Input_Details!$I$5:$I$24, MATCH($A60, Input_Details!$J$5:$J$24, 0), 0) -> 51.49617, -0.09302 | E60: =INDEX(Input_Details!$K$5:$K$24, MATCH($A60, Input_Details!$J$5:$J$24, 0), 0) -> Southbound | F60: Mon | G60: 14:00:00 | H60: 9 | I60: 36 | J60: 0 | K60: 14 | L60: 3 | M60: 0 | N60: 0 | O60: 0 | P60: 0 | Q60: 0 | R60: 0 | S60: 0 | T60: 0 | U60: 2 | V60: 16 | W60: 37 | X60: 4 | Y60: 3 | Z60: 0 | AA60: 0 | AB60: 0 | AC60: 0 | AD60: 0 | AE60: 0 | AF60: 0 | AG60: 0 | AH60: 0 | AI60: 0 | AJ60: 0 | AK60: 0 | AL60: 0 | AM60: 0 | AN60: 21.6 | AO60: 24.6 | AP60: 14.3 | AQ60: 33.7 | AR60: =INDEX(Input_Details!$L$5:$L$24, MATCH($A60, Input_Details!$J$5:$J$24, 0), 0) -> Northbound | AS60: Mon | AT60: 14:00:00 | AU60: 2 | AV60: 3 | AW60: 0 | AX60: 0 | AY60: 0 | AZ60: 0 | BA60: 0 | BB60: 0 | BC60: 0 | BD60: 0 | BE60: 0 | BF60: 0 | BG60: 1 | BH60: 2 | BI60: 2 | BJ60: 0 | BK60: 0 | BL60: 0 | BM60: 0 | BN60: 0 | BO60: 0 | BP60: 0 | BQ60: 0 | BR60: 0 | BS60: 0 | BT60: 0 | BU60: 0 | BV60: 0 | BW60: 0 | BX60: 0 | BY60: 0 | BZ60: 0 | CA60: 13.7 | CB60: - | CC60: 10 | CD60: 19.2 | CF60: Mon | CG60: 14:00:00 | CH60: 11 | CI60: 39 | CJ60: 0 | CK60: 14 | CL60: 3 | CM60: 0 | CN60: 0 | CO60: 0 | CP60: 0 | CQ60: 0 | CR60: 0 | CS60: 0 | CT60: 1 | CU60: 4 | CV60: 18 | CW60: 37 | CX60: 4 | CY60: 3 | CZ60: 0 | DA60: 0 | DB60: 0 | DC60: 0 | DD60: 0 | DE60: 0 | DF60: 0 | DG60: 0 | DH60: 0 | DI60: 0 | DJ60: 0 | DK60: 0 | DL60: 0 | DM60: 0 | DN60: 21.01044776 | DO60: 24.6 | DP60: 10 | DQ60: 33.7 | DR60: 9 | DS60: 36 | DT60: 14 | DU60: 3 | DV60: 0 | DW60: 62 | DX60: 2 | DY60: 3 | DZ60: 0 | EA60: 0 | EB60: 0 | EC60: 5 | ED60: 11 | EE60: 39 | EF60: 14 | EG60: 3 | EH60: 0 | EI60: 67 | EJ60: 62 | EK60: 65 | EL60: 78 | EM60: 70 | EN60: 69 | EO60: 73 | EP60: 38 | EQ60: 5 | ER60: 8 | ES60: 9 | ET60: 2 | EU60: 17 | EV60: 11 | EW60: 6 | EX60: 67 | EY60: 73 | EZ60: 87 | FA60: 72 | FB60: 86 | FC60: 84 | FD60: 44
A61: 1 | B61: =OFFSET(Input_Details!$Q$4,MATCH($A61, Input_Details!$J$5:$J$24, 0), 0) -> 2017-04-24 | C61: =INDEX(Input_Details!$H$5:$H$24, MATCH($A61, Input_Details!$J$5:$J$24, 0), 0) -> Harper Road (South of Falmouth Road) | D61: =INDEX(Input_Details!$I$5:$I$24, MATCH($A61, Input_Details!$J$5:$J$24, 0), 0) -> 51.49617, -0.09302 | E61: =INDEX(Input_Details!$K$5:$K$24, MATCH($A61, Input_Details!$J$5:$J$24, 0), 0) -> Southbound | F61: Mon | G61: 14:15:00 | H61: 4 | I61: 50 | J61: 0 | K61: 15 | L61: 1 | M61: 0 | N61: 1 | O61: 1 | P61: 1 | Q61: 0 | R61: 0 | S61: 0 | T61: 0 | U61: 2 | V61: 44 | W61: 24 | X61: 3 | Y61: 0 | Z61: 0 | AA61: 0 | AB61: 0 | AC61: 0 | AD61: 0 | AE61: 0 | AF61: 0 | AG61: 0 | AH61: 0 | AI61: 0 | AJ61: 0 | AK61: 0 | AL61: 0 | AM61: 0 | AN61: 19.5 | AO61: 22.1 | AP61: 14.1 | AQ61: 29.4 | AR61: =INDEX(Input_Details!$L$5:$L$24, MATCH($A61, Input_Details!$J$5:$J$24, 0), 0) -> Northbound | AS61: Mon | AT61: 14:15:00 | AU61: 1 | AV61: 2 | AW61: 0 | AX61: 0 | AY61: 0 | AZ61: 0 | BA61: 0 | BB61: 0 | BC61: 0 | BD61: 0 | BE61: 0 | BF61: 0 | BG61: 0 | BH61: 3 | BI61: 0 | BJ61: 0 | BK61: 0 | BL61: 0 | BM61: 0 | BN61: 0 | BO61: 0 | BP61: 0 | BQ61: 0 | BR61: 0 | BS61: 0 | BT61: 0 | BU61: 0 | BV61: 0 | BW61: 0 | BX61: 0 | BY61: 0 | BZ61: 0 | CA61: 12.7 | CB61: - | CC61: 12 | CD61: 13.1 | CF61: Mon | CG61: 14:15:00 | CH61: 5 | CI61: 52 | CJ61: 0 | CK61: 15 | CL61: 1 | CM61: 0 | CN61: 1 | CO61: 1 | CP61: 1 | CQ61: 0 | CR61: 0 | CS61: 0 | CT61: 0 | CU61: 5 | CV61: 44 | CW61: 24 | CX61: 3 | CY61: 0 | CZ61: 0 | DA61: 0 | DB61: 0 | DC61: 0 | DD61: 0 | DE61: 0 | DF61: 0 | DG61: 0 | DH61: 0 | DI61: 0 | DJ61: 0 | DK61: 0 | DL61: 0 | DM61: 0 | DN61: 19.23157895 | DO61: 22.1 | DP61: 12 | DQ61: 29.4 | DR61: 4 | DS61: 50 | DT61: 15 | DU61: 1 | DV61: 3 | DW61: 73 | DX61: 1 | DY61: 2 | DZ61: 0 | EA61: 0 | EB61: 0 | EC61: 3 | ED61: 5 | EE61: 52 | EF61: 15 | EG61: 1 | EH61: 3 | EI61: 76 | EJ61: 73 | EK61: 69 | EL61: 72 | EM61: 72 | EN61: 64 | EO61: 52 | EP61: 53 | EQ61: 3 | ER61: 9 | ES61: 5 | ET61: 5 | EU61: 7 | EV61: 5 | EW61: 4 | EX61: 76 | EY61: 78 | EZ61: 77 | FA61: 77 | FB61: 71 | FC61: 57 | FD61: 57
A62: 1 | B62: =OFFSET(Input_Details!$Q$4,MATCH($A62, Input_Details!$J$5:$J$24, 0), 0) -> 2017-04-24 | C62: =INDEX(Input_Details!$H$5:$H$24, MATCH($A62, Input_Details!$J$5:$J$24, 0), 0) -> Harper Road (South of Falmouth Road) | D62: =INDEX(Input_Details!$I$5:$I$24, MATCH($A62, Input_Details!$J$5:$J$24, 0), 0) -> 51.49617, -0.09302 | E62: =INDEX(Input_Details!$K$5:$K$24, MATCH($A62, Input_Details!$J$5:$J$24, 0), 0) -> Southbound | F62: Mon | G62: 14:30:00 | H62: 4 | I62: 41 | J62: 2 | K62: 12 | L62: 3 | M62: 0 | N62: 0 | O62: 0 | P62: 0 | Q62: 0 | R62: 0 | S62: 0 | T62: 0 | U62: 2 | V62: 27 | W62: 27 | X62: 4 | Y62: 2 | Z62: 0 | AA62: 0 | AB62: 0 | AC62: 0 | AD62: 0 | AE62: 0 | AF62: 0 | AG62: 0 | AH62: 0 | AI62: 0 | AJ62: 0 | AK62: 0 | AL62: 0 | AM62: 0 | AN62: 20.6 | AO62: 23.7 | AP62: 12.9 | AQ62: 31.3 | AR62: =INDEX(Input_Details!$L$5:$L$24, MATCH($A62, Input_Details!$J$5:$J$24, 0), 0) -> Northbound | AS62: Mon | AT62: 14:30:00 | AU62: 3 | AV62: 4 | AW62: 0 | AX62: 1 | AY62: 0 | AZ62: 0 | BA62: 0 | BB62: 0 | BC62: 0 | BD62: 0 | BE62: 0 | BF62: 0 | BG62: 0 | BH62: 5 | BI62: 3 | BJ62: 0 | BK62: 0 | BL62: 0 | BM62: 0 | BN62: 0 | BO62: 0 | BP62: 0 | BQ62: 0 | BR62: 0 | BS62: 0 | BT62: 0 | BU62: 0 | BV62: 0 | BW62: 0 | BX62: 0 | BY62: 0 | BZ62: 0 | CA62: 14.2 | CB62: - | CC62: 11.5 | CD62: 18 | CF62: Mon | CG62: 14:30:00 | CH62: 7 | CI62: 45 | CJ62: 2 | CK62: 13 | CL62: 3 | CM62: 0 | CN62: 0 | CO62: 0 | CP62: 0 | CQ62: 0 | CR62: 0 | CS62: 0 | CT62: 0 | CU62: 7 | CV62: 30 | CW62: 27 | CX62: 4 | CY62: 2 | CZ62: 0 | DA62: 0 | DB62: 0 | DC62: 0 | DD62: 0 | DE62: 0 | DF62: 0 | DG62: 0 | DH62: 0 | DI62: 0 | DJ62: 0 | DK62: 0 | DL62: 0 | DM62: 0 | DN62: 19.86857143 | DO62: 23.7 | DP62: 11.5 | DQ62: 31.3 | DR62: 4 | DS62: 43 | DT62: 12 | DU62: 3 | DV62: 0 | DW62: 62 | DX62: 3 | DY62: 4 | DZ62: 1 | EA62: 0 | EB62: 0 | EC62: 8 | ED62: 7 | EE62: 47 | EF62: 13 | EG62: 3 | EH62: 0 | EI62: 70 | EJ62: 62 | EK62: 74 | EL62: 81 | EM62: 54 | EN62: 67 | EO62: 63 | EP62: 44 | EQ62: 8 | ER62: 9 | ES62: 12 | ET62: 4 | EU62: 4 | EV62: 6 | EW62: 6 | EX62: 70 | EY62: 83 | EZ62: 93 | FA62: 58 | FB62: 71 | FC62: 69 | FD62: 50
A63: 1 | B63: =OFFSET(Input_Details!$Q$4,MATCH($A63, Input_Details!$J$5:$J$24, 0), 0) -> 2017-04-24 | C63: =INDEX(Input_Details!$H$5:$H$24, MATCH($A63, Input_Details!$J$5:$J$24, 0), 0) -> Harper Road (South of Falmouth Road) | D63: =INDEX(Input_Details!$I$5:$I$24, MATCH($A63, Input_Details!$J$5:$J$24, 0), 0) -> 51.49617, -0.09302 | E63: =INDEX(Input_Details!$K$5:$K$24, MATCH($A63, Input_Details!$J$5:$J$24, 0), 0) -> Southbound | F63: Mon | G63: 14:45:00 | H63: 7 | I63: 46 | J63: 0 | K63: 16 | L63: 2 | M63: 0 | N63: 0 | O63: 0 | P63: 0 | Q63: 0 | R63: 0 | S63: 0 | T63: 1 | U63: 9 | V63: 28 | W63: 27 | X63: 5 | Y63: 1 | Z63: 0 | AA63: 0 | AB63: 0 | AC63: 0 | AD63: 0 | AE63: 0 | AF63: 0 | AG63: 0 | AH63: 0 | AI63: 0 | AJ63: 0 | AK63: 0 | AL63: 0 | AM63: 0 | AN63: 19.3 | AO63: 21.7 | AP63: 8.3 | AQ63: 30.6 | AR63: =INDEX(Input_Details!$L$5:$L$24, MATCH($A63, Input_Details!$J$5:$J$24, 0), 0) -> Northbound | AS63: Mon | AT63: 14:45:00 | AU63: 1 | AV63: 4 | AW63: 0 | AX63: 1 | AY63: 0 | AZ63: 0 | BA63: 0 | BB63: 0 | BC63: 0 | BD63: 0 | BE63: 0 | BF63: 0 | BG63: 0 | BH63: 2 | BI63: 4 | BJ63: 0 | BK63: 0 | BL63: 0 | BM63: 0 | BN63: 0 | BO63: 0 | BP63: 0 | BQ63: 0 | BR63: 0 | BS63: 0 | BT63: 0 | BU63: 0 | BV63: 0 | BW63: 0 | BX63: 0 | BY63: 0 | BZ63: 0 | CA63: 15.8 | CB63: - | CC63: 11.7 | CD63: 19.9 | CF63: Mon | CG63: 14:45:00 | CH63: 8 | CI63: 50 | CJ63: 0 | CK63: 17 | CL63: 2 | CM63: 0 | CN63: 0 | CO63: 0 | CP63: 0 | CQ63: 0 | CR63: 0 | CS63: 0 | CT63: 1 | CU63: 11 | CV63: 32 | CW63: 27 | CX63: 5 | CY63: 1 | CZ63: 0 | DA63: 0 | DB63: 0 | DC63: 0 | DD63: 0 | DE63: 0 | DF63: 0 | DG63: 0 | DH63: 0 | DI63: 0 | DJ63: 0 | DK63: 0 | DL63: 0 | DM63: 0 | DN63: 19.02727273 | DO63: 21.7 | DP63: 8.3 | DQ63: 30.6 | DR63: 7 | DS63: 46 | DT63: 16 | DU63: 2 | DV63: 0 | DW63: 71 | DX63: 1 | DY63: 4 | DZ63: 1 | EA63: 0 | EB63: 0 | EC63: 6 | ED63: 8 | EE63: 50 | EF63: 17 | EG63: 2 | EH63: 0 | EI63: 77 | EJ63: 71 | EK63: 88 | EL63: 66 | EM63: 87 | EN63: 72 | EO63: 70 | EP63: 38 | EQ63: 6 | ER63: 8 | ES63: 8 | ET63: 6 | EU63: 6 | EV63: 11 | EW63: 5 | EX63: 77 | EY63: 96 | EZ63: 74 | FA63: 93 | FB63: 78 | FC63: 81 | FD63: 43
A64: 1 | B64: =OFFSET(Input_Details!$Q$4,MATCH($A64, Input_Details!$J$5:$J$24, 0), 0) -> 2017-04-24 | C64: =INDEX(Input_Details!$H$5:$H$24, MATCH($A64, Input_Details!$J$5:$J$24, 0), 0) -> Harper Road (South of Falmouth Road) | D64: =INDEX(Input_Details!$I$5:$I$24, MATCH($A64, Input_Details!$J$5:$J$24, 0), 0) -> 51.49617, -0.09302 | E64: =INDEX(Input_Details!$K$5:$K$24, MATCH($A64, Input_Details!$J$5:$J$24, 0), 0) -> Southbound | F64: Mon | G64: 15:00:00 | H64: 6 | I64: 47 | J64: 1 | K64: 13 | L64: 2 | M64: 2 | N64: 0 | O64: 0 | P64: 0 | Q64: 0 | R64: 0 | S64: 0 | T64: 2 | U64: 7 | V64: 20 | W64: 35 | X64: 6 | Y64: 1 | Z64: 0 | AA64: 0 | AB64: 0 | AC64: 0 | AD64: 0 | AE64: 0 | AF64: 0 | AG64: 0 | AH64: 0 | AI64: 0 | AJ64: 0 | AK64: 0 | AL64: 0 | AM64: 0 | AN64: 20.3 | AO64: 23 | AP64: 8.6 | AQ64: 30.6 | AR64: =INDEX(Input_Details!$L$5:$L$24, MATCH($A64, Input_Details!$J$5:$J$24, 0), 0) -> Northbound | AS64: Mon | AT64: 15:00:00 | AU64: 2 | AV64: 5 | AW64: 0 | AX64: 0 | AY64: 0 | AZ64: 0 | BA64: 0 | BB64: 0 | BC64: 0 | BD64: 0 | BE64: 0 | BF64: 0 | BG64: 0 | BH64: 1 | BI64: 3 | BJ64: 2 | BK64: 1 | BL64: 0 | BM64: 0 | BN64: 0 | BO64: 0 | BP64: 0 | BQ64: 0 | BR64: 0 | BS64: 0 | BT64: 0 | BU64: 0 | BV64: 0 | BW64: 0 | BX64: 0 | BY64: 0 | BZ64: 0 | CA64: 19.2 | CB64: - | CC64: 11.7 | CD64: 28.3 | CF64: Mon | CG64: 15:00:00 | CH64: 8 | CI64: 52 | CJ64: 1 | CK64: 13 | CL64: 2 | CM64: 2 | CN64: 0 | CO64: 0 | CP64: 0 | CQ64: 0 | CR64: 0 | CS64: 0 | CT64: 2 | CU64: 8 | CV64: 23 | CW64: 37 | CX64: 7 | CY64: 1 | CZ64: 0 | DA64: 0 | DB64: 0 | DC64: 0 | DD64: 0 | DE64: 0 | DF64: 0 | DG64: 0 | DH64: 0 | DI64: 0 | DJ64: 0 | DK64: 0 | DL64: 0 | DM64: 0 | DN64: 20.20128205 | DO64: 23 | DP64: 8.6 | DQ64: 30.6 | DR64: 6 | DS64: 48 | DT64: 13 | DU64: 2 | DV64: 2 | DW64: 71 | DX64: 2 | DY64: 5 | DZ64: 0 | EA64: 0 | EB64: 0 | EC64: 7 | ED64: 8 | EE64: 53 | EF64: 13 | EG64: 2 | EH64: 2 | EI64: 78 | EJ64: 71 | EK64: 77 | EL64: 80 | EM64: 68 | EN64: 74 | EO64: 59 | EP64: 36 | EQ64: 7 | ER64: 8 | ES64: 19 | ET64: 6 | EU64: 5 | EV64: 7 | EW64: 7 | EX64: 78 | EY64: 85 | EZ64: 99 | FA64: 74 | FB64: 79 | FC64: 66 | FD64: 43
A65: 1 | B65: =OFFSET(Input_Details!$Q$4,MATCH($A65, Input_Details!$J$5:$J$24, 0), 0) -> 2017-04-24 | C65: =INDEX(Input_Details!$H$5:$H$24, MATCH($A65, Input_Details!$J$5:$J$24, 0), 0) -> Harper Road (South of Falmouth Road) | D65: =INDEX(Input_Details!$I$5:$I$24, MATCH($A65, Input_Details!$J$5:$J$24, 0), 0) -> 51.49617, -0.09302 | E65: =INDEX(Input_Details!$K$5:$K$24, MATCH($A65, Input_Details!$J$5:$J$24, 0), 0) -> Southbound | F65: Mon | G65: 15:15:00 | H65: 8 | I65: 39 | J65: 1 | K65: 6 | L65: 0 | M65: 1 | N65: 0 | O65: 0 | P65: 0 | Q65: 0 | R65: 0 | S65: 0 | T65: 0 | U65: 9 | V65: 30 | W65: 12 | X65: 0 | Y65: 4 | Z65: 0 | AA65: 0 | AB65: 0 | AC65: 0 | AD65: 0 | AE65: 0 | AF65: 0 | AG65: 0 | AH65: 0 | AI65: 0 | AJ65: 0 | AK65: 0 | AL65: 0 | AM65: 0 | AN65: 18.8 | AO65: 22.8 | AP65: 11.2 | AQ65: 32 | AR65: =INDEX(Input_Details!$L$5:$L$24, MATCH($A65, Input_Details!$J$5:$J$24, 0), 0) -> Northbound | AS65: Mon | AT65: 15:15:00 | AU65: 2 | AV65: 4 | AW65: 0 | AX65: 0 | AY65: 0 | AZ65: 0 | BA65: 0 | BB65: 0 | BC65: 0 | BD65: 0 | BE65: 0 | BF65: 0 | BG65: 0 | BH65: 2 | BI65: 3 | BJ65: 0 | BK65: 1 | BL65: 0 | BM65: 0 | BN65: 0 | BO65: 0 | BP65: 0 | BQ65: 0 | BR65: 0 | BS65: 0 | BT65: 0 | BU65: 0 | BV65: 0 | BW65: 0 | BX65: 0 | BY65: 0 | BZ65: 0 | CA65: 16.8 | CB65: - | CC65: 10.3 | CD65: 26.8 | CF65: Mon | CG65: 15:15:00 | CH65: 10 | CI65: 43 | CJ65: 1 | CK65: 6 | CL65: 0 | CM65: 1 | CN65: 0 | CO65: 0 | CP65: 0 | CQ65: 0 | CR65: 0 | CS65: 0 | CT65: 0 | CU65: 11 | CV65: 33 | CW65: 12 | CX65: 1 | CY65: 4 | CZ65: 0 | DA65: 0 | DB65: 0 | DC65: 0 | DD65: 0 | DE65: 0 | DF65: 0 | DG65: 0 | DH65: 0 | DI65: 0 | DJ65: 0 | DK65: 0 | DL65: 0 | DM65: 0 | DN65: 18.60327869 | DO65: 22.8 | DP65: 10.3 | DQ65: 32 | DR65: 8 | DS65: 40 | DT65: 6 | DU65: 0 | DV65: 1 | DW65: 55 | DX65: 2 | DY65: 4 | DZ65: 0 | EA65: 0 | EB65: 0 | EC65: 6 | ED65: 10 | EE65: 44 | EF65: 6 | EG65: 0 | EH65: 1 | EI65: 61 | EJ65: 55 | EK65: 71 | EL65: 61 | EM65: 97 | EN65: 70 | EO65: 60 | EP65: 41 | EQ65: 6 | ER65: 5 | ES65: 10 | ET65: 8 | EU65: 9 | EV65: 11 | EW65: 5 | EX65: 61 | EY65: 76 | EZ65: 71 | FA65: 105 | FB65: 79 | FC65: 71 | FD65: 46
A66: 1 | B66: =OFFSET(Input_Details!$Q$4,MATCH($A66, Input_Details!$J$5:$J$24, 0), 0) -> 2017-04-24 | C66: =INDEX(Input_Details!$H$5:$H$24, MATCH($A66, Input_Details!$J$5:$J$24, 0), 0) -> Harper Road (South of Falmouth Road) | D66: =INDEX(Input_Details!$I$5:$I$24, MATCH($A66, Input_Details!$J$5:$J$24, 0), 0) -> 51.49617, -0.09302 | E66: =INDEX(Input_Details!$K$5:$K$24, MATCH($A66, Input_Details!$J$5:$J$24, 0), 0) -> Southbound | F66: Mon | G66: 15:30:00 | H66: 8 | I66: 50 | J66: 1 | K66: 7 | L66: 2 | M66: 2 | N66: 0 | O66: 0 | P66: 0 | Q66: 0 | R66: 0 | S66: 0 | T66: 0 | U66: 23 | V66: 37 | W66: 8 | X66: 2 | Y66: 0 | Z66: 0 | AA66: 0 | AB66: 0 | AC66: 0 | AD66: 0 | AE66: 0 | AF66: 0 | AG66: 0 | AH66: 0 | AI66: 0 | AJ66: 0 | AK66: 0 | AL66: 0 | AM66: 0 | AN66: 16.8 | AO66: 19.9 | AP66: 11.3 | AQ66: 28.8 | AR66: =INDEX(Input_Details!$L$5:$L$24, MATCH($A66, Input_Details!$J$5:$J$24, 0), 0) -> Northbound | AS66: Mon | AT66: 15:30:00 | AU66: 7 | AV66: 9 | AW66: 0 | AX66: 0 | AY66: 1 | AZ66: 0 | BA66: 0 | BB66: 0 | BC66: 0 | BD66: 0 | BE66: 0 | BF66: 0 | BG66: 1 | BH66: 11 | BI66: 4 | BJ66: 1 | BK66: 0 | BL66: 0 | BM66: 0 | BN66: 0 | BO66: 0 | BP66: 0 | BQ66: 0 | BR66: 0 | BS66: 0 | BT66: 0 | BU66: 0 | BV66: 0 | BW66: 0 | BX66: 0 | BY66: 0 | BZ66: 0 | CA66: 13.8 | CB66: 16.8 | CC66: 7.1 | CD66: 24.5 | CF66: Mon | CG66: 15:30:00 | CH66: 15 | CI66: 59 | CJ66: 1 | CK66: 7 | CL66: 3 | CM66: 2 | CN66: 0 | CO66: 0 | CP66: 0 | CQ66: 0 | CR66: 0 | CS66: 0 | CT66: 1 | CU66: 34 | CV66: 41 | CW66: 9 | CX66: 2 | CY66: 0 | CZ66: 0 | DA66: 0 | DB66: 0 | DC66: 0 | DD66: 0 | DE66: 0 | DF66: 0 | DG66: 0 | DH66: 0 | DI66: 0 | DJ66: 0 | DK66: 0 | DL66: 0 | DM66: 0 | DN66: 16.2137931 | DO66: 18.35 | DP66: 7.1 | DQ66: 28.8 | DR66: 8 | DS66: 51 | DT66: 7 | DU66: 2 | DV66: 2 | DW66: 70 | DX66: 7 | DY66: 9 | DZ66: 0 | EA66: 1 | EB66: 0 | EC66: 17 | ED66: 15 | EE66: 60 | EF66: 7 | EG66: 3 | EH66: 2 | EI66: 87 | EJ66: 70 | EK66: 81 | EL66: 66 | EM66: 71 | EN66: 64 | EO66: 47 | EP66: 45 | EQ66: 17 | ER66: 13 | ES66: 9 | ET66: 9 | EU66: 14 | EV66: 10 | EW66: 8 | EX66: 87 | EY66: 94 | EZ66: 75 | FA66: 80 | FB66: 78 | FC66: 57 | FD66: 53
A67: 1 | B67: =OFFSET(Input_Details!$Q$4,MATCH($A67, Input_Details!$J$5:$J$24, 0), 0) -> 2017-04-24 | C67: =INDEX(Input_Details!$H$5:$H$24, MATCH($A67, Input_Details!$J$5:$J$24, 0), 0) -> Harper Road (South of Falmouth Road) | D67: =INDEX(Input_Details!$I$5:$I$24, MATCH($A67, Input_Details!$J$5:$J$24, 0), 0) -> 51.49617, -0.09302 | E67: =INDEX(Input_Details!$K$5:$K$24, MATCH($A67, Input_Details!$J$5:$J$24, 0), 0) -> Southbound | F67: Mon | G67: 15:45:00 | H67: 11 | I67: 43 | J67: 1 | K67: 5 | L67: 3 | M67: 0 | N67: 1 | O67: 0 | P67: 0 | Q67: 0 | R67: 0 | S67: 0 | T67: 1 | U67: 3 | V67: 37 | W67: 17 | X67: 3 | Y67: 3 | Z67: 0 | AA67: 0 | AB67: 0 | AC67: 0 | AD67: 0 | AE67: 0 | AF67: 0 | AG67: 0 | AH67: 0 | AI67: 0 | AJ67: 0 | AK67: 0 | AL67: 0 | AM67: 0 | AN67: 19.6 | AO67: 23 | AP67: 9.8 | AQ67: 33.5 | AR67: =INDEX(Input_Details!$L$5:$L$24, MATCH($A67, Input_Details!$J$5:$J$24, 0), 0) -> Northbound | AS67: Mon | AT67: 15:45:00 | AU67: 1 | AV67: 6 | AW67: 0 | AX67: 0 | AY67: 0 | AZ67: 0 | BA67: 0 | BB67: 0 | BC67: 0 | BD67: 0 | BE67: 0 | BF67: 0 | BG67: 0 | BH67: 2 | BI67: 4 | BJ67: 0 | BK67: 1 | BL67: 0 | BM67: 0 | BN67: 0 | BO67: 0 | BP67: 0 | BQ67: 0 | BR67: 0 | BS67: 0 | BT67: 0 | BU67: 0 | BV67: 0 | BW67: 0 | BX67: 0 | BY67: 0 | BZ67: 0 | CA67: 17.6 | CB67: - | CC67: 13.7 | CD67: 26.5 | CF67: Mon | CG67: 15:45:00 | CH67: 12 | CI67: 49 | CJ67: 1 | CK67: 5 | CL67: 3 | CM67: 0 | CN67: 1 | CO67: 0 | CP67: 0 | CQ67: 0 | CR67: 0 | CS67: 0 | CT67: 1 | CU67: 5 | CV67: 41 | CW67: 17 | CX67: 4 | CY67: 3 | CZ67: 0 | DA67: 0 | DB67: 0 | DC67: 0 | DD67: 0 | DE67: 0 | DF67: 0 | DG67: 0 | DH67: 0 | DI67: 0 | DJ67: 0 | DK67: 0 | DL67: 0 | DM67: 0 | DN67: 19.4028169 | DO67: 23 | DP67: 9.8 | DQ67: 33.5 | DR67: 11 | DS67: 44 | DT67: 5 | DU67: 3 | DV67: 1 | DW67: 64 | DX67: 1 | DY67: 6 | DZ67: 0 | EA67: 0 | EB67: 0 | EC67: 7 | ED67: 12 | EE67: 50 | EF67: 5 | EG67: 3 | EH67: 1 | EI67: 71 | EJ67: 64 | EK67: 78 | EL67: 90 | EM67: 81 | EN67: 86 | EO67: 51 | EP67: 52 | EQ67: 7 | ER67: 13 | ES67: 14 | ET67: 13 | EU67: 5 | EV67: 8 | EW67: 6 | EX67: 71 | EY67: 91 | EZ67: 104 | FA67: 94 | FB67: 91 | FC67: 59 | FD67: 58
A68: 1 | B68: =OFFSET(Input_Details!$Q$4,MATCH($A68, Input_Details!$J$5:$J$24, 0), 0) -> 2017-04-24 | C68: =INDEX(Input_Details!$H$5:$H$24, MATCH($A68, Input_Details!$J$5:$J$24, 0), 0) -> Harper Road (South of Falmouth Road) | D68: =INDEX(Input_Details!$I$5:$I$24, MATCH($A68, Input_Details!$J$5:$J$24, 0), 0) -> 51.49617, -0.09302 | E68: =INDEX(Input_Details!$K$5:$K$24, MATCH($A68, Input_Details!$J$5:$J$24, 0), 0) -> Southbound | F68: Mon | G68: 16:00:00 | H68: 8 | I68: 55 | J68: 1 | K68: 8 | L68: 2 | M68: 3 | N68: 0 | O68: 0 | P68: 0 | Q68: 0 | R68: 0 | S68: 0 | T68: 0 | U68: 8 | V68: 14 | W68: 40 | X68: 12 | Y68: 1 | Z68: 2 | AA68: 0 | AB68: 0 | AC68: 0 | AD68: 0 | AE68: 0 | AF68: 0 | AG68: 0 | AH68: 0 | AI68: 0 | AJ68: 0 | AK68: 0 | AL68: 0 | AM68: 0 | AN68: 21.8 | AO68: 25.9 | AP68: 11.9 | AQ68: 37.1 | AR68: =INDEX(Input_Details!$L$5:$L$24, MATCH($A68, Input_Details!$J$5:$J$24, 0), 0) -> Northbound | AS68: Mon | AT68: 16:00:00 | AU68: 2 | AV68: 4 | AW68: 0 | AX68: 0 | AY68: 0 | AZ68: 0 | BA68: 0 | BB68: 0 | BC68: 0 | BD68: 0 | BE68: 0 | BF68: 0 | BG68: 0 | BH68: 1 | BI68: 4 | BJ68: 1 | BK68: 0 | BL68: 0 | BM68: 0 | BN68: 0 | BO68: 0 | BP68: 0 | BQ68: 0 | BR68: 0 | BS68: 0 | BT68: 0 | BU68: 0 | BV68: 0 | BW68: 0 | BX68: 0 | BY68: 0 | BZ68: 0 | CA68: 17.7 | CB68: - | CC68: 12.7 | CD68: 24 | CF68: Mon | CG68: 16:00:00 | CH68: 10 | CI68: =IF(OR(I68="", AV68=""), "-",SUM(I68+AV68)) -> 59 | CJ68: =IF(OR(J68="", AW68=""), "-",SUM(J68+AW68)) -> 1 | CK68: =IF(OR(K68="", AX68=""), "-",SUM(K68+AX68)) -> 8 | CL68: =IF(OR(L68="", AY68=""), "-",SUM(L68+AY68)) -> 2 | CM68: =IF(OR(M68="", AZ68=""), "-",SUM(M68+AZ68)) -> 3 | CN68: =IF(OR(N68="", BA68=""), "-",SUM(N68+BA68)) -> 0 | CO68: =IF(OR(O68="", BB68=""), "-",SUM(O68+BB68)) -> 0 | CP68: =IF(OR(P68="", BC68=""), "-",SUM(P68+BC68)) -> 0 | CQ68: =IF(OR(Q68="", BD68=""), "-",SUM(Q68+BD68)) -> 0 | CR68: =IF(OR(R68="", BE68=""), "-",SUM(R68+BE68)) -> 0 | CS68: =IF(OR(S68="", BF68=""), "-",SUM(S68+BF68)) -> 0 | CT68: =IF(OR(T68="", BG68=""), "-",SUM(T68+BG68)) -> 0 | CU68: =IF(OR(U68="", BH68=""), "-",SUM(U68+BH68)) -> 9 | CV68: =IF(OR(V68="", BI68=""), "-",SUM(V68+BI68)) -> 18 | CW68: =IF(OR(W68="", BJ68=""), "-",SUM(W68+BJ68)) -> 41 | CX68: =IF(OR(X68="", BK68=""), "-",SUM(X68+BK68)) -> 12 | CY68: =IF(OR(Y68="", BL68=""), "-",SUM(Y68+BL68)) -> 1 | CZ68: =IF(OR(Z68="", BM68=""), "-",SUM(Z68+BM68)) -> 2 | DA68: =IF(OR(AA68="", BN68=""), "-",SUM(AA68+BN68)) -> 0 | DB68: =IF(OR(AB68="", BO68=""), "-",SUM(AB68+BO68)) -> 0 | DC68: =IF(OR(AC68="", BP68=""), "-",SUM(AC68+BP68)) -> 0 | DD68: =IF(OR(AD68="", BQ68=""), "-",SUM(AD68+BQ68)) -> 0 | DE68: =IF(OR(AE68="", BR68=""), "-",SUM(AE68+BR68)) -> 0 | DF68: =IF(OR(AF68="", BS68=""), "-",SUM(AF68+BS68)) -> 0 | DG68: =IF(OR(AG68="", BT68=""), "-",SUM(AG68+BT68)) -> 0 | DH68: =IF(OR(AH68="", BU68=""), "-",SUM(AH68+BU68)) -> 0 | DI68: =IF(OR(AI68="", BV68=""), "-",SUM(AI68+BV68)) -> 0 | DJ68: =IF(OR(AJ68="", BW68=""), "-",SUM(AJ68+BW68)) -> 0 | DK68: =IF(OR(AK68="", BX68=""), "-",SUM(AK68+BX68)) -> 0 | DL68: =IF(OR(AL68="", BY68=""), "-",SUM(AL68+BY68)) -> 0 | DM68: =IF(OR(AM68="", BZ68=""), "-",SUM(AM68+BZ68)) -> 0 | DN68: 21.50361446 | DO68: 25.9 | DP68: 11.9 | DQ68: 37.1 | DR68: =IF(H68="", "-", H68) -> 8 | DS68: =IF(DR68="-", "-", SUM(I68:J68)) -> 56 | DT68: =IF(DR68="-", "-", K68) -> 8 | DU68: =IF(DR68="-", "-", L68) -> 2 | DV68: =IF(DR68="-", "-", SUM(M68:S68)) -> 3 | DW68: =IF(DR68="-", "-", SUM(H68:S68)) -> 77 | DX68: 2 | DY68: 4 | DZ68: 0 | EA68: 0 | EB68: 0 | EC68: 6 | ED68: 10 | EE68: =IF(OR(DS68="-", DY68="-"), "-", SUM(DS68,DY68)) -> 60 | EF68: =IF(OR(DT68="-", DZ68="-"), "-", SUM(DT68,DZ68)) -> 8 | EG68: =IF(OR(DU68="-", EA68="-"), "-", SUM(DU68,EA68)) -> 2 | EH68: =IF(OR(DV68="-", EB68="-"), "-", SUM(DV68,EB68)) -> 3 | EI68: =IF(OR(DW68="-", EC68="-"), "-", SUM(DW68,EC68)) -> 83 | EJ68: 77 | EK68: 78 | EL68: 88 | EM68: 80 | EN68: 94 | EO68: 66 | EP68: 30 | EQ68: 6 | ER68: 10 | ES68: 7 | ET68: 11 | EU68: 8 | EV68: 12 | EW68: 6 | EX68: 83 | EY68: =IF(OR(EK68="-", ER68="-"), "-", SUM(EK68,ER68)) -> 88 | EZ68: =IF(OR(EL68="-", ES68="-"), "-", SUM(EL68,ES68)) -> 95 | FA68: =IF(OR(EM68="-", ET68="-"), "-", SUM(EM68,ET68)) -> 91 | FB68: =IF(OR(EN68="-", EU68="-"), "-", SUM(EN68,EU68)) -> 102 | FC68: =IF(OR(EO68="-", EV68="-"), "-", SUM(EO68,EV68)) -> 78 | FD68: =IF(OR(EP68="-", EW68="-"), "-", SUM(EP68,EW68)) -> 36
A69: =A68 -> 1 | B69: =OFFSET(Input_Details!$Q$4,MATCH($A69, Input_Details!$J$5:$J$24, 0), 0) -> 2017-04-24 | C69: =INDEX(Input_Details!$H$5:$H$24, MATCH($A69, Input_Details!$J$5:$J$24, 0), 0) -> Harper Road (South of Falmouth Road) | D69: =INDEX(Input_Details!$I$5:$I$24, MATCH($A69, Input_Details!$J$5:$J$24, 0), 0) -> 51.49617, -0.09302 | E69: =INDEX(Input_Details!$K$5:$K$24, MATCH($A69, Input_Details!$J$5:$J$24, 0), 0) -> Southbound | F69: =+F68 -> Mon | G69: 16:15:00 | H69: 11 | I69: 46 | J69: 0 | K69: 9 | L69: 4 | M69: 1 | N69: 0 | O69: 1 | P69: 0 | Q69: 0 | R69: 0 | S69: 0 | T69: 0 | U69: 4 | V69: 30 | W69: 26 | X69: 8 | Y69: 4 | Z69: 0 | AA69: 0 | AB69: 0 | AC69: 0 | AD69: 0 | AE69: 0 | AF69: 0 | AG69: 0 | AH69: 0 | AI69: 0 | AJ69: 0 | AK69: 0 | AL69: 0 | AM69: 0 | AN69: 21 | AO69: 25.3 | AP69: 13.4 | AQ69: 33.8 | AR69: =INDEX(Input_Details!$L$5:$L$24, MATCH($A69, Input_Details!$J$5:$J$24, 0), 0) -> Northbound | AS69: Mon | AT69: 16:15:00 | AU69: 2 | AV69: 1 | AW69: 0 | AX69: 0 | AY69: 0 | AZ69: 0 | BA69: 0 | BB69: 0 | BC69: 0 | BD69: 0 | BE69: 0 | BF69: 0 | BG69: 0 | BH69: 1 | BI69: 1 | BJ69: 1 | BK69: 0 | BL69: 0 | BM69: 0 | BN69: 0 | BO69: 0 | BP69: 0 | BQ69: 0 | BR69: 0 | BS69: 0 | BT69: 0 | BU69: 0 | BV69: 0 | BW69: 0 | BX69: 0 | BY69: 0 | BZ69: 0 | CA69: 18.8 | CB69: - | CC69: 12.7 | CD69: 24.4 | CF69: Mon | CG69: 16:15:00 | CH69: =IF(OR(H69="", AU69=""), "-",SUM(H69+AU69)) -> 13 | CI69: 47 | CJ69: 0 | CK69: 9 | CL69: 4 | CM69: 1 | CN69: 0 | CO69: 1 | CP69: 0 | CQ69: 0 | CR69: 0 | CS69: 0 | CT69: 0 | CU69: 5 | CV69: 31 | CW69: 27 | CX69: 8 | CY69: 4 | CZ69: 0 | DA69: 0 | DB69: 0 | DC69: 0 | DD69: 0 | DE69: 0 | DF69: 0 | DG69: 0 | DH69: 0 | DI69: 0 | DJ69: 0 | DK69: 0 | DL69: 0 | DM69: 0 | DN69: =IF(OR(DW69="-", EC69="-", EI69="-", EI69=0),"-",IF(OR(DW69="-", DW69=0),CA69,IF(EC69=0,AN69,SUM((AN69*DW69),(CA69*EC69))/EI69))) -> 20.912 | DO69: =IFERROR(IF(OR(DW69="-", EC69="-", EI69="-", EI69=0), "-", IF(AO69="-", CB69, AVERAGE(AO69,CB69))), "-") -> 25.3 | DP69: =IF(OR(DW69="-", EC69="-",EI69="-", EI69=0),"-",MIN(AP69,CC69)) -> 12.7 | DQ69: =IF(OR(DW69="-", EC69="-",EI69="-", EI69=0),"-",MAX(AQ69,CD69)) -> 33.8 | DR69: 11 | DS69: 46 | DT69: 9 | DU69: 4 | DV69: 2 | DW69: 72 | DX69: =IF(AU69="", "-", AU69) -> 2 | DY69: =IF(DX69="-", "-", SUM(AV69:AW69)) -> 1 | DZ69: =IF(DX69="-", "-", AX69) -> 0 | EA69: =IF(DX69="-", "-", AY69) -> 0 | EB69: =IF(DX69="-", "-", SUM(AZ69:BF69)) -> 0 | EC69: =IF(DX69="-", "-", SUM(AU69:BF69)) -> 3 | ED69: =IF(OR(DR69="-", DX69="-"), "-", SUM(DR69,DX69)) -> 13 | EE69: 47 | EF69: 9 | EG69: 4 | EH69: 2 | EI69: 75 | EJ69: =+DW69 -> 72 | EK69: =+DW165 -> 56 | EL69: =+DW261 -> 82 | EM69: =+DW357 -> 82 | EN69: =+DW453 -> 79 | EO69: =+DW549 -> 60 | EP69: =+DW645 -> 45 | EQ69: =+EC69 -> 3 | ER69: =+EC165 -> 13 | ES69: =+EC261 -> 15 | ET69: =+EC357 -> 8 | EU69: =+EC453 -> 3 | EV69: =+EC549 -> 13 | EW69: =+EC645 -> 7 | EX69: =IF(OR(EJ69="-", EQ69="-"), "-", SUM(EJ69,EQ69)) -> 75 | EY69: 69 | EZ69: 97 | FA69: 90 | FB69: 82 | FC69: 73 | FD69: 52
A70: 1 | B70: =OFFSET(Input_Details!$Q$4,MATCH($A70, Input_Details!$J$5:$J$24, 0), 0) -> 2017-04-24 | C70: =INDEX(Input_Details!$H$5:$H$24, MATCH($A70, Input_Details!$J$5:$J$24, 0), 0) -> Harper Road (South of Falmouth Road) | D70: =INDEX(Input_Details!$I$5:$I$24, MATCH($A70, Input_Details!$J$5:$J$24, 0), 0) -> 51.49617, -0.09302 | E70: =INDEX(Input_Details!$K$5:$K$24, MATCH($A70, Input_Details!$J$5:$J$24, 0), 0) -> Southbound | F70: Mon | G70: 16:30:00 | H70: 12 | I70: 61 | J70: 2 | K70: 8 | L70: 2 | M70: 1 | N70: 0 | O70: 1 | P70: 0 | Q70: 0 | R70: 0 | S70: 0 | T70: 1 | U70: 6 | V70: 36 | W70: 36 | X70: 6 | Y70: 2 | Z70: 0 | AA70: 0 | AB70: 0 | AC70: 0 | AD70: 0 | AE70: 0 | AF70: 0 | AG70: 0 | AH70: 0 | AI70: 0 | AJ70: 0 | AK70: 0 | AL70: 0 | AM70: 0 | AN70: 20.2 | AO70: 23 | AP70: 9.5 | AQ70: 34.5 | AR70: =INDEX(Input_Details!$L$5:$L$24, MATCH($A70, Input_Details!$J$5:$J$24, 0), 0) -> Northbound | AS70: Mon | AT70: 16:30:00 | AU70: 1 | AV70: 9 | AW70: 0 | AX70: 0 | AY70: 0 | AZ70: 0 | BA70: 0 | BB70: 0 | BC70: 0 | BD70: 0 | BE70: 0 | BF70: 0 | BG70: 1 | BH70: 7 | BI70: 2 | BJ70: 0 | BK70: 0 | BL70: 0 | BM70: 0 | BN70: 0 | BO70: 0 | BP70: 0 | BQ70: 0 | BR70: 0 | BS70: 0 | BT70: 0 | BU70: 0 | BV70: 0 | BW70: 0 | BX70: 0 | BY70: 0 | BZ70: 0 | CA70: 14 | CB70: - | CC70: 9.5 | CD70: 19.4 | CF70: Mon | CG70: 16:30:00 | CH70: 13 | CI70: 70 | CJ70: 2 | CK70: 8 | CL70: 2 | CM70: 1 | CN70: 0 | CO70: 1 | CP70: 0 | CQ70: 0 | CR70: 0 | CS70: 0 | CT70: 2 | CU70: 13 | CV70: 38 | CW70: 36 | CX70: 6 | CY70: 2 | CZ70: 0 | DA70: 0 | DB70: 0 | DC70: 0 | DD70: 0 | DE70: 0 | DF70: 0 | DG70: 0 | DH70: 0 | DI70: 0 | DJ70: 0 | DK70: 0 | DL70: 0 | DM70: 0 | DN70: 19.56082474 | DO70: 23 | DP70: 9.5 | DQ70: 34.5 | DR70: 12 | DS70: 63 | DT70: 8 | DU70: 2 | DV70: 2 | DW70: 87 | DX70: 1 | DY70: 9 | DZ70: 0 | EA70: 0 | EB70: 0 | EC70: 10 | ED70: 13 | EE70: 72 | EF70: 8 | EG70: 2 | EH70: 2 | EI70: 97 | EJ70: 87 | EK70: 76 | EL70: 87 | EM70: 91 | EN70: 82 | EO70: 51 | EP70: 51 | EQ70: 10 | ER70: 9 | ES70: 17 | ET70: 4 | EU70: 7 | EV70: 8 | EW70: 5 | EX70: 97 | EY70: 85 | EZ70: 104 | FA70: 95 | FB70: 89 | FC70: 59 | FD70: 56
A71: 1 | B71: =OFFSET(Input_Details!$Q$4,MATCH($A71, Input_Details!$J$5:$J$24, 0), 0) -> 2017-04-24 | C71: =INDEX(Input_Details!$H$5:$H$24, MATCH($A71, Input_Details!$J$5:$J$24, 0), 0) -> Harper Road (South of Falmouth Road) | D71: =INDEX(Input_Details!$I$5:$I$24, MATCH($A71, Input_Details!$J$5:$J$24, 0), 0) -> 51.49617, -0.09302 | E71: =INDEX(Input_Details!$K$5:$K$24, MATCH($A71, Input_Details!$J$5:$J$24, 0), 0) -> Southbound | F71: Mon | G71: 16:45:00 | H71: 20 | I71: 63 | J71: 0 | K71: 10 | L71: 1 | M71: 1 | N71: 0 | O71: 0 | P71: 0 | Q71: 0 | R71: 0 | S71: 0 | T71: 0 | U71: 6 | V71: 39 | W71: 32 | X71: 11 | Y71: 7 | Z71: 0 | AA71: 0 | AB71: 0 | AC71: 0 | AD71: 0 | AE71: 0 | AF71: 0 | AG71: 0 | AH71: 0 | AI71: 0 | AJ71: 0 | AK71: 0 | AL71: 0 | AM71: 0 | AN71: 20.8 | AO71: 25.1 | AP71: 10.9 | AQ71: 33.2 | AR71: =INDEX(Input_Details!$L$5:$L$24, MATCH($A71, Input_Details!$J$5:$J$24, 0), 0) -> Northbound | AS71: Mon | AT71: 16:45:00 | AU71: 2 | AV71: 8 | AW71: 0 | AX71: 0 | AY71: 0 | AZ71: 0 | BA71: 0 | BB71: 0 | BC71: 0 | BD71: 0 | BE71: 0 | BF71: 0 | BG71: 0 | BH71: 4 | BI71: 5 | BJ71: 1 | BK71: 0 | BL71: 0 | BM71: 0 | BN71: 0 | BO71: 0 | BP71: 0 | BQ71: 0 | BR71: 0 | BS71: 0 | BT71: 0 | BU71: 0 | BV71: 0 | BW71: 0 | BX71: 0 | BY71: 0 | BZ71: 0 | CA71: 15.7 | CB71: - | CC71: 11.6 | CD71: 20.8 | CF71: Mon | CG71: 16:45:00 | CH71: 22 | CI71: 71 | CJ71: 0 | CK71: 10 | CL71: 1 | CM71: 1 | CN71: 0 | CO71: 0 | CP71: 0 | CQ71: 0 | CR71: 0 | CS71: 0 | CT71: 0 | CU71: 10 | CV71: 44 | CW71: 33 | CX71: 11 | CY71: 7 | CZ71: 0 | DA71: 0 | DB71: 0 | DC71: 0 | DD71: 0 | DE71: 0 | DF71: 0 | DG71: 0 | DH71: 0 | DI71: 0 | DJ71: 0 | DK71: 0 | DL71: 0 | DM71: 0 | DN71: 20.31428571 | DO71: 25.1 | DP71: 10.9 | DQ71: 33.2 | DR71: 20 | DS71: 63 | DT71: 10 | DU71: 1 | DV71: 1 | DW71: 95 | DX71: 2 | DY71: 8 | DZ71: 0 | EA71: 0 | EB71: 0 | EC71: 10 | ED71: 22 | EE71: 71 | EF71: 10 | EG71: 1 | EH71: 1 | EI71: 105 | EJ71: 95 | EK71: 85 | EL71: 108 | EM71: 94 | EN71: 78 | EO71: 55 | EP71: 41 | EQ71: 10 | ER71: 15 | ES71: 16 | ET71: 9 | EU71: 7 | EV71: 14 | EW71: 2 | EX71: 105 | EY71: 100 | EZ71: 124 | FA71: 103 | FB71: 85 | FC71: 69 | FD71: 43
A72: 1 | B72: =OFFSET(Input_Details!$Q$4,MATCH($A72, Input_Details!$J$5:$J$24, 0), 0) -> 2017-04-24 | C72: =INDEX(Input_Details!$H$5:$H$24, MATCH($A72, Input_Details!$J$5:$J$24, 0), 0) -> Harper Road (South of Falmouth Road) | D72: =INDEX(Input_Details!$I$5:$I$24, MATCH($A72, Input_Details!$J$5:$J$24, 0), 0) -> 51.49617, -0.09302 | E72: =INDEX(Input_Details!$K$5:$K$24, MATCH($A72, Input_Details!$J$5:$J$24, 0), 0) -> Southbound | F72: Mon | G72: 17:00:00 | H72: 16 | I72: 42 | J72: 0 | K72: 11 | L72: 1 | M72: 1 | N72: 0 | O72: 0 | P72: 0 | Q72: 1 | R72: 0 | S72: 0 | T72: 0 | U72: 10 | V72: 33 | W72: 21 | X72: 5 | Y72: 3 | Z72: 0 | AA72: 0 | AB72: 0 | AC72: 0 | AD72: 0 | AE72: 0 | AF72: 0 | AG72: 0 | AH72: 0 | AI72: 0 | AJ72: 0 | AK72: 0 | AL72: 0 | AM72: 0 | AN72: 19.7 | AO72: 23 | AP72: 12.3 | AQ72: 35 | AR72: =INDEX(Input_Details!$L$5:$L$24, MATCH($A72, Input_Details!$J$5:$J$24, 0), 0) -> Northbound | AS72: Mon | AT72: 17:00:00 | AU72: 2 | AV72: 3 | AW72: 0 | AX72: 0 | AY72: 1 | AZ72: 0 | BA72: 0 | BB72: 0 | BC72: 0 | BD72: 0 | BE72: 0 | BF72: 0 | BG72: 0 | BH72: 5 | BI72: 1 | BJ72: 0 | BK72: 0 | BL72: 0 | BM72: 0 | BN72: 0 | BO72: 0 | BP72: 0 | BQ72: 0 | BR72: 0 | BS72: 0 | BT72: 0 | BU72: 0 | BV72: 0 | BW72: 0 | BX72: 0 | BY72: 0 | BZ72: 0 | CA72: 14 | CB72: - | CC72: 10.6 | CD72: 18.2 | CF72: Mon | CG72: 17:00:00 | CH72: 18 | CI72: 45 | CJ72: 0 | CK72: 11 | CL72: 2 | CM72: 1 | CN72: 0 | CO72: 0 | CP72: 0 | CQ72: 1 | CR72: 0 | CS72: 0 | CT72: 0 | CU72: 15 | CV72: 34 | CW72: 21 | CX72: 5 | CY72: 3 | CZ72: 0 | DA72: 0 | DB72: 0 | DC72: 0 | DD72: 0 | DE72: 0 | DF72: 0 | DG72: 0 | DH72: 0 | DI72: 0 | DJ72: 0 | DK72: 0 | DL72: 0 | DM72: 0 | DN72: 19.26153846 | DO72: 23 | DP72: 10.6 | DQ72: 35 | DR72: 16 | DS72: 42 | DT72: 11 | DU72: 1 | DV72: 2 | DW72: 72 | DX72: 2 | DY72: 3 | DZ72: 0 | EA72: 1 | EB72: 0 | EC72: 6 | ED72: 18 | EE72: 45 | EF72: 11 | EG72: 2 | EH72: 2 | EI72: 78 | EJ72: 72 | EK72: 73 | EL72: 96 | EM72: 81 | EN72: 87 | EO72: 55 | EP72: 50 | EQ72: 6 | ER72: 8 | ES72: 10 | ET72: 4 | EU72: 4 | EV72: 10 | EW72: 6 | EX72: 78 | EY72: 81 | EZ72: 106 | FA72: 85 | FB72: 91 | FC72: 65 | FD72: 56
A73: 1 | B73: =OFFSET(Input_Details!$Q$4,MATCH($A73, Input_Details!$J$5:$J$24, 0), 0) -> 2017-04-24 | C73: =INDEX(Input_Details!$H$5:$H$24, MATCH($A73, Input_Details!$J$5:$J$24, 0), 0) -> Harper Road (South of Falmouth Road) | D73: =INDEX(Input_Details!$I$5:$I$24, MATCH($A73, Input_Details!$J$5:$J$24, 0), 0) -> 51.49617, -0.09302 | E73: =INDEX(Input_Details!$K$5:$K$24, MATCH($A73, Input_Details!$J$5:$J$24, 0), 0) -> Southbound | F73: Mon | G73: 17:15:00 | H73: 30 | I73: 43 | J73: 1 | K73: 10 | L73: 3 | M73: 1 | N73: 0 | O73: 1 | P73: 0 | Q73: 0 | R73: 0 | S73: 0 | T73: 0 | U73: 11 | V73: 26 | W73: 32 | X73: 13 | Y73: 6 | Z73: 1 | AA73: 0 | AB73: 0 | AC73: 0 | AD73: 0 | AE73: 0 | AF73: 0 | AG73: 0 | AH73: 0 | AI73: 0 | AJ73: 0 | AK73: 0 | AL73: 0 | AM73: 0 | AN73: 21.6 | AO73: 29.1 | AP73: 10.8 | AQ73: 35.2 | AR73: =INDEX(Input_Details!$L$5:$L$24, MATCH($A73, Input_Details!$J$5:$J$24, 0), 0) -> Northbound | AS73: Mon | AT73: 17:15:00 | AU73: 4 | AV73: 4 | AW73: 0 | AX73: 0 | AY73: 0 | AZ73: 0 | BA73: 0 | BB73: 0 | BC73: 0 | BD73: 0 | BE73: 0 | BF73: 0 | BG73: 1 | BH73: 1 | BI73: 5 | BJ73: 1 | BK73: 0 | BL73: 0 | BM73: 0 | BN73: 0 | BO73: 0 | BP73: 0 | BQ73: 0 | BR73: 0 | BS73: 0 | BT73: 0 | BU73: 0 | BV73: 0 | BW73: 0 | BX73: 0 | BY73: 0 | BZ73: 0 | CA73: 15.6 | CB73: - | CC73: 9.8 | CD73: 21.3 | CF73: Mon | CG73: 17:15:00 | CH73: 34 | CI73: 47 | CJ73: 1 | CK73: 10 | CL73: 3 | CM73: 1 | CN73: 0 | CO73: 1 | CP73: 0 | CQ73: 0 | CR73: 0 | CS73: 0 | CT73: 1 | CU73: 12 | CV73: 31 | CW73: 33 | CX73: 13 | CY73: 6 | CZ73: 1 | DA73: 0 | DB73: 0 | DC73: 0 | DD73: 0 | DE73: 0 | DF73: 0 | DG73: 0 | DH73: 0 | DI73: 0 | DJ73: 0 | DK73: 0 | DL73: 0 | DM73: 0 | DN73: 21.10515464 | DO73: 29.1 | DP73: 9.8 | DQ73: 35.2 | DR73: 30 | DS73: 44 | DT73: 10 | DU73: 3 | DV73: 2 | DW73: 89 | DX73: 4 | DY73: 4 | DZ73: 0 | EA73: 0 | EB73: 0 | EC73: 8 | ED73: 34 | EE73: 48 | EF73: 10 | EG73: 3 | EH73: 2 | EI73: 97 | EJ73: 89 | EK73: 103 | EL73: 93 | EM73: 83 | EN73: 108 | EO73: 65 | EP73: 62 | EQ73: 8 | ER73: 12 | ES73: 12 | ET73: 4 | EU73: 8 | EV73: 10 | EW73: 8 | EX73: 97 | EY73: 115 | EZ73: 105 | FA73: 87 | FB73: 116 | FC73: 75 | FD73: 70
A74: 1 | B74: =OFFSET(Input_Details!$Q$4,MATCH($A74, Input_Details!$J$5:$J$24, 0), 0) -> 2017-04-24 | C74: =INDEX(Input_Details!$H$5:$H$24, MATCH($A74, Input_Details!$J$5:$J$24, 0), 0) -> Harper Road (South of Falmouth Road) | D74: =INDEX(Input_Details!$I$5:$I$24, MATCH($A74, Input_Details!$J$5:$J$24, 0), 0) -> 51.49617, -0.09302 | E74: =INDEX(Input_Details!$K$5:$K$24, MATCH($A74, Input_Details!$J$5:$J$24, 0), 0) -> Southbound | F74: Mon | G74: 17:30:00 | H74: 19 | I74: 57 | J74: 0 | K74: 12 | L74: 1 | M74: 2 | N74: 0 | O74: 1 | P74: 0 | Q74: 1 | R74: 0 | S74: 0 | T74: 0 | U74: 10 | V74: 38 | W74: 32 | X74: 8 | Y74: 5 | Z74: 0 | AA74: 0 | AB74: 0 | AC74: 0 | AD74: 0 | AE74: 0 | AF74: 0 | AG74: 0 | AH74: 0 | AI74: 0 | AJ74: 0 | AK74: 0 | AL74: 0 | AM74: 0 | AN74: 20.2 | AO74: 23.7 | AP74: 11.2 | AQ74: 34.6 | AR74: =INDEX(Input_Details!$L$5:$L$24, MATCH($A74, Input_Details!$J$5:$J$24, 0), 0) -> Northbound | AS74: Mon | AT74: 17:30:00 | AU74: 2 | AV74: 1 | AW74: 0 | AX74: 0 | AY74: 0 | AZ74: 0 | BA74: 0 | BB74: 0 | BC74: 0 | BD74: 0 | BE74: 0 | BF74: 0 | BG74: 0 | BH74: 3 | BI74: 0 | BJ74: 0 | BK74: 0 | BL74: 0 | BM74: 0 | BN74: 0 | BO74: 0 | BP74: 0 | BQ74: 0 | BR74: 0 | BS74: 0 | BT74: 0 | BU74: 0 | BV74: 0 | BW74: 0 | BX74: 0 | BY74: 0 | BZ74: 0 | CA74: 11.9 | CB74: - | CC74: 10.6 | CD74: 13.6 | CF74: Mon | CG74: 17:30:00 | CH74: 21 | CI74: 58 | CJ74: 0 | CK74: 12 | CL74: 1 | CM74: 2 | CN74: 0 | CO74: 1 | CP74: 0 | CQ74: 1 | CR74: 0 | CS74: 0 | CT74: 0 | CU74: 13 | CV74: 38 | CW74: 32 | CX74: 8 | CY74: 5 | CZ74: 0 | DA74: 0 | DB74: 0 | DC74: 0 | DD74: 0 | DE74: 0 | DF74: 0 | DG74: 0 | DH74: 0 | DI74: 0 | DJ74: 0 | DK74: 0 | DL74: 0 | DM74: 0 | DN74: 19.940625 | DO74: 23.7 | DP74: 10.6 | DQ74: 34.6 | DR74: 19 | DS74: 57 | DT74: 12 | DU74: 1 | DV74: 4 | DW74: 93 | DX74: 2 | DY74: 1 | DZ74: 0 | EA74: 0 | EB74: 0 | EC74: 3 | ED74: 21 | EE74: 58 | EF74: 12 | EG74: 1 | EH74: 4 | EI74: 96 | EJ74: 93 | EK74: 88 | EL74: 76 | EM74: 100 | EN74: 85 | EO74: 39 | EP74: 61 | EQ74: 3 | ER74: 16 | ES74: 14 | ET74: 7 | EU74: 6 | EV74: 9 | EW74: 2 | EX74: 96 | EY74: 104 | EZ74: 90 | FA74: 107 | FB74: 91 | FC74: 48 | FD74: 63
A75: 1 | B75: =OFFSET(Input_Details!$Q$4,MATCH($A75, Input_Details!$J$5:$J$24, 0), 0) -> 2017-04-24 | C75: =INDEX(Input_Details!$H$5:$H$24, MATCH($A75, Input_Details!$J$5:$J$24, 0), 0) -> Harper Road (South of Falmouth Road) | D75: =INDEX(Input_Details!$I$5:$I$24, MATCH($A75, Input_Details!$J$5:$J$24, 0), 0) -> 51.49617, -0.09302 | E75: =INDEX(Input_Details!$K$5:$K$24, MATCH($A75, Input_Details!$J$5:$J$24, 0), 0) -> Southbound | F75: Mon | G75: 17:45:00 | H75: 21 | I75: 53 | J75: 0 | K75: 4 | L75: 5 | M75: 3 | N75: 0 | O75: 0 | P75: 0 | Q75: 0 | R75: 0 | S75: 0 | T75: 0 | U75: 8 | V75: 46 | W75: 21 | X75: 9 | Y75: 1 | Z75: 0 | AA75: 1 | AB75: 0 | AC75: 0 | AD75: 0 | AE75: 0 | AF75: 0 | AG75: 0 | AH75: 0 | AI75: 0 | AJ75: 0 | AK75: 0 | AL75: 0 | AM75: 0 | AN75: 19.8 | AO75: 24.4 | AP75: 12.2 | AQ75: 41 | AR75: =INDEX(Input_Details!$L$5:$L$24, MATCH($A75, Input_Details!$J$5:$J$24, 0), 0) -> Northbound | AS75: Mon | AT75: 17:45:00 | AU75: 3 | AV75: 7 | AW75: 0 | AX75: 0 | AY75: 1 | AZ75: 0 | BA75: 0 | BB75: 0 | BC75: 0 | BD75: 0 | BE75: 0 | BF75: 0 | BG75: 1 | BH75: 4 | BI75: 3 | BJ75: 3 | BK75: 0 | BL75: 0 | BM75: 0 | BN75: 0 | BO75: 0 | BP75: 0 | BQ75: 0 | BR75: 0 | BS75: 0 | BT75: 0 | BU75: 0 | BV75: 0 | BW75: 0 | BX75: 0 | BY75: 0 | BZ75: 0 | CA75: 17 | CB75: 22.6 | CC75: 8.9 | CD75: 24.8 | CF75: Mon | CG75: 17:45:00 | CH75: 24 | CI75: 60 | CJ75: 0 | CK75: 4 | CL75: 6 | CM75: 3 | CN75: 0 | CO75: 0 | CP75: 0 | CQ75: 0 | CR75: 0 | CS75: 0 | CT75: 1 | CU75: 12 | CV75: 49 | CW75: 24 | CX75: 9 | CY75: 1 | CZ75: 0 | DA75: 1 | DB75: 0 | DC75: 0 | DD75: 0 | DE75: 0 | DF75: 0 | DG75: 0 | DH75: 0 | DI75: 0 | DJ75: 0 | DK75: 0 | DL75: 0 | DM75: 0 | DN75: 19.48247423 | DO75: 23.5 | DP75: 8.9 | DQ75: 41 | DR75: 21 | DS75: 53 | DT75: 4 | DU75: 5 | DV75: 3 | DW75: 86 | DX75: 3 | DY75: 7 | DZ75: 0 | EA75: 1 | EB75: 0 | EC75: 11 | ED75: 24 | EE75: 60 | EF75: 4 | EG75: 6 | EH75: 3 | EI75: 97 | EJ75: 86 | EK75: 105 | EL75: 90 | EM75: 90 | EN75: 98 | EO75: 56 | EP75: 62 | EQ75: 11 | ER75: 19 | ES75: 9 | ET75: 9 | EU75: 11 | EV75: 4 | EW75: 8 | EX75: 97 | EY75: 124 | EZ75: 99 | FA75: 99 | FB75: 109 | FC75: 60 | FD75: 70
A76: 1 | B76: =OFFSET(Input_Details!$Q$4,MATCH($A76, Input_Details!$J$5:$J$24, 0), 0) -> 2017-04-24 | C76: =INDEX(Input_Details!$H$5:$H$24, MATCH($A76, Input_Details!$J$5:$J$24, 0), 0) -> Harper Road (South of Falmouth Road) | D76: =INDEX(Input_Details!$I$5:$I$24, MATCH($A76, Input_Details!$J$5:$J$24, 0), 0) -> 51.49617, -0.09302 | E76: =INDEX(Input_Details!$K$5:$K$24, MATCH($A76, Input_Details!$J$5:$J$24, 0), 0) -> Southbound | F76: Mon | G76: 18:00:00 | H76: 28 | I76: 60 | J76: 1 | K76: 4 | L76: 2 | M76: 1 | N76: 0 | O76: 1 | P76: 0 | Q76: 2 | R76: 0 | S76: 0 | T76: 1 | U76: 22 | V76: 36 | W76: 30 | X76: 8 | Y76: 1 | Z76: 1 | AA76: 0 | AB76: 0 | AC76: 0 | AD76: 0 | AE76: 0 | AF76: 0 | AG76: 0 | AH76: 0 | AI76: 0 | AJ76: 0 | AK76: 0 | AL76: 0 | AM76: 0 | AN76: 19 | AO76: 23.7 | AP76: 9 | AQ76: 36.8 | AR76: =INDEX(Input_Details!$L$5:$L$24, MATCH($A76, Input_Details!$J$5:$J$24, 0), 0) -> Northbound | AS76: Mon | AT76: 18:00:00 | AU76: 1 | AV76: 16 | AW76: 0 | AX76: 0 | AY76: 0 | AZ76: 0 | BA76: 0 | BB76: 0 | BC76: 0 | BD76: 0 | BE76: 0 | BF76: 0 | BG76: 0 | BH76: 10 | BI76: 2 | BJ76: 5 | BK76: 0 | BL76: 0 | BM76: 0 | BN76: 0 | BO76: 0 | BP76: 0 | BQ76: 0 | BR76: 0 | BS76: 0 | BT76: 0 | BU76: 0 | BV76: 0 | BW76: 0 | BX76: 0 | BY76: 0 | BZ76: 0 | CA76: 16.5 | CB76: 20.4 | CC76: 12.7 | CD76: 22.6 | CF76: Mon | CG76: 18:00:00 | CH76: 29 | CI76: 76 | CJ76: 1 | CK76: 4 | CL76: 2 | CM76: 1 | CN76: 0 | CO76: 1 | CP76: 0 | CQ76: 2 | CR76: 0 | CS76: 0 | CT76: 1 | CU76: 32 | CV76: 38 | CW76: 35 | CX76: 8 | CY76: 1 | CZ76: 1 | DA76: 0 | DB76: 0 | DC76: 0 | DD76: 0 | DE76: 0 | DF76: 0 | DG76: 0 | DH76: 0 | DI76: 0 | DJ76: 0 | DK76: 0 | DL76: 0 | DM76: 0 | DN76: 18.63362069 | DO76: 22.05 | DP76: 9 | DQ76: 36.8 | DR76: 28 | DS76: 61 | DT76: 4 | DU76: 2 | DV76: 4 | DW76: 99 | DX76: 1 | DY76: 16 | DZ76: 0 | EA76: 0 | EB76: 0 | EC76: 17 | ED76: 29 | EE76: 77 | EF76: 4 | EG76: 2 | EH76: 4 | EI76: 116 | EJ76: 99 | EK76: 106 | EL76: 110 | EM76: 107 | EN76: 85 | EO76: 60 | EP76: 56 | EQ76: 17 | ER76: 14 | ES76: 10 | ET76: 10 | EU76: 11 | EV76: 11 | EW76: 4 | EX76: 116 | EY76: 120 | EZ76: 120 | FA76: 117 | FB76: 96 | FC76: 71 | FD76: 60
A77: 1 | B77: =OFFSET(Input_Details!$Q$4,MATCH($A77, Input_Details!$J$5:$J$24, 0), 0) -> 2017-04-24 | C77: =INDEX(Input_Details!$H$5:$H$24, MATCH($A77, Input_Details!$J$5:$J$24, 0), 0) -> Harper Road (South of Falmouth Road) | D77: =INDEX(Input_Details!$I$5:$I$24, MATCH($A77, Input_Details!$J$5:$J$24, 0), 0) -> 51.49617, -0.09302 | E77: =INDEX(Input_Details!$K$5:$K$24, MATCH($A77, Input_Details!$J$5:$J$24, 0), 0) -> Southbound | F77: Mon | G77: 18:15:00 | H77: 27 | I77: 43 | J77: 1 | K77: 5 | L77: 3 | M77: 0 | N77: 0 | O77: 1 | P77: 0 | Q77: 1 | R77: 0 | S77: 0 | T77: 1 | U77: 10 | V77: 35 | W77: 23 | X77: 8 | Y77: 3 | Z77: 1 | AA77: 0 | AB77: 0 | AC77: 0 | AD77: 0 | AE77: 0 | AF77: 0 | AG77: 0 | AH77: 0 | AI77: 0 | AJ77: 0 | AK77: 0 | AL77: 0 | AM77: 0 | AN77: 20 | AO77: 24.6 | AP77: 6.3 | AQ77: 36.9 | AR77: =INDEX(Input_Details!$L$5:$L$24, MATCH($A77, Input_Details!$J$5:$J$24, 0), 0) -> Northbound | AS77: Mon | AT77: 18:15:00 | AU77: 5 | AV77: 5 | AW77: 0 | AX77: 0 | AY77: 1 | AZ77: 0 | BA77: 0 | BB77: 0 | BC77: 0 | BD77: 0 | BE77: 0 | BF77: 0 | BG77: 2 | BH77: 7 | BI77: 1 | BJ77: 1 | BK77: 0 | BL77: 0 | BM77: 0 | BN77: 0 | BO77: 0 | BP77: 0 | BQ77: 0 | BR77: 0 | BS77: 0 | BT77: 0 | BU77: 0 | BV77: 0 | BW77: 0 | BX77: 0 | BY77: 0 | BZ77: 0 | CA77: 12.6 | CB77: 13.6 | CC77: 9.2 | CD77: 20.5 | CF77: Mon | CG77: 18:15:00 | CH77: 32 | CI77: 48 | CJ77: 1 | CK77: 5 | CL77: 4 | CM77: 0 | CN77: 0 | CO77: 1 | CP77: 0 | CQ77: 1 | CR77: 0 | CS77: 0 | CT77: 3 | CU77: 17 | CV77: 36 | CW77: 24 | CX77: 8 | CY77: 3 | CZ77: 1 | DA77: 0 | DB77: 0 | DC77: 0 | DD77: 0 | DE77: 0 | DF77: 0 | DG77: 0 | DH77: 0 | DI77: 0 | DJ77: 0 | DK77: 0 | DL77: 0 | DM77: 0 | DN77: 19.11521739 | DO77: 19.1 | DP77: 6.3 | DQ77: 36.9 | DR77: 27 | DS77: 44 | DT77: 5 | DU77: 3 | DV77: 2 | DW77: 81 | DX77: 5 | DY77: 5 | DZ77: 0 | EA77: 1 | EB77: 0 | EC77: 11 | ED77: 32 | EE77: 49 | EF77: 5 | EG77: 4 | EH77: 2 | EI77: 92 | EJ77: 81 | EK77: 88 | EL77: 102 | EM77: 90 | EN77: 91 | EO77: 62 | EP77: 64 | EQ77: 11 | ER77: 16 | ES77: 20 | ET77: 16 | EU77: 14 | EV77: 8 | EW77: 8 | EX77: 92 | EY77: 104 | EZ77: 122 | FA77: 106 | FB77: 105 | FC77: 70 | FD77: 72
A78: 1 | B78: =OFFSET(Input_Details!$Q$4,MATCH($A78, Input_Details!$J$5:$J$24, 0), 0) -> 2017-04-24 | C78: =INDEX(Input_Details!$H$5:$H$24, MATCH($A78, Input_Details!$J$5:$J$24, 0), 0) -> Harper Road (South of Falmouth Road) | D78: =INDEX(Input_Details!$I$5:$I$24, MATCH($A78, Input_Details!$J$5:$J$24, 0), 0) -> 51.49617, -0.09302 | E78: =INDEX(Input_Details!$K$5:$K$24, MATCH($A78, Input_Details!$J$5:$J$24, 0), 0) -> Southbound | F78: Mon | G78: 18:30:00 | H78: 20 | I78: 49 | J78: 1 | K78: 8 | L78: 5 | M78: 2 | N78: 0 | O78: 0 | P78: 0 | Q78: 0 | R78: 1 | S78: 0 | T78: 1 | U78: 9 | V78: 44 | W78: 26 | X78: 5 | Y78: 1 | Z78: 0 | AA78: 0 | AB78: 0 | AC78: 0 | AD78: 0 | AE78: 0 | AF78: 0 | AG78: 0 | AH78: 0 | AI78: 0 | AJ78: 0 | AK78: 0 | AL78: 0 | AM78: 0 | AN78: 19 | AO78: 22.4 | AP78: 8.6 | AQ78: 32.2 | AR78: =INDEX(Input_Details!$L$5:$L$24, MATCH($A78, Input_Details!$J$5:$J$24, 0), 0) -> Northbound | AS78: Mon | AT78: 18:30:00 | AU78: 2 | AV78: 10 | AW78: 0 | AX78: 0 | AY78: 0 | AZ78: 0 | BA78: 0 | BB78: 0 | BC78: 0 | BD78: 0 | BE78: 0 | BF78: 0 | BG78: 0 | BH78: 3 | BI78: 6 | BJ78: 3 | BK78: 0 | BL78: 0 | BM78: 0 | BN78: 0 | BO78: 0 | BP78: 0 | BQ78: 0 | BR78: 0 | BS78: 0 | BT78: 0 | BU78: 0 | BV78: 0 | BW78: 0 | BX78: 0 | BY78: 0 | BZ78: 0 | CA78: 17.4 | CB78: 20.1 | CC78: 11.9 | CD78: 24.4 | CF78: Mon | CG78: 18:30:00 | CH78: 22 | CI78: 59 | CJ78: 1 | CK78: 8 | CL78: 5 | CM78: 2 | CN78: 0 | CO78: 0 | CP78: 0 | CQ78: 0 | CR78: 1 | CS78: 0 | CT78: 1 | CU78: 12 | CV78: 50 | CW78: 29 | CX78: 5 | CY78: 1 | CZ78: 0 | DA78: 0 | DB78: 0 | DC78: 0 | DD78: 0 | DE78: 0 | DF78: 0 | DG78: 0 | DH78: 0 | DI78: 0 | DJ78: 0 | DK78: 0 | DL78: 0 | DM78: 0 | DN78: 18.80408163 | DO78: 21.25 | DP78: 8.6 | DQ78: 32.2 | DR78: 20 | DS78: 50 | DT78: 8 | DU78: 5 | DV78: 3 | DW78: 86 | DX78: 2 | DY78: 10 | DZ78: 0 | EA78: 0 | EB78: 0 | EC78: 12 | ED78: 22 | EE78: 60 | EF78: 8 | EG78: 5 | EH78: 3 | EI78: 98 | EJ78: 86 | EK78: 106 | EL78: 95 | EM78: 88 | EN78: 95 | EO78: 78 | EP78: 63 | EQ78: 12 | ER78: 17 | ES78: 18 | ET78: 8 | EU78: 9 | EV78: 17 | EW78: 6 | EX78: 98 | EY78: 123 | EZ78: 113 | FA78: 96 | FB78: 104 | FC78: 95 | FD78: 69
A79: 1 | B79: =OFFSET(Input_Details!$Q$4,MATCH($A79, Input_Details!$J$5:$J$24, 0), 0) -> 2017-04-24 | C79: =INDEX(Input_Details!$H$5:$H$24, MATCH($A79, Input_Details!$J$5:$J$24, 0), 0) -> Harper Road (South of Falmouth Road) | D79: =INDEX(Input_Details!$I$5:$I$24, MATCH($A79, Input_Details!$J$5:$J$24, 0), 0) -> 51.49617, -0.09302 | E79: =INDEX(Input_Details!$K$5:$K$24, MATCH($A79, Input_Details!$J$5:$J$24, 0), 0) -> Southbound | F79: Mon | G79: 18:45:00 | H79: 18 | I79: 53 | J79: 3 | K79: 0 | L79: 1 | M79: 0 | N79: 0 | O79: 0 | P79: 0 | Q79: 2 | R79: 0 | S79: 0 | T79: 3 | U79: 17 | V79: 39 | W79: 15 | X79: 2 | Y79: 1 | Z79: 0 | AA79: 0 | AB79: 0 | AC79: 0 | AD79: 0 | AE79: 0 | AF79: 0 | AG79: 0 | AH79: 0 | AI79: 0 | AJ79: 0 | AK79: 0 | AL79: 0 | AM79: 0 | AN79: 17 | AO79: 20.8 | AP79: 7.1 | AQ79: 33.4 | AR79: =INDEX(Input_Details!$L$5:$L$24, MATCH($A79, Input_Details!$J$5:$J$24, 0), 0) -> Northbound | AS79: Mon | AT79: 18:45:00 | AU79: 2 | AV79: 10 | AW79: 1 | AX79: 0 | AY79: 0 | AZ79: 0 | BA79: 0 | BB79: 0 | BC79: 0 | BD79: 0 | BE79: 0 | BF79: 0 | BG79: 1 | BH79: 6 | BI79: 4 | BJ79: 1 | BK79: 1 | BL79: 0 | BM79: 0 | BN79: 0 | BO79: 0 | BP79: 0 | BQ79: 0 | BR79: 0 | BS79: 0 | BT79: 0 | BU79: 0 | BV79: 0 | BW79: 0 | BX79: 0 | BY79: 0 | BZ79: 0 | CA79: 15.8 | CB79: 17.4 | CC79: 6.4 | CD79: 29.3 | CF79: Mon | CG79: 18:45:00 | CH79: 20 | CI79: 63 | CJ79: 4 | CK79: 0 | CL79: 1 | CM79: 0 | CN79: 0 | CO79: 0 | CP79: 0 | CQ79: 2 | CR79: 0 | CS79: 0 | CT79: 4 | CU79: 23 | CV79: 43 | CW79: 16 | CX79: 3 | CY79: 1 | CZ79: 0 | DA79: 0 | DB79: 0 | DC79: 0 | DD79: 0 | DE79: 0 | DF79: 0 | DG79: 0 | DH79: 0 | DI79: 0 | DJ79: 0 | DK79: 0 | DL79: 0 | DM79: 0 | DN79: 16.82666667 | DO79: 19.1 | DP79: 6.4 | DQ79: 33.4 | DR79: 18 | DS79: 56 | DT79: 0 | DU79: 1 | DV79: 2 | DW79: 77 | DX79: 2 | DY79: 11 | DZ79: 0 | EA79: 0 | EB79: 0 | EC79: 13 | ED79: 20 | EE79: 67 | EF79: 0 | EG79: 1 | EH79: 2 | EI79: 90 | EJ79: 77 | EK79: 97 | EL79: 90 | EM79: 79 | EN79: 95 | EO79: 65 | EP79: 59 | EQ79: 13 | ER79: 10 | ES79: 15 | ET79: 10 | EU79: 10 | EV79: 10 | EW79: 9 | EX79: 90 | EY79: 107 | EZ79: 105 | FA79: 89 | FB79: 105 | FC79: 75 | FD79: 68
A80: 1 | B80: =OFFSET(Input_Details!$Q$4,MATCH($A80, Input_Details!$J$5:$J$24, 0), 0) -> 2017-04-24 | C80: =INDEX(Input_Details!$H$5:$H$24, MATCH($A80, Input_Details!$J$5:$J$24, 0), 0) -> Harper Road (South of Falmouth Road) | D80: =INDEX(Input_Details!$I$5:$I$24, MATCH($A80, Input_Details!$J$5:$J$24, 0), 0) -> 51.49617, -0.09302 | E80: =INDEX(Input_Details!$K$5:$K$24, MATCH($A80, Input_Details!$J$5:$J$24, 0), 0) -> Southbound | F80: Mon | G80: 19:00:00 | H80: 23 | I80: 58 | J80: 1 | K80: 1 | L80: 3 | M80: 0 | N80: 0 | O80: 0 | P80: 0 | Q80: 0 | R80: 0 | S80: 0 | T80: 1 | U80: 16 | V80: 49 | W80: 15 | X80: 5 | Y80: 0 | Z80: 0 | AA80: 0 | AB80: 0 | AC80: 0 | AD80: 0 | AE80: 0 | AF80: 0 | AG80: 0 | AH80: 0 | AI80: 0 | AJ80: 0 | AK80: 0 | AL80: 0 | AM80: 0 | AN80: 18 | AO80: 21 | AP80: 9.5 | AQ80: 28 | AR80: =INDEX(Input_Details!$L$5:$L$24, MATCH($A80, Input_Details!$J$5:$J$24, 0), 0) -> Northbound | AS80: Mon | AT80: 19:00:00 | AU80: 3 | AV80: 9 | AW80: 0 | AX80: 0 | AY80: 1 | AZ80: 0 | BA80: 0 | BB80: 0 | BC80: 0 | BD80: 0 | BE80: 0 | BF80: 0 | BG80: 0 | BH80: 4 | BI80: 4 | BJ80: 5 | BK80: 0 | BL80: 0 | BM80: 0 | BN80: 0 | BO80: 0 | BP80: 0 | BQ80: 0 | BR80: 0 | BS80: 0 | BT80: 0 | BU80: 0 | BV80: 0 | BW80: 0 | BX80: 0 | BY80: 0 | BZ80: 0 | CA80: 18 | CB80: 21.3 | CC80: 10.7 | CD80: 24.8 | CF80: Mon | CG80: 19:00:00 | CH80: 26 | CI80: 67 | CJ80: 1 | CK80: 1 | CL80: 4 | CM80: 0 | CN80: 0 | CO80: 0 | CP80: 0 | CQ80: 0 | CR80: 0 | CS80: 0 | CT80: 1 | CU80: 20 | CV80: 53 | CW80: 20 | CX80: 5 | CY80: 0 | CZ80: 0 | DA80: 0 | DB80: 0 | DC80: 0 | DD80: 0 | DE80: 0 | DF80: 0 | DG80: 0 | DH80: 0 | DI80: 0 | DJ80: 0 | DK80: 0 | DL80: 0 | DM80: 0 | DN80: 18 | DO80: 21.15 | DP80: 9.5 | DQ80: 28 | DR80: 23 | DS80: 59 | DT80: 1 | DU80: 3 | DV80: 0 | DW80: 86 | DX80: 3 | DY80: 9 | DZ80: 0 | EA80: 1 | EB80: 0 | EC80: 13 | ED80: 26 | EE80: 68 | EF80: 1 | EG80: 4 | EH80: 0 | EI80: 99 | EJ80: 86 | EK80: 76 | EL80: 98 | EM80: 90 | EN80: 96 | EO80: 68 | EP80: 60 | EQ80: 13 | ER80: 7 | ES80: 15 | ET80: 4 | EU80: 15 | EV80: 11 | EW80: 6 | EX80: 99 | EY80: 83 | EZ80: 113 | FA80: 94 | FB80: 111 | FC80: 79 | FD80: 66
A81: 1 | B81: =OFFSET(Input_Details!$Q$4,MATCH($A81, Input_Details!$J$5:$J$24, 0), 0) -> 2017-04-24 | C81: =INDEX(Input_Details!$H$5:$H$24, MATCH($A81, Input_Details!$J$5:$J$24, 0), 0) -> Harper Road (South of Falmouth Road) | D81: =INDEX(Input_Details!$I$5:$I$24, MATCH($A81, Input_Details!$J$5:$J$24, 0), 0) -> 51.49617, -0.09302 | E81: =INDEX(Input_Details!$K$5:$K$24, MATCH($A81, Input_Details!$J$5:$J$24, 0), 0) -> Southbound | F81: Mon | G81: 19:15:00 | H81: 8 | I81: 52 | J81: 0 | K81: 0 | L81: 4 | M81: 1 | N81: 0 | O81: 0 | P81: 0 | Q81: 0 | R81: 0 | S81: 0 | T81: 1 | U81: 8 | V81: 30 | W81: 23 | X81: 2 | Y81: 1 | Z81: 0 | AA81: 0 | AB81: 0 | AC81: 0 | AD81: 0 | AE81: 0 | AF81: 0 | AG81: 0 | AH81: 0 | AI81: 0 | AJ81: 0 | AK81: 0 | AL81: 0 | AM81: 0 | AN81: 19.2 | AO81: 22.4 | AP81: 10 | AQ81: 32 | AR81: =INDEX(Input_Details!$L$5:$L$24, MATCH($A81, Input_Details!$J$5:$J$24, 0), 0) -> Northbound | AS81: Mon | AT81: 19:15:00 | AU81: 3 | AV81: 7 | AW81: 0 | AX81: 0 | AY81: 1 | AZ81: 0 | BA81: 0 | BB81: 0 | BC81: 0 | BD81: 0 | BE81: 0 | BF81: 0 | BG81: 0 | BH81: 7 | BI81: 4 | BJ81: 0 | BK81: 0 | BL81: 0 | BM81: 0 | BN81: 0 | BO81: 0 | BP81: 0 | BQ81: 0 | BR81: 0 | BS81: 0 | BT81: 0 | BU81: 0 | BV81: 0 | BW81: 0 | BX81: 0 | BY81: 0 | BZ81: 0 | CA81: 15.1 | CB81: 17.9 | CC81: 11.1 | CD81: 18.3 | CF81: Mon | CG81: 19:15:00 | CH81: 11 | CI81: 59 | CJ81: 0 | CK81: 0 | CL81: 5 | CM81: 1 | CN81: 0 | CO81: 0 | CP81: 0 | CQ81: 0 | CR81: 0 | CS81: 0 | CT81: 1 | CU81: 15 | CV81: 34 | CW81: 23 | CX81: 2 | CY81: 1 | CZ81: 0 | DA81: 0 | DB81: 0 | DC81: 0 | DD81: 0 | DE81: 0 | DF81: 0 | DG81: 0 | DH81: 0 | DI81: 0 | DJ81: 0 | DK81: 0 | DL81: 0 | DM81: 0 | DN81: 18.60657895 | DO81: 20.15 | DP81: 10 | DQ81: 32 | DR81: 8 | DS81: 52 | DT81: 0 | DU81: 4 | DV81: 1 | DW81: 65 | DX81: 3 | DY81: 7 | DZ81: 0 | EA81: 1 | EB81: 0 | EC81: 11 | ED81: 11 | EE81: 59 | EF81: 0 | EG81: 5 | EH81: 1 | EI81: 76 | EJ81: 65 | EK81: 74 | EL81: 90 | EM81: 72 | EN81: 66 | EO81: 59 | EP81: 66 | EQ81: 11 | ER81: 10 | ES81: 21 | ET81: 11 | EU81: 7 | EV81: 7 | EW81: 6 | EX81: 76 | EY81: 84 | EZ81: 111 | FA81: 83 | FB81: 73 | FC81: 66 | FD81: 72
A82: 1 | B82: =OFFSET(Input_Details!$Q$4,MATCH($A82, Input_Details!$J$5:$J$24, 0), 0) -> 2017-04-24 | C82: =INDEX(Input_Details!$H$5:$H$24, MATCH($A82, Input_Details!$J$5:$J$24, 0), 0) -> Harper Road (South of Falmouth Road) | D82: =INDEX(Input_Details!$I$5:$I$24, MATCH($A82, Input_Details!$J$5:$J$24, 0), 0) -> 51.49617, -0.09302 | E82: =INDEX(Input_Details!$K$5:$K$24, MATCH($A82, Input_Details!$J$5:$J$24, 0), 0) -> Southbound | F82: Mon | G82: 19:30:00 | H82: 11 | I82: 46 | J82: 0 | K82: 2 | L82: 2 | M82: 0 | N82: 0 | O82: 0 | P82: 0 | Q82: 0 | R82: 0 | S82: 0 | T82: 0 | U82: 8 | V82: 38 | W82: 6 | X82: 8 | Y82: 0 | Z82: 1 | AA82: 0 | AB82: 0 | AC82: 0 | AD82: 0 | AE82: 0 | AF82: 0 | AG82: 0 | AH82: 0 | AI82: 0 | AJ82: 0 | AK82: 0 | AL82: 0 | AM82: 0 | AN82: 18.6 | AO82: 23.3 | AP82: 10 | AQ82: 35.6 | AR82: =INDEX(Input_Details!$L$5:$L$24, MATCH($A82, Input_Details!$J$5:$J$24, 0), 0) -> Northbound | AS82: Mon | AT82: 19:30:00 | AU82: 1 | AV82: 7 | AW82: 0 | AX82: 0 | AY82: 0 | AZ82: 0 | BA82: 0 | BB82: 0 | BC82: 0 | BD82: 0 | BE82: 0 | BF82: 0 | BG82: 1 | BH82: 7 | BI82: 0 | BJ82: 0 | BK82: 0 | BL82: 0 | BM82: 0 | BN82: 0 | BO82: 0 | BP82: 0 | BQ82: 0 | BR82: 0 | BS82: 0 | BT82: 0 | BU82: 0 | BV82: 0 | BW82: 0 | BX82: 0 | BY82: 0 | BZ82: 0 | CA82: 12.4 | CB82: - | CC82: 8.2 | CD82: 14.4 | CF82: Mon | CG82: 19:30:00 | CH82: 12 | CI82: 53 | CJ82: 0 | CK82: 2 | CL82: 2 | CM82: 0 | CN82: 0 | CO82: 0 | CP82: 0 | CQ82: 0 | CR82: 0 | CS82: 0 | CT82: 1 | CU82: 15 | CV82: 38 | CW82: 6 | CX82: 8 | CY82: 0 | CZ82: 1 | DA82: 0 | DB82: 0 | DC82: 0 | DD82: 0 | DE82: 0 | DF82: 0 | DG82: 0 | DH82: 0 | DI82: 0 | DJ82: 0 | DK82: 0 | DL82: 0 | DM82: 0 | DN82: 17.88115942 | DO82: 23.3 | DP82: 8.2 | DQ82: 35.6 | DR82: 11 | DS82: 46 | DT82: 2 | DU82: 2 | DV82: 0 | DW82: 61 | DX82: 1 | DY82: 7 | DZ82: 0 | EA82: 0 | EB82: 0 | EC82: 8 | ED82: 12 | EE82: 53 | EF82: 2 | EG82: 2 | EH82: 0 | EI82: 69 | EJ82: 61 | EK82: 77 | EL82: 78 | EM82: 77 | EN82: 64 | EO82: 65 | EP82: 56 | EQ82: 8 | ER82: 14 | ES82: 11 | ET82: 7 | EU82: 11 | EV82: 12 | EW82: 8 | EX82: 69 | EY82: 91 | EZ82: 89 | FA82: 84 | FB82: 75 | FC82: 77 | FD82: 64
A83: 1 | B83: =OFFSET(Input_Details!$Q$4,MATCH($A83, Input_Details!$J$5:$J$24, 0), 0) -> 2017-04-24 | C83: =INDEX(Input_Details!$H$5:$H$24, MATCH($A83, Input_Details!$J$5:$J$24, 0), 0) -> Harper Road (South of Falmouth Road) | D83: =INDEX(Input_Details!$I$5:$I$24, MATCH($A83, Input_Details!$J$5:$J$24, 0), 0) -> 51.49617, -0.09302 | E83: =INDEX(Input_Details!$K$5:$K$24, MATCH($A83, Input_Details!$J$5:$J$24, 0), 0) -> Southbound | F83: Mon | G83: 19:45:00 | H83: 10 | I83: 41 | J83: 1 | K83: 1 | L83: 2 | M83: 0 | N83: 0 | O83: 0 | P83: 0 | Q83: 0 | R83: 0 | S83: 0 | T83: 2 | U83: 14 | V83: 15 | W83: 18 | X83: 4 | Y83: 2 | Z83: 0 | AA83: 0 | AB83: 0 | AC83: 0 | AD83: 0 | AE83: 0 | AF83: 0 | AG83: 0 | AH83: 0 | AI83: 0 | AJ83: 0 | AK83: 0 | AL83: 0 | AM83: 0 | AN83: 18.9 | AO83: 23.5 | AP83: 9.4 | AQ83: 32.7 | AR83: =INDEX(Input_Details!$L$5:$L$24, MATCH($A83, Input_Details!$J$5:$J$24, 0), 0) -> Northbound | AS83: Mon | AT83: 19:45:00 | AU83: 1 | AV83: 7 | AW83: 0 | AX83: 0 | AY83: 0 | AZ83: 0 | BA83: 0 | BB83: 0 | BC83: 0 | BD83: 0 | BE83: 0 | BF83: 0 | BG83: 0 | BH83: 3 | BI83: 4 | BJ83: 1 | BK83: 0 | BL83: 0 | BM83: 0 | BN83: 0 | BO83: 0 | BP83: 0 | BQ83: 0 | BR83: 0 | BS83: 0 | BT83: 0 | BU83: 0 | BV83: 0 | BW83: 0 | BX83: 0 | BY83: 0 | BZ83: 0 | CA83: 16.7 | CB83: - | CC83: 13.6 | CD83: 24.2 | CF83: Mon | CG83: 19:45:00 | CH83: 11 | CI83: 48 | CJ83: 1 | CK83: 1 | CL83: 2 | CM83: 0 | CN83: 0 | CO83: 0 | CP83: 0 | CQ83: 0 | CR83: 0 | CS83: 0 | CT83: 2 | CU83: 17 | CV83: 19 | CW83: 19 | CX83: 4 | CY83: 2 | CZ83: 0 | DA83: 0 | DB83: 0 | DC83: 0 | DD83: 0 | DE83: 0 | DF83: 0 | DG83: 0 | DH83: 0 | DI83: 0 | DJ83: 0 | DK83: 0 | DL83: 0 | DM83: 0 | DN83: 18.62063492 | DO83: 23.5 | DP83: 9.4 | DQ83: 32.7 | DR83: 10 | DS83: 42 | DT83: 1 | DU83: 2 | DV83: 0 | DW83: 55 | DX83: 1 | DY83: 7 | DZ83: 0 | EA83: 0 | EB83: 0 | EC83: 8 | ED83: 11 | EE83: 49 | EF83: 1 | EG83: 2 | EH83: 0 | EI83: 63 | EJ83: 55 | EK83: 64 | EL83: 72 | EM83: 67 | EN83: 78 | EO83: 42 | EP83: 51 | EQ83: 8 | ER83: 8 | ES83: 13 | ET83: 7 | EU83: 11 | EV83: 9 | EW83: 8 | EX83: 63 | EY83: 72 | EZ83: 85 | FA83: 74 | FB83: 89 | FC83: 51 | FD83: 59
A84: 1 | B84: =OFFSET(Input_Details!$Q$4,MATCH($A84, Input_Details!$J$5:$J$24, 0), 0) -> 2017-04-24 | C84: =INDEX(Input_Details!$H$5:$H$24, MATCH($A84, Input_Details!$J$5:$J$24, 0), 0) -> Harper Road (South of Falmouth Road) | D84: =INDEX(Input_Details!$I$5:$I$24, MATCH($A84, Input_Details!$J$5:$J$24, 0), 0) -> 51.49617, -0.09302 | E84: =INDEX(Input_Details!$K$5:$K$24, MATCH($A84, Input_Details!$J$5:$J$24, 0), 0) -> Southbound | F84: Mon | G84: 20:00:00 | H84: 6 | I84: 48 | J84: 0 | K84: 0 | L84: 1 | M84: 0 | N84: 0 | O84: 0 | P84: 0 | Q84: 0 | R84: 0 | S84: 0 | T84: 0 | U84: 10 | V84: 33 | W84: 10 | X84: 2 | Y84: 0 | Z84: 0 | AA84: 0 | AB84: 0 | AC84: 0 | AD84: 0 | AE84: 0 | AF84: 0 | AG84: 0 | AH84: 0 | AI84: 0 | AJ84: 0 | AK84: 0 | AL84: 0 | AM84: 0 | AN84: 17.4 | AO84: 20.8 | AP84: 11 | AQ84: 27.9 | AR84: =INDEX(Input_Details!$L$5:$L$24, MATCH($A84, Input_Details!$J$5:$J$24, 0), 0) -> Northbound | AS84: Mon | AT84: 20:00:00 | AU84: 2 | AV84: 2 | AW84: 0 | AX84: 0 | AY84: 0 | AZ84: 0 | BA84: 0 | BB84: 0 | BC84: 0 | BD84: 0 | BE84: 0 | BF84: 0 | BG84: 1 | BH84: 0 | BI84: 3 | BJ84: 0 | BK84: 0 | BL84: 0 | BM84: 0 | BN84: 0 | BO84: 0 | BP84: 0 | BQ84: 0 | BR84: 0 | BS84: 0 | BT84: 0 | BU84: 0 | BV84: 0 | BW84: 0 | BX84: 0 | BY84: 0 | BZ84: 0 | CA84: 15.1 | CB84: - | CC84: 8.3 | CD84: 19.7 | CF84: Mon | CG84: 20:00:00 | CH84: 8 | CI84: 50 | CJ84: 0 | CK84: 0 | CL84: 1 | CM84: 0 | CN84: 0 | CO84: 0 | CP84: 0 | CQ84: 0 | CR84: 0 | CS84: 0 | CT84: 1 | CU84: 10 | CV84: 36 | CW84: 10 | CX84: 2 | CY84: 0 | CZ84: 0 | DA84: 0 | DB84: 0 | DC84: 0 | DD84: 0 | DE84: 0 | DF84: 0 | DG84: 0 | DH84: 0 | DI84: 0 | DJ84: 0 | DK84: 0 | DL84: 0 | DM84: 0 | DN84: 17.2440678 | DO84: 20.8 | DP84: 8.3 | DQ84: 27.9 | DR84: 6 | DS84: 48 | DT84: 0 | DU84: 1 | DV84: 0 | DW84: 55 | DX84: 2 | DY84: 2 | DZ84: 0 | EA84: 0 | EB84: 0 | EC84: 4 | ED84: 8 | EE84: 50 | EF84: 0 | EG84: 1 | EH84: 0 | EI84: 59 | EJ84: 55 | EK84: 52 | EL84: 58 | EM84: 61 | EN84: 59 | EO84: 52 | EP84: 49 | EQ84: 4 | ER84: 13 | ES84: 15 | ET84: 13 | EU84: 9 | EV84: 4 | EW84: 9 | EX84: 59 | EY84: 65 | EZ84: 73 | FA84: 74 | FB84: 68 | FC84: 56 | FD84: 58
A85: 1 | B85: =OFFSET(Input_Details!$Q$4,MATCH($A85, Input_Details!$J$5:$J$24, 0), 0) -> 2017-04-24 | C85: =INDEX(Input_Details!$H$5:$H$24, MATCH($A85, Input_Details!$J$5:$J$24, 0), 0) -> Harper Road (South of Falmouth Road) | D85: =INDEX(Input_Details!$I$5:$I$24, MATCH($A85, Input_Details!$J$5:$J$24, 0), 0) -> 51.49617, -0.09302 | E85: =INDEX(Input_Details!$K$5:$K$24, MATCH($A85, Input_Details!$J$5:$J$24, 0), 0) -> Southbound | F85: Mon | G85: 20:15:00 | H85: 8 | I85: 36 | J85: 2 | K85: 1 | L85: 2 | M85: 0 | N85: 0 | O85: 0 | P85: 0 | Q85: 0 | R85: 0 | S85: 0 | T85: 1 | U85: 11 | V85: 19 | W85: 14 | X85: 2 | Y85: 2 | Z85: 0 | AA85: 0 | AB85: 0 | AC85: 0 | AD85: 0 | AE85: 0 | AF85: 0 | AG85: 0 | AH85: 0 | AI85: 0 | AJ85: 0 | AK85: 0 | AL85: 0 | AM85: 0 | AN85: 18.3 | AO85: 21.9 | AP85: 9.8 | AQ85: 30.9 | AR85: =INDEX(Input_Details!$L$5:$L$24, MATCH($A85, Input_Details!$J$5:$J$24, 0), 0) -> Northbound | AS85: Mon | AT85: 20:15:00 | AU85: 4 | AV85: 7 | AW85: 0 | AX85: 0 | AY85: 0 | AZ85: 0 | BA85: 0 | BB85: 0 | BC85: 0 | BD85: 0 | BE85: 0 | BF85: 0 | BG85: 1 | BH85: 2 | BI85: 4 | BJ85: 4 | BK85: 0 | BL85: 0 | BM85: 0 | BN85: 0 | BO85: 0 | BP85: 0 | BQ85: 0 | BR85: 0 | BS85: 0 | BT85: 0 | BU85: 0 | BV85: 0 | BW85: 0 | BX85: 0 | BY85: 0 | BZ85: 0 | CA85: 16.9 | CB85: 21.5 | CC85: 6.8 | CD85: 22.5 | CF85: Mon | CG85: 20:15:00 | CH85: 12 | CI85: 43 | CJ85: 2 | CK85: 1 | CL85: 2 | CM85: 0 | CN85: 0 | CO85: 0 | CP85: 0 | CQ85: 0 | CR85: 0 | CS85: 0 | CT85: 2 | CU85: 13 | CV85: 23 | CW85: 18 | CX85: 2 | CY85: 2 | CZ85: 0 | DA85: 0 | DB85: 0 | DC85: 0 | DD85: 0 | DE85: 0 | DF85: 0 | DG85: 0 | DH85: 0 | DI85: 0 | DJ85: 0 | DK85: 0 | DL85: 0 | DM85: 0 | DN85: 18.04333333 | DO85: 21.7 | DP85: 6.8 | DQ85: 30.9 | DR85: 8 | DS85: 38 | DT85: 1 | DU85: 2 | DV85: 0 | DW85: 49 | DX85: 4 | DY85: 7 | DZ85: 0 | EA85: 0 | EB85: 0 | EC85: 11 | ED85: 12 | EE85: 45 | EF85: 1 | EG85: 2 | EH85: 0 | EI85: 60 | EJ85: 49 | EK85: 51 | EL85: 57 | EM85: 63 | EN85: 49 | EO85: 59 | EP85: 45 | EQ85: 11 | ER85: 10 | ES85: 18 | ET85: 5 | EU85: 6 | EV85: 8 | EW85: 7 | EX85: 60 | EY85: 61 | EZ85: 75 | FA85: 68 | FB85: 55 | FC85: 67 | FD85: 52
A86: 1 | B86: =OFFSET(Input_Details!$Q$4,MATCH($A86, Input_Details!$J$5:$J$24, 0), 0) -> 2017-04-24 | C86: =INDEX(Input_Details!$H$5:$H$24, MATCH($A86, Input_Details!$J$5:$J$24, 0), 0) -> Harper Road (South of Falmouth Road) | D86: =INDEX(Input_Details!$I$5:$I$24, MATCH($A86, Input_Details!$J$5:$J$24, 0), 0) -> 51.49617, -0.09302 | E86: =INDEX(Input_Details!$K$5:$K$24, MATCH($A86, Input_Details!$J$5:$J$24, 0), 0) -> Southbound | F86: Mon | G86: 20:30:00 | H86: 5 | I86: 42 | J86: 0 | K86: 1 | L86: 2 | M86: 0 | N86: 1 | O86: 0 | P86: 0 | Q86: 0 | R86: 0 | S86: 0 | T86: 1 | U86: 15 | V86: 28 | W86: 6 | X86: 0 | Y86: 1 | Z86: 0 | AA86: 0 | AB86: 0 | AC86: 0 | AD86: 0 | AE86: 0 | AF86: 0 | AG86: 0 | AH86: 0 | AI86: 0 | AJ86: 0 | AK86: 0 | AL86: 0 | AM86: 0 | AN86: 16.9 | AO86: 19.2 | AP86: 9.7 | AQ86: 30.2 | AR86: =INDEX(Input_Details!$L$5:$L$24, MATCH($A86, Input_Details!$J$5:$J$24, 0), 0) -> Northbound | AS86: Mon | AT86: 20:30:00 | AU86: 4 | AV86: 6 | AW86: 0 | AX86: 0 | AY86: 0 | AZ86: 0 | BA86: 0 | BB86: 0 | BC86: 0 | BD86: 0 | BE86: 0 | BF86: 0 | BG86: 0 | BH86: 0 | BI86: 4 | BJ86: 5 | BK86: 1 | BL86: 0 | BM86: 0 | BN86: 0 | BO86: 0 | BP86: 0 | BQ86: 0 | BR86: 0 | BS86: 0 | BT86: 0 | BU86: 0 | BV86: 0 | BW86: 0 | BX86: 0 | BY86: 0 | BZ86: 0 | CA86: 20.8 | CB86: - | CC86: 17 | CD86: 27 | CF86: Mon | CG86: 20:30:00 | CH86: 9 | CI86: 48 | CJ86: 0 | CK86: 1 | CL86: 2 | CM86: 0 | CN86: 1 | CO86: 0 | CP86: 0 | CQ86: 0 | CR86: 0 | CS86: 0 | CT86: 1 | CU86: 15 | CV86: 32 | CW86: 11 | CX86: 1 | CY86: 1 | CZ86: 0 | DA86: 0 | DB86: 0 | DC86: 0 | DD86: 0 | DE86: 0 | DF86: 0 | DG86: 0 | DH86: 0 | DI86: 0 | DJ86: 0 | DK86: 0 | DL86: 0 | DM86: 0 | DN86: 17.53934426 | DO86: 19.2 | DP86: 9.7 | DQ86: 30.2 | DR86: 5 | DS86: 42 | DT86: 1 | DU86: 2 | DV86: 1 | DW86: 51 | DX86: 4 | DY86: 6 | DZ86: 0 | EA86: 0 | EB86: 0 | EC86: 10 | ED86: 9 | EE86: 48 | EF86: 1 | EG86: 2 | EH86: 1 | EI86: 61 | EJ86: 51 | EK86: 65 | EL86: 67 | EM86: 57 | EN86: 82 | EO86: 54 | EP86: 50 | EQ86: 10 | ER86: 11 | ES86: 11 | ET86: 3 | EU86: 5 | EV86: 10 | EW86: 3 | EX86: 61 | EY86: 76 | EZ86: 78 | FA86: 60 | FB86: 87 | FC86: 64 | FD86: 53
A87: 1 | B87: =OFFSET(Input_Details!$Q$4,MATCH($A87, Input_Details!$J$5:$J$24, 0), 0) -> 2017-04-24 | C87: =INDEX(Input_Details!$H$5:$H$24, MATCH($A87, Input_Details!$J$5:$J$24, 0), 0) -> Harper Road (South of Falmouth Road) | D87: =INDEX(Input_Details!$I$5:$I$24, MATCH($A87, Input_Details!$J$5:$J$24, 0), 0) -> 51.49617, -0.09302 | E87: =INDEX(Input_Details!$K$5:$K$24, MATCH($A87, Input_Details!$J$5:$J$24, 0), 0) -> Southbound | F87: Mon | G87: 20:45:00 | H87: 11 | I87: 38 | J87: 0 | K87: 0 | L87: 1 | M87: 0 | N87: 0 | O87: 0 | P87: 0 | Q87: 0 | R87: 0 | S87: 0 | T87: 2 | U87: 12 | V87: 28 | W87: 5 | X87: 2 | Y87: 1 | Z87: 0 | AA87: 0 | AB87: 0 | AC87: 0 | AD87: 0 | AE87: 0 | AF87: 0 | AG87: 0 | AH87: 0 | AI87: 0 | AJ87: 0 | AK87: 0 | AL87: 0 | AM87: 0 | AN87: 17.4 | AO87: 21.5 | AP87: 9.1 | AQ87: 33.9 | AR87: =INDEX(Input_Details!$L$5:$L$24, MATCH($A87, Input_Details!$J$5:$J$24, 0), 0) -> Northbound | AS87: Mon | AT87: 20:45:00 | AU87: 0 | AV87: 3 | AW87: 0 | AX87: 0 | AY87: 0 | AZ87: 0 | BA87: 0 | BB87: 0 | BC87: 0 | BD87: 0 | BE87: 0 | BF87: 0 | BG87: 0 | BH87: 0 | BI87: 3 | BJ87: 0 | BK87: 0 | BL87: 0 | BM87: 0 | BN87: 0 | BO87: 0 | BP87: 0 | BQ87: 0 | BR87: 0 | BS87: 0 | BT87: 0 | BU87: 0 | BV87: 0 | BW87: 0 | BX87: 0 | BY87: 0 | BZ87: 0 | CA87: 17.7 | CB87: - | CC87: 16 | CD87: 18.5 | CF87: Mon | CG87: 20:45:00 | CH87: 11 | CI87: 41 | CJ87: 0 | CK87: 0 | CL87: 1 | CM87: 0 | CN87: 0 | CO87: 0 | CP87: 0 | CQ87: 0 | CR87: 0 | CS87: 0 | CT87: 2 | CU87: 12 | CV87: 31 | CW87: 5 | CX87: 2 | CY87: 1 | CZ87: 0 | DA87: 0 | DB87: 0 | DC87: 0 | DD87: 0 | DE87: 0 | DF87: 0 | DG87: 0 | DH87: 0 | DI87: 0 | DJ87: 0 | DK87: 0 | DL87: 0 | DM87: 0 | DN87: 17.41698113 | DO87: 21.5 | DP87: 9.1 | DQ87: 33.9 | DR87: 11 | DS87: 38 | DT87: 0 | DU87: 1 | DV87: 0 | DW87: 50 | DX87: 0 | DY87: 3 | DZ87: 0 | EA87: 0 | EB87: 0 | EC87: 3 | ED87: 11 | EE87: 41 | EF87: 0 | EG87: 1 | EH87: 0 | EI87: 53 | EJ87: 50 | EK87: 45 | EL87: 50 | EM87: 51 | EN87: 53 | EO87: 57 | EP87: 52 | EQ87: 3 | ER87: 15 | ES87: 17 | ET87: 8 | EU87: 14 | EV87: 10 | EW87: 6 | EX87: 53 | EY87: 60 | EZ87: 67 | FA87: 59 | FB87: 67 | FC87: 67 | FD87: 58
A88: 1 | B88: =OFFSET(Input_Details!$Q$4,MATCH($A88, Input_Details!$J$5:$J$24, 0), 0) -> 2017-04-24 | C88: =INDEX(Input_Details!$H$5:$H$24, MATCH($A88, Input_Details!$J$5:$J$24, 0), 0) -> Harper Road (South of Falmouth Road) | D88: =INDEX(Input_Details!$I$5:$I$24, MATCH($A88, Input_Details!$J$5:$J$24, 0), 0) -> 51.49617, -0.09302 | E88: =INDEX(Input_Details!$K$5:$K$24, MATCH($A88, Input_Details!$J$5:$J$24, 0), 0) -> Southbound | F88: Mon | G88: 21:00:00 | H88: 7 | I88: 31 | J88: 1 | K88: 1 | L88: 0 | M88: 0 | N88: 0 | O88: 0 | P88: 0 | Q88: 0 | R88: 0 | S88: 0 | T88: 0 | U88: 6 | V88: 26 | W88: 7 | X88: 1 | Y88: 0 | Z88: 0 | AA88: 0 | AB88: 0 | AC88: 0 | AD88: 0 | AE88: 0 | AF88: 0 | AG88: 0 | AH88: 0 | AI88: 0 | AJ88: 0 | AK88: 0 | AL88: 0 | AM88: 0 | AN88: 17.9 | AO88: 20.6 | AP88: 10.4 | AQ88: 25.5 | AR88: =INDEX(Input_Details!$L$5:$L$24, MATCH($A88, Input_Details!$J$5:$J$24, 0), 0) -> Northbound | AS88: Mon | AT88: 21:00:00 | AU88: 3 | AV88: 5 | AW88: 0 | AX88: 0 | AY88: 0 | AZ88: 0 | BA88: 0 | BB88: 0 | BC88: 0 | BD88: 0 | BE88: 0 | BF88: 0 | BG88: 2 | BH88: 1 | BI88: 4 | BJ88: 0 | BK88: 1 | BL88: 0 | BM88: 0 | BN88: 0 | BO88: 0 | BP88: 0 | BQ88: 0 | BR88: 0 | BS88: 0 | BT88: 0 | BU88: 0 | BV88: 0 | BW88: 0 | BX88: 0 | BY88: 0 | BZ88: 0 | CA88: 15.6 | CB88: - | CC88: 8.2 | CD88: 25.3 | CF88: Mon | CG88: 21:00:00 | CH88: 10 | CI88: 36 | CJ88: 1 | CK88: 1 | CL88: 0 | CM88: 0 | CN88: 0 | CO88: 0 | CP88: 0 | CQ88: 0 | CR88: 0 | CS88: 0 | CT88: 2 | CU88: 7 | CV88: 30 | CW88: 7 | CX88: 2 | CY88: 0 | CZ88: 0 | DA88: 0 | DB88: 0 | DC88: 0 | DD88: 0 | DE88: 0 | DF88: 0 | DG88: 0 | DH88: 0 | DI88: 0 | DJ88: 0 | DK88: 0 | DL88: 0 | DM88: 0 | DN88: 17.51666667 | DO88: 20.6 | DP88: 8.2 | DQ88: 25.5 | DR88: 7 | DS88: 32 | DT88: 1 | DU88: 0 | DV88: 0 | DW88: 40 | DX88: 3 | DY88: 5 | DZ88: 0 | EA88: 0 | EB88: 0 | EC88: 8 | ED88: 10 | EE88: 37 | EF88: 1 | EG88: 0 | EH88: 0 | EI88: 48 | EJ88: 40 | EK88: 40 | EL88: 47 | EM88: 47 | EN88: 41 | EO88: 48 | EP88: 45 | EQ88: 8 | ER88: 16 | ES88: 18 | ET88: 6 | EU88: 11 | EV88: 14 | EW88: 13 | EX88: 48 | EY88: 56 | EZ88: 65 | FA88: 53 | FB88: 52 | FC88: 62 | FD88: 58
A89: 1 | B89: =OFFSET(Input_Details!$Q$4,MATCH($A89, Input_Details!$J$5:$J$24, 0), 0) -> 2017-04-24 | C89: =INDEX(Input_Details!$H$5:$H$24, MATCH($A89, Input_Details!$J$5:$J$24, 0), 0) -> Harper Road (South of Falmouth Road) | D89: =INDEX(Input_Details!$I$5:$I$24, MATCH($A89, Input_Details!$J$5:$J$24, 0), 0) -> 51.49617, -0.09302 | E89: =INDEX(Input_Details!$K$5:$K$24, MATCH($A89, Input_Details!$J$5:$J$24, 0), 0) -> Southbound | F89: Mon | G89: 21:15:00 | H89: 8 | I89: 28 | J89: 0 | K89: 1 | L89: 2 | M89: 0 | N89: 0 | O89: 0 | P89: 0 | Q89: 0 | R89: 0 | S89: 0 | T89: 1 | U89: 9 | V89: 18 | W89: 8 | X89: 2 | Y89: 1 | Z89: 0 | AA89: 0 | AB89: 0 | AC89: 0 | AD89: 0 | AE89: 0 | AF89: 0 | AG89: 0 | AH89: 0 | AI89: 0 | AJ89: 0 | AK89: 0 | AL89: 0 | AM89: 0 | AN89: 18.3 | AO89: 22.6 | AP89: 8.3 | AQ89: 30.6 | AR89: =INDEX(Input_Details!$L$5:$L$24, MATCH($A89, Input_Details!$J$5:$J$24, 0), 0) -> Northbound | AS89: Mon | AT89: 21:15:00 | AU89: 0 | AV89: 6 | AW89: 0 | AX89: 0 | AY89: 0 | AZ89: 0 | BA89: 0 | BB89: 0 | BC89: 0 | BD89: 0 | BE89: 0 | BF89: 0 | BG89: 0 | BH89: 2 | BI89: 4 | BJ89: 0 | BK89: 0 | BL89: 0 | BM89: 0 | BN89: 0 | BO89: 0 | BP89: 0 | BQ89: 0 | BR89: 0 | BS89: 0 | BT89: 0 | BU89: 0 | BV89: 0 | BW89: 0 | BX89: 0 | BY89: 0 | BZ89: 0 | CA89: 15.8 | CB89: - | CC89: 12.4 | CD89: 19.3 | CF89: Mon | CG89: 21:15:00 | CH89: 8 | CI89: 34 | CJ89: 0 | CK89: 1 | CL89: 2 | CM89: 0 | CN89: 0 | CO89: 0 | CP89: 0 | CQ89: 0 | CR89: 0 | CS89: 0 | CT89: 1 | CU89: 11 | CV89: 22 | CW89: 8 | CX89: 2 | CY89: 1 | CZ89: 0 | DA89: 0 | DB89: 0 | DC89: 0 | DD89: 0 | DE89: 0 | DF89: 0 | DG89: 0 | DH89: 0 | DI89: 0 | DJ89: 0 | DK89: 0 | DL89: 0 | DM89: 0 | DN89: 17.96666667 | DO89: 22.6 | DP89: 8.3 | DQ89: 30.6 | DR89: 8 | DS89: 28 | DT89: 1 | DU89: 2 | DV89: 0 | DW89: 39 | DX89: 0 | DY89: 6 | DZ89: 0 | EA89: 0 | EB89: 0 | EC89: 6 | ED89: 8 | EE89: 34 | EF89: 1 | EG89: 2 | EH89: 0 | EI89: 45 | EJ89: 39 | EK89: 35 | EL89: 28 | EM89: 55 | EN89: 48 | EO89: 47 | EP89: 34 | EQ89: 6 | ER89: 11 | ES89: 4 | ET89: 6 | EU89: 8 | EV89: 9 | EW89: 4 | EX89: 45 | EY89: 46 | EZ89: 32 | FA89: 61 | FB89: 56 | FC89: 56 | FD89: 38
A90: 1 | B90: =OFFSET(Input_Details!$Q$4,MATCH($A90, Input_Details!$J$5:$J$24, 0), 0) -> 2017-04-24 | C90: =INDEX(Input_Details!$H$5:$H$24, MATCH($A90, Input_Details!$J$5:$J$24, 0), 0) -> Harper Road (South of Falmouth Road) | D90: =INDEX(Input_Details!$I$5:$I$24, MATCH($A90, Input_Details!$J$5:$J$24, 0), 0) -> 51.49617, -0.09302 | E90: =INDEX(Input_Details!$K$5:$K$24, MATCH($A90, Input_Details!$J$5:$J$24, 0), 0) -> Southbound | F90: Mon | G90: 21:30:00 | H90: 3 | I90: 42 | J90: 0 | K90: 3 | L90: 1 | M90: 1 | N90: 0 | O90: 0 | P90: 0 | Q90: 0 | R90: 0 | S90: 0 | T90: 2 | U90: 12 | V90: 28 | W90: 6 | X90: 1 | Y90: 1 | Z90: 0 | AA90: 0 | AB90: 0 | AC90: 0 | AD90: 0 | AE90: 0 | AF90: 0 | AG90: 0 | AH90: 0 | AI90: 0 | AJ90: 0 | AK90: 0 | AL90: 0 | AM90: 0 | AN90: 16.8 | AO90: 19.9 | AP90: 9.1 | AQ90: 30.3 | AR90: =INDEX(Input_Details!$L$5:$L$24, MATCH($A90, Input_Details!$J$5:$J$24, 0), 0) -> Northbound | AS90: Mon | AT90: 21:30:00 | AU90: 1 | AV90: 7 | AW90: 0 | AX90: 0 | AY90: 1 | AZ90: 0 | BA90: 0 | BB90: 0 | BC90: 0 | BD90: 0 | BE90: 0 | BF90: 0 | BG90: 0 | BH90: 5 | BI90: 4 | BJ90: 0 | BK90: 0 | BL90: 0 | BM90: 0 | BN90: 0 | BO90: 0 | BP90: 0 | BQ90: 0 | BR90: 0 | BS90: 0 | BT90: 0 | BU90: 0 | BV90: 0 | BW90: 0 | BX90: 0 | BY90: 0 | BZ90: 0 | CA90: 14.1 | CB90: - | CC90: 10 | CD90: 18.6 | CF90: Mon | CG90: 21:30:00 | CH90: 4 | CI90: 49 | CJ90: 0 | CK90: 3 | CL90: 2 | CM90: 1 | CN90: 0 | CO90: 0 | CP90: 0 | CQ90: 0 | CR90: 0 | CS90: 0 | CT90: 2 | CU90: 17 | CV90: 32 | CW90: 6 | CX90: 1 | CY90: 1 | CZ90: 0 | DA90: 0 | DB90: 0 | DC90: 0 | DD90: 0 | DE90: 0 | DF90: 0 | DG90: 0 | DH90: 0 | DI90: 0 | DJ90: 0 | DK90: 0 | DL90: 0 | DM90: 0 | DN90: 16.38813559 | DO90: 19.9 | DP90: 9.1 | DQ90: 30.3 | DR90: 3 | DS90: 42 | DT90: 3 | DU90: 1 | DV90: 1 | DW90: 50 | DX90: 1 | DY90: 7 | DZ90: 0 | EA90: 1 | EB90: 0 | EC90: 9 | ED90: 4 | EE90: 49 | EF90: 3 | EG90: 2 | EH90: 1 | EI90: 59 | EJ90: 50 | EK90: 32 | EL90: 49 | EM90: 36 | EN90: 49 | EO90: 49 | EP90: 52 | EQ90: 9 | ER90: 12 | ES90: 9 | ET90: 3 | EU90: 10 | EV90: 10 | EW90: 13 | EX90: 59 | EY90: 44 | EZ90: 58 | FA90: 39 | FB90: 59 | FC90: 59 | FD90: 65
A91: 1 | B91: =OFFSET(Input_Details!$Q$4,MATCH($A91, Input_Details!$J$5:$J$24, 0), 0) -> 2017-04-24 | C91: =INDEX(Input_Details!$H$5:$H$24, MATCH($A91, Input_Details!$J$5:$J$24, 0), 0) -> Harper Road (South of Falmouth Road) | D91: =INDEX(Input_Details!$I$5:$I$24, MATCH($A91, Input_Details!$J$5:$J$24, 0), 0) -> 51.49617, -0.09302 | E91: =INDEX(Input_Details!$K$5:$K$24, MATCH($A91, Input_Details!$J$5:$J$24, 0), 0) -> Southbound | F91: Mon | G91: 21:45:00 | H91: 7 | I91: 32 | J91: 0 | K91: 1 | L91: 2 | M91: 1 | N91: 0 | O91: 0 | P91: 0 | Q91: 0 | R91: 0 | S91: 0 | T91: 0 | U91: 9 | V91: 20 | W91: 10 | X91: 2 | Y91: 2 | Z91: 0 | AA91: 0 | AB91: 0 | AC91: 0 | AD91: 0 | AE91: 0 | AF91: 0 | AG91: 0 | AH91: 0 | AI91: 0 | AJ91: 0 | AK91: 0 | AL91: 0 | AM91: 0 | AN91: 19 | AO91: 23.5 | AP91: 11 | AQ91: 34 | AR91: =INDEX(Input_Details!$L$5:$L$24, MATCH($A91, Input_Details!$J$5:$J$24, 0), 0) -> Northbound | AS91: Mon | AT91: 21:45:00 | AU91: 0 | AV91: 8 | AW91: 0 | AX91: 0 | AY91: 0 | AZ91: 0 | BA91: 0 | BB91: 0 | BC91: 0 | BD91: 0 | BE91: 0 | BF91: 0 | BG91: 0 | BH91: 1 | BI91: 5 | BJ91: 1 | BK91: 1 | BL91: 0 | BM91: 0 | BN91: 0 | BO91: 0 | BP91: 0 | BQ91: 0 | BR91: 0 | BS91: 0 | BT91: 0 | BU91: 0 | BV91: 0 | BW91: 0 | BX91: 0 | BY91: 0 | BZ91: 0 | CA91: 18.2 | CB91: - | CC91: 14.8 | CD91: 26.7 | CF91: Mon | CG91: 21:45:00 | CH91: 7 | CI91: 40 | CJ91: 0 | CK91: 1 | CL91: 2 | CM91: 1 | CN91: 0 | CO91: 0 | CP91: 0 | CQ91: 0 | CR91: 0 | CS91: 0 | CT91: 0 | CU91: 10 | CV91: 25 | CW91: 11 | CX91: 3 | CY91: 2 | CZ91: 0 | DA91: 0 | DB91: 0 | DC91: 0 | DD91: 0 | DE91: 0 | DF91: 0 | DG91: 0 | DH91: 0 | DI91: 0 | DJ91: 0 | DK91: 0 | DL91: 0 | DM91: 0 | DN91: 18.8745098 | DO91: 23.5 | DP91: 11 | DQ91: 34 | DR91: 7 | DS91: 32 | DT91: 1 | DU91: 2 | DV91: 1 | DW91: 43 | DX91: 0 | DY91: 8 | DZ91: 0 | EA91: 0 | EB91: 0 | EC91: 8 | ED91: 7 | EE91: 40 | EF91: 1 | EG91: 2 | EH91: 1 | EI91: 51 | EJ91: 43 | EK91: 37 | EL91: 39 | EM91: 47 | EN91: 46 | EO91: 48 | EP91: 43 | EQ91: 8 | ER91: 14 | ES91: 13 | ET91: 1 | EU91: 11 | EV91: 17 | EW91: 7 | EX91: 51 | EY91: 51 | EZ91: 52 | FA91: 48 | FB91: 57 | FC91: 65 | FD91: 50
A92: 1 | B92: =OFFSET(Input_Details!$Q$4,MATCH($A92, Input_Details!$J$5:$J$24, 0), 0) -> 2017-04-24 | C92: =INDEX(Input_Details!$H$5:$H$24, MATCH($A92, Input_Details!$J$5:$J$24, 0), 0) -> Harper Road (South of Falmouth Road) | D92: =INDEX(Input_Details!$I$5:$I$24, MATCH($A92, Input_Details!$J$5:$J$24, 0), 0) -> 51.49617, -0.09302 | E92: =INDEX(Input_Details!$K$5:$K$24, MATCH($A92, Input_Details!$J$5:$J$24, 0), 0) -> Southbound | F92: Mon | G92: 22:00:00 | H92: 11 | I92: 28 | J92: 0 | K92: 1 | L92: 0 | M92: 0 | N92: 0 | O92: 0 | P92: 0 | Q92: 0 | R92: 0 | S92: 0 | T92: 0 | U92: 6 | V92: 12 | W92: 16 | X92: 4 | Y92: 1 | Z92: 1 | AA92: 0 | AB92: 0 | AC92: 0 | AD92: 0 | AE92: 0 | AF92: 0 | AG92: 0 | AH92: 0 | AI92: 0 | AJ92: 0 | AK92: 0 | AL92: 0 | AM92: 0 | AN92: 20.3 | AO92: 24.2 | AP92: 11.3 | AQ92: 36.5 | AR92: =INDEX(Input_Details!$L$5:$L$24, MATCH($A92, Input_Details!$J$5:$J$24, 0), 0) -> Northbound | AS92: Mon | AT92: 22:00:00 | AU92: 0 | AV92: 6 | AW92: 0 | AX92: 1 | AY92: 0 | AZ92: 0 | BA92: 0 | BB92: 0 | BC92: 0 | BD92: 0 | BE92: 0 | BF92: 0 | BG92: 1 | BH92: 1 | BI92: 1 | BJ92: 3 | BK92: 1 | BL92: 0 | BM92: 0 | BN92: 0 | BO92: 0 | BP92: 0 | BQ92: 0 | BR92: 0 | BS92: 0 | BT92: 0 | BU92: 0 | BV92: 0 | BW92: 0 | BX92: 0 | BY92: 0 | BZ92: 0 | CA92: 19.2 | CB92: - | CC92: 7.6 | CD92: 27.8 | CF92: Mon | CG92: 22:00:00 | CH92: 11 | CI92: 34 | CJ92: 0 | CK92: 2 | CL92: 0 | CM92: 0 | CN92: 0 | CO92: 0 | CP92: 0 | CQ92: 0 | CR92: 0 | CS92: 0 | CT92: 1 | CU92: 7 | CV92: 13 | CW92: 19 | CX92: 5 | CY92: 1 | CZ92: 1 | DA92: 0 | DB92: 0 | DC92: 0 | DD92: 0 | DE92: 0 | DF92: 0 | DG92: 0 | DH92: 0 | DI92: 0 | DJ92: 0 | DK92: 0 | DL92: 0 | DM92: 0 | DN92: 20.13617021 | DO92: 24.2 | DP92: 7.6 | DQ92: 36.5 | DR92: 11 | DS92: 28 | DT92: 1 | DU92: 0 | DV92: 0 | DW92: 40 | DX92: 0 | DY92: 6 | DZ92: 1 | EA92: 0 | EB92: 0 | EC92: 7 | ED92: 11 | EE92: 34 | EF92: 2 | EG92: 0 | EH92: 0 | EI92: 47 | EJ92: 40 | EK92: 46 | EL92: 48 | EM92: 59 | EN92: 51 | EO92: 41 | EP92: 38 | EQ92: 7 | ER92: 9 | ES92: 11 | ET92: 5 | EU92: 5 | EV92: 18 | EW92: 9 | EX92: 47 | EY92: 55 | EZ92: 59 | FA92: 64 | FB92: 56 | FC92: 59 | FD92: 47
A93: 1 | B93: =OFFSET(Input_Details!$Q$4,MATCH($A93, Input_Details!$J$5:$J$24, 0), 0) -> 2017-04-24 | C93: =INDEX(Input_Details!$H$5:$H$24, MATCH($A93, Input_Details!$J$5:$J$24, 0), 0) -> Harper Road (South of Falmouth Road) | D93: =INDEX(Input_Details!$I$5:$I$24, MATCH($A93, Input_Details!$J$5:$J$24, 0), 0) -> 51.49617, -0.09302 | E93: =INDEX(Input_Details!$K$5:$K$24, MATCH($A93, Input_Details!$J$5:$J$24, 0), 0) -> Southbound | F93: Mon | G93: 22:15:00 | H93: 10 | I93: 39 | J93: 0 | K93: 0 | L93: 1 | M93: 0 | N93: 0 | O93: 0 | P93: 0 | Q93: 0 | R93: 0 | S93: 0 | T93: 2 | U93: 7 | V93: 28 | W93: 9 | X93: 3 | Y93: 1 | Z93: 0 | AA93: 0 | AB93: 0 | AC93: 0 | AD93: 0 | AE93: 0 | AF93: 0 | AG93: 0 | AH93: 0 | AI93: 0 | AJ93: 0 | AK93: 0 | AL93: 0 | AM93: 0 | AN93: 18.1 | AO93: 21.7 | AP93: 8.5 | AQ93: 31 | AR93: =INDEX(Input_Details!$L$5:$L$24, MATCH($A93, Input_Details!$J$5:$J$24, 0), 0) -> Northbound | AS93: Mon | AT93: 22:15:00 | AU93: 0 | AV93: 6 | AW93: 0 | AX93: 1 | AY93: 1 | AZ93: 0 | BA93: 0 | BB93: 0 | BC93: 0 | BD93: 0 | BE93: 0 | BF93: 0 | BG93: 0 | BH93: 0 | BI93: 4 | BJ93: 4 | BK93: 0 | BL93: 0 | BM93: 0 | BN93: 0 | BO93: 0 | BP93: 0 | BQ93: 0 | BR93: 0 | BS93: 0 | BT93: 0 | BU93: 0 | BV93: 0 | BW93: 0 | BX93: 0 | BY93: 0 | BZ93: 0 | CA93: 19 | CB93: - | CC93: 15.3 | CD93: 20.9 | CF93: Mon | CG93: 22:15:00 | CH93: 10 | CI93: 45 | CJ93: 0 | CK93: 1 | CL93: 2 | CM93: 0 | CN93: 0 | CO93: 0 | CP93: 0 | CQ93: 0 | CR93: 0 | CS93: 0 | CT93: 2 | CU93: 7 | CV93: 32 | CW93: 13 | CX93: 3 | CY93: 1 | CZ93: 0 | DA93: 0 | DB93: 0 | DC93: 0 | DD93: 0 | DE93: 0 | DF93: 0 | DG93: 0 | DH93: 0 | DI93: 0 | DJ93: 0 | DK93: 0 | DL93: 0 | DM93: 0 | DN93: 18.22413793 | DO93: 21.7 | DP93: 8.5 | DQ93: 31 | DR93: 10 | DS93: 39 | DT93: 0 | DU93: 1 | DV93: 0 | DW93: 50 | DX93: 0 | DY93: 6 | DZ93: 1 | EA93: 1 | EB93: 0 | EC93: 8 | ED93: 10 | EE93: 45 | EF93: 1 | EG93: 2 | EH93: 0 | EI93: 58 | EJ93: 50 | EK93: 53 | EL93: 59 | EM93: 33 | EN93: 48 | EO93: 59 | EP93: 34 | EQ93: 8 | ER93: 13 | ES93: 12 | ET93: 3 | EU93: 5 | EV93: 17 | EW93: 7 | EX93: 58 | EY93: 66 | EZ93: 71 | FA93: 36 | FB93: 53 | FC93: 76 | FD93: 41
A94: 1 | B94: =OFFSET(Input_Details!$Q$4,MATCH($A94, Input_Details!$J$5:$J$24, 0), 0) -> 2017-04-24 | C94: =INDEX(Input_Details!$H$5:$H$24, MATCH($A94, Input_Details!$J$5:$J$24, 0), 0) -> Harper Road (South of Falmouth Road) | D94: =INDEX(Input_Details!$I$5:$I$24, MATCH($A94, Input_Details!$J$5:$J$24, 0), 0) -> 51.49617, -0.09302 | E94: =INDEX(Input_Details!$K$5:$K$24, MATCH($A94, Input_Details!$J$5:$J$24, 0), 0) -> Southbound | F94: Mon | G94: 22:30:00 | H94: 4 | I94: 28 | J94: 0 | K94: 0 | L94: 3 | M94: 0 | N94: 0 | O94: 0 | P94: 0 | Q94: 0 | R94: 0 | S94: 0 | T94: 0 | U94: 6 | V94: 15 | W94: 11 | X94: 2 | Y94: 1 | Z94: 0 | AA94: 0 | AB94: 0 | AC94: 0 | AD94: 0 | AE94: 0 | AF94: 0 | AG94: 0 | AH94: 0 | AI94: 0 | AJ94: 0 | AK94: 0 | AL94: 0 | AM94: 0 | AN94: 19.1 | AO94: 23.9 | AP94: 10.2 | AQ94: 34.6 | AR94: =INDEX(Input_Details!$L$5:$L$24, MATCH($A94, Input_Details!$J$5:$J$24, 0), 0) -> Northbound | AS94: Mon | AT94: 22:30:00 | AU94: 0 | AV94: 5 | AW94: 0 | AX94: 0 | AY94: 0 | AZ94: 0 | BA94: 0 | BB94: 0 | BC94: 0 | BD94: 0 | BE94: 0 | BF94: 0 | BG94: 0 | BH94: 0 | BI94: 5 | BJ94: 0 | BK94: 0 | BL94: 0 | BM94: 0 | BN94: 0 | BO94: 0 | BP94: 0 | BQ94: 0 | BR94: 0 | BS94: 0 | BT94: 0 | BU94: 0 | BV94: 0 | BW94: 0 | BX94: 0 | BY94: 0 | BZ94: 0 | CA94: 17.5 | CB94: - | CC94: 17.5 | CD94: 17.5 | CF94: Mon | CG94: 22:30:00 | CH94: 4 | CI94: 33 | CJ94: 0 | CK94: 0 | CL94: 3 | CM94: 0 | CN94: 0 | CO94: 0 | CP94: 0 | CQ94: 0 | CR94: 0 | CS94: 0 | CT94: 0 | CU94: 6 | CV94: 20 | CW94: 11 | CX94: 2 | CY94: 1 | CZ94: 0 | DA94: 0 | DB94: 0 | DC94: 0 | DD94: 0 | DE94: 0 | DF94: 0 | DG94: 0 | DH94: 0 | DI94: 0 | DJ94: 0 | DK94: 0 | DL94: 0 | DM94: 0 | DN94: 18.9 | DO94: 23.9 | DP94: 10.2 | DQ94: 34.6 | DR94: 4 | DS94: 28 | DT94: 0 | DU94: 3 | DV94: 0 | DW94: 35 | DX94: 0 | DY94: 5 | DZ94: 0 | EA94: 0 | EB94: 0 | EC94: 5 | ED94: 4 | EE94: 33 | EF94: 0 | EG94: 3 | EH94: 0 | EI94: 40 | EJ94: 35 | EK94: 47 | EL94: 42 | EM94: 39 | EN94: 58 | EO94: 54 | EP94: 34 | EQ94: 5 | ER94: 10 | ES94: 6 | ET94: 1 | EU94: 4 | EV94: 10 | EW94: 6 | EX94: 40 | EY94: 57 | EZ94: 48 | FA94: 40 | FB94: 62 | FC94: 64 | FD94: 40
A95: 1 | B95: =OFFSET(Input_Details!$Q$4,MATCH($A95, Input_Details!$J$5:$J$24, 0), 0) -> 2017-04-24 | C95: =INDEX(Input_Details!$H$5:$H$24, MATCH($A95, Input_Details!$J$5:$J$24, 0), 0) -> Harper Road (South of Falmouth Road) | D95: =INDEX(Input_Details!$I$5:$I$24, MATCH($A95, Input_Details!$J$5:$J$24, 0), 0) -> 51.49617, -0.09302 | E95: =INDEX(Input_Details!$K$5:$K$24, MATCH($A95, Input_Details!$J$5:$J$24, 0), 0) -> Southbound | F95: Mon | G95: 22:45:00 | H95: 3 | I95: 28 | J95: 0 | K95: 1 | L95: 2 | M95: 0 | N95: 0 | O95: 0 | P95: 0 | Q95: 0 | R95: 0 | S95: 0 | T95: 2 | U95: 7 | V95: 13 | W95: 10 | X95: 2 | Y95: 0 | Z95: 0 | AA95: 0 | AB95: 0 | AC95: 0 | AD95: 0 | AE95: 0 | AF95: 0 | AG95: 0 | AH95: 0 | AI95: 0 | AJ95: 0 | AK95: 0 | AL95: 0 | AM95: 0 | AN95: 17.8 | AO95: 21.5 | AP95: 4.9 | AQ95: 27.4 | AR95: =INDEX(Input_Details!$L$5:$L$24, MATCH($A95, Input_Details!$J$5:$J$24, 0), 0) -> Northbound | AS95: Mon | AT95: 22:45:00 | AU95: 1 | AV95: 5 | AW95: 0 | AX95: 0 | AY95: 0 | AZ95: 0 | BA95: 0 | BB95: 0 | BC95: 0 | BD95: 0 | BE95: 0 | BF95: 0 | BG95: 0 | BH95: 0 | BI95: 6 | BJ95: 0 | BK95: 0 | BL95: 0 | BM95: 0 | BN95: 0 | BO95: 0 | BP95: 0 | BQ95: 0 | BR95: 0 | BS95: 0 | BT95: 0 | BU95: 0 | BV95: 0 | BW95: 0 | BX95: 0 | BY95: 0 | BZ95: 0 | CA95: 16.8 | CB95: - | CC95: 15.5 | CD95: 19.3 | CF95: Mon | CG95: 22:45:00 | CH95: 4 | CI95: 33 | CJ95: 0 | CK95: 1 | CL95: 2 | CM95: 0 | CN95: 0 | CO95: 0 | CP95: 0 | CQ95: 0 | CR95: 0 | CS95: 0 | CT95: 2 | CU95: 7 | CV95: 19 | CW95: 10 | CX95: 2 | CY95: 0 | CZ95: 0 | DA95: 0 | DB95: 0 | DC95: 0 | DD95: 0 | DE95: 0 | DF95: 0 | DG95: 0 | DH95: 0 | DI95: 0 | DJ95: 0 | DK95: 0 | DL95: 0 | DM95: 0 | DN95: 17.65 | DO95: 21.5 | DP95: 4.9 | DQ95: 27.4 | DR95: 3 | DS95: 28 | DT95: 1 | DU95: 2 | DV95: 0 | DW95: 34 | DX95: 1 | DY95: 5 | DZ95: 0 | EA95: 0 | EB95: 0 | EC95: 6 | ED95: 4 | EE95: 33 | EF95: 1 | EG95: 2 | EH95: 0 | EI95: 40 | EJ95: 34 | EK95: 44 | EL95: 40 | EM95: 45 | EN95: 61 | EO95: 50 | EP95: 38 | EQ95: 6 | ER95: 8 | ES95: 7 | ET95: 4 | EU95: 7 | EV95: 8 | EW95: 5 | EX95: 40 | EY95: 52 | EZ95: 47 | FA95: 49 | FB95: 68 | FC95: 58 | FD95: 43
A96: 1 | B96: =OFFSET(Input_Details!$Q$4,MATCH($A96, Input_Details!$J$5:$J$24, 0), 0) -> 2017-04-24 | C96: =INDEX(Input_Details!$H$5:$H$24, MATCH($A96, Input_Details!$J$5:$J$24, 0), 0) -> Harper Road (South of Falmouth Road) | D96: =INDEX(Input_Details!$I$5:$I$24, MATCH($A96, Input_Details!$J$5:$J$24, 0), 0) -> 51.49617, -0.09302 | E96: =INDEX(Input_Details!$K$5:$K$24, MATCH($A96, Input_Details!$J$5:$J$24, 0), 0) -> Southbound | F96: Mon | G96: 23:00:00 | H96: 5 | I96: 31 | J96: 0 | K96: 0 | L96: 0 | M96: 0 | N96: 0 | O96: 0 | P96: 1 | Q96: 0 | R96: 0 | S96: 0 | T96: 0 | U96: 4 | V96: 22 | W96: 7 | X96: 2 | Y96: 2 | Z96: 0 | AA96: 0 | AB96: 0 | AC96: 0 | AD96: 0 | AE96: 0 | AF96: 0 | AG96: 0 | AH96: 0 | AI96: 0 | AJ96: 0 | AK96: 0 | AL96: 0 | AM96: 0 | AN96: 18.6 | AO96: 22.1 | AP96: 12.2 | AQ96: 33.3 | AR96: =INDEX(Input_Details!$L$5:$L$24, MATCH($A96, Input_Details!$J$5:$J$24, 0), 0) -> Northbound | AS96: Mon | AT96: 23:00:00 | AU96: 1 | AV96: 10 | AW96: 0 | AX96: 0 | AY96: 0 | AZ96: 0 | BA96: 0 | BB96: 0 | BC96: 0 | BD96: 0 | BE96: 0 | BF96: 0 | BG96: 0 | BH96: 0 | BI96: 8 | BJ96: 2 | BK96: 1 | BL96: 0 | BM96: 0 | BN96: 0 | BO96: 0 | BP96: 0 | BQ96: 0 | BR96: 0 | BS96: 0 | BT96: 0 | BU96: 0 | BV96: 0 | BW96: 0 | BX96: 0 | BY96: 0 | BZ96: 0 | CA96: 19.4 | CB96: 20.6 | CC96: 16.1 | CD96: 26.3 | CF96: Mon | CG96: 23:00:00 | CH96: 6 | CI96: 41 | CJ96: 0 | CK96: 0 | CL96: 0 | CM96: 0 | CN96: 0 | CO96: 0 | CP96: 1 | CQ96: 0 | CR96: 0 | CS96: 0 | CT96: 0 | CU96: 4 | CV96: 30 | CW96: 9 | CX96: 3 | CY96: 2 | CZ96: 0 | DA96: 0 | DB96: 0 | DC96: 0 | DD96: 0 | DE96: 0 | DF96: 0 | DG96: 0 | DH96: 0 | DI96: 0 | DJ96: 0 | DK96: 0 | DL96: 0 | DM96: 0 | DN96: 18.78333333 | DO96: 21.35 | DP96: 12.2 | DQ96: 33.3 | DR96: 5 | DS96: 31 | DT96: 0 | DU96: 0 | DV96: 1 | DW96: 37 | DX96: 1 | DY96: 10 | DZ96: 0 | EA96: 0 | EB96: 0 | EC96: 11 | ED96: 6 | EE96: 41 | EF96: 0 | EG96: 0 | EH96: 1 | EI96: 48 | EJ96: 37 | EK96: 51 | EL96: 39 | EM96: 46 | EN96: 35 | EO96: 46 | EP96: 31 | EQ96: 11 | ER96: 12 | ES96: 7 | ET96: 2 | EU96: 11 | EV96: 4 | EW96: 2 | EX96: 48 | EY96: 63 | EZ96: 46 | FA96: 48 | FB96: 46 | FC96: 50 | FD96: 33
A97: 1 | B97: =OFFSET(Input_Details!$Q$4,MATCH($A97, Input_Details!$J$5:$J$24, 0), 0) -> 2017-04-24 | C97: =INDEX(Input_Details!$H$5:$H$24, MATCH($A97, Input_Details!$J$5:$J$24, 0), 0) -> Harper Road (South of Falmouth Road) | D97: =INDEX(Input_Details!$I$5:$I$24, MATCH($A97, Input_Details!$J$5:$J$24, 0), 0) -> 51.49617, -0.09302 | E97: =INDEX(Input_Details!$K$5:$K$24, MATCH($A97, Input_Details!$J$5:$J$24, 0), 0) -> Southbound | F97: Mon | G97: 23:15:00 | H97: 3 | I97: 23 | J97: 0 | K97: 0 | L97: 3 | M97: 0 | N97: 0 | O97: 0 | P97: 0 | Q97: 0 | R97: 0 | S97: 0 | T97: 0 | U97: 8 | V97: 14 | W97: 6 | X97: 1 | Y97: 0 | Z97: 0 | AA97: 0 | AB97: 0 | AC97: 0 | AD97: 0 | AE97: 0 | AF97: 0 | AG97: 0 | AH97: 0 | AI97: 0 | AJ97: 0 | AK97: 0 | AL97: 0 | AM97: 0 | AN97: 17.6 | AO97: 21.3 | AP97: 10.3 | AQ97: 28.9 | AR97: =INDEX(Input_Details!$L$5:$L$24, MATCH($A97, Input_Details!$J$5:$J$24, 0), 0) -> Northbound | AS97: Mon | AT97: 23:15:00 | AU97: 0 | AV97: 5 | AW97: 0 | AX97: 0 | AY97: 0 | AZ97: 0 | BA97: 0 | BB97: 0 | BC97: 0 | BD97: 0 | BE97: 0 | BF97: 0 | BG97: 0 | BH97: 0 | BI97: 0 | BJ97: 4 | BK97: 1 | BL97: 0 | BM97: 0 | BN97: 0 | BO97: 0 | BP97: 0 | BQ97: 0 | BR97: 0 | BS97: 0 | BT97: 0 | BU97: 0 | BV97: 0 | BW97: 0 | BX97: 0 | BY97: 0 | BZ97: 0 | CA97: 22.9 | CB97: - | CC97: 22.2 | CD97: 25.8 | CF97: Mon | CG97: 23:15:00 | CH97: 3 | CI97: 28 | CJ97: 0 | CK97: 0 | CL97: 3 | CM97: 0 | CN97: 0 | CO97: 0 | CP97: 0 | CQ97: 0 | CR97: 0 | CS97: 0 | CT97: 0 | CU97: 8 | CV97: 14 | CW97: 10 | CX97: 2 | CY97: 0 | CZ97: 0 | DA97: 0 | DB97: 0 | DC97: 0 | DD97: 0 | DE97: 0 | DF97: 0 | DG97: 0 | DH97: 0 | DI97: 0 | DJ97: 0 | DK97: 0 | DL97: 0 | DM97: 0 | DN97: 18.37941176 | DO97: 21.3 | DP97: 10.3 | DQ97: 28.9 | DR97: 3 | DS97: 23 | DT97: 0 | DU97: 3 | DV97: 0 | DW97: 29 | DX97: 0 | DY97: 5 | DZ97: 0 | EA97: 0 | EB97: 0 | EC97: 5 | ED97: 3 | EE97: 28 | EF97: 0 | EG97: 3 | EH97: 0 | EI97: 34 | EJ97: 29 | EK97: 28 | EL97: 39 | EM97: 50 | EN97: 57 | EO97: 47 | EP97: 28 | EQ97: 5 | ER97: 6 | ES97: 6 | ET97: 1 | EU97: 9 | EV97: 9 | EW97: 5 | EX97: 34 | EY97: 34 | EZ97: 45 | FA97: 51 | FB97: 66 | FC97: 56 | FD97: 33
A98: 1 | B98: =OFFSET(Input_Details!$Q$4,MATCH($A98, Input_Details!$J$5:$J$24, 0), 0) -> 2017-04-24 | C98: =INDEX(Input_Details!$H$5:$H$24, MATCH($A98, Input_Details!$J$5:$J$24, 0), 0) -> Harper Road (South of Falmouth Road) | D98: =INDEX(Input_Details!$I$5:$I$24, MATCH($A98, Input_Details!$J$5:$J$24, 0), 0) -> 51.49617, -0.09302 | E98: =INDEX(Input_Details!$K$5:$K$24, MATCH($A98, Input_Details!$J$5:$J$24, 0), 0) -> Southbound | F98: Mon | G98: 23:30:00 | H98: 2 | I98: 28 | J98: 0 | K98: 1 | L98: 1 | M98: 0 | N98: 0 | O98: 0 | P98: 0 | Q98: 0 | R98: 0 | S98: 0 | T98: 0 | U98: 7 | V98: 14 | W98: 10 | X98: 1 | Y98: 0 | Z98: 0 | AA98: 0 | AB98: 0 | AC98: 0 | AD98: 0 | AE98: 0 | AF98: 0 | AG98: 0 | AH98: 0 | AI98: 0 | AJ98: 0 | AK98: 0 | AL98: 0 | AM98: 0 | AN98: 18.5 | AO98: 21.3 | AP98: 12 | AQ98: 29.6 | AR98: =INDEX(Input_Details!$L$5:$L$24, MATCH($A98, Input_Details!$J$5:$J$24, 0), 0) -> Northbound | AS98: Mon | AT98: 23:30:00 | AU98: 1 | AV98: 3 | AW98: 0 | AX98: 0 | AY98: 0 | AZ98: 0 | BA98: 0 | BB98: 0 | BC98: 0 | BD98: 0 | BE98: 0 | BF98: 0 | BG98: 0 | BH98: 1 | BI98: 0 | BJ98: 1 | BK98: 2 | BL98: 0 | BM98: 0 | BN98: 0 | BO98: 0 | BP98: 0 | BQ98: 0 | BR98: 0 | BS98: 0 | BT98: 0 | BU98: 0 | BV98: 0 | BW98: 0 | BX98: 0 | BY98: 0 | BZ98: 0 | CA98: 22.4 | CB98: - | CC98: 14.5 | CD98: 29.3 | CF98: Mon | CG98: 23:30:00 | CH98: 3 | CI98: 31 | CJ98: 0 | CK98: 1 | CL98: 1 | CM98: 0 | CN98: 0 | CO98: 0 | CP98: 0 | CQ98: 0 | CR98: 0 | CS98: 0 | CT98: 0 | CU98: 8 | CV98: 14 | CW98: 11 | CX98: 3 | CY98: 0 | CZ98: 0 | DA98: 0 | DB98: 0 | DC98: 0 | DD98: 0 | DE98: 0 | DF98: 0 | DG98: 0 | DH98: 0 | DI98: 0 | DJ98: 0 | DK98: 0 | DL98: 0 | DM98: 0 | DN98: 18.93333333 | DO98: 21.3 | DP98: 12 | DQ98: 29.6 | DR98: 2 | DS98: 28 | DT98: 1 | DU98: 1 | DV98: 0 | DW98: 32 | DX98: 1 | DY98: 3 | DZ98: 0 | EA98: 0 | EB98: 0 | EC98: 4 | ED98: 3 | EE98: 31 | EF98: 1 | EG98: 1 | EH98: 0 | EI98: 36 | EJ98: 32 | EK98: 29 | EL98: 50 | EM98: 42 | EN98: 46 | EO98: 53 | EP98: 23 | EQ98: 4 | ER98: 6 | ES98: 6 | ET98: 5 | EU98: 12 | EV98: 6 | EW98: 3 | EX98: 36 | EY98: 35 | EZ98: 56 | FA98: 47 | FB98: 58 | FC98: 59 | FD98: 26
A99: 1 | B99: =OFFSET(Input_Details!$Q$4,MATCH($A99, Input_Details!$J$5:$J$24, 0), 0) -> 2017-04-24 | C99: =INDEX(Input_Details!$H$5:$H$24, MATCH($A99, Input_Details!$J$5:$J$24, 0), 0) -> Harper Road (South of Falmouth Road) | D99: =INDEX(Input_Details!$I$5:$I$24, MATCH($A99, Input_Details!$J$5:$J$24, 0), 0) -> 51.49617, -0.09302 | E99: =INDEX(Input_Details!$K$5:$K$24, MATCH($A99, Input_Details!$J$5:$J$24, 0), 0) -> Southbound | F99: Mon | G99: 23:45:00 | H99: 3 | I99: 11 | J99: 0 | K99: 2 | L99: 2 | M99: 0 | N99: 0 | O99: 0 | P99: 0 | Q99: 0 | R99: 0 | S99: 0 | T99: 1 | U99: 2 | V99: 11 | W99: 1 | X99: 3 | Y99: 0 | Z99: 0 | AA99: 0 | AB99: 0 | AC99: 0 | AD99: 0 | AE99: 0 | AF99: 0 | AG99: 0 | AH99: 0 | AI99: 0 | AJ99: 0 | AK99: 0 | AL99: 0 | AM99: 0 | AN99: 17.9 | AO99: 21 | AP99: 9.6 | AQ99: 27.9 | AR99: =INDEX(Input_Details!$L$5:$L$24, MATCH($A99, Input_Details!$J$5:$J$24, 0), 0) -> Northbound | AS99: Mon | AT99: 23:45:00 | AU99: 1 | AV99: 1 | AW99: 0 | AX99: 0 | AY99: 0 | AZ99: 0 | BA99: 0 | BB99: 0 | BC99: 0 | BD99: 0 | BE99: 0 | BF99: 0 | BG99: 0 | BH99: 0 | BI99: 0 | BJ99: 1 | BK99: 1 | BL99: 0 | BM99: 0 | BN99: 0 | BO99: 0 | BP99: 0 | BQ99: 0 | BR99: 0 | BS99: 0 | BT99: 0 | BU99: 0 | BV99: 0 | BW99: 0 | BX99: 0 | BY99: 0 | BZ99: 0 | CA99: 23.5 | CB99: - | CC99: 20.1 | CD99: 26.9 | CF99: Mon | CG99: 23:45:00 | CH99: 4 | CI99: 12 | CJ99: 0 | CK99: 2 | CL99: 2 | CM99: 0 | CN99: 0 | CO99: 0 | CP99: 0 | CQ99: 0 | CR99: 0 | CS99: 0 | CT99: 1 | CU99: 2 | CV99: 11 | CW99: 2 | CX99: 4 | CY99: 0 | CZ99: 0 | DA99: 0 | DB99: 0 | DC99: 0 | DD99: 0 | DE99: 0 | DF99: 0 | DG99: 0 | DH99: 0 | DI99: 0 | DJ99: 0 | DK99: 0 | DL99: 0 | DM99: 0 | DN99: 18.46 | DO99: 21 | DP99: 9.6 | DQ99: 27.9 | DR99: 3 | DS99: 11 | DT99: 2 | DU99: 2 | DV99: 0 | DW99: 18 | DX99: 1 | DY99: 1 | DZ99: 0 | EA99: 0 | EB99: 0 | EC99: 2 | ED99: 4 | EE99: 12 | EF99: 2 | EG99: 2 | EH99: 0 | EI99: 20 | EJ99: 18 | EK99: 45 | EL99: 22 | EM99: 32 | EN99: 30 | EO99: 45 | EP99: 24 | EQ99: 2 | ER99: 15 | ES99: 7 | ET99: 3 | EU99: 6 | EV99: 6 | EW99: 3 | EX99: 20 | EY99: 60 | EZ99: 29 | FA99: 35 | FB99: 36 | FC99: 51 | FD99: 27
A100: 1 | B100: =OFFSET(Input_Details!$Q$4,MATCH($A100, Input_Details!$J$5:$J$24, 0), 1) -> 2017-04-25 | C100: =INDEX(Input_Details!$H$5:$H$24, MATCH($A100, Input_Details!$J$5:$J$24, 0), 0) -> Harper Road (South of Falmouth Road) | D100: =INDEX(Input_Details!$I$5:$I$24, MATCH($A100, Input_Details!$J$5:$J$24, 0), 0) -> 51.49617, -0.09302 | E100: =INDEX(Input_Details!$K$5:$K$24, MATCH($A100, Input_Details!$J$5:$J$24, 0), 0) -> Southbound | F100: Tues | G100: 00:00:00 | H100: 3 | I100: 20 | J100: 0 | K100: 0 | L100: 0 | M100: 0 | N100: 0 | O100: 0 | P100: 0 | Q100: 1 | R100: 0 | S100: 0 | T100: 2 | U100: 9 | V100: 8 | W100: 3 | X100: 1 | Y100: 1 | Z100: 0 | AA100: 0 | AB100: 0 | AC100: 0 | AD100: 0 | AE100: 0 | AF100: 0 | AG100: 0 | AH100: 0 | AI100: 0 | AJ100: 0 | AK100: 0 | AL100: 0 | AM100: 0 | AN100: 16.5 | AO100: 20.6 | AP100: 9.4 | AQ100: 32.7 | AR100: =INDEX(Input_Details!$L$5:$L$24, MATCH($A100, Input_Details!$J$5:$J$24, 0), 0) -> Northbound | AS100: Tues | AT100: 00:00:00 | AU100: 2 | AV100: 2 | AW100: 0 | AX100: 0 | AY100: 0 | AZ100: 0 | BA100: 0 | BB100: 0 | BC100: 0 | BD100: 0 | BE100: 0 | BF100: 0 | BG100: 0 | BH100: 0 | BI100: 0 | BJ100: 2 | BK100: 2 | BL100: 0 | BM100: 0 | BN100: 0 | BO100: 0 | BP100: 0 | BQ100: 0 | BR100: 0 | BS100: 0 | BT100: 0 | BU100: 0 | BV100: 0 | BW100: 0 | BX100: 0 | BY100: 0 | BZ100: 0 | CA100: 25.7 | CB100: - | CC100: 23.5 | CD100: 28.5 | CF100: Tues | CG100: 00:00:00 | CH100: 5 | CI100: 22 | CJ100: 0 | CK100: 0 | CL100: 0 | CM100: 0 | CN100: 0 | CO100: 0 | CP100: 0 | CQ100: 1 | CR100: 0 | CS100: 0 | CT100: 2 | CU100: 9 | CV100: 8 | CW100: 5 | CX100: 3 | CY100: 1 | CZ100: 0 | DA100: 0 | DB100: 0 | DC100: 0 | DD100: 0 | DE100: 0 | DF100: 0 | DG100: 0 | DH100: 0 | DI100: 0 | DJ100: 0 | DK100: 0 | DL100: 0 | DM100: 0 | DN100: 17.81428571 | DO100: 20.6 | DP100: 9.4 | DQ100: 32.7 | DR100: 3 | DS100: 20 | DT100: 0 | DU100: 0 | DV100: 1 | DW100: 24 | DX100: 2 | DY100: 2 | DZ100: 0 | EA100: 0 | EB100: 0 | EC100: 4 | ED100: 5 | EE100: 22 | EF100: 0 | EG100: 0 | EH100: 1 | EI100: 28
A101: 1 | B101: =OFFSET(Input_Details!$Q$4,MATCH($A101, Input_Details!$J$5:$J$24, 0), 1) -> 2017-04-25 | C101: =INDEX(Input_Details!$H$5:$H$24, MATCH($A101, Input_Details!$J$5:$J$24, 0), 0) -> Harper Road (South of Falmouth Road) | D101: =INDEX(Input_Details!$I$5:$I$24, MATCH($A101, Input_Details!$J$5:$J$24, 0), 0) -> 51.49617, -0.09302 | E101: =INDEX(Input_Details!$K$5:$K$24, MATCH($A101, Input_Details!$J$5:$J$24, 0), 0) -> Southbound | F101: Tues | G101: 00:15:00 | H101: 4 | I101: 14 | J101: 0 | K101: 0 | L101: 1 | M101: 0 | N101: 0 | O101: 0 | P101: 0 | Q101: 0 | R101: 0 | S101: 0 | T101: 0 | U101: 2 | V101: 12 | W101: 3 | X101: 2 | Y101: 0 | Z101: 0 | AA101: 0 | AB101: 0 | AC101: 0 | AD101: 0 | AE101: 0 | AF101: 0 | AG101: 0 | AH101: 0 | AI101: 0 | AJ101: 0 | AK101: 0 | AL101: 0 | AM101: 0 | AN101: 18.4 | AO101: 20.4 | AP101: 11.9 | AQ101: 26 | AR101: =INDEX(Input_Details!$L$5:$L$24, MATCH($A101, Input_Details!$J$5:$J$24, 0), 0) -> Northbound | AS101: Tues | AT101: 00:15:00 | AU101: 2 | AV101: 5 | AW101: 0 | AX101: 0 | AY101: 0 | AZ101: 0 | BA101: 0 | BB101: 0 | BC101: 0 | BD101: 0 | BE101: 0 | BF101: 0 | BG101: 0 | BH101: 2 | BI101: 1 | BJ101: 1 | BK101: 3 | BL101: 0 | BM101: 0 | BN101: 0 | BO101: 0 | BP101: 0 | BQ101: 0 | BR101: 0 | BS101: 0 | BT101: 0 | BU101: 0 | BV101: 0 | BW101: 0 | BX101: 0 | BY101: 0 | BZ101: 0 | CA101: 20.6 | CB101: - | CC101: 10.4 | CD101: 29.1 | CF101: Tues | CG101: 00:15:00 | CH101: 6 | CI101: 19 | CJ101: 0 | CK101: 0 | CL101: 1 | CM101: 0 | CN101: 0 | CO101: 0 | CP101: 0 | CQ101: 0 | CR101: 0 | CS101: 0 | CT101: 0 | CU101: 4 | CV101: 13 | CW101: 4 | CX101: 5 | CY101: 0 | CZ101: 0 | DA101: 0 | DB101: 0 | DC101: 0 | DD101: 0 | DE101: 0 | DF101: 0 | DG101: 0 | DH101: 0 | DI101: 0 | DJ101: 0 | DK101: 0 | DL101: 0 | DM101: 0 | DN101: 18.99230769 | DO101: 20.4 | DP101: 10.4 | DQ101: 29.1 | DR101: 4 | DS101: 14 | DT101: 0 | DU101: 1 | DV101: 0 | DW101: 19 | DX101: 2 | DY101: 5 | DZ101: 0 | EA101: 0 | EB101: 0 | EC101: 7 | ED101: 6 | EE101: 19 | EF101: 0 | EG101: 1 | EH101: 0 | EI101: 26
A102: 1 | B102: =OFFSET(Input_Details!$Q$4,MATCH($A102, Input_Details!$J$5:$J$24, 0), 1) -> 2017-04-25 | C102: =INDEX(Input_Details!$H$5:$H$24, MATCH($A102, Input_Details!$J$5:$J$24, 0), 0) -> Harper Road (South of Falmouth Road) | D102: =INDEX(Input_Details!$I$5:$I$24, MATCH($A102, Input_Details!$J$5:$J$24, 0), 0) -> 51.49617, -0.09302 | E102: =INDEX(Input_Details!$K$5:$K$24, MATCH($A102, Input_Details!$J$5:$J$24, 0), 0) -> Southbound | F102: Tues | G102: 00:30:00 | H102: 1 | I102: 12 | J102: 0 | K102: 0 | L102: 0 | M102: 0 | N102: 0 | O102: 0 | P102: 0 | Q102: 0 | R102: 0 | S102: 0 | T102: 0 | U102: 4 | V102: 6 | W102: 2 | X102: 0 | Y102: 0 | Z102: 0 | AA102: 1 | AB102: 0 | AC102: 0 | AD102: 0 | AE102: 0 | AF102: 0 | AG102: 0 | AH102: 0 | AI102: 0 | AJ102: 0 | AK102: 0 | AL102: 0 | AM102: 0 | AN102: 18 | AO102: 21 | AP102: 10.4 | AQ102: 41.1 | AR102: =INDEX(Input_Details!$L$5:$L$24, MATCH($A102, Input_Details!$J$5:$J$24, 0), 0) -> Northbound | AS102: Tues | AT102: 00:30:00 | AU102: 0 | AV102: 4 | AW102: 0 | AX102: 0 | AY102: 0 | AZ102: 0 | BA102: 0 | BB102: 0 | BC102: 0 | BD102: 0 | BE102: 0 | BF102: 0 | BG102: 0 | BH102: 1 | BI102: 0 | BJ102: 3 | BK102: 0 | BL102: 0 | BM102: 0 | BN102: 0 | BO102: 0 | BP102: 0 | BQ102: 0 | BR102: 0 | BS102: 0 | BT102: 0 | BU102: 0 | BV102: 0 | BW102: 0 | BX102: 0 | BY102: 0 | BZ102: 0 | CA102: 19.1 | CB102: - | CC102: 12.2 | CD102: 21.7 | CF102: Tues | CG102: 00:30:00 | CH102: 1 | CI102: 16 | CJ102: 0 | CK102: 0 | CL102: 0 | CM102: 0 | CN102: 0 | CO102: 0 | CP102: 0 | CQ102: 0 | CR102: 0 | CS102: 0 | CT102: 0 | CU102: 5 | CV102: 6 | CW102: 5 | CX102: 0 | CY102: 0 | CZ102: 0 | DA102: 1 | DB102: 0 | DC102: 0 | DD102: 0 | DE102: 0 | DF102: 0 | DG102: 0 | DH102: 0 | DI102: 0 | DJ102: 0 | DK102: 0 | DL102: 0 | DM102: 0 | DN102: 18.25882353 | DO102: 21 | DP102: 10.4 | DQ102: 41.1 | DR102: 1 | DS102: 12 | DT102: 0 | DU102: 0 | DV102: 0 | DW102: 13 | DX102: 0 | DY102: 4 | DZ102: 0 | EA102: 0 | EB102: 0 | EC102: 4 | ED102: 1 | EE102: 16 | EF102: 0 | EG102: 0 | EH102: 0 | EI102: 17
A103: 1 | B103: =OFFSET(Input_Details!$Q$4,MATCH($A103, Input_Details!$J$5:$J$24, 0), 1) -> 2017-04-25 | C103: =INDEX(Input_Details!$H$5:$H$24, MATCH($A103, Input_Details!$J$5:$J$24, 0), 0) -> Harper Road (South of Falmouth Road) | D103: =INDEX(Input_Details!$I$5:$I$24, MATCH($A103, Input_Details!$J$5:$J$24, 0), 0) -> 51.49617, -0.09302 | E103: =INDEX(Input_Details!$K$5:$K$24, MATCH($A103, Input_Details!$J$5:$J$24, 0), 0) -> Southbound | F103: Tues | G103: 00:45:00 | H103: 0 | I103: 17 | J103: 0 | K103: 2 | L103: 0 | M103: 0 | N103: 0 | O103: 0 | P103: 0 | Q103: 0 | R103: 0 | S103: 0 | T103: 0 | U103: 1 | V103: 10 | W103: 7 | X103: 0 | Y103: 1 | Z103: 0 | AA103: 0 | AB103: 0 | AC103: 0 | AD103: 0 | AE103: 0 | AF103: 0 | AG103: 0 | AH103: 0 | AI103: 0 | AJ103: 0 | AK103: 0 | AL103: 0 | AM103: 0 | AN103: 19.9 | AO103: 22.6 | AP103: 14 | AQ103: 32.1 | AR103: =INDEX(Input_Details!$L$5:$L$24, MATCH($A103, Input_Details!$J$5:$J$24, 0), 0) -> Northbound | AS103: Tues | AT103: 00:45:00 | AU103: 0 | AV103: 5 | AW103: 0 | AX103: 0 | AY103: 0 | AZ103: 0 | BA103: 0 | BB103: 0 | BC103: 0 | BD103: 0 | BE103: 0 | BF103: 0 | BG103: 0 | BH103: 0 | BI103: 5 | BJ103: 0 | BK103: 0 | BL103: 0 | BM103: 0 | BN103: 0 | BO103: 0 | BP103: 0 | BQ103: 0 | BR103: 0 | BS103: 0 | BT103: 0 | BU103: 0 | BV103: 0 | BW103: 0 | BX103: 0 | BY103: 0 | BZ103: 0 | CA103: 18.9 | CB103: - | CC103: 18.9 | CD103: 18.9 | CF103: Tues | CG103: 00:45:00 | CH103: 0 | CI103: 22 | CJ103: 0 | CK103: 2 | CL103: 0 | CM103: 0 | CN103: 0 | CO103: 0 | CP103: 0 | CQ103: 0 | CR103: 0 | CS103: 0 | CT103: 0 | CU103: 1 | CV103: 15 | CW103: 7 | CX103: 0 | CY103: 1 | CZ103: 0 | DA103: 0 | DB103: 0 | DC103: 0 | DD103: 0 | DE103: 0 | DF103: 0 | DG103: 0 | DH103: 0 | DI103: 0 | DJ103: 0 | DK103: 0 | DL103: 0 | DM103: 0 | DN103: 19.69166667 | DO103: 22.6 | DP103: 14 | DQ103: 32.1 | DR103: 0 | DS103: 17 | DT103: 2 | DU103: 0 | DV103: 0 | DW103: 19 | DX103: 0 | DY103: 5 | DZ103: 0 | EA103: 0 | EB103: 0 | EC103: 5 | ED103: 0 | EE103: 22 | EF103: 2 | EG103: 0 | EH103: 0 | EI103: 24
A104: 1 | B104: =OFFSET(Input_Details!$Q$4,MATCH($A104, Input_Details!$J$5:$J$24, 0), 1) -> 2017-04-25 | C104: =INDEX(Input_Details!$H$5:$H$24, MATCH($A104, Input_Details!$J$5:$J$24, 0), 0) -> Harper Road (South of Falmouth Road) | D104: =INDEX(Input_Details!$I$5:$I$24, MATCH($A104, Input_Details!$J$5:$J$24, 0), 0) -> 51.49617, -0.09302 | E104: =INDEX(Input_Details!$K$5:$K$24, MATCH($A104, Input_Details!$J$5:$J$24, 0), 0) -> Southbound | F104: Tues | G104: 01:00:00 | H104: 1 | I104: 11 | J104: 0 | K104: 0 | L104: 0 | M104: 0 | N104: 0 | O104: 0 | P104: 0 | Q104: 0 | R104: 0 | S104: 0 | T104: 0 | U104: 2 | V104: 8 | W104: 2 | X104: 0 | Y104: 0 | Z104: 0 | AA104: 0 | AB104: 0 | AC104: 0 | AD104: 0 | AE104: 0 | AF104: 0 | AG104: 0 | AH104: 0 | AI104: 0 | AJ104: 0 | AK104: 0 | AL104: 0 | AM104: 0 | AN104: 18.1 | AO104: 19.9 | AP104: 14.2 | AQ104: 23.1 | AR104: =INDEX(Input_Details!$L$5:$L$24, MATCH($A104, Input_Details!$J$5:$J$24, 0), 0) -> Northbound | AS104: Tues | AT104: 01:00:00 | AU104: 0 | AV104: 2 | AW104: 0 | AX104: 0 | AY104: 0 | AZ104: 0 | BA104: 0 | BB104: 0 | BC104: 0 | BD104: 0 | BE104: 0 | BF104: 0 | BG104: 0 | BH104: 0 | BI104: 2 | BJ104: 0 | BK104: 0 | BL104: 0 | BM104: 0 | BN104: 0 | BO104: 0 | BP104: 0 | BQ104: 0 | BR104: 0 | BS104: 0 | BT104: 0 | BU104: 0 | BV104: 0 | BW104: 0 | BX104: 0 | BY104: 0 | BZ104: 0 | CA104: 18.9 | CB104: - | CC104: 18.9 | CD104: 18.9 | CF104: Tues | CG104: 01:00:00 | CH104: 1 | CI104: 13 | CJ104: 0 | CK104: 0 | CL104: 0 | CM104: 0 | CN104: 0 | CO104: 0 | CP104: 0 | CQ104: 0 | CR104: 0 | CS104: 0 | CT104: 0 | CU104: 2 | CV104: 10 | CW104: 2 | CX104: 0 | CY104: 0 | CZ104: 0 | DA104: 0 | DB104: 0 | DC104: 0 | DD104: 0 | DE104: 0 | DF104: 0 | DG104: 0 | DH104: 0 | DI104: 0 | DJ104: 0 | DK104: 0 | DL104: 0 | DM104: 0 | DN104: 18.21428571 | DO104: 19.9 | DP104: 14.2 | DQ104: 23.1 | DR104: 1 | DS104: 11 | DT104: 0 | DU104: 0 | DV104: 0 | DW104: 12 | DX104: 0 | DY104: 2 | DZ104: 0 | EA104: 0 | EB104: 0 | EC104: 2 | ED104: 1 | EE104: 13 | EF104: 0 | EG104: 0 | EH104: 0 | EI104: 14
A105: 1 | B105: =OFFSET(Input_Details!$Q$4,MATCH($A105, Input_Details!$J$5:$J$24, 0), 1) -> 2017-04-25 | C105: =INDEX(Input_Details!$H$5:$H$24, MATCH($A105, Input_Details!$J$5:$J$24, 0), 0) -> Harper Road (South of Falmouth Road) | D105: =INDEX(Input_Details!$I$5:$I$24, MATCH($A105, Input_Details!$J$5:$J$24, 0), 0) -> 51.49617, -0.09302 | E105: =INDEX(Input_Details!$K$5:$K$24, MATCH($A105, Input_Details!$J$5:$J$24, 0), 0) -> Southbound | F105: Tues | G105: 01:15:00 | H105: 1 | I105: 7 | J105: 0 | K105: 2 | L105: 0 | M105: 0 | N105: 0 | O105: 0 | P105: 0 | Q105: 0 | R105: 0 | S105: 0 | T105: 0 | U105: 1 | V105: 6 | W105: 2 | X105: 1 | Y105: 0 | Z105: 0 | AA105: 0 | AB105: 0 | AC105: 0 | AD105: 0 | AE105: 0 | AF105: 0 | AG105: 0 | AH105: 0 | AI105: 0 | AJ105: 0 | AK105: 0 | AL105: 0 | AM105: 0 | AN105: 19.2 | AO105: - | AP105: 13.5 | AQ105: 25.6 | AR105: =INDEX(Input_Details!$L$5:$L$24, MATCH($A105, Input_Details!$J$5:$J$24, 0), 0) -> Northbound | AS105: Tues | AT105: 01:15:00 | AU105: 0 | AV105: 6 | AW105: 0 | AX105: 0 | AY105: 0 | AZ105: 0 | BA105: 0 | BB105: 0 | BC105: 0 | BD105: 0 | BE105: 0 | BF105: 0 | BG105: 0 | BH105: 0 | BI105: 2 | BJ105: 4 | BK105: 0 | BL105: 0 | BM105: 0 | BN105: 0 | BO105: 0 | BP105: 0 | BQ105: 0 | BR105: 0 | BS105: 0 | BT105: 0 | BU105: 0 | BV105: 0 | BW105: 0 | BX105: 0 | BY105: 0 | BZ105: 0 | CA105: 20.2 | CB105: - | CC105: 16.6 | CD105: 22.6 | CF105: Tues | CG105: 01:15:00 | CH105: 1 | CI105: 13 | CJ105: 0 | CK105: 2 | CL105: 0 | CM105: 0 | CN105: 0 | CO105: 0 | CP105: 0 | CQ105: 0 | CR105: 0 | CS105: 0 | CT105: 0 | CU105: 1 | CV105: 8 | CW105: 6 | CX105: 1 | CY105: 0 | CZ105: 0 | DA105: 0 | DB105: 0 | DC105: 0 | DD105: 0 | DE105: 0 | DF105: 0 | DG105: 0 | DH105: 0 | DI105: 0 | DJ105: 0 | DK105: 0 | DL105: 0 | DM105: 0 | DN105: 19.575 | DO105: - | DP105: 13.5 | DQ105: 25.6 | DR105: 1 | DS105: 7 | DT105: 2 | DU105: 0 | DV105: 0 | DW105: 10 | DX105: 0 | DY105: 6 | DZ105: 0 | EA105: 0 | EB105: 0 | EC105: 6 | ED105: 1 | EE105: 13 | EF105: 2 | EG105: 0 | EH105: 0 | EI105: 16
A106: 1 | B106: =OFFSET(Input_Details!$Q$4,MATCH($A106, Input_Details!$J$5:$J$24, 0), 1) -> 2017-04-25 | C106: =INDEX(Input_Details!$H$5:$H$24, MATCH($A106, Input_Details!$J$5:$J$24, 0), 0) -> Harper Road (South of Falmouth Road) | D106: =INDEX(Input_Details!$I$5:$I$24, MATCH($A106, Input_Details!$J$5:$J$24, 0), 0) -> 51.49617, -0.09302 | E106: =INDEX(Input_Details!$K$5:$K$24, MATCH($A106, Input_Details!$J$5:$J$24, 0), 0) -> Southbound | F106: Tues | G106: 01:30:00 | H106: 0 | I106: 9 | J106: 0 | K106: 1 | L106: 3 | M106: 0 | N106: 0 | O106: 0 | P106: 0 | Q106: 0 | R106: 0 | S106: 0 | T106: 0 | U106: 0 | V106: 5 | W106: 8 | X106: 0 | Y106: 0 | Z106: 0 | AA106: 0 | AB106: 0 | AC106: 0 | AD106: 0 | AE106: 0 | AF106: 0 | AG106: 0 | AH106: 0 | AI106: 0 | AJ106: 0 | AK106: 0 | AL106: 0 | AM106: 0 | AN106: 20.4 | AO106: 22.1 | AP106: 16.1 | AQ106: 23.4 | AR106: =INDEX(Input_Details!$L$5:$L$24, MATCH($A106, Input_Details!$J$5:$J$24, 0), 0) -> Northbound | AS106: Tues | AT106: 01:30:00 | AU106: 0 | AV106: 4 | AW106: 0 | AX106: 0 | AY106: 1 | AZ106: 0 | BA106: 0 | BB106: 0 | BC106: 0 | BD106: 0 | BE106: 0 | BF106: 0 | BG106: 0 | BH106: 1 | BI106: 4 | BJ106: 0 | BK106: 0 | BL106: 0 | BM106: 0 | BN106: 0 | BO106: 0 | BP106: 0 | BQ106: 0 | BR106: 0 | BS106: 0 | BT106: 0 | BU106: 0 | BV106: 0 | BW106: 0 | BX106: 0 | BY106: 0 | BZ106: 0 | CA106: 16.5 | CB106: - | CC106: 14.8 | CD106: 16.9 | CF106: Tues | CG106: 01:30:00 | CH106: 0 | CI106: 13 | CJ106: 0 | CK106: 1 | CL106: 4 | CM106: 0 | CN106: 0 | CO106: 0 | CP106: 0 | CQ106: 0 | CR106: 0 | CS106: 0 | CT106: 0 | CU106: 1 | CV106: 9 | CW106: 8 | CX106: 0 | CY106: 0 | CZ106: 0 | DA106: 0 | DB106: 0 | DC106: 0 | DD106: 0 | DE106: 0 | DF106: 0 | DG106: 0 | DH106: 0 | DI106: 0 | DJ106: 0 | DK106: 0 | DL106: 0 | DM106: 0 | DN106: 19.31666667 | DO106: 22.1 | DP106: 14.8 | DQ106: 23.4 | DR106: 0 | DS106: 9 | DT106: 1 | DU106: 3 | DV106: 0 | DW106: 13 | DX106: 0 | DY106: 4 | DZ106: 0 | EA106: 1 | EB106: 0 | EC106: 5 | ED106: 0 | EE106: 13 | EF106: 1 | EG106: 4 | EH106: 0 | EI106: 18
A107: 1 | B107: =OFFSET(Input_Details!$Q$4,MATCH($A107, Input_Details!$J$5:$J$24, 0), 1) -> 2017-04-25 | C107: =INDEX(Input_Details!$H$5:$H$24, MATCH($A107, Input_Details!$J$5:$J$24, 0), 0) -> Harper Road (South of Falmouth Road) | D107: =INDEX(Input_Details!$I$5:$I$24, MATCH($A107, Input_Details!$J$5:$J$24, 0), 0) -> 51.49617, -0.09302 | E107: =INDEX(Input_Details!$K$5:$K$24, MATCH($A107, Input_Details!$J$5:$J$24, 0), 0) -> Southbound | F107: Tues | G107: 01:45:00 | H107: 0 | I107: 8 | J107: 0 | K107: 1 | L107: 2 | M107: 0 | N107: 0 | O107: 0 | P107: 0 | Q107: 0 | R107: 0 | S107: 0 | T107: 0 | U107: 0 | V107: 2 | W107: 9 | X107: 0 | Y107: 0 | Z107: 0 | AA107: 0 | AB107: 0 | AC107: 0 | AD107: 0 | AE107: 0 | AF107: 0 | AG107: 0 | AH107: 0 | AI107: 0 | AJ107: 0 | AK107: 0 | AL107: 0 | AM107: 0 | AN107: 21 | AO107: 21.3 | AP107: 18.8 | AQ107: 22.9 | AR107: =INDEX(Input_Details!$L$5:$L$24, MATCH($A107, Input_Details!$J$5:$J$24, 0), 0) -> Northbound | AS107: Tues | AT107: 01:45:00 | AU107: 0 | AV107: 4 | AW107: 0 | AX107: 0 | AY107: 0 | AZ107: 0 | BA107: 0 | BB107: 0 | BC107: 0 | BD107: 0 | BE107: 0 | BF107: 0 | BG107: 0 | BH107: 1 | BI107: 3 | BJ107: 0 | BK107: 0 | BL107: 0 | BM107: 0 | BN107: 0 | BO107: 0 | BP107: 0 | BQ107: 0 | BR107: 0 | BS107: 0 | BT107: 0 | BU107: 0 | BV107: 0 | BW107: 0 | BX107: 0 | BY107: 0 | BZ107: 0 | CA107: 15.5 | CB107: - | CC107: 14.2 | CD107: 16.9 | CF107: Tues | CG107: 01:45:00 | CH107: 0 | CI107: 12 | CJ107: 0 | CK107: 1 | CL107: 2 | CM107: 0 | CN107: 0 | CO107: 0 | CP107: 0 | CQ107: 0 | CR107: 0 | CS107: 0 | CT107: 0 | CU107: 1 | CV107: 5 | CW107: 9 | CX107: 0 | CY107: 0 | CZ107: 0 | DA107: 0 | DB107: 0 | DC107: 0 | DD107: 0 | DE107: 0 | DF107: 0 | DG107: 0 | DH107: 0 | DI107: 0 | DJ107: 0 | DK107: 0 | DL107: 0 | DM107: 0 | DN107: 19.53333333 | DO107: 21.3 | DP107: 14.2 | DQ107: 22.9 | DR107: 0 | DS107: 8 | DT107: 1 | DU107: 2 | DV107: 0 | DW107: 11 | DX107: 0 | DY107: 4 | DZ107: 0 | EA107: 0 | EB107: 0 | EC107: 4 | ED107: 0 | EE107: 12 | EF107: 1 | EG107: 2 | EH107: 0 | EI107: 15
A108: 1 | B108: =OFFSET(Input_Details!$Q$4,MATCH($A108, Input_Details!$J$5:$J$24, 0), 1) -> 2017-04-25 | C108: =INDEX(Input_Details!$H$5:$H$24, MATCH($A108, Input_Details!$J$5:$J$24, 0), 0) -> Harper Road (South of Falmouth Road) | D108: =INDEX(Input_Details!$I$5:$I$24, MATCH($A108, Input_Details!$J$5:$J$24, 0), 0) -> 51.49617, -0.09302 | E108: =INDEX(Input_Details!$K$5:$K$24, MATCH($A108, Input_Details!$J$5:$J$24, 0), 0) -> Southbound | F108: Tues | G108: 02:00:00 | H108: 0 | I108: 5 | J108: 0 | K108: 0 | L108: 1 | M108: 0 | N108: 0 | O108: 0 | P108: 0 | Q108: 0 | R108: 0 | S108: 0 | T108: 0 | U108: 0 | V108: 4 | W108: 2 | X108: 0 | Y108: 0 | Z108: 0 | AA108: 0 | AB108: 0 | AC108: 0 | AD108: 0 | AE108: 0 | AF108: 0 | AG108: 0 | AH108: 0 | AI108: 0 | AJ108: 0 | AK108: 0 | AL108: 0 | AM108: 0 | AN108: 19.9 | AO108: - | AP108: 18.4 | AQ108: 21.8 | AR108: =INDEX(Input_Details!$L$5:$L$24, MATCH($A108, Input_Details!$J$5:$J$24, 0), 0) -> Northbound | AS108: Tues | AT108: 02:00:00 | AU108: 0 | AV108: 0 | AW108: 0 | AX108: 0 | AY108: 1 | AZ108: 0 | BA108: 0 | BB108: 0 | BC108: 0 | BD108: 0 | BE108: 0 | BF108: 0 | BG108: 1 | BH108: 0 | BI108: 0 | BJ108: 0 | BK108: 0 | BL108: 0 | BM108: 0 | BN108: 0 | BO108: 0 | BP108: 0 | BQ108: 0 | BR108: 0 | BS108: 0 | BT108: 0 | BU108: 0 | BV108: 0 | BW108: 0 | BX108: 0 | BY108: 0 | BZ108: 0 | CA108: 9.6 | CB108: - | CC108: 9.6 | CD108: 9.6 | CF108: Tues | CG108: 02:00:00 | CH108: 0 | CI108: 5 | CJ108: 0 | CK108: 0 | CL108: 2 | CM108: 0 | CN108: 0 | CO108: 0 | CP108: 0 | CQ108: 0 | CR108: 0 | CS108: 0 | CT108: 1 | CU108: 0 | CV108: 4 | CW108: 2 | CX108: 0 | CY108: 0 | CZ108: 0 | DA108: 0 | DB108: 0 | DC108: 0 | DD108: 0 | DE108: 0 | DF108: 0 | DG108: 0 | DH108: 0 | DI108: 0 | DJ108: 0 | DK108: 0 | DL108: 0 | DM108: 0 | DN108: 18.42857143 | DO108: - | DP108: 9.6 | DQ108: 21.8 | DR108: 0 | DS108: 5 | DT108: 0 | DU108: 1 | DV108: 0 | DW108: 6 | DX108: 0 | DY108: 0 | DZ108: 0 | EA108: 1 | EB108: 0 | EC108: 1 | ED108: 0 | EE108: 5 | EF108: 0 | EG108: 2 | EH108: 0 | EI108: 7
A109: 1 | B109: =OFFSET(Input_Details!$Q$4,MATCH($A109, Input_Details!$J$5:$J$24, 0), 1) -> 2017-04-25 | C109: =INDEX(Input_Details!$H$5:$H$24, MATCH($A109, Input_Details!$J$5:$J$24, 0), 0) -> Harper Road (South of Falmouth Road) | D109: =INDEX(Input_Details!$I$5:$I$24, MATCH($A109, Input_Details!$J$5:$J$24, 0), 0) -> 51.49617, -0.09302 | E109: =INDEX(Input_Details!$K$5:$K$24, MATCH($A109, Input_Details!$J$5:$J$24, 0), 0) -> Southbound | F109: Tues | G109: 02:15:00 | H109: 0 | I109: 6 | J109: 0 | K109: 0 | L109: 0 | M109: 0 | N109: 0 | O109: 0 | P109: 0 | Q109: 0 | R109: 0 | S109: 0 | T109: 0 | U109: 0 | V109: 0 | W109: 6 | X109: 0 | Y109: 0 | Z109: 0 | AA109: 0 | AB109: 0 | AC109: 0 | AD109: 0 | AE109: 0 | AF109: 0 | AG109: 0 | AH109: 0 | AI109: 0 | AJ109: 0 | AK109: 0 | AL109: 0 | AM109: 0 | AN109: 21.7 | AO109: - | AP109: 20.7 | AQ109: 23.4 | AR109: =INDEX(Input_Details!$L$5:$L$24, MATCH($A109, Input_Details!$J$5:$J$24, 0), 0) -> Northbound | AS109: Tues | AT109: 02:15:00 | AU109: 0 | AV109: 3 | AW109: 0 | AX109: 0 | AY109: 0 | AZ109: 0 | BA109: 0 | BB109: 0 | BC109: 0 | BD109: 0 | BE109: 0 | BF109: 0 | BG109: 0 | BH109: 3 | BI109: 0 | BJ109: 0 | BK109: 0 | BL109: 0 | BM109: 0 | BN109: 0 | BO109: 0 | BP109: 0 | BQ109: 0 | BR109: 0 | BS109: 0 | BT109: 0 | BU109: 0 | BV109: 0 | BW109: 0 | BX109: 0 | BY109: 0 | BZ109: 0 | CA109: 12.6 | CB109: - | CC109: 12.6 | CD109: 12.6 | CF109: Tues | CG109: 02:15:00 | CH109: 0 | CI109: 9 | CJ109: 0 | CK109: 0 | CL109: 0 | CM109: 0 | CN109: 0 | CO109: 0 | CP109: 0 | CQ109: 0 | CR109: 0 | CS109: 0 | CT109: 0 | CU109: 3 | CV109: 0 | CW109: 6 | CX109: 0 | CY109: 0 | CZ109: 0 | DA109: 0 | DB109: 0 | DC109: 0 | DD109: 0 | DE109: 0 | DF109: 0 | DG109: 0 | DH109: 0 | DI109: 0 | DJ109: 0 | DK109: 0 | DL109: 0 | DM109: 0 | DN109: 18.66666667 | DO109: - | DP109: 12.6 | DQ109: 23.4 | DR109: 0 | DS109: 6 | DT109: 0 | DU109: 0 | DV109: 0 | DW109: 6 | DX109: 0 | DY109: 3 | DZ109: 0 | EA109: 0 | EB109: 0 | EC109: 3 | ED109: 0 | EE109: 9 | EF109: 0 | EG109: 0 | EH109: 0 | EI109: 9
